Workbook

Sheet Cover Sheet
A1: Title: | B1: Revenue and Expenditures Model
A3: Prepared by: | B3: Timothy E. Harper (DOR)
B4: Wyatt Oney Perry (DOR)
B5: David W. Herbert (DOR)
A7: Purpose: | B7: The purpose of this model is to demonstrate impacts of various revenue and expenditures options. These impacts are shown over a 15 year period.
A10: Instructions: | B10: To interact with this model first enable macros then use the drop down menu to select one of the two complexity settings , "detailed" or "simple." The two options reflect the same budget and revenue numbers, but the "detailed" model allows the user to edit with greater granularity. The displayed sheet will automatically switch to the selected model and allow revenue and budget options to be changed. Descriptions of the options can be found in the Revenue and Budget Description sheet. The user can review the effects of changes made on the Summary sheet. To reset the model to the default options return to this page and click the "Reset Button."
A20: Additional Instructions:
A23: Disclaimer: | B23: The Department of Revenue is in the process of reviewing and updating the data on which this analysis is based. As a result, future analysis could have different results.
B26: The revenue options and budget cut options have not been reviewed by the Department of Law and might not be implementable. All numbers are for demonstrative purposes only and might not reflect actual changes in revenue or budget.
A31: Contact Information: | B31: wyatt.perry@alaska.gov
B32: david.herbert@alaska.gov

Sheet Simple Model
B3: Revenue Options | F3: Fund Changes | J3: Spending Options
B5: Inflation Assumption | F5: Total Cuts From Budget (In Billions) | G5: ='All Rev & Projects'!G249 -> 0 | J5: YEAR | K5: TOTAL SPENDING ADJUSTMENTS
B6: Long Run Price Of ANS Crude | J6: 2017
F7: Total Additional Revenue Generated (In Billions) | G7: ='All Rev & Projects'!G245 -> 0 | J7: 2018
B8: Financial | J8: 2019
B9: Current PF Revenue Methodology | J9: 2020
B10: Endowment
B11: Endowment @ X% | J11: Petroleum Credits
B12: State Share of PF Revenues | J12: Spending Related Credits
B13: PFD Cap | J13: Production Related Credits
B14: PERS/TRS "Net" Arbitrage Bonds | J14: Exploration Related Credits
B15: Collateralization Revenues | J15: Cap All Credits
B17: Broad-Based Taxes | J17: Yearly Capital Allocation
B18: Sales Tax | J18: Yearly Capital Spending In Millions
B19: Increase in the max rate of corporate income tax
B20: Personal Income Tax as % of Fed income tax liability
B21: Capital Gains Tax
B22: State Property Tax
B24: Petroleum
B25: Flat Tax for Non-CIT Petroleum Companies
B26: Net Severance Tax - Additional Revenue | F26: Values in Nominal Terms
B27: Net Severance Tax - Current Base Rate 35%
B28: Minimum Tax - Current 4%
B30: Consumption Tax
B31: Increase Sin Tax Rates (Marijuana, Cigarettes and Alcohol)
B33: Fishing Tax
B34: Fishing Tax Rate Increase
B36: Fuel Tax
B37: Increase in tax per Gallon
B39: Mining Tax
B40: Mining Tax Rate Increase
B42: Lottery / Gaming
B43: Legalize Card Rooms and Casino's | F43: Values in Million Nominal Dollars
B44: State Lottery
F45: Background Color Key
B46: Health Care Provider Tax
B47: Health Care Provider Tax | F47: All funds run out by 2030
F48: CBRF and SBRF run out by 2030
B49: Uncollected Funds | F49: No funds run out by 2030
B50: Auditing and collecting additional revenue from current Taxes
F51: Reserve Balance
F53: All Funds Spent by | G53: =IFERROR(IF(G54<G55,G55,G54),"Funds remain through 2030") -> FY 2026
F54: CBRF & SBRF Spent by | G54: =IFERROR(" "&INDEX('All Rev & Projects'!G211:V211,MATCH(0,'All Rev & Projects'!G215:V215,0)),"Funds remain through 2030") -> FY 2019
F55: Fund Spendable balance end | G55: =IFERROR(" "&INDEX('All Rev & Projects'!G211:V211,MATCH(0,'All Rev & Projects'!G218:V218,0)),"Funds remain through 2030") -> FY 2026
B71: =IF(MIN('All Rev & Projects'!G215:V215)=0,IF(MIN('All Rev & Projects'!G218:V218)=0,2,1),0) -> 2
B94: 0 | C94: =C95-0.01 -> 0
B95: 0.05 | C95: =C96-0.01 -> 0.01
B96: =B95+0.05 -> 0.1 | C96: =C97-0.01 -> 0.02
B97: =B96+0.05 -> 0.15 | C97: =C98-0.01 -> 0.03
B98: =B97+0.05 -> 0.2 | C98: =C99-0.01 -> 0.04
B99: =B98+0.05 -> 0.25 | C99: 0.05
B100: 0.3 | C100: =C99+0.01 -> 0.06
B101: 0.35 | C101: =C100+0.01 -> 0.07
B102: 0.4 | C102: 0.08
B103: 0.45 | C103: 0.09
B104: 0.5 | C104: 0.1
B105: 0.55 | C105: 0.11
B106: 0.6 | C106: 0.12
B107: 0.65 | C107: 0.13
B108: 0.7 | C108: 0.14
B109: 0.75 | C109: 0.15 | K109: 1
B110: =B109+0.05 -> 0.8 | C110: =C109+0.01 -> 0.16 | K110: 2
B111: 0.85 | C111: 0.17 | K111: 3
B112: 0.9 | C112: 0.18 | J112: 0.1 | K112: 4
B113: 0.95 | C113: 0.19 | J113: =J112+0.1 -> 0.2 | K113: 5
B114: 1 | C114: 0.2 | J114: =J113+0.1 -> 0.3
C115: 0.21 | J115: 0.4
C116: 0.22 | J116: 0.5
C117: 0.23 | J117: 0.6
C118: 0.24 | J118: =J117+0.1 -> 0.7
C119: 0.25 | J119: 0.8
J120: 0.9
J121: 1
D149: =C94 -> 0 | E149: -1 | G149: 0.04 | H149: 0.05
D150: 0.01 | E150: -0.95 | G150: 0.045 | H150: 0.1
D151: 0.02 | E151: -0.9 | G151: 0.05 | H151: 0.15
D152: 0.03 | E152: -0.85 | H152: 0.2
D153: 0.04 | E153: -0.8 | H153: 0.25
D154: 0.05 | E154: -0.75 | H154: 0.3
D155: 0.06 | E155: -0.7 | H155: 0.35
D156: 0.07 | E156: -0.65 | H156: 0.4
D157: 0.08 | E157: -0.6 | H157: 0.45
D158: 0.09 | E158: -0.55 | H158: 0.5
D159: 0.1 | E159: -0.5
D160: 0.11 | E160: -0.45
D161: 0.12 | E161: -0.4
D162: 0.13 | E162: -0.35
D163: 0.14 | E163: -0.3
D164: 0.15 | E164: -0.25
D165: 0.16 | E165: -0.2
D166: 0.17 | E166: -0.15
D167: 0.18 | E167: -0.1
D168: 0.19 | E168: -0.05
D169: 0.2 | E169: 0
D170: 0.21 | E170: 0.05
D171: 0.22 | E171: 0.1
D172: 0.23 | E172: 0.15
D173: 0.24 | E173: 0.2
D174: 0.25 | E174: 0.25
E175: 0.3
E176: 0.35
E177: 0.4
E178: 0.45
E179: 0.5
E180: 0.55
E181: 0.6
E182: 0.65
E183: 0.7
E184: 0.75
E185: 0.8
E186: 0.85
E187: 0.9
E188: 0.95
E189: 1

Sheet Detailed Model (hidden)
B3: Revenue Options | F3: Fund Changes | J3: Spending Options
B5: Inflation Assumption | F5: Total Cuts From Budget (In Billions) | G5: ='All Rev & Projects'!G249 -> 0 | J5: State Budget General Funds Unrestricted
B6: Long Run Price Of ANS Crude | J6: DEPARTMENT | K6: DEPARTMENT CUT AMOUNT
F7: Total Additional Revenue Generated (In Billions) | G7: ='All Rev & Projects'!G245 -> 0 | J7: Administration
B8: Financial | J8: Commerce, Community and Economic Development
B9: Current PF Revenue Methodology | J9: Corrections
B10: Endowment | J10: Education and Early Development
B11: Endowment @ X% | J11: Environmental Conservation
B12: SB 114 | J12: Fish and Game
B13: State Share of PF Revenues | J13: Health and Social Services
B14: PFD Cap | J14: Labor and Workforce Development
B15: PERS/TRS "Net" Arbitrage Bonds | J15: Law
B16: Collateralization Revenues | J16: Military and Veterans' Affairs
B17: Loan to Value Ratio | J17: Natural Resources
B18: Securitization Revenue (Only When Collateralization Enabled) | J18: Public Safety
J19: Revenue
B20: Petroleum | J20: Transportation and Public Facilities
B21: Flat Tax for Non-CIT Petroleum Companies | J21: University of Alaska
B22: Net Severance Tax - Additional Revenue | J22: Office of the Governor
B23: Net Severance Tax - Current Base Rate 35% | J23: Branch-wide Unallocated Appropriations
B24: Gross Value Reduction | J24: Alaska Court System
B25: Minimum Tax - Current 4% | J25: Alaska Legislature
B26: Cook Inlet Production Tax Cap
B27: Hazardous Release/Conservation surcharge | J27: YEAR | K27: TOTAL SPENDING ADJUSTMENT
B28: Natural Gas Reserves Tax | F28: Values in Nominal Terms | J28: 2017
J29: 2018
B30: Petroleum Credits | J30: 2019
B31: Refunded Credits goes against GF appropriations | J31: 2020
B32: Cap All Credits | J32: 2021
B33: North Slope | J33: 2022
B34: Carry-forward annual loss, AS 43.55.023(b) | J34: 2023
B35: Credits under AS 43.55.025 | J35: 2024
B36: Non-North Slope | J36: 2025
B37: Qualified capital expenditure, AS 43.55.023(a) & Well lease expenditure, AS 43.55.023(l) | J37: 2026
J38: 2027
B39: Carry-forward annual loss, AS 43.55.023(b) | J39: 2028
B40: Credits under AS 43.55.025 | J40: 2029
B41: Credits under AS 43.20 | J41: 2030
B42: Credits Used Against Tax Liability goes against revenue
B43: North Slope | J43: Yearly Capital Allocation
B44: Per taxable barrel credit, AS 43.55.024(i)-(j) | J44: Yearly Capital Spending In Millions
B45: Small producer credit, AS 43.55.024(a)(c)
B46: Non-North Slope | F46: Values in Million Nominal Dollars
B47: Qualified capital expenditure, AS 43.55.023(a); Carry-forward annual loss, AS 43.55.023(b); Well lease expenditure, AS 43.55.023(l)
B48: Small producer credit, AS 43.55.024(a)(c) | F48: Background Color Key
B50: Sales Tax | F50: All funds run out by 2030
B51: Gross Receipts Tax | F51: CBRF and SBRF run out by 2030
B52: Sales Tax | F52: No funds run out by 2030
B54: Fishing Tax | F54: Reserve Balance
B55: Fishing Tax Rate Increase
F56: All Funds Spent by | G56: =IFERROR(IF(G57<G58,G58,G57),"Funds remain through 2030") -> FY 2026
B57: Fuel Tax | F57: CBRF & SBRF Spent by | G57: =IFERROR(" "&INDEX('All Rev & Projects'!G211:V211,MATCH(0,'All Rev & Projects'!G215:V215,0)),"Funds remain through 2030") -> FY 2019
B58: Increase in tax per Gallon | F58: Fund Spendable balance end | G58: =IFERROR(" "&INDEX('All Rev & Projects'!G211:V211,MATCH(0,'All Rev & Projects'!G218:V218,0)),"Funds remain through 2030") -> FY 2026
B60: Income Tax
B61: Increase in the max rate of corporate income tax
B62: Personal Income Tax as % of Fed income tax liability
B63: Capital Gains Tax
B65: Lottery / Gaming
B66: State Lottery
B67: PF Lottery
B68: Increase Current Gaming Rates
B69: Legalize Card Rooms
B70: Legalize Casino
B72: Mining Tax
B73: Mining Tax Rate Increase
B74: Remove Depletion Allowance
B76: School Tax
B77: Flat Rate per Working Person
B78: Progressive Tax as described in SB 97
B80: State Property Tax
B81: State Property Tax
B83: Health Care Provider Tax
B84: Health Care Provider Tax
B86: Child Support Fee
B87: Child Support Fee that State Currently Pays
B89: Consumption Tax
B90: Rise in Alcohol Tax (% increase across all taxed items)
B91: Tobacco Tax Increase Per Cigarette tax
B92: Tobacco Tax Increase Other Tobacco Products
B93: Include E-Cigs in the Other Tobacco Products Tax
B94: Marijuana Tax Per Oz
B96: Uncollected Funds
B97: Auditing and collecting additional revenue from current Taxes
B99: Large Projects
B100: AKLNG - 25% equity, TC, no buyback
B101: Susitna Size Hydroelectric Project
B102: Debt Funding %
B103: Knik Arm Bridge
B104: Ambler Road
B105: Juneau Road
B108: DISCLAIMER: The revenue options and budget cut options have not been reviewed by the Department of Law and might not be implementable. All numbers are for demonstrative purposes only and might not reflect actual changes in revenue or budget.
B132: =IF(MIN('All Rev & Projects'!G215:V215)=0,IF(MIN('All Rev & Projects'!G218:V218)=0,2,1),0) -> 2
D152: =C155 -> 0 | E152: -1 | F152: Simple | H152: 0.05
D153: 0.01 | E153: -0.95 | F153: Complex | H153: 0.1
D154: 0.02 | E154: -0.9 | H154: 0.15
B155: 0 | C155: =C156-0.01 -> 0 | D155: 0.03 | E155: -0.85 | G155: 0.04 | H155: 0.2 | J155: 0.1 | K155: 1
B156: 0.05 | C156: =C157-0.01 -> 0.01 | D156: 0.04 | E156: -0.8 | G156: 0.045 | H156: 0.25 | J156: =J155+0.1 -> 0.2 | K156: 2
B157: =B156+0.05 -> 0.1 | C157: =C158-0.01 -> 0.02 | D157: 0.05 | E157: -0.75 | G157: 0.05 | H157: 0.3 | J157: =J156+0.1 -> 0.3 | K157: 3
B158: 0.15 | C158: =C159-0.01 -> 0.03 | D158: 0.06 | E158: -0.7 | H158: 0.35 | J158: 0.4 | K158: 4
B159: 0.2 | C159: =C160-0.01 -> 0.04 | D159: 0.07 | E159: -0.65 | H159: 0.4 | J159: 0.5 | K159: 5
B160: 0.25 | C160: 0.05 | D160: 0.08 | E160: -0.6 | H160: 0.45 | J160: 0.6
B161: 0.3 | C161: =C160+0.01 -> 0.06 | D161: 0.09 | E161: -0.55 | H161: 0.5 | J161: =J160+0.1 -> 0.7
B162: 0.35 | C162: 0.07 | D162: 0.1 | E162: -0.5 | J162: 0.8
B163: 0.4 | C163: 0.08 | D163: 0.11 | E163: -0.45 | J163: 0.9
B164: 0.45 | C164: 0.09 | D164: 0.12 | E164: -0.4 | J164: 1
B165: 0.5 | C165: 0.1 | D165: 0.13 | E165: -0.35
B166: 0.55 | C166: 0.11 | D166: 0.14 | E166: -0.3
B167: 0.6 | C167: 0.12 | D167: 0.15 | E167: -0.25
B168: 0.65 | C168: 0.13 | D168: 0.16 | E168: -0.2
B169: 0.7 | C169: 0.14 | D169: 0.17 | E169: -0.15
B170: 0.75 | C170: 0.15 | D170: 0.18 | E170: -0.1
B171: 0.8 | C171: 0.16 | D171: 0.19 | E171: -0.05
B172: 0.85 | C172: 0.17 | D172: 0.2 | E172: 0
B173: 0.9 | C173: 0.18 | D173: 0.21 | E173: 0.05
B174: 0.95 | C174: 0.19 | D174: 0.22 | E174: 0.1
B175: 1 | C175: 0.2 | D175: 0.23 | E175: 0.15
C176: 0.21 | D176: 0.24 | E176: 0.2
C177: 0.22 | D177: 0.25 | E177: 0.25
C178: 0.23 | E178: 0.3
C179: 0.24 | E179: 0.35
C180: 0.25 | E180: 0.4
E181: 0.45
E182: 0.5
E183: 0.55
E184: 0.6
E185: 0.65
E186: 0.7
E187: 0.75
E188: 0.8
E189: 0.85
E190: 0.9
E191: 0.95
E192: 1

Sheet All Rev & Projects (hidden)
A1: Simple | B1: Complex | F1: 2014 | G1: 2015 | H1: 2016 | I1: 2017 | J1: 2018 | K1: 2019 | L1: 2020 | M1: 2021 | N1: 2022 | O1: 2023 | P1: 2024 | Q1: 2025 | R1: 2026 | S1: 2027 | T1: 2028 | U1: 2029 | V1: 2030
D2: Department of Revenue
A3: 1 | D3: SOA Basic GFUR and Financial Reserve Impacts
D4: All Revenues and Large Projects - Version 1
D5: April 2015
Z6: % Debt Funding | AA6: Securitization Rate | AB6: Securitization Payment
E7: Revenue ($ in millions) | F7: FY 2014 | G7: FY 2015 | H7: FY 2016 | I7: FY 2017 | J7: FY 2018 | K7: FY 2019 | L7: FY 2020 | M7: FY 2021 | N7: FY 2022 | O7: FY 2023 | P7: FY 2024 | Q7: FY 2025 | R7: FY 2026 | S7: FY 2027 | T7: FY 2028 | U7: FY 2029 | V7: FY 2030 | Y7: Yes | Z7: 0 | AA7: 0.04 | AB7: 513.9
E8: Spring 2015 Forecast | F8: 5689.7 | G8: 2375.6 | H8: ='FY 16-25 GFUR'!B2 -> 2198.2 | I8: ='FY 16-25 GFUR'!C2 -> 3174.9 | J8: ='FY 16-25 GFUR'!D2 -> 3240.6 | K8: ='FY 16-25 GFUR'!E2 -> 3788.3 | L8: ='FY 16-25 GFUR'!F2 -> 4535.2 | M8: ='FY 16-25 GFUR'!G2 -> 4435.1 | N8: ='FY 16-25 GFUR'!H2 -> 4260.7 | O8: ='FY 16-25 GFUR'!I2 -> 4265.9 | P8: ='FY 16-25 GFUR'!J2 -> 4218 | Q8: ='FY 16-25 GFUR'!K2 -> 4054.5 | R8: ='FY 16-25 GFUR'!L2 -> 3828.2 | S8: ='FY 16-25 GFUR'!M2 -> 3636.5 | T8: ='FY 16-25 GFUR'!N2 -> 3484.6 | U8: ='FY 16-25 GFUR'!O2 -> 3319.9 | V8: ='FY 16-25 GFUR'!P2 -> 3184.8 | Y8: No | Z8: 0.1 | AA8: 0.05 | AB8: 578.1
Z9: 0.2 | AA9: 0.06 | AB9: 645.6
E10: Additional Revenues | Z10: 0.25 | AA10: 0.07 | AB10: 716.1
Z11: 0.3
E12: Financial | Z12: 0.4
A13: FALSE | B13: FALSE | C13: =INDEX(A13:B13,0,$A$3) -> FALSE | D13: =IF(C13=TRUE,"Yes","No") -> No | E13: PERS/TRS Arbitrage Bonds | H13: =IF($D$13="Yes",5000*0.03/2,0) -> 0 | I13: =IF($D$13="Yes",1.0225*5000*0.03,0) -> 0 | J13: =IF($D$13="Yes",I13,0) -> 0 | K13: =IF($D$13="Yes",J13,0) -> 0 | L13: =IF($D$13="Yes",K13,0) -> 0 | M13: 0 | N13: 0 | O13: 0 | P13: 0 | Q13: 0 | R13: 0 | S13: 0 | T13: 0 | U13: 0 | V13: 0 | Z13: 0.5
E14: Permanent Fund | Z14: 0.6
A15: 1 | B15: 1 | C15: =INDEX(A15:B15,0,$A$3) -> 1 | D15: =IF(C15=1,"Yes","No") -> Yes | E15: Current PF Revenue Methodology | H15: =IF(OR(AND($D$15="Yes",$D$22="Yes"),$D$15="No"), 0,H17) -> 2960.403355 | I15: 3110.497004 | J15: 3273.918873 | K15: 3442.4776 | L15: 3615.754194 | M15: 3794.509035 | N15: 3979.527139 | O15: 4170.228559 | P15: 4366.622327 | Q15: 4568.924692 | R15: 4777.496624 | S15: 4993.314523 | T15: 5216.827711 | U15: 5448.406268 | V15: 5688.440975
A16: 1 | B16: 1 | C16: =INDEX(A16:B16,0,$A$3) -> 1 | D16: =INDEX('Detailed Model'!B155:B175,'All Rev & Projects'!C16) -> 0 | E16: State/Public Split (State Share) | H16: =H15*$D$16 -> 0 | I16: =I15*$D$16 -> 0 | J16: 0 | K16: 0 | L16: 0 | M16: 0 | N16: 0 | O16: 0 | P16: 0 | Q16: 0 | R16: 0 | S16: 0 | T16: 0 | U16: 0 | V16: 0
H17: =INDEX('Extended Forecast'!$W$22:$W$52,COLUMN('All Rev & Projects'!C2))/(1-$D$16) -> 2960.403355 | I17: =INDEX('Extended Forecast'!$W$22:$W$52,COLUMN('All Rev & Projects'!D2))/(1-$D$16) -> 3110.497004 | J17: =INDEX('Extended Forecast'!$W$22:$W$52,COLUMN('All Rev & Projects'!E2))/(1-$D$16) -> 3273.918873 | K17: =INDEX('Extended Forecast'!$W$22:$W$52,COLUMN('All Rev & Projects'!F2))/(1-$D$16) -> 3442.4776 | L17: =INDEX('Extended Forecast'!$W$22:$W$52,COLUMN('All Rev & Projects'!G2))/(1-$D$16) -> 3615.754194 | M17: =INDEX('Extended Forecast'!$W$22:$W$52,COLUMN('All Rev & Projects'!H2))/(1-$D$16) -> 3794.509035 | N17: =INDEX('Extended Forecast'!$W$22:$W$52,COLUMN('All Rev & Projects'!I2))/(1-$D$16) -> 3979.527139 | O17: =INDEX('Extended Forecast'!$W$22:$W$52,COLUMN('All Rev & Projects'!J2))/(1-$D$16) -> 4170.228559 | P17: =INDEX('Extended Forecast'!$W$22:$W$52,COLUMN('All Rev & Projects'!K2))/(1-$D$16) -> 4366.622327 | Q17: =INDEX('Extended Forecast'!$W$22:$W$52,COLUMN('All Rev & Projects'!L2))/(1-$D$16) -> 4568.924692 | R17: =INDEX('Extended Forecast'!$W$22:$W$52,COLUMN('All Rev & Projects'!M2))/(1-$D$16) -> 4777.496624 | S17: =INDEX('Extended Forecast'!$W$22:$W$52,COLUMN('All Rev & Projects'!N2))/(1-$D$16) -> 4993.314523 | T17: =INDEX('Extended Forecast'!$W$22:$W$52,COLUMN('All Rev & Projects'!O2))/(1-$D$16) -> 5216.827711 | U17: =INDEX('Extended Forecast'!$W$22:$W$52,COLUMN('All Rev & Projects'!P2))/(1-$D$16) -> 5448.406268 | V17: =INDEX('Extended Forecast'!$W$22:$W$52,COLUMN('All Rev & Projects'!Q2))/(1-$D$16) -> 5688.440975
A18: 1 | B18: 1 | C18: =INDEX(A18:B18,0,$A$3) -> 1 | D18: ='PFD Limits & SB 114'!K6 -> 99999999 | E18: Cap on Permanent Fund Dividend | H18: =H19/1000000 -> 0 | I18: =I19/1000000 -> 0 | J18: 0 | K18: 0 | L18: 0 | M18: 0 | N18: 0 | O18: 0 | P18: 0 | Q18: 0 | R18: 0 | S18: 0 | T18: 0 | U18: 0 | V18: 0 | Z18: 0.7
H19: ='PFD Limits & SB 114'!O23 -> 0 | I19: ='PFD Limits & SB 114'!O24 -> 0 | J19: ='PFD Limits & SB 114'!O25 -> 0 | K19: ='PFD Limits & SB 114'!O26 -> 0 | L19: ='PFD Limits & SB 114'!O27 -> 0 | M19: ='PFD Limits & SB 114'!O28 -> 0 | N19: ='PFD Limits & SB 114'!O29 -> 0 | O19: ='PFD Limits & SB 114'!O30 -> 0 | P19: ='PFD Limits & SB 114'!O31 -> 0 | Q19: ='PFD Limits & SB 114'!O32 -> 0 | R19: ='PFD Limits & SB 114'!O33 -> 0 | S19: ='PFD Limits & SB 114'!O34 -> 0 | T19: ='PFD Limits & SB 114'!O35 -> 0 | U19: ='PFD Limits & SB 114'!O36 -> 0 | V19: ='PFD Limits & SB 114'!O37 -> 0 | Z19: 0.75
A20: =(A15=3) -> FALSE | B20: =(B15=3) -> FALSE | C20: =INDEX(A20:B20,0,$A$3) -> FALSE | D20: =IF(C20,"Yes","No") -> No | E20: Senate Bill 114 | H20: ='PFD Limits & SB 114'!V15*N($C$20) -> 0 | I20: ='PFD Limits & SB 114'!W15*N($C$20) -> 0 | J20: ='PFD Limits & SB 114'!X15*N($C$20) -> 0 | K20: ='PFD Limits & SB 114'!Y15*N($C$20) -> 0 | L20: ='PFD Limits & SB 114'!Z15*N($C$20) -> 0 | M20: ='PFD Limits & SB 114'!AA15*N($C$20) -> 0 | N20: ='PFD Limits & SB 114'!AB15*N($C$20) -> 0 | O20: ='PFD Limits & SB 114'!AC15*N($C$20) -> 0 | P20: ='PFD Limits & SB 114'!AD15*N($C$20) -> 0 | Q20: ='PFD Limits & SB 114'!AE15*N($C$20) -> 0 | R20: ='PFD Limits & SB 114'!AF15*N($C$20) -> 0 | S20: ='PFD Limits & SB 114'!AG15*N($C$20) -> 0 | T20: ='PFD Limits & SB 114'!AH15*N($C$20) -> 0 | U20: ='PFD Limits & SB 114'!AI15*N($C$20) -> 0 | V20: ='PFD Limits & SB 114'!AJ15*N($C$20) -> 0
A22: =A15=2 -> FALSE | B22: =B15=2 -> FALSE | C22: =INDEX(A22:B22,0,$A$3) -> FALSE | D22: =IF(C22,"Yes","No") -> No | E22: Endowment Method | H22: =IF($D$22="No",0,Endowment!N61)*$D$24 -> 0 | I22: =IF($D$22="No",0,Endowment!O61)*$D$24 -> 0 | J22: =IF($D$22="No",0,Endowment!P61)*$D$24 -> 0 | K22: =IF($D$22="No",0,Endowment!Q61)*$D$24 -> 0 | L22: =IF($D$22="No",0,Endowment!R61)*$D$24 -> 0 | M22: =IF($D$22="No",0,Endowment!S61)*$D$24 -> 0 | N22: =IF($D$22="No",0,Endowment!T61)*$D$24 -> 0 | O22: =IF($D$22="No",0,Endowment!U61)*$D$24 -> 0 | P22: =IF($D$22="No",0,Endowment!V61)*$D$24 -> 0 | Q22: =IF($D$22="No",0,Endowment!W61)*$D$24 -> 0 | R22: =IF($D$22="No",0,Endowment!X61)*$D$24 -> 0 | S22: =IF($D$22="No",0,Endowment!Y61)*$D$24 -> 0 | T22: =IF($D$22="No",0,Endowment!Z61)*$D$24 -> 0 | U22: =IF($D$22="No",0,Endowment!AA61)*$D$24 -> 0 | V22: =IF($D$22="No",0,Endowment!AB61)*$D$24 -> 0 | Z22: 0.7
A23: 1 | B23: 1 | C23: =INDEX(A23:B23,0,$A$3) -> 1 | D23: =0.035+0.005*C23 -> 0.04 | E23: Endowment @ X% | Z23: 0.75
D24: =D16 -> 0 | E24: State/Public Split (State Share) | Z24: 0.8
E25: Collateralize and Securitize - Endowment & Status Quo | H25: =IF(AND($D$26="Yes"),$G$216*D27*(D28),0)/2 -> 0 | I25: =IF(AND($D$26="Yes"),$G$216*$D$27*($D$28),0) -> 0 | J25: 0 | K25: 0 | L25: 0 | M25: 0 | N25: 0 | O25: 0 | P25: 0 | Q25: 0 | R25: 0 | S25: 0 | T25: 0 | U25: 0 | V25: =IF(AND($D$26="Yes"),$G$216*$D$27*($D$28),0)+IF(D29="Yes",F275,0) -> 0 | Z25: 0.9
A26: FALSE | B26: FALSE | C26: =INDEX(A26:B26,0,$A$3) -> FALSE | D26: =IF(C26=TRUE,"Yes","No") -> No | E26: Collateralization Revenues | H26: =IF($C$29,H25,H25) -> 0 | I26: =IF($C$29,0,I25) -> 0 | J26: =IF($C$29,0,J25) -> 0 | K26: 0 | L26: 0 | M26: 0 | N26: 0 | O26: 0 | P26: 0 | Q26: 0 | R26: 0 | S26: 0 | T26: 0 | U26: 0 | V26: 0
A27: 4 | B27: 1 | C27: =INDEX(A27:B27,0,$A$3) -> 4 | D27: =C27*0.05 -> 0.2 | E27: Loan to Value Ratio
D28: 0.03391304348 | E28: Earning Rate
A29: FALSE | B29: FALSE | C29: =INDEX(A29:B29,0,$A$3) -> FALSE | D29: =IF(C29=TRUE,"Yes","No") -> No | E29: Securitization Revenue | I29: =IF(C29,NPV('All Rev & Projects'!C239,'All Rev & Projects'!I25:V25)*0.9,0) -> 0
D30: 0.06 | E30: Securitization Bond Interest
E32: Petroleum
A33: FALSE | B33: FALSE | C33: =INDEX(A33:B33,0,$A$3) -> FALSE | D33: =IF(C33=TRUE,"Yes","No") -> No | E33: Flat Tax for Non-CIT Petroleum Companies | H33: =IF($D$33="Yes",'Petroleum - Non CIT'!B2,0) -> 0 | I33: =IF($D$33="Yes",'Petroleum - Non CIT'!C2,0) -> 0 | J33: =IF($D$33="Yes",'Petroleum - Non CIT'!D2,0) -> 0 | K33: =IF($D$33="Yes",'Petroleum - Non CIT'!E2,0) -> 0 | L33: =IF($D$33="Yes",'Petroleum - Non CIT'!F2,0) -> 0 | M33: =IF($D$33="Yes",'Petroleum - Non CIT'!G2,0) -> 0 | N33: =IF($D$33="Yes",'Petroleum - Non CIT'!H2,0) -> 0 | O33: =IF($D$33="Yes",'Petroleum - Non CIT'!I2,0) -> 0 | P33: =IF($D$33="Yes",'Petroleum - Non CIT'!J2,0) -> 0 | Q33: =IF($D$33="Yes",'Petroleum - Non CIT'!K2,0) -> 0 | R33: =IF($D$33="Yes",'Petroleum - Non CIT'!L2,0) -> 0 | S33: =IF($D$33="Yes",'Petroleum - Non CIT'!M2,0) -> 0 | T33: =IF($D$33="Yes",'Petroleum - Non CIT'!N2,0) -> 0 | U33: =IF($D$33="Yes",'Petroleum - Non CIT'!O2,0) -> 0 | V33: =IF($D$33="Yes",'Petroleum - Non CIT'!P2,0) -> 0
E34: Flat Tax Based on 12.5% GVPP
A36: FALSE | B36: FALSE | C36: =INDEX(A36:B36,0,$A$3) -> FALSE | D36: =IF(C36=TRUE,"Yes","No") -> No | E36: Net Severance Tax - Additional Revenue | H36: =IF($C$36,($D$37-0.35)*(H37/0.35+IF($C$38,H38,0))+IF($C$38,H38*0.35,0),0) -> 0 | I36: =IF($C$36,($D$37-0.35)*(I37/0.35+IF($C$38,I38,0))+IF($C$38,I38*0.35,0),0) -> 0 | J36: 0 | K36: 0 | L36: 0 | M36: 0 | N36: 0 | O36: 0 | P36: 0 | Q36: 0 | R36: 0 | S36: 0 | T36: 0 | U36: 0 | V36: 0
A37: 8 | B37: 8 | C37: =INDEX(A37:B37,0,$A$3) -> 8 | D37: =C37*0.05-0.05 -> 0.35 | E37: Net Severance Base Tax Rate | H37: ='base tax rate changes'!B203 -> 877.6923077 | I37: ='base tax rate changes'!C203 -> 2110.769231 | J37: ='base tax rate changes'!D203 -> 2105.384615 | K37: ='base tax rate changes'!E203 -> 2363.846154 | L37: ='base tax rate changes'!F203 -> 2791.923077 | M37: ='base tax rate changes'!G203 -> 2560.384615 | N37: ='base tax rate changes'!H203 -> 2388.076923 | O37: ='base tax rate changes'!I203 -> 2355.769231 | P37: ='base tax rate changes'!J203 -> 2272.307692 | Q37: ='base tax rate changes'!K203 -> 2067.692308 | R37: ='base tax rate changes'!L203 -> 1868.461538 | S37: ='base tax rate changes'!M203 -> 1704.230769 | T37: ='base tax rate changes'!N203 -> 1572.307692 | U37: ='base tax rate changes'!O203 -> 1429.615385 | V37: ='base tax rate changes'!P203 -> 1311.153846
A38: FALSE | B38: FALSE | C38: =INDEX(A38:B38,0,$A$3) -> FALSE | D38: =IF(C38=TRUE,"Yes","No") -> No | E38: Remove Gross Value Reduction | H38: ='other tax rate changes'!B4 -> 25.64875363 | I38: ='other tax rate changes'!C4 -> 169.4340866 | J38: ='other tax rate changes'!D4 -> 217.0170098 | K38: ='other tax rate changes'!E4 -> 206.4695433 | L38: ='other tax rate changes'!F4 -> 258.5028635 | M38: ='other tax rate changes'!G4 -> 239.9683439 | N38: ='other tax rate changes'!H4 -> 206.2965931 | O38: ='other tax rate changes'!I4 -> 203.7091843 | P38: ='other tax rate changes'!J4 -> 203.7059015 | Q38: ='other tax rate changes'!K4 -> 178.1337183 | R38: ='other tax rate changes'!L4 -> 154.4246852 | S38: ='other tax rate changes'!M4 -> 134.7309603 | T38: ='other tax rate changes'!N4 -> 118.151978 | U38: ='other tax rate changes'!O4 -> 101.7698141 | V38: ='other tax rate changes'!P4 -> 89.57148628
A40: FALSE | B40: FALSE | C40: =INDEX(A40:B40,0,$A$3) -> FALSE | D40: =IF(C40=TRUE,"Yes","No") -> No | E40: Minimum Tax - Additional Revenue | H40: =IF(AND($D$40="Yes",H41/4*100*$D$41<H42),H41/4*100*$D$41-H41,IF($D$40="No",0,H42)) -> 0 | I40: =IF(AND($D$40="Yes",I41/4*100*$D$41<I42),I41/4*100*$D$41-I41,IF($D$40="No",0,I42)) -> 0 | J40: 0 | K40: 0 | L40: 0 | M40: 0 | N40: 0 | O40: 0 | P40: 0 | Q40: 0 | R40: 0 | S40: 0 | T40: 0 | U40: =IF(AND($D$40="Yes",U41/4*100*$D$41<U42),U41/4*100*$D$41-U41,IF($D$40="No",0,U42)) -> 0 | V40: =IF(AND($D$40="Yes",V41/4*100*$D$41<V42),V41/4*100*$D$41-V41,IF($D$40="No",0,V42)) -> 0
A41: 1 | B41: 1 | C41: =INDEX(A41:B41,0,$A$3) -> 1 | D41: =0.01*C41+0.04 -> 0.05 | E41: Base Tax Rate (4% is current rate) | H41: =0.04*'other tax rate changes'!B22 -> 373.6008801 | I41: =0.04*'other tax rate changes'!C22 -> 522.7923156 | J41: =0.04*'other tax rate changes'!D22 -> 508.8942781 | K41: =0.04*'other tax rate changes'!E22 -> 519.2521975 | L41: =0.04*'other tax rate changes'!F22 -> 551.5660058 | M41: =0.04*'other tax rate changes'!G22 -> 520.2893275 | N41: =0.04*'other tax rate changes'!H22 -> 485.833373 | O41: =0.04*'other tax rate changes'!I22 -> 469.8835596 | P41: =0.04*'other tax rate changes'!J22 -> 447.9634752 | Q41: =0.04*'other tax rate changes'!K22 -> 404.3458544 | R41: =0.04*'other tax rate changes'!L22 -> 369.0495233 | S41: =0.04*'other tax rate changes'!M22 -> 339.0814726 | T41: =0.04*'other tax rate changes'!N22 -> 313.9359641 | U41: =0.04*'other tax rate changes'!O22 -> 289.1167106 | V41: =0.04*'other tax rate changes'!P22 -> 267.5307943
E42: Taxable Value | H42: 2553.900222 | I42: 6224.939725 | J42: 6252.982421 | K42: 6974.583664 | L42: 8248.552852 | M42: 7571.220477 | N42: 7043.954316 | O42: 6947.722519 | P42: 6709.120879 | Q42: 6098.326802 | R42: 5520.331837 | S42: 5028.048927 | T42: 4635.591757 | U42: 4203.534735 | V42: 3847.042032
E43: Remaining Company Profit | H43: =H42-H41-H40 -> 2180.299342 | I43: =I42-I41-I40 -> 5702.14741 | J43: =J42-J41-J40 -> 5744.088143 | K43: =K42-K41-K40 -> 6455.331466 | L43: 7696.986846 | M43: 7050.93115 | N43: 6558.120943 | O43: 6477.838959 | P43: 6261.157404 | Q43: 5693.980948 | R43: 5151.282314 | S43: 4688.967454 | T43: 4321.655793 | U43: 3914.418024 | V43: 3579.511238
E45: Severance Tax or Minimum Tax | H45: =IF(H37>H41,IF(H36+H37>H40+H41,H36,H40+H41-H37),IF(H36+H37>H40+H41,H36-H41,H40)) -> 0 | I45: =IF(I37>I41,IF(I36+I37>I40+I41,I36,I40+I41-I37),IF(I36+I37>I40+I41,I36-I41,I40)) -> 0 | J45: 0 | K45: 0 | L45: 0 | M45: 0 | N45: 0 | O45: 0 | P45: 0 | Q45: 0 | R45: 0 | S45: 0 | T45: 0 | U45: 0 | V45: 0
A48: FALSE | B48: FALSE | C48: =INDEX(A48:B48,0,$A$3) -> FALSE | D48: =IF(C48=TRUE,"Yes","No") -> No | E48: Reserves Tax with Credit Component | H48: =IF($D$48="Yes",'Gas Reserves Tax'!F2,0) -> 0 | I48: =IF($D$48="Yes",'Gas Reserves Tax'!G2,0) -> 0 | J48: =IF($D$48="Yes",'Gas Reserves Tax'!H2,0) -> 0 | K48: =IF($D$48="Yes",'Gas Reserves Tax'!I2,0) -> 0 | L48: =IF($D$48="Yes",'Gas Reserves Tax'!J2,0) -> 0 | M48: =IF($D$48="Yes",'Gas Reserves Tax'!K2,0) -> 0 | N48: =IF($D$48="Yes",'Gas Reserves Tax'!L2,0) -> 0 | O48: =IF($D$48="Yes",'Gas Reserves Tax'!M2,0) -> 0 | P48: =IF($D$48="Yes",'Gas Reserves Tax'!N2,0) -> 0 | Q48: =IF($D$48="Yes",'Gas Reserves Tax'!O2,0) -> 0 | R48: =IF($D$48="Yes",'Gas Reserves Tax'!P2,0) -> 0 | S48: =IF($D$48="Yes",'Gas Reserves Tax'!Q2,0) -> 0 | T48: =IF($D$48="Yes",'Gas Reserves Tax'!R2,0) -> 0 | U48: =IF($D$48="Yes",'Gas Reserves Tax'!S2,0) -> 0 | V48: =IF($D$48="Yes",'Gas Reserves Tax'!T2,0) -> 0 | Z48: 0.5
Z49: 0.6
E52: Petroleum Credits
E53: Refunded Credits
E54: North Slope
A55: FALSE | B55: FALSE | C55: =INDEX(A55:B55,0,$A$3) -> FALSE | D55: =IF(C55=TRUE,"Yes","No") -> No | E55: Removal of Qualified capital expenditure, AS 43.55.023(a); Carry-forward annual loss, AS 43.55.023(b) | F55: 254 | G55: ='Credit Detail w Confidentiality'!K7 -> 339.9 | H55: =IF($D$55="Yes",'Credit Detail w Confidentiality'!L7+'Credits detail tables'!B4,0) -> 0 | I55: =IF($D$55="Yes",'Credit Detail w Confidentiality'!M7+'Credits detail tables'!C4,0) -> 0 | J55: =IF($D$55="Yes",'Credit Detail w Confidentiality'!N7+'Credits detail tables'!D4,0) -> 0 | K55: =IF($D$55="Yes",'Credit Detail w Confidentiality'!O7+'Credits detail tables'!E4,0) -> 0 | L55: =$K$55+IF($C$55,'Credits detail tables'!G4) -> 0 | M55: =$K$55+IF($C$55,'Credits detail tables'!H4) -> 0 | N55: =$K$55+IF($C$55,'Credits detail tables'!I4) -> 0 | O55: =$K$55+IF($C$55,'Credits detail tables'!J4) -> 0 | P55: =$K$55+IF($C$55,'Credits detail tables'!K4) -> 0 | Q55: =$K$55+IF($C$55,'Credits detail tables'!L4) -> 0 | R55: =$K$55+IF($C$55,'Credits detail tables'!M4) -> 0 | S55: =$K$55+IF($C$55,'Credits detail tables'!N4) -> 0 | T55: =$K$55+IF($C$55,'Credits detail tables'!O4) -> 0 | U55: =$K$55+IF($C$55,'Credits detail tables'!P4) -> 0 | V55: =$K$55+IF($C$55,'Credits detail tables'!Q4) -> 0
A56: =A62 -> FALSE | B56: FALSE | C56: =INDEX(A56:B56,0,$A$3) -> FALSE | D56: =IF(C56=TRUE,"Yes","No") -> No | E56: Removal of Credits under AS 43.55.025 | F56: 27.286803 | G56: 0 | H56: 0 | I56: 0 | J56: 0 | K56: 0 | L56: =K56 -> 0 | M56: =L56 -> 0 | N56: 0 | O56: 0 | P56: 0 | Q56: 0 | R56: 0 | S56: 0 | T56: 0 | U56: 0 | V56: 0
E57: Total North Slope | F57: 281.286803 | G57: 296.7989622 | H57: =SUM(H55:H56) -> 0 | I57: =SUM(I55:I56) -> 0 | J57: 0 | K57: 0 | L57: 0 | M57: 0 | N57: 0 | O57: 0 | P57: 0 | Q57: 0 | R57: 0 | S57: 0 | T57: 0 | U57: 0 | V57: 0
E59: Non-North Slope
A60: =A55 -> FALSE | B60: FALSE | C60: =INDEX(A60:B60,0,$A$3) -> FALSE | D60: =IF(C60=TRUE,"Yes","No") -> No | E60: Removal of Carry-forward annual loss, AS 43.55.023(b) | F60: * | G60: 279.5348 | H60: =IF($D$60="Yes",'Credit Detail w Confidentiality'!L12*'Credits detail tables'!B23+'Credits detail tables'!B22,0) -> 0 | I60: =IF($D$60="Yes",'Credit Detail w Confidentiality'!M12*'Credits detail tables'!C23+'Credits detail tables'!C22,0) -> 0 | J60: =IF($D$60="Yes",'Credit Detail w Confidentiality'!N12*'Credits detail tables'!D23+'Credits detail tables'!D22,0) -> 0 | K60: =IF($D$60="Yes",'Credit Detail w Confidentiality'!O12*'Credits detail tables'!E23+'Credits detail tables'!E22,0) -> 0 | L60: =IF($D$60="Yes",'Credit Detail w Confidentiality'!P12*'Credits detail tables'!F23+'Credits detail tables'!F22,0) -> 0 | M60: =IF($D$60="Yes",'Credit Detail w Confidentiality'!Q12*'Credits detail tables'!G23+'Credits detail tables'!G22,0) -> 0 | N60: =IF($D$60="Yes",'Credit Detail w Confidentiality'!R12*'Credits detail tables'!H23+'Credits detail tables'!H22,0) -> 0 | O60: =IF($D$60="Yes",'Credit Detail w Confidentiality'!S12*'Credits detail tables'!I23+'Credits detail tables'!I22,0) -> 0 | P60: =IF($D$60="Yes",'Credit Detail w Confidentiality'!T12*'Credits detail tables'!J23+'Credits detail tables'!J22,0) -> 0 | Q60: =IF($D$60="Yes",'Credit Detail w Confidentiality'!U12*'Credits detail tables'!K23+'Credits detail tables'!K22,0) -> 0 | R60: =IF($D$60="Yes",'Credit Detail w Confidentiality'!V12*'Credits detail tables'!L23+'Credits detail tables'!L22,0) -> 0 | S60: =IF($D$60="Yes",'Credit Detail w Confidentiality'!W12*'Credits detail tables'!M23+'Credits detail tables'!M22,0) -> 0 | T60: =IF($D$60="Yes",'Credit Detail w Confidentiality'!X12*'Credits detail tables'!N23+'Credits detail tables'!N22,0) -> 0 | U60: =IF($D$60="Yes",'Credit Detail w Confidentiality'!Y12*'Credits detail tables'!O23+'Credits detail tables'!O22,0) -> 0 | V60: =IF($D$60="Yes",'Credit Detail w Confidentiality'!Z12*'Credits detail tables'!P23+'Credits detail tables'!P22,0) -> 0
A61: =A55 -> FALSE | B61: FALSE | C61: =INDEX(A61:B61,0,$A$3) -> FALSE | D61: =IF(C61=TRUE,"Yes","No") -> No | E61: Removal of Qualified capital expenditure, AS 43.55.023(a)& Well lease expenditure, AS 43.55.023(l) | F61: * | H61: =IF($D$61="Yes",'Credit Detail w Confidentiality'!L12*'Credits detail tables'!B40+'Credits detail tables'!B39,0) -> 0 | I61: =IF($D$61="Yes",'Credit Detail w Confidentiality'!M12*'Credits detail tables'!C40+'Credits detail tables'!C39,0) -> 0 | J61: =IF($D$61="Yes",'Credit Detail w Confidentiality'!N12*'Credits detail tables'!D40+'Credits detail tables'!D39,0) -> 0 | K61: =IF($D$61="Yes",'Credit Detail w Confidentiality'!O12*'Credits detail tables'!E40+'Credits detail tables'!E39,0) -> 0 | L61: =IF($D$61="Yes",'Credit Detail w Confidentiality'!P12*'Credits detail tables'!F40+'Credits detail tables'!F39,0) -> 0 | M61: =IF($D$61="Yes",'Credit Detail w Confidentiality'!Q12*'Credits detail tables'!G40+'Credits detail tables'!G39,0) -> 0 | N61: =IF($D$61="Yes",'Credit Detail w Confidentiality'!R12*'Credits detail tables'!H40+'Credits detail tables'!H39,0) -> 0 | O61: =IF($D$61="Yes",'Credit Detail w Confidentiality'!S12*'Credits detail tables'!I40+'Credits detail tables'!I39,0) -> 0 | P61: =IF($D$61="Yes",'Credit Detail w Confidentiality'!T12*'Credits detail tables'!J40+'Credits detail tables'!J39,0) -> 0 | Q61: =IF($D$61="Yes",'Credit Detail w Confidentiality'!U12*'Credits detail tables'!K40+'Credits detail tables'!K39,0) -> 0 | R61: =IF($D$61="Yes",'Credit Detail w Confidentiality'!V12*'Credits detail tables'!L40+'Credits detail tables'!L39,0) -> 0 | S61: =IF($D$61="Yes",'Credit Detail w Confidentiality'!W12*'Credits detail tables'!M40+'Credits detail tables'!M39,0) -> 0 | T61: =IF($D$61="Yes",'Credit Detail w Confidentiality'!X12*'Credits detail tables'!N40+'Credits detail tables'!N39,0) -> 0 | U61: =IF($D$61="Yes",'Credit Detail w Confidentiality'!Y12*'Credits detail tables'!O40+'Credits detail tables'!O39,0) -> 0 | V61: =IF($D$61="Yes",'Credit Detail w Confidentiality'!Z12*'Credits detail tables'!P40+'Credits detail tables'!P39,0) -> 0
A62: FALSE | B62: FALSE | C62: =INDEX(A62:B62,0,$A$3) -> FALSE | D62: =IF(C62=TRUE,"Yes","No") -> No | E62: Removal of Credits under AS 43.55.025 | F62: * | G62: 31 | H62: =IF($D$62="Yes",'Credit Detail w Confidentiality'!L13,0) -> 0 | I62: =IF($D$62="Yes",'Credit Detail w Confidentiality'!M13,0) -> 0 | J62: =IF($D$62="Yes",'Credit Detail w Confidentiality'!N13,0) -> 0 | K62: =IF($D$62="Yes",'Credit Detail w Confidentiality'!O13,0) -> 0 | L62: =$K$62 -> 0 | M62: =$K$62 -> 0 | N62: 0 | O62: 0 | P62: 0 | Q62: 0 | R62: 0 | S62: 0 | T62: 0 | U62: 0 | V62: 0
A63: =A62 -> FALSE | B63: FALSE | C63: =INDEX(A63:B63,0,$A$3) -> FALSE | D63: =IF(C63=TRUE,"Yes","No") -> No | E63: Removal of Credits under AS 43.20 | F63: * | G63: 0 | H63: =IF($D$63="Yes",'Credit Detail w Confidentiality'!L14,0) -> 0 | I63: =IF($D$63="Yes",'Credit Detail w Confidentiality'!M14,0) -> 0 | J63: =IF($D$63="Yes",'Credit Detail w Confidentiality'!N14,0) -> 0 | K63: =IF($D$63="Yes",'Credit Detail w Confidentiality'!O14,0) -> 0 | L63: =$K$63 -> 0 | M63: =$K$63 -> 0 | N63: 0 | O63: 0 | P63: 0 | Q63: 0 | R63: 0 | S63: 0 | T63: 0 | U63: 0 | V63: 0
E64: Total Non-North Slope | F64: 312 | G64: 310.5348 | H64: =SUM(H60:H63) -> 0 | I64: =SUM(I60:I63) -> 0 | J64: 0 | K64: 0 | L64: 0 | M64: 0 | N64: 0 | O64: 0 | P64: 0 | Q64: 0 | R64: 0 | S64: 0 | T64: 0 | U64: 0 | V64: 0
E66: Total Refunded Credits | F66: 593.286803 | G66: 625 | H66: =H64+H57 -> 0 | I66: 0 | J66: 0 | K66: 0 | L66: 0 | M66: 0 | N66: 0 | O66: 0 | P66: 0 | Q66: 0 | R66: 0 | S66: 0 | T66: 0 | U66: 0 | V66: 0
E68: Default Total Refunded Credits | H68: ='Credit Detail w Confidentiality'!L7+'Credits detail tables'!B4+'Credit Detail w Confidentiality'!L12*'Credits detail tables'!B23+'Credits detail tables'!B22+'Credit Detail w Confidentiality'!L12*'Credits detail tables'!B40+'Credits detail tables'!B39+'Credit Detail w Confidentiality'!L13+'Credit Detail w Confidentiality'!L14 -> 688.9691 | I68: ='Credit Detail w Confidentiality'!M7+'Credits detail tables'!C4+'Credit Detail w Confidentiality'!M12*'Credits detail tables'!C23+'Credits detail tables'!C22+'Credit Detail w Confidentiality'!M12*'Credits detail tables'!C40+'Credits detail tables'!C39+'Credit Detail w Confidentiality'!M13+'Credit Detail w Confidentiality'!M14 -> 433.9224 | J68: ='Credit Detail w Confidentiality'!N7+'Credits detail tables'!D4+'Credit Detail w Confidentiality'!N12*'Credits detail tables'!D23+'Credits detail tables'!D22+'Credit Detail w Confidentiality'!N12*'Credits detail tables'!D40+'Credits detail tables'!D39+'Credit Detail w Confidentiality'!N13+'Credit Detail w Confidentiality'!N14 -> 312.48504 | K68: ='Credit Detail w Confidentiality'!O7+'Credits detail tables'!E4+'Credit Detail w Confidentiality'!O12*'Credits detail tables'!E23+'Credits detail tables'!E22+'Credit Detail w Confidentiality'!O12*'Credits detail tables'!E40+'Credits detail tables'!E39+'Credit Detail w Confidentiality'!O13+'Credit Detail w Confidentiality'!O14 -> 250.1515695 | L68: =($K$68-('Credit Detail w Confidentiality'!$O$12*'Credits detail tables'!$E$23+'Credits detail tables'!$E$22+'Credit Detail w Confidentiality'!$O$12*'Credits detail tables'!$E$40+'Credits detail tables'!$E$39+'Credit Detail w Confidentiality'!$O$13+'Credit Detail w Confidentiality'!$O$14)+'Credits detail tables'!G$4)+'Credit Detail w Confidentiality'!P12*'Credits detail tables'!F23+'Credits detail tables'!F22+'Credit Detail w Confidentiality'!P12*'Credits detail tables'!F40+'Credits detail tables'!F39+'Credit Detail w Confidentiality'!$O$13+'Credit Detail w Confidentiality'!$O$14 -> 281.9655695 | M68: =($K$68-('Credit Detail w Confidentiality'!$O$12*'Credits detail tables'!$E$23+'Credits detail tables'!$E$22+'Credit Detail w Confidentiality'!$O$12*'Credits detail tables'!$E$40+'Credits detail tables'!$E$39+'Credit Detail w Confidentiality'!$O$13+'Credit Detail w Confidentiality'!$O$14)+'Credits detail tables'!H$4)+'Credit Detail w Confidentiality'!Q12*'Credits detail tables'!G23+'Credits detail tables'!G22+'Credit Detail w Confidentiality'!Q12*'Credits detail tables'!G40+'Credits detail tables'!G39+'Credit Detail w Confidentiality'!$O$13+'Credit Detail w Confidentiality'!$O$14 -> 282.1023695 | N68: =($K$68-('Credit Detail w Confidentiality'!$O$12*'Credits detail tables'!$E$23+'Credits detail tables'!$E$22+'Credit Detail w Confidentiality'!$O$12*'Credits detail tables'!$E$40+'Credits detail tables'!$E$39+'Credit Detail w Confidentiality'!$O$13+'Credit Detail w Confidentiality'!$O$14)+'Credits detail tables'!I$4)+'Credit Detail w Confidentiality'!R12*'Credits detail tables'!H23+'Credits detail tables'!H22+'Credit Detail w Confidentiality'!R12*'Credits detail tables'!H40+'Credits detail tables'!H39+'Credit Detail w Confidentiality'!$O$13+'Credit Detail w Confidentiality'!$O$14 -> 307.1023695 | O68: =($K$68-('Credit Detail w Confidentiality'!$O$12*'Credits detail tables'!$E$23+'Credits detail tables'!$E$22+'Credit Detail w Confidentiality'!$O$12*'Credits detail tables'!$E$40+'Credits detail tables'!$E$39+'Credit Detail w Confidentiality'!$O$13+'Credit Detail w Confidentiality'!$O$14)+'Credits detail tables'!J$4)+'Credit Detail w Confidentiality'!S12*'Credits detail tables'!I23+'Credits detail tables'!I22+'Credit Detail w Confidentiality'!S12*'Credits detail tables'!I40+'Credits detail tables'!I39+'Credit Detail w Confidentiality'!$O$13+'Credit Detail w Confidentiality'!$O$14 -> 332.1023695 | P68: =($K$68-('Credit Detail w Confidentiality'!$O$12*'Credits detail tables'!$E$23+'Credits detail tables'!$E$22+'Credit Detail w Confidentiality'!$O$12*'Credits detail tables'!$E$40+'Credits detail tables'!$E$39+'Credit Detail w Confidentiality'!$O$13+'Credit Detail w Confidentiality'!$O$14)+'Credits detail tables'!K$4)+'Credit Detail w Confidentiality'!T12*'Credits detail tables'!J23+'Credits detail tables'!J22+'Credit Detail w Confidentiality'!T12*'Credits detail tables'!J40+'Credits detail tables'!J39+'Credit Detail w Confidentiality'!$O$13+'Credit Detail w Confidentiality'!$O$14 -> 381.1031695 | Q68: =($K$68-('Credit Detail w Confidentiality'!$O$12*'Credits detail tables'!$E$23+'Credits detail tables'!$E$22+'Credit Detail w Confidentiality'!$O$12*'Credits detail tables'!$E$40+'Credits detail tables'!$E$39+'Credit Detail w Confidentiality'!$O$13+'Credit Detail w Confidentiality'!$O$14)+'Credits detail tables'!L$4)+'Credit Detail w Confidentiality'!U12*'Credits detail tables'!K23+'Credits detail tables'!K22+'Credit Detail w Confidentiality'!U12*'Credits detail tables'!K40+'Credits detail tables'!K39+'Credit Detail w Confidentiality'!$O$13+'Credit Detail w Confidentiality'!$O$14 -> 381.1031695 | R68: =($K$68-('Credit Detail w Confidentiality'!$O$12*'Credits detail tables'!$E$23+'Credits detail tables'!$E$22+'Credit Detail w Confidentiality'!$O$12*'Credits detail tables'!$E$40+'Credits detail tables'!$E$39+'Credit Detail w Confidentiality'!$O$13+'Credit Detail w Confidentiality'!$O$14)+'Credits detail tables'!M$4)+'Credit Detail w Confidentiality'!V12*'Credits detail tables'!L23+'Credits detail tables'!L22+'Credit Detail w Confidentiality'!V12*'Credits detail tables'!L40+'Credits detail tables'!L39+'Credit Detail w Confidentiality'!$O$13+'Credit Detail w Confidentiality'!$O$14 -> 454.8012695 | S68: =($K$68-('Credit Detail w Confidentiality'!$O$12*'Credits detail tables'!$E$23+'Credits detail tables'!$E$22+'Credit Detail w Confidentiality'!$O$12*'Credits detail tables'!$E$40+'Credits detail tables'!$E$39+'Credit Detail w Confidentiality'!$O$13+'Credit Detail w Confidentiality'!$O$14)+'Credits detail tables'!N$4)+'Credit Detail w Confidentiality'!W12*'Credits detail tables'!M23+'Credits detail tables'!M22+'Credit Detail w Confidentiality'!W12*'Credits detail tables'!M40+'Credits detail tables'!M39+'Credit Detail w Confidentiality'!$O$13+'Credit Detail w Confidentiality'!$O$14 -> 454.1066695 | T68: =($K$68-('Credit Detail w Confidentiality'!$O$12*'Credits detail tables'!$E$23+'Credits detail tables'!$E$22+'Credit Detail w Confidentiality'!$O$12*'Credits detail tables'!$E$40+'Credits detail tables'!$E$39+'Credit Detail w Confidentiality'!$O$13+'Credit Detail w Confidentiality'!$O$14)+'Credits detail tables'!O$4)+'Credit Detail w Confidentiality'!X12*'Credits detail tables'!N23+'Credits detail tables'!N22+'Credit Detail w Confidentiality'!X12*'Credits detail tables'!N40+'Credits detail tables'!N39+'Credit Detail w Confidentiality'!$O$13+'Credit Detail w Confidentiality'!$O$14 -> 453.3552695 | U68: =($K$68-('Credit Detail w Confidentiality'!$O$12*'Credits detail tables'!$E$23+'Credits detail tables'!$E$22+'Credit Detail w Confidentiality'!$O$12*'Credits detail tables'!$E$40+'Credits detail tables'!$E$39+'Credit Detail w Confidentiality'!$O$13+'Credit Detail w Confidentiality'!$O$14)+'Credits detail tables'!P$4)+'Credit Detail w Confidentiality'!Y12*'Credits detail tables'!O23+'Credits detail tables'!O22+'Credit Detail w Confidentiality'!Y12*'Credits detail tables'!O40+'Credits detail tables'!O39+'Credit Detail w Confidentiality'!$O$13+'Credit Detail w Confidentiality'!$O$14 -> 452.7720695 | V68: =($K$68-('Credit Detail w Confidentiality'!$O$12*'Credits detail tables'!$E$23+'Credits detail tables'!$E$22+'Credit Detail w Confidentiality'!$O$12*'Credits detail tables'!$E$40+'Credits detail tables'!$E$39+'Credit Detail w Confidentiality'!$O$13+'Credit Detail w Confidentiality'!$O$14)+'Credits detail tables'!Q$4)+'Credit Detail w Confidentiality'!Z12*'Credits detail tables'!P23+'Credits detail tables'!P22+'Credit Detail w Confidentiality'!Z12*'Credits detail tables'!P40+'Credits detail tables'!P39+'Credit Detail w Confidentiality'!$O$13+'Credit Detail w Confidentiality'!$O$14 -> 452.1269695
E70: Credits Used Against Tax Liability
E71: North Slope
E72: Carry-forward annual loss, AS 43.55.023(b) | F72: 331.9 | G72: 0 | H72: 0 | I72: 0 | J72: 0 | K72: 0 | L72: =K72 -> 0 | M72: 0 | N72: 0 | O72: 0 | P72: 0 | Q72: 0 | R72: 0 | S72: 0 | T72: 0 | U72: 0 | V72: 0
E73: Transitional investment expenditure: AS 43.55.023(i)
A74: FALSE | B74: FALSE | C74: =INDEX(A74:B74,0,$A$3) -> FALSE | D74: =IF(C74=FALSE,"Yes","No") -> Yes | E74: Removal Per taxable barrel credit, AS 43.55.024(i)-(j) | F74: 492 | G74: 668.4416488 | H74: =IF(H36+H37<H41+H40,0,IF($D$74="Yes",'Credit Detail w Confidentiality'!L24+'Credits detail tables'!B75,0))*$D$75 -> 513.2 | I74: =IF(I36+I37<I41+I40,0,IF($D$74="Yes",'Credit Detail w Confidentiality'!M24+'Credits detail tables'!C75,0))*$D$75 -> 1257.6 | J74: =IF(J36+J37<J41+J40,0,IF($D$74="Yes",'Credit Detail w Confidentiality'!N24+'Credits detail tables'!D75,0))*$D$75 -> 1210.8 | K74: =IF(K36+K37<K41+K40,0,IF($D$74="Yes",'Credit Detail w Confidentiality'!O24+'Credits detail tables'!E75,0))*$D$75 -> 999.2 | L74: =IF(L36+L37<L41+L40,0,IF($D$74="Yes",'Credit Detail w Confidentiality'!P24+'Credits detail tables'!F75,0))*$D$75 -> 821.1 | M74: =IF(M36+M37<M41+M40,0,IF($D$74="Yes",'Credit Detail w Confidentiality'!Q24+'Credits detail tables'!G75,0))*$D$75 -> 646.6 | N74: =IF(N36+N37<N41+N40,0,IF($D$74="Yes",'Credit Detail w Confidentiality'!R24+'Credits detail tables'!H75,0))*$D$75 -> 590.8 | O74: =IF(O36+O37<O41+O40,0,IF($D$74="Yes",'Credit Detail w Confidentiality'!S24+'Credits detail tables'!I75,0))*$D$75 -> 545.2 | P74: =IF(P36+P37<P41+P40,0,IF($D$74="Yes",'Credit Detail w Confidentiality'!T24+'Credits detail tables'!J75,0))*$D$75 -> 483.3 | Q74: =IF(Q36+Q37<Q41+Q40,0,IF($D$74="Yes",'Credit Detail w Confidentiality'!U24+'Credits detail tables'!K75,0))*$D$75 -> 377 | R74: =IF(R36+R37<R41+R40,0,IF($D$74="Yes",'Credit Detail w Confidentiality'!V24+'Credits detail tables'!L75,0))*$D$75 -> 338.2 | S74: =IF(S36+S37<S41+S40,0,IF($D$74="Yes",'Credit Detail w Confidentiality'!W24+'Credits detail tables'!M75,0))*$D$75 -> 307 | T74: =IF(T36+T37<T41+T40,0,IF($D$74="Yes",'Credit Detail w Confidentiality'!X24+'Credits detail tables'!N75,0))*$D$75 -> 280.8 | U74: =IF(U36+U37<U41+U40,0,IF($D$74="Yes",'Credit Detail w Confidentiality'!Y24+'Credits detail tables'!O75,0))*$D$75 -> 255.5 | V74: =IF(V36+V37<V41+V40,0,IF($D$74="Yes",'Credit Detail w Confidentiality'!Z24+'Credits detail tables'!P75,0))*$D$75 -> 234.2
A75: FALSE | B75: FALSE | C75: =INDEX(A75:B75,0,$A$3) -> FALSE | D75: =1-N(C75)*0.5 -> 1 | E75: Half Per Barrel Credit
A76: =A74 -> FALSE | B76: FALSE | C76: =INDEX(A76:B76,0,$A$3) -> FALSE | D76: =IF(C76=FALSE,"Yes","No") -> Yes | E76: Removal Small producer credit, AS 43.55.024(a)(c) | F76: 44 | G76: 55.32462618 | H76: =IF($D$76="Yes",'Credit Detail w Confidentiality'!L25+'Credits detail tables'!B92,0) -> 59.9 | I76: =IF($D$76="Yes",'Credit Detail w Confidentiality'!M25+'Credits detail tables'!C92,0) -> 58.5 | J76: =IF($D$76="Yes",'Credit Detail w Confidentiality'!N25+'Credits detail tables'!D92,0) -> 48 | K76: =IF($D$76="Yes",'Credit Detail w Confidentiality'!O25+'Credits detail tables'!E92,0) -> 46.6 | L76: =IF($D$76="Yes",'Credit Detail w Confidentiality'!P25+'Credits detail tables'!F92,0) -> 43.4 | M76: =IF($D$76="Yes",'Credit Detail w Confidentiality'!Q25+'Credits detail tables'!G92,0) -> 37.3 | N76: =IF($D$76="Yes",'Credit Detail w Confidentiality'!R25+'Credits detail tables'!H92,0) -> 30.9 | O76: =IF($D$76="Yes",'Credit Detail w Confidentiality'!S25+'Credits detail tables'!I92,0) -> 24.6 | P76: =IF($D$76="Yes",'Credit Detail w Confidentiality'!T25+'Credits detail tables'!J92,0) -> 13 | Q76: =IF($D$76="Yes",'Credit Detail w Confidentiality'!U25+'Credits detail tables'!K92,0) -> 0 | R76: =IF($D$76="Yes",'Credit Detail w Confidentiality'!V25+'Credits detail tables'!L92,0) -> 0 | S76: =IF($D$76="Yes",'Credit Detail w Confidentiality'!W25+'Credits detail tables'!M92,0) -> 0 | T76: =IF($D$76="Yes",'Credit Detail w Confidentiality'!X25+'Credits detail tables'!N92,0) -> 0 | U76: =IF($D$76="Yes",'Credit Detail w Confidentiality'!Y25+'Credits detail tables'!O92,0) -> 0 | V76: =IF($D$76="Yes",'Credit Detail w Confidentiality'!Z25+'Credits detail tables'!P92,0) -> 0
E77: Credits under AS 43.55.025 | F77: 3.2 | G77: 0 | H77: =IF($D$76="Yes",'Credit Detail w Confidentiality'!L26,0) -> 0 | I77: =IF($D$76="Yes",'Credit Detail w Confidentiality'!M26,0) -> 0 | J77: =IF($D$76="Yes",'Credit Detail w Confidentiality'!N26,0) -> 0 | K77: =IF($D$76="Yes",'Credit Detail w Confidentiality'!O26,0) -> 0 | L77: =K77 -> 0 | M77: =L77 -> 0 | N77: 0 | O77: 0 | P77: 0 | Q77: 0 | R77: 0 | S77: 0 | T77: 0 | U77: 0 | V77: 0
E78: Total North Slope | F78: 870 | G78: 723.766275 | H78: =SUM(H72:H77) -> 573.1 | I78: =SUM(I72:I77) -> 1316.1 | J78: 1258.8 | K78: 1045.8 | L78: 864.5 | M78: 683.9 | N78: 621.7 | O78: 569.8 | P78: 496.3 | Q78: 377 | R78: 338.2 | S78: 307 | T78: 280.8 | U78: 255.5 | V78: 234.2
E80: Non-North Slope
A81: =A55 -> FALSE | B81: FALSE | C81: =INDEX(A81:B81,0,$A$3) -> FALSE | D81: =IF(C81=FALSE,"Yes","No") -> Yes | E81: Removal Qualified capital expenditure, AS 43.55.023(a); Carry-forward annual loss, AS 43.55.023(b); Well lease expenditure, AS 43.55.023(l) | G81: =IF($D$81="Yes",'Credit Detail w Confidentiality'!K30,0) -> 8.789612766 | H81: =IF($D$81="Yes",'Credit Detail w Confidentiality'!L30+'Credits detail tables'!B109,0) -> 10 | I81: =IF($D$81="Yes",'Credit Detail w Confidentiality'!M30+'Credits detail tables'!C109,0) -> 10 | J81: =IF($D$81="Yes",'Credit Detail w Confidentiality'!N30+'Credits detail tables'!D109,0) -> 10 | K81: =IF($D$81="Yes",'Credit Detail w Confidentiality'!O30+'Credits detail tables'!E109,0) -> 10 | L81: =IF($D$81="Yes",'Credit Detail w Confidentiality'!P30+'Credits detail tables'!F109,0) -> 10 | M81: =IF($D$81="Yes",'Credit Detail w Confidentiality'!Q30+'Credits detail tables'!G109,0) -> 10 | N81: =IF($D$81="Yes",'Credit Detail w Confidentiality'!R30+'Credits detail tables'!H109,0) -> 10 | O81: =IF($D$81="Yes",'Credit Detail w Confidentiality'!S30+'Credits detail tables'!I109,0) -> 10 | P81: =IF($D$81="Yes",'Credit Detail w Confidentiality'!T30+'Credits detail tables'!J109,0) -> 10.9992 | Q81: =IF($D$81="Yes",'Credit Detail w Confidentiality'!U30+'Credits detail tables'!K109,0) -> 11.5897 | R81: =IF($D$81="Yes",'Credit Detail w Confidentiality'!V30+'Credits detail tables'!L109,0) -> 12.3011 | S81: =IF($D$81="Yes",'Credit Detail w Confidentiality'!W30+'Credits detail tables'!M109,0) -> 12.9957 | T81: =IF($D$81="Yes",'Credit Detail w Confidentiality'!X30+'Credits detail tables'!N109,0) -> 13.7471 | U81: =IF($D$81="Yes",'Credit Detail w Confidentiality'!Y30+'Credits detail tables'!O109,0) -> 14.3303 | V81: =IF($D$81="Yes",'Credit Detail w Confidentiality'!Z30+'Credits detail tables'!P109,0) -> 14.9754
A82: =A74 -> FALSE | B82: FALSE | C82: =INDEX(A82:B82,0,$A$3) -> FALSE | D82: =IF(C82=FALSE,"Yes","No") -> Yes | E82: Removal Small producer credit, AS 43.55.024(a)(c) | G82: =IF($D$82="Yes",'Credit Detail w Confidentiality'!K31,0) -> 8.25 | H82: =IF($D$82="Yes",'Credit Detail w Confidentiality'!L31+'Credits detail tables'!B126,0) -> 5 | I82: =IF($D$82="Yes",'Credit Detail w Confidentiality'!M31+'Credits detail tables'!C126,0) -> 5 | J82: =IF($D$82="Yes",'Credit Detail w Confidentiality'!N31+'Credits detail tables'!D126,0) -> 5 | K82: =IF($D$82="Yes",'Credit Detail w Confidentiality'!O31+'Credits detail tables'!E126,0) -> 5 | L82: =IF($D$82="Yes",'Credit Detail w Confidentiality'!P31+'Credits detail tables'!F126,0) -> 5 | M82: =IF($D$82="Yes",'Credit Detail w Confidentiality'!Q31+'Credits detail tables'!G126,0) -> 5 | N82: =IF($D$82="Yes",'Credit Detail w Confidentiality'!R31+'Credits detail tables'!H126,0) -> 5 | O82: =IF($D$82="Yes",'Credit Detail w Confidentiality'!S31+'Credits detail tables'!I126,0) -> 0 | P82: =IF($D$82="Yes",'Credit Detail w Confidentiality'!T31+'Credits detail tables'!J126,0) -> 0 | Q82: =IF($D$82="Yes",'Credit Detail w Confidentiality'!U31+'Credits detail tables'!K126,0) -> 0 | R82: =IF($D$82="Yes",'Credit Detail w Confidentiality'!V31+'Credits detail tables'!L126,0) -> 0 | S82: =IF($D$82="Yes",'Credit Detail w Confidentiality'!W31+'Credits detail tables'!M126,0) -> 0 | T82: =IF($D$82="Yes",'Credit Detail w Confidentiality'!X31+'Credits detail tables'!N126,0) -> 0 | U82: =IF($D$82="Yes",'Credit Detail w Confidentiality'!Y31+'Credits detail tables'!O126,0) -> 0 | V82: =IF($D$82="Yes",'Credit Detail w Confidentiality'!Z31+'Credits detail tables'!P126,0) -> 0
E83: Total Non-North Slope | F83: 17 | G83: =SUM(G81:G82) -> 17.03961277 | H83: 15 | I83: 15 | J83: 15 | K83: 15 | L83: 15 | M83: 15 | N83: 15 | O83: 10 | P83: 10.9992 | Q83: 11.5897 | R83: 12.3011 | S83: 12.9957 | T83: 13.7471 | U83: 14.3303 | V83: 14.9754
E85: Total Credits Used Against Tax Liability | F85: =F83+F78 -> 887 | G85: 740.8058877 | H85: =H83+H78 -> 588.1 | I85: =I83+I78 -> 1331.1 | J85: 1273.8 | K85: 1060.8 | L85: 879.5 | M85: 698.9 | N85: 636.7 | O85: 579.8 | P85: 507.2992 | Q85: 388.5897 | R85: 350.5011 | S85: 319.9957 | T85: 294.5471 | U85: 269.8303 | V85: 249.1754
E86: Default value | H86: =IF(H37+H36>H40+H41,'Credit Detail w Confidentiality'!L24+'Credits detail tables'!B75,0)+'Credit Detail w Confidentiality'!L25+'Credits detail tables'!B92+'Credit Detail w Confidentiality'!L30+'Credits detail tables'!B109+'Credit Detail w Confidentiality'!L31+'Credits detail tables'!B126 -> 588.1 | I86: =IF(I37+I36>I40+I41,'Credit Detail w Confidentiality'!M24+'Credits detail tables'!C75,0)+'Credit Detail w Confidentiality'!M25+'Credits detail tables'!C92+'Credit Detail w Confidentiality'!M30+'Credits detail tables'!C109+'Credit Detail w Confidentiality'!M31+'Credits detail tables'!C126 -> 1331.1 | J86: =IF(J37+J36>J40+J41,'Credit Detail w Confidentiality'!N24+'Credits detail tables'!D75,0)+'Credit Detail w Confidentiality'!N25+'Credits detail tables'!D92+'Credit Detail w Confidentiality'!N30+'Credits detail tables'!D109+'Credit Detail w Confidentiality'!N31+'Credits detail tables'!D126 -> 1273.8 | K86: =IF(K37+K36>K40+K41,'Credit Detail w Confidentiality'!O24+'Credits detail tables'!E75,0)+'Credit Detail w Confidentiality'!O25+'Credits detail tables'!E92+'Credit Detail w Confidentiality'!O30+'Credits detail tables'!E109+'Credit Detail w Confidentiality'!O31+'Credits detail tables'!E126 -> 1060.8 | L86: =IF(L37+L36>L40+L41,'Credit Detail w Confidentiality'!P24+'Credits detail tables'!F75,0)+'Credit Detail w Confidentiality'!P25+'Credits detail tables'!F92+'Credit Detail w Confidentiality'!P30+'Credits detail tables'!F109+'Credit Detail w Confidentiality'!P31+'Credits detail tables'!F126 -> 879.5 | M86: =IF(M37+M36>M40+M41,'Credit Detail w Confidentiality'!Q24+'Credits detail tables'!G75,0)+'Credit Detail w Confidentiality'!Q25+'Credits detail tables'!G92+'Credit Detail w Confidentiality'!Q30+'Credits detail tables'!G109+'Credit Detail w Confidentiality'!Q31+'Credits detail tables'!G126 -> 698.9 | N86: =IF(N37+N36>N40+N41,'Credit Detail w Confidentiality'!R24+'Credits detail tables'!H75,0)+'Credit Detail w Confidentiality'!R25+'Credits detail tables'!H92+'Credit Detail w Confidentiality'!R30+'Credits detail tables'!H109+'Credit Detail w Confidentiality'!R31+'Credits detail tables'!H126 -> 636.7 | O86: =IF(O37+O36>O40+O41,'Credit Detail w Confidentiality'!S24+'Credits detail tables'!I75,0)+'Credit Detail w Confidentiality'!S25+'Credits detail tables'!I92+'Credit Detail w Confidentiality'!S30+'Credits detail tables'!I109+'Credit Detail w Confidentiality'!S31+'Credits detail tables'!I126 -> 579.8 | P86: =IF(P37+P36>P40+P41,'Credit Detail w Confidentiality'!T24+'Credits detail tables'!J75,0)+'Credit Detail w Confidentiality'!T25+'Credits detail tables'!J92+'Credit Detail w Confidentiality'!T30+'Credits detail tables'!J109+'Credit Detail w Confidentiality'!T31+'Credits detail tables'!J126 -> 507.2992 | Q86: =IF(Q37+Q36>Q40+Q41,'Credit Detail w Confidentiality'!U24+'Credits detail tables'!K75,0)+'Credit Detail w Confidentiality'!U25+'Credits detail tables'!K92+'Credit Detail w Confidentiality'!U30+'Credits detail tables'!K109+'Credit Detail w Confidentiality'!U31+'Credits detail tables'!K126 -> 388.5897 | R86: =IF(R37+R36>R40+R41,'Credit Detail w Confidentiality'!V24+'Credits detail tables'!L75,0)+'Credit Detail w Confidentiality'!V25+'Credits detail tables'!L92+'Credit Detail w Confidentiality'!V30+'Credits detail tables'!L109+'Credit Detail w Confidentiality'!V31+'Credits detail tables'!L126 -> 350.5011 | S86: =IF(S37+S36>S40+S41,'Credit Detail w Confidentiality'!W24+'Credits detail tables'!M75,0)+'Credit Detail w Confidentiality'!W25+'Credits detail tables'!M92+'Credit Detail w Confidentiality'!W30+'Credits detail tables'!M109+'Credit Detail w Confidentiality'!W31+'Credits detail tables'!M126 -> 319.9957 | T86: =IF(T37+T36>T40+T41,'Credit Detail w Confidentiality'!X24+'Credits detail tables'!N75,0)+'Credit Detail w Confidentiality'!X25+'Credits detail tables'!N92+'Credit Detail w Confidentiality'!X30+'Credits detail tables'!N109+'Credit Detail w Confidentiality'!X31+'Credits detail tables'!N126 -> 294.5471 | U86: =IF(U37+U36>U40+U41,'Credit Detail w Confidentiality'!Y24+'Credits detail tables'!O75,0)+'Credit Detail w Confidentiality'!Y25+'Credits detail tables'!O92+'Credit Detail w Confidentiality'!Y30+'Credits detail tables'!O109+'Credit Detail w Confidentiality'!Y31+'Credits detail tables'!O126 -> 269.8303 | V86: =IF(V37+V36>V40+V41,'Credit Detail w Confidentiality'!Z24+'Credits detail tables'!P75,0)+'Credit Detail w Confidentiality'!Z25+'Credits detail tables'!P92+'Credit Detail w Confidentiality'!Z30+'Credits detail tables'!P109+'Credit Detail w Confidentiality'!Z31+'Credits detail tables'!P126 -> 249.1754
E87: Credits by Region
E88: Total Credits North Slope | F88: =F78+F57 -> 1151.286803 | G88: 1020.565237 | H88: =H57+H64 -> 0 | I88: 0 | J88: 0 | K88: 0 | L88: 0 | M88: 0 | N88: 0 | O88: 0 | P88: 0 | Q88: 0 | R88: 0 | S88: 0 | T88: 0 | U88: 0 | V88: 0
E89: Total Credits Non-North Slope | F89: =F64+F83 -> 329 | G89: 327.5744128 | H89: 15 | I89: 15 | J89: 15 | K89: 15 | L89: 15 | M89: 15 | N89: 15 | O89: 10 | P89: 10.9992 | Q89: 11.5897 | R89: 12.3011 | S89: 12.9957 | T89: 13.7471 | U89: 14.3303 | V89: 14.9754
E90: Total Statewide Production Tax Credits | F90: =SUM(F88:F89) -> 1480.286803 | G90: =SUM(G88:G89) -> 1348.13965 | H90: 15 | I90: 15 | J90: 15 | K90: 15 | L90: 15 | M90: 15 | N90: 15 | O90: 10 | P90: 10.9992 | Q90: 11.5897 | R90: 12.3011 | S90: 12.9957 | T90: 13.7471 | U90: 14.3303 | V90: 14.9754
A92: FALSE | B92: FALSE | C92: =INDEX(A92:B92,0,$A$3) -> FALSE | D92: =IF(C92=TRUE,"Yes","No") -> No | E92: Cap Refunded Credits | H92: =IF($C$92,MAX(0,H93-$D$93),0) -> 0 | I92: =IF($C$92,MAX(0,I93-$D$93),0) -> 0 | J92: 0 | K92: 0 | L92: 0 | M92: 0 | N92: 0 | O92: 0 | P92: 0 | Q92: 0 | R92: 0 | S92: 0 | T92: 0 | U92: 0 | V92: 0
A93: 1 | B93: 1 | C93: =INDEX(A93:B93,0,$A$3) -> 1 | D93: =IF(C93=1,9999,C93*100-100) -> 9999 | E93: Cap Amount | H93: =H85+(H68-H64) -> 1277.0691 | I93: =I85+(I68-I64) -> 1765.0224 | J93: 1586.28504 | K93: 1310.95157 | L93: 1161.46557 | M93: 981.0023695 | N93: 943.8023695 | O93: 911.9023695 | P93: 888.4023695 | Q93: 769.6928695 | R93: 805.3023695 | S93: 774.1023695 | T93: 747.9023695 | U93: 722.6023695 | V93: 701.3023695
C95: =C92 -> FALSE | E95: Refunded Credits Portion of Credit Cap | H95: =H92*((H68-H66)/H93) -> 0 | I95: =I92*((I68-I66)/I93) -> 0 | J95: 0 | K95: 0 | L95: 0 | M95: 0 | N95: 0 | O95: 0 | P95: 0 | Q95: 0 | R95: 0 | S95: 0 | T95: 0 | U95: 0 | V95: 0
C96: =C92 -> FALSE | E96: Liablity Credits Portion of Credit Cap | H96: =H92*(H85/H93) -> 0 | I96: =I92*(I85/I93) -> 0 | J96: 0 | K96: 0 | L96: 0 | M96: 0 | N96: 0 | O96: 0 | P96: 0 | Q96: 0 | R96: 0 | S96: 0 | T96: 0 | U96: 0 | V96: 0
E98: Cook Inlet
A99: FALSE | B99: FALSE | C99: =INDEX(A99:B99,0,$A$3) -> FALSE | D99: =IF(C99=TRUE,"Yes","No") -> No | E99: Production Tax with Cap Removed | H99: =IF(AND($D$99="Yes",H100>0),H100,0) -> 0 | I99: =IF(AND($D$99="Yes",I100>0),I100,0) -> 0 | J99: 0 | K99: 0 | L99: =IF(AND($D$99="Yes",L100>0),L100,0) -> 0 | M99: 0 | N99: 0 | O99: 0 | P99: 0 | Q99: 0 | R99: 0 | S99: 0 | T99: 0 | U99: 0 | V99: 0
E100: Based on Spring 2015 Forecast | H100: -9.252085581 | I100: -2.218598296 | J100: -2.163240982 | K100: 0.5035536252 | L100: 3.9923941 | M100: 7.580736541 | N100: 8.324597003 | O100: 9.636724223 | P100: 10.99924429 | Q100: 11.58969342 | R100: 12.301068 | S100: 12.99572726 | T100: 13.74708655 | U100: 14.33026656 | V100: 14.97537966
E102: ANS AVG Production Tax before surcharge
A103: FALSE | B103: FALSE | C103: =INDEX(A103:B103,0,$A$3) -> FALSE | D103: =IF(C103=TRUE,"Yes","No") -> No | E103: Increase Hazardous Release/Conservation surcharge | H103: =IF($D$103="Yes",H104/5*100*$D$104,0) -> 0 | I103: =IF($D$103="Yes",I104/5*100*$D$104,0) -> 0 | J103: 0 | K103: 0 | L103: 0 | M103: 0 | N103: 0 | O103: 0 | P103: 0 | Q103: 0 | R103: 0 | S103: 0 | T103: 0 | U103: 0 | V103: 0
A104: 1 | B104: 1 | C104: =INDEX(A104:B104,0,$A$3) -> 1 | D104: =0.01*C104 -> 0.01 | E104: Adjustable in $0.01 | H104: 8.255391299 | I104: 8.509011341 | J104: 8.062572773 | K104: 7.48226436 | L104: 7.028353307 | M104: 6.476964624 | N104: 5.961595923 | O104: 5.560919952 | P104: 5.123016608 | Q104: 4.574935181 | R104: 4.126218454 | S104: 3.748079168 | T104: 3.432725953 | U104: 3.130784144 | V104: 2.871507188
E106: Fishing Tax
A107: FALSE | B107: FALSE | C107: =INDEX(A107:B107,0,$A$3) -> FALSE | D107: =IF(C107=TRUE,"Yes","No") -> No | E107: Fishing Tax Rate Increase | H107: =IF($D$107="Yes",'Fishing Taxes'!E2,0) -> 0 | I107: =IF($D$107="Yes",'Fishing Taxes'!F2,0) -> 0 | J107: =IF($D$107="Yes",'Fishing Taxes'!G2,0) -> 0 | K107: =IF($D$107="Yes",'Fishing Taxes'!H2,0) -> 0 | L107: =IF($D$107="Yes",'Fishing Taxes'!I2,0) -> 0 | M107: =IF($D$107="Yes",'Fishing Taxes'!J2,0) -> 0 | N107: =IF($D$107="Yes",'Fishing Taxes'!K2,0) -> 0 | O107: =IF($D$107="Yes",'Fishing Taxes'!L2,0) -> 0 | P107: =IF($D$107="Yes",'Fishing Taxes'!M2,0) -> 0 | Q107: =IF($D$107="Yes",'Fishing Taxes'!N2,0) -> 0 | R107: =IF($D$107="Yes",'Fishing Taxes'!O2,0) -> 0 | S107: =IF($D$107="Yes",'Fishing Taxes'!P2,0) -> 0 | T107: =IF($D$107="Yes",'Fishing Taxes'!Q2,0) -> 0 | U107: =IF($D$107="Yes",'Fishing Taxes'!R2,0) -> 0 | V107: =IF($D$107="Yes",'Fishing Taxes'!S2,0) -> 0
A108: 1 | B108: 1 | C108: =INDEX(A108:B108,0,$A$3) -> 1 | D108: =C108*0.01 -> 0.01 | E108: Rise in Fishing Tax Rate
E110: Fuel Tax
A111: FALSE | B111: FALSE | C111: =INDEX(A111:B111,0,$A$3) -> FALSE | D111: =IF(C111=TRUE,"Yes","No") -> No | E111: Fuel Tax Rate Increase | H111: =IF($D$111="Yes",'Fuel Tax'!F3,0) -> 0 | I111: =IF($D$111="Yes",'Fuel Tax'!G3,0) -> 0 | J111: =IF($D$111="Yes",'Fuel Tax'!H3,0) -> 0 | K111: =IF($D$111="Yes",'Fuel Tax'!I3,0) -> 0 | L111: =IF($D$111="Yes",'Fuel Tax'!J3,0) -> 0 | M111: =IF($D$111="Yes",'Fuel Tax'!K3,0) -> 0 | N111: =IF($D$111="Yes",'Fuel Tax'!L3,0) -> 0 | O111: =IF($D$111="Yes",'Fuel Tax'!M3,0) -> 0 | P111: =IF($D$111="Yes",'Fuel Tax'!N3,0) -> 0 | Q111: =IF($D$111="Yes",'Fuel Tax'!O3,0) -> 0 | R111: =IF($D$111="Yes",'Fuel Tax'!P3,0) -> 0 | S111: =IF($D$111="Yes",'Fuel Tax'!Q3,0) -> 0 | T111: =IF($D$111="Yes",'Fuel Tax'!R3,0) -> 0 | U111: =IF($D$111="Yes",'Fuel Tax'!S3,0) -> 0 | V111: =IF($D$111="Yes",'Fuel Tax'!T3,0) -> 0
A112: 1 | B112: 1 | C112: =INDEX(A112:B112,0,$A$3) -> 1 | D112: =C112*0.05 -> 0.05 | E112: Increase in tax per Gallon
E114: Sales Tax
A115: FALSE | B115: FALSE | C115: =INDEX(A115:B115,0,$A$3) -> FALSE | D115: =IF(C115=TRUE,"Yes","No") -> No | E115: Gross Receipts | H115: =IF($D115="Yes",'Receipts Tax'!D4,0) -> 0 | I115: =IF($D115="Yes",'Receipts Tax'!E4,0) -> 0 | J115: =IF($D115="Yes",'Receipts Tax'!F4,0) -> 0 | K115: =IF($D115="Yes",'Receipts Tax'!G4,0) -> 0 | L115: =IF($D115="Yes",'Receipts Tax'!H4,0) -> 0 | M115: =IF($D115="Yes",'Receipts Tax'!I4,0) -> 0 | N115: =IF($D115="Yes",'Receipts Tax'!J4,0) -> 0 | O115: =IF($D115="Yes",'Receipts Tax'!K4,0) -> 0 | P115: =IF($D115="Yes",'Receipts Tax'!L4,0) -> 0 | Q115: =IF($D115="Yes",'Receipts Tax'!M4,0) -> 0 | R115: =IF($D115="Yes",'Receipts Tax'!N4,0) -> 0 | S115: =IF($D115="Yes",'Receipts Tax'!O4,0) -> 0 | T115: =IF($D115="Yes",'Receipts Tax'!P4,0) -> 0 | U115: =IF($D115="Yes",'Receipts Tax'!Q4,0) -> 0 | V115: =IF($D115="Yes",'Receipts Tax'!R4,0) -> 0
A117: FALSE | B117: FALSE | C117: =INDEX(A117:B117,0,$A$3) -> FALSE | D117: =IF(C117=TRUE,"Yes","No") -> No | E117: Sales Tax | H117: =IF($D117="Yes",'Sales Tax'!C3,0) -> 0 | I117: =IF($D117="Yes",'Sales Tax'!D3,0) -> 0 | J117: =IF($D117="Yes",'Sales Tax'!E3,0) -> 0 | K117: =IF($D117="Yes",'Sales Tax'!F3,0) -> 0 | L117: =IF($D117="Yes",'Sales Tax'!G3,0) -> 0 | M117: =IF($D117="Yes",'Sales Tax'!H3,0) -> 0 | N117: =IF($D117="Yes",'Sales Tax'!I3,0) -> 0 | O117: =IF($D117="Yes",'Sales Tax'!J3,0) -> 0 | P117: =IF($D117="Yes",'Sales Tax'!K3,0) -> 0 | Q117: =IF($D117="Yes",'Sales Tax'!L3,0) -> 0 | R117: =IF($D117="Yes",'Sales Tax'!M3,0) -> 0 | S117: =IF($D117="Yes",'Sales Tax'!N3,0) -> 0 | T117: =IF($D117="Yes",'Sales Tax'!O3,0) -> 0 | U117: =IF($D117="Yes",'Sales Tax'!P3,0) -> 0 | V117: =IF($D117="Yes",'Sales Tax'!Q3,0) -> 0
A118: 1 | B118: 1 | C118: =INDEX(A118:B118,0,$A$3) -> 1 | D118: =CHOOSE(C118,1%,2%,3%,4%,5%) -> 0.01 | E118: Sales Tax Rate
E120: Income Tax
A121: FALSE | B121: FALSE | C121: =INDEX(A121:B121,0,$A$3) -> FALSE | D121: =IF(C121=TRUE,"Yes","No") -> No | E121: Income Tax | H121: =IF($D$121="Yes",'Personal Income Tax'!B3,0) -> 0 | I121: =IF($D$121="Yes",'Personal Income Tax'!C3,0) -> 0 | J121: =IF($D$121="Yes",'Personal Income Tax'!D3,0) -> 0 | K121: =IF($D$121="Yes",'Personal Income Tax'!E3,0) -> 0 | L121: =IF($D$121="Yes",'Personal Income Tax'!F3,0) -> 0 | M121: =IF($D$121="Yes",'Personal Income Tax'!G3,0) -> 0 | N121: =IF($D$121="Yes",'Personal Income Tax'!H3,0) -> 0 | O121: =IF($D$121="Yes",'Personal Income Tax'!I3,0) -> 0 | P121: =IF($D$121="Yes",'Personal Income Tax'!J3,0) -> 0 | Q121: =IF($D$121="Yes",'Personal Income Tax'!K3,0) -> 0 | R121: =IF($D$121="Yes",'Personal Income Tax'!L3,0) -> 0 | S121: =IF($D$121="Yes",'Personal Income Tax'!M3,0) -> 0 | T121: =IF($D$121="Yes",'Personal Income Tax'!N3,0) -> 0 | U121: =IF($D$121="Yes",'Personal Income Tax'!O3,0) -> 0 | V121: =IF($D$121="Yes",'Personal Income Tax'!P3,0) -> 0
A122: 1 | B122: 1 | C122: =INDEX(A122:B122,0,$A$3) -> 1 | D122: =C122*0.05 -> 0.05 | E122: Income Tax Rate
A124: FALSE | B124: FALSE | C124: =INDEX(A124:B124,0,$A$3) -> FALSE | D124: =IF(C124=TRUE,"Yes","No") -> No | E124: Capital Gains | H124: =IF($D$124="Yes",'Capital Gains'!G12,0) -> 0 | I124: =IF($D$124="Yes",'Capital Gains'!H12,0) -> 0 | J124: =IF($D$124="Yes",'Capital Gains'!I12,0) -> 0 | K124: =IF($D$124="Yes",'Capital Gains'!J12,0) -> 0 | L124: =IF($D$124="Yes",'Capital Gains'!K12,0) -> 0 | M124: =IF($D$124="Yes",'Capital Gains'!L12,0) -> 0 | N124: =IF($D$124="Yes",'Capital Gains'!M12,0) -> 0 | O124: =IF($D$124="Yes",'Capital Gains'!N12,0) -> 0 | P124: =IF($D$124="Yes",'Capital Gains'!O12,0) -> 0 | Q124: =IF($D$124="Yes",'Capital Gains'!P12,0) -> 0 | R124: =IF($D$124="Yes",'Capital Gains'!Q12,0) -> 0 | S124: =IF($D$124="Yes",'Capital Gains'!R12,0) -> 0 | T124: =IF($D$124="Yes",'Capital Gains'!S12,0) -> 0 | U124: =IF($D$124="Yes",'Capital Gains'!T12,0) -> 0 | V124: =IF($D$124="Yes",'Capital Gains'!U12,0) -> 0
A125: 1 | B125: 1 | C125: =INDEX(A125:B125,0,$A$3) -> 1 | D125: =C125*0.05 -> 0.05 | E125: Capital Gains Tax Rate
A127: FALSE | B127: FALSE | C127: =INDEX(A127:B127,0,$A$3) -> FALSE | D127: =IF(C127=TRUE,"Yes","No") -> No | E127: Corporate Income Tax | H127: =IF($D$127="Yes",'Corp Income Tax'!G4,0) -> 0 | I127: =IF($D$127="Yes",'Corp Income Tax'!H4,0) -> 0 | J127: =IF($D$127="Yes",'Corp Income Tax'!I4,0) -> 0 | K127: =IF($D$127="Yes",'Corp Income Tax'!J4,0) -> 0 | L127: =IF($D$127="Yes",'Corp Income Tax'!K4,0) -> 0 | M127: =IF($D$127="Yes",'Corp Income Tax'!L4,0) -> 0 | N127: =IF($D$127="Yes",'Corp Income Tax'!M4,0) -> 0 | O127: =IF($D$127="Yes",'Corp Income Tax'!N4,0) -> 0 | P127: =IF($D$127="Yes",'Corp Income Tax'!O4,0) -> 0 | Q127: =IF($D$127="Yes",'Corp Income Tax'!P4,0) -> 0 | R127: =IF($D$127="Yes",'Corp Income Tax'!Q4,0) -> 0 | S127: =IF($D$127="Yes",'Corp Income Tax'!R4,0) -> 0 | T127: =IF($D$127="Yes",'Corp Income Tax'!S4,0) -> 0 | U127: =IF($D$127="Yes",'Corp Income Tax'!T4,0) -> 0 | V127: =IF($D$127="Yes",'Corp Income Tax'!U4,0) -> 0
A128: 1 | B128: 1 | C128: =INDEX(A128:B128,0,$A$3) -> 1 | D128: =C128*0.01 -> 0.01 | E128: Increase in the max rate
E130: Lottery / Gaming
A131: FALSE | B131: FALSE | C131: =INDEX(A131:B131,0,$A$3) -> FALSE | D131: =IF(C131=TRUE,"Yes","No") -> No | E131: State Lottery | H131: =IF($D131="Yes",Lottery!J4,0) -> 0 | I131: =IF($D131="Yes",Lottery!K4,0) -> 0 | J131: =IF($D131="Yes",Lottery!L4,0) -> 0 | K131: =IF($D131="Yes",Lottery!M4,0) -> 0 | L131: =IF($D131="Yes",Lottery!N4,0) -> 0 | M131: =IF($D131="Yes",Lottery!O4,0) -> 0 | N131: =IF($D131="Yes",Lottery!P4,0) -> 0 | O131: =IF($D131="Yes",Lottery!Q4,0) -> 0 | P131: =IF($D131="Yes",Lottery!R4,0) -> 0 | Q131: =IF($D131="Yes",Lottery!S4,0) -> 0 | R131: =IF($D131="Yes",Lottery!T4,0) -> 0 | S131: =IF($D131="Yes",Lottery!U4,0) -> 0 | T131: =IF($D131="Yes",Lottery!V4,0) -> 0 | U131: =IF($D131="Yes",Lottery!W4,0) -> 0 | V131: =IF($D131="Yes",Lottery!X4,0) -> 0
A132: =A131 -> FALSE | B132: FALSE | C132: =INDEX(A132:B132,0,$A$3) -> FALSE | D132: =IF(C132=TRUE,"Yes","No") -> No | E132: PF Lottery | H132: =IF($D132="Yes",'PFD lottery'!F17,0) -> 0 | I132: =IF($D132="Yes",'PFD lottery'!G17,0) -> 0 | J132: =IF($D132="Yes",'PFD lottery'!H17,0) -> 0 | K132: =IF($D132="Yes",'PFD lottery'!I17,0) -> 0 | L132: =IF($D132="Yes",'PFD lottery'!J17,0) -> 0 | M132: =IF($D132="Yes",'PFD lottery'!K17,0) -> 0 | N132: =IF($D132="Yes",'PFD lottery'!L17,0) -> 0 | O132: =IF($D132="Yes",'PFD lottery'!M17,0) -> 0 | P132: =IF($D132="Yes",'PFD lottery'!N17,0) -> 0 | Q132: =IF($D132="Yes",'PFD lottery'!O17,0) -> 0 | R132: =IF($D132="Yes",'PFD lottery'!P17,0) -> 0 | S132: =IF($D132="Yes",'PFD lottery'!Q17,0) -> 0 | T132: =IF($D132="Yes",'PFD lottery'!R17,0) -> 0 | U132: =IF($D132="Yes",'PFD lottery'!S17,0) -> 0 | V132: =IF($D132="Yes",'PFD lottery'!T17,0) -> 0
A133: FALSE | B133: FALSE | C133: =INDEX(A133:B133,0,$A$3) -> FALSE | D133: =IF(C133=TRUE,"Yes","No") -> No | E133: Increase Current Gaming Rates | H133: =IF($D133="Yes",Gaming!E3,0) -> 0 | I133: =IF($D133="Yes",Gaming!F3,0) -> 0 | J133: =IF($D133="Yes",Gaming!G3,0) -> 0 | K133: =IF($D133="Yes",Gaming!H3,0) -> 0 | L133: =IF($D133="Yes",Gaming!I3,0) -> 0 | M133: =IF($D133="Yes",Gaming!J3,0) -> 0 | N133: =IF($D133="Yes",Gaming!K3,0) -> 0 | O133: =IF($D133="Yes",Gaming!L3,0) -> 0 | P133: =IF($D133="Yes",Gaming!M3,0) -> 0 | Q133: =IF($D133="Yes",Gaming!N3,0) -> 0 | R133: =IF($D133="Yes",Gaming!O3,0) -> 0 | S133: =IF($D133="Yes",Gaming!P3,0) -> 0 | T133: =IF($D133="Yes",Gaming!Q3,0) -> 0 | U133: =IF($D133="Yes",Gaming!R3,0) -> 0 | V133: =IF($D133="Yes",Gaming!S3,0) -> 0
A134: 1 | B134: 1 | C134: =INDEX(A134:B134,0,$A$3) -> 1 | D134: =CHOOSE(C134,1%,2%,3%,4%,5%) -> 0.01 | E134: Rise in Charitable Gaming Rate
A135: FALSE | B135: FALSE | C135: =INDEX(A135:B135,0,$A$3) -> FALSE | D135: =IF(C135=TRUE,"Yes","No") -> No | E135: Legalize Card Rooms | H135: =IF($D135="Yes",Gaming!E4,0) -> 0 | I135: =IF($D135="Yes",Gaming!F4,0) -> 0 | J135: =IF($D135="Yes",Gaming!G4,0) -> 0 | K135: =IF($D135="Yes",Gaming!H4,0) -> 0 | L135: =IF($D135="Yes",Gaming!I4,0) -> 0 | M135: =IF($D135="Yes",Gaming!J4,0) -> 0 | N135: =IF($D135="Yes",Gaming!K4,0) -> 0 | O135: =IF($D135="Yes",Gaming!L4,0) -> 0 | P135: =IF($D135="Yes",Gaming!M4,0) -> 0 | Q135: =IF($D135="Yes",Gaming!N4,0) -> 0 | R135: =IF($D135="Yes",Gaming!O4,0) -> 0 | S135: =IF($D135="Yes",Gaming!P4,0) -> 0 | T135: =IF($D135="Yes",Gaming!Q4,0) -> 0 | U135: =IF($D135="Yes",Gaming!R4,0) -> 0 | V135: =IF($D135="Yes",Gaming!S4,0) -> 0
D136: 10000 | E136: Card room yearly fee
D137: 10000 | E137: Per-table yearly fee
A138: =A135 -> FALSE | B138: FALSE | C138: =INDEX(A138:B138,0,$A$3) -> FALSE | D138: =IF(C138=TRUE,"Yes","No") -> No | E138: Legalize Casino | H138: =IF($D138="Yes",Gaming!E5,0) -> 0 | I138: =IF($D138="Yes",Gaming!F5,0) -> 0 | J138: =IF($D138="Yes",Gaming!G5,0) -> 0 | K138: =IF($D138="Yes",Gaming!H5,0) -> 0 | L138: =IF($D138="Yes",Gaming!I5,0) -> 0 | M138: =IF($D138="Yes",Gaming!J5,0) -> 0 | N138: =IF($D138="Yes",Gaming!K5,0) -> 0 | O138: =IF($D138="Yes",Gaming!L5,0) -> 0 | P138: =IF($D138="Yes",Gaming!M5,0) -> 0 | Q138: =IF($D138="Yes",Gaming!N5,0) -> 0 | R138: =IF($D138="Yes",Gaming!O5,0) -> 0 | S138: =IF($D138="Yes",Gaming!P5,0) -> 0 | T138: =IF($D138="Yes",Gaming!Q5,0) -> 0 | U138: =IF($D138="Yes",Gaming!R5,0) -> 0 | V138: =IF($D138="Yes",Gaming!S5,0) -> 0
D139: 0.33 | E139: % of State's Take
E141: Mining Tax
A142: FALSE | B142: FALSE | C142: =INDEX(A142:B142,0,$A$3) -> FALSE | D142: =IF(C142=TRUE,"Yes","No") -> No | E142: Mining Tax Rate Increase | H142: =IF(OR($D$142="Yes",$D$144="Yes"),'Mining Tax'!E2,0) -> 0 | I142: =IF(OR($D$142="Yes",$D$144="Yes"),'Mining Tax'!F2,0) -> 0 | J142: =IF(OR($D$142="Yes",$D$144="Yes"),'Mining Tax'!G2,0) -> 0 | K142: =IF(OR($D$142="Yes",$D$144="Yes"),'Mining Tax'!H2,0) -> 0 | L142: =IF(OR($D$142="Yes",$D$144="Yes"),'Mining Tax'!I2,0) -> 0 | M142: =IF(OR($D$142="Yes",$D$144="Yes"),'Mining Tax'!J2,0) -> 0 | N142: =IF(OR($D$142="Yes",$D$144="Yes"),'Mining Tax'!K2,0) -> 0 | O142: =IF(OR($D$142="Yes",$D$144="Yes"),'Mining Tax'!L2,0) -> 0 | P142: =IF(OR($D$142="Yes",$D$144="Yes"),'Mining Tax'!M2,0) -> 0 | Q142: =IF(OR($D$142="Yes",$D$144="Yes"),'Mining Tax'!N2,0) -> 0 | R142: =IF(OR($D$142="Yes",$D$144="Yes"),'Mining Tax'!O2,0) -> 0 | S142: =IF(OR($D$142="Yes",$D$144="Yes"),'Mining Tax'!P2,0) -> 0 | T142: =IF(OR($D$142="Yes",$D$144="Yes"),'Mining Tax'!Q2,0) -> 0 | U142: =IF(OR($D$142="Yes",$D$144="Yes"),'Mining Tax'!R2,0) -> 0 | V142: =IF(OR($D$142="Yes",$D$144="Yes"),'Mining Tax'!S2,0) -> 0
A143: 1 | B143: 1 | C143: =INDEX(A143:B143,0,$A$3) -> 1 | D143: =C143*0.01 -> 0.01 | E143: Rise in Mining Tax Rate
A144: FALSE | B144: FALSE | C144: =INDEX(A144:B144,0,$A$3) -> FALSE | D144: =IF(C144=TRUE,"Yes","No") -> No | E144: Remove Depreciation Allowance
E146: School Tax
A147: FALSE | B147: FALSE | C147: =INDEX(A147:B147,0,$A$3) -> FALSE | D147: =IF(C147=TRUE,"Yes","No") -> No | E147: Flat Rate per Working Person | H147: =IF($D147="Yes",'School Tax'!B2,0) -> 0 | I147: =IF($D147="Yes",'School Tax'!C2,0) -> 0 | J147: =IF($D147="Yes",'School Tax'!D2,0) -> 0 | K147: =IF($D147="Yes",'School Tax'!E2,0) -> 0 | L147: =IF($D147="Yes",'School Tax'!F2,0) -> 0 | M147: =IF($D147="Yes",'School Tax'!G2,0) -> 0 | N147: =IF($D147="Yes",'School Tax'!H2,0) -> 0 | O147: =IF($D147="Yes",'School Tax'!I2,0) -> 0 | P147: =IF($D147="Yes",'School Tax'!J2,0) -> 0 | Q147: =IF($D147="Yes",'School Tax'!K2,0) -> 0 | R147: =IF($D147="Yes",'School Tax'!L2,0) -> 0 | S147: =IF($D147="Yes",'School Tax'!M2,0) -> 0 | T147: =IF($D147="Yes",'School Tax'!N2,0) -> 0 | U147: =IF($D147="Yes",'School Tax'!O2,0) -> 0 | V147: =IF($D147="Yes",'School Tax'!P2,0) -> 0
A148: 1 | B148: 1 | C148: =INDEX(A148:B148,0,$A$3) -> 1 | D148: =CHOOSE(C148,100,300,500) -> 100 | E148: Rate
A150: FALSE | B150: FALSE | C150: =INDEX(A150:B150,0,$A$3) -> FALSE | D150: =IF(C150=TRUE,"Yes","No") -> No | E150: Progressive school tax as described in SB 97 | H150: =IF($D150="Yes",'SB 97'!I15,0) -> 0 | I150: =IF($D150="Yes",'SB 97'!J15,0) -> 0 | J150: =IF($D150="Yes",'SB 97'!K15,0) -> 0 | K150: =IF($D150="Yes",'SB 97'!L15,0) -> 0 | L150: =IF($D150="Yes",'SB 97'!M15,0) -> 0 | M150: =IF($D150="Yes",'SB 97'!N15,0) -> 0 | N150: =IF($D150="Yes",'SB 97'!O15,0) -> 0 | O150: =IF($D150="Yes",'SB 97'!P15,0) -> 0 | P150: =IF($D150="Yes",'SB 97'!Q15,0) -> 0 | Q150: =IF($D150="Yes",'SB 97'!R15,0) -> 0 | R150: =IF($D150="Yes",'SB 97'!S15,0) -> 0 | S150: =IF($D150="Yes",'SB 97'!T15,0) -> 0 | T150: =IF($D150="Yes",'SB 97'!U15,0) -> 0 | U150: =IF($D150="Yes",'SB 97'!V15,0) -> 0 | V150: =IF($D150="Yes",'SB 97'!W15,0) -> 0
E153: State Property Tax
A154: FALSE | B154: FALSE | C154: =INDEX(A154:B154,0,$A$3) -> FALSE | D154: =IF(C154=TRUE,"Yes","No") -> No | E154: State Property Tax | H154: =IF($D154="Yes",'Property Tax'!F4,0) -> 0 | I154: =IF($D154="Yes",'Property Tax'!G4,0) -> 0 | J154: =IF($D154="Yes",'Property Tax'!H4,0) -> 0 | K154: =IF($D154="Yes",'Property Tax'!I4,0) -> 0 | L154: =IF($D154="Yes",'Property Tax'!J4,0) -> 0 | M154: =IF($D154="Yes",'Property Tax'!K4,0) -> 0 | N154: =IF($D154="Yes",'Property Tax'!L4,0) -> 0 | O154: =IF($D154="Yes",'Property Tax'!M4,0) -> 0 | P154: =IF($D154="Yes",'Property Tax'!N4,0) -> 0 | Q154: =IF($D154="Yes",'Property Tax'!O4,0) -> 0 | R154: =IF($D154="Yes",'Property Tax'!P4,0) -> 0 | S154: =IF($D154="Yes",'Property Tax'!Q4,0) -> 0 | T154: =IF($D154="Yes",'Property Tax'!R4,0) -> 0 | U154: =IF($D154="Yes",'Property Tax'!S4,0) -> 0 | V154: =IF($D154="Yes",'Property Tax'!T4,0) -> 0
A155: 1 | B155: 1 | C155: =INDEX(A155:B155,0,$A$3) -> 1 | D155: =INDEX('Property Tax'!A2:A7,'All Rev & Projects'!C155) -> 0.001 | E155: Rate as a Percent
E157: Health Care Provider Tax
A158: FALSE | B158: FALSE | C158: =INDEX(A158:B158,0,$A$3) -> FALSE | D158: =IF(C158=TRUE,"Yes","No") -> No | E158: Health Care Provider Tax | H158: =IF($D158="Yes",'Health Care Provider Tax'!C3,0) -> 0 | I158: =IF($D158="Yes",'Health Care Provider Tax'!D3,0) -> 0 | J158: =IF($D158="Yes",'Health Care Provider Tax'!E3,0) -> 0 | K158: =IF($D158="Yes",'Health Care Provider Tax'!F3,0) -> 0 | L158: =IF($D158="Yes",'Health Care Provider Tax'!G3,0) -> 0 | M158: =IF($D158="Yes",'Health Care Provider Tax'!H3,0) -> 0 | N158: =IF($D158="Yes",'Health Care Provider Tax'!I3,0) -> 0 | O158: =IF($D158="Yes",'Health Care Provider Tax'!J3,0) -> 0 | P158: =IF($D158="Yes",'Health Care Provider Tax'!K3,0) -> 0 | Q158: =IF($D158="Yes",'Health Care Provider Tax'!L3,0) -> 0 | R158: =IF($D158="Yes",'Health Care Provider Tax'!M3,0) -> 0 | S158: =IF($D158="Yes",'Health Care Provider Tax'!N3,0) -> 0 | T158: =IF($D158="Yes",'Health Care Provider Tax'!O3,0) -> 0 | U158: =IF($D158="Yes",'Health Care Provider Tax'!P3,0) -> 0 | V158: =IF($D158="Yes",'Health Care Provider Tax'!Q3,0) -> 0
A159: 1 | B159: 1 | C159: =INDEX(A159:B159,0,$A$3) -> 1 | D159: =C159*0.01 -> 0.01 | E159: Assessment Rate
E161: Child Support Fee
A162: FALSE | B162: FALSE | C162: =INDEX(A162:B162,0,$A$3) -> FALSE | D162: =IF(C162=TRUE,"Yes","No") -> No | E162: Child Support Fee that State Currently Pays | H162: =IF($D162="Yes",'Child Support Fee'!B2,0) -> 0 | I162: =IF($D162="Yes",'Child Support Fee'!C2,0) -> 0 | J162: =IF($D162="Yes",'Child Support Fee'!D2,0) -> 0 | K162: =IF($D162="Yes",'Child Support Fee'!E2,0) -> 0 | L162: =IF($D162="Yes",'Child Support Fee'!F2,0) -> 0 | M162: =IF($D162="Yes",'Child Support Fee'!G2,0) -> 0 | N162: =IF($D162="Yes",'Child Support Fee'!H2,0) -> 0 | O162: =IF($D162="Yes",'Child Support Fee'!I2,0) -> 0 | P162: =IF($D162="Yes",'Child Support Fee'!J2,0) -> 0 | Q162: =IF($D162="Yes",'Child Support Fee'!K2,0) -> 0 | R162: =IF($D162="Yes",'Child Support Fee'!L2,0) -> 0 | S162: =IF($D162="Yes",'Child Support Fee'!M2,0) -> 0 | T162: =IF($D162="Yes",'Child Support Fee'!N2,0) -> 0 | U162: =IF($D162="Yes",'Child Support Fee'!O2,0) -> 0 | V162: =IF($D162="Yes",'Child Support Fee'!P2,0) -> 0
D163: 25 | E163: Base Fee per case
E165: Sin Tax
A166: FALSE | B166: FALSE | C166: =INDEX(A166:B166,0,$A$3) -> FALSE | D166: =IF(C166=TRUE,"Yes","No") -> No | E166: Alcohol Tax | H166: =IF($D166="Yes",'Alcohol Tax'!E4,0) -> 0 | I166: =IF($D166="Yes",'Alcohol Tax'!F4,0) -> 0 | J166: =IF($D166="Yes",'Alcohol Tax'!G4,0) -> 0 | K166: =IF($D166="Yes",'Alcohol Tax'!H4,0) -> 0 | L166: =IF($D166="Yes",'Alcohol Tax'!I4,0) -> 0 | M166: =IF($D166="Yes",'Alcohol Tax'!J4,0) -> 0 | N166: =IF($D166="Yes",'Alcohol Tax'!K4,0) -> 0 | O166: =IF($D166="Yes",'Alcohol Tax'!L4,0) -> 0 | P166: =IF($D166="Yes",'Alcohol Tax'!M4,0) -> 0 | Q166: =IF($D166="Yes",'Alcohol Tax'!N4,0) -> 0 | R166: =IF($D166="Yes",'Alcohol Tax'!O4,0) -> 0 | S166: =IF($D166="Yes",'Alcohol Tax'!P4,0) -> 0 | T166: =IF($D166="Yes",'Alcohol Tax'!Q4,0) -> 0 | U166: =IF($D166="Yes",'Alcohol Tax'!R4,0) -> 0 | V166: =IF($D166="Yes",'Alcohol Tax'!S4,0) -> 0
A167: 1 | B167: 1 | C167: 1 | D167: =C167*0.05 -> 0.05 | E167: Increase
A168: FALSE | B168: FALSE | C168: FALSE | D168: =IF(C168=TRUE,"Yes","No") -> No | E168: Tobacco Tax cigarette tax | H168: =IF($D168="Yes",Tobacco!E2,0) -> 0 | I168: =IF($D168="Yes",Tobacco!F2,0) -> 0 | J168: =IF($D168="Yes",Tobacco!G2,0) -> 0 | K168: =IF($D168="Yes",Tobacco!H2,0) -> 0 | L168: =IF($D168="Yes",Tobacco!I2,0) -> 0 | M168: =IF($D168="Yes",Tobacco!J2,0) -> 0 | N168: =IF($D168="Yes",Tobacco!K2,0) -> 0 | O168: =IF($D168="Yes",Tobacco!L2,0) -> 0 | P168: =IF($D168="Yes",Tobacco!M2,0) -> 0 | Q168: =IF($D168="Yes",Tobacco!N2,0) -> 0 | R168: =IF($D168="Yes",Tobacco!O2,0) -> 0 | S168: =IF($D168="Yes",Tobacco!P2,0) -> 0 | T168: =IF($D168="Yes",Tobacco!Q2,0) -> 0 | U168: =IF($D168="Yes",Tobacco!R2,0) -> 0 | V168: =IF($D168="Yes",Tobacco!S2,0) -> 0
A169: 1 | B169: 1 | C169: 1 | D169: =C169*0.01 -> 0.01 | E169: Increase
A170: FALSE | B170: FALSE | C170: FALSE | D170: =IF(C170=TRUE,"Yes","No") -> No | E170: Tobacco Tax other tobacco products | H170: =IF($D170="Yes",Tobacco!E3,0) -> 0 | I170: =IF($D170="Yes",Tobacco!F3,0) -> 0 | J170: =IF($D170="Yes",Tobacco!G3,0) -> 0 | K170: =IF($D170="Yes",Tobacco!H3,0) -> 0 | L170: =IF($D170="Yes",Tobacco!I3,0) -> 0 | M170: =IF($D170="Yes",Tobacco!J3,0) -> 0 | N170: =IF($D170="Yes",Tobacco!K3,0) -> 0 | O170: =IF($D170="Yes",Tobacco!L3,0) -> 0 | P170: =IF($D170="Yes",Tobacco!M3,0) -> 0 | Q170: =IF($D170="Yes",Tobacco!N3,0) -> 0 | R170: =IF($D170="Yes",Tobacco!O3,0) -> 0 | S170: =IF($D170="Yes",Tobacco!P3,0) -> 0 | T170: =IF($D170="Yes",Tobacco!Q3,0) -> 0 | U170: =IF($D170="Yes",Tobacco!R3,0) -> 0 | V170: =IF($D170="Yes",Tobacco!S3,0) -> 0
A171: 1 | B171: 1 | C171: 1 | D171: =C171*0.05 -> 0.05 | E171: Increase
A172: FALSE | B172: FALSE | C172: FALSE | D172: =IF(C172=TRUE,"Yes","No") -> No | E172: Include E-Cigs in other tobacco products | H172: =IF($D172="Yes",Tobacco!E4,0) -> 0 | I172: =IF($D172="Yes",Tobacco!F4,0) -> 0 | J172: =IF($D172="Yes",Tobacco!G4,0) -> 0 | K172: =IF($D172="Yes",Tobacco!H4,0) -> 0 | L172: =IF($D172="Yes",Tobacco!I4,0) -> 0 | M172: =IF($D172="Yes",Tobacco!J4,0) -> 0 | N172: =IF($D172="Yes",Tobacco!K4,0) -> 0 | O172: =IF($D172="Yes",Tobacco!L4,0) -> 0 | P172: =IF($D172="Yes",Tobacco!M4,0) -> 0 | Q172: =IF($D172="Yes",Tobacco!N4,0) -> 0 | R172: =IF($D172="Yes",Tobacco!O4,0) -> 0 | S172: =IF($D172="Yes",Tobacco!P4,0) -> 0 | T172: =IF($D172="Yes",Tobacco!Q4,0) -> 0 | U172: =IF($D172="Yes",Tobacco!R4,0) -> 0 | V172: =IF($D172="Yes",Tobacco!S4,0) -> 0
A173: FALSE | B173: FALSE | C173: FALSE | D173: =IF(C173=TRUE,"Yes","No") -> No | E173: Marijuana Tax | H173: =IF($D173="Yes",Tobacco!E5,0) -> 0 | I173: =IF($D173="Yes",Tobacco!F5,0) -> 0 | J173: =IF($D173="Yes",Tobacco!G5,0) -> 0 | K173: =IF($D173="Yes",Tobacco!H5,0) -> 0 | L173: =IF($D173="Yes",Tobacco!I5,0) -> 0 | M173: =IF($D173="Yes",Tobacco!J5,0) -> 0 | N173: =IF($D173="Yes",Tobacco!K5,0) -> 0 | O173: =IF($D173="Yes",Tobacco!L5,0) -> 0 | P173: =IF($D173="Yes",Tobacco!M5,0) -> 0 | Q173: =IF($D173="Yes",Tobacco!N5,0) -> 0 | R173: =IF($D173="Yes",Tobacco!O5,0) -> 0 | S173: =IF($D173="Yes",Tobacco!P5,0) -> 0 | T173: =IF($D173="Yes",Tobacco!Q5,0) -> 0 | U173: =IF($D173="Yes",Tobacco!R5,0) -> 0 | V173: =IF($D173="Yes",Tobacco!S5,0) -> 0
A174: 1 | B174: 1 | C174: 1 | D174: =Tobacco!B5 -> 50 | E174: Increase
A175: FALSE | B175: FALSE | C175: =INDEX(A175:B175,0,$A$3) -> FALSE | D175: =IF(C175=TRUE,"Yes","No") -> No | E175: Increase Sin Tax Rates (Marijuana, Cigarettes and Alcohol) | H175: =IF($D175="Yes",Tobacco!E41,0) -> 0 | I175: =IF($D175="Yes",Tobacco!F41,0) -> 0 | J175: =IF($D175="Yes",Tobacco!G41,0) -> 0 | K175: =IF($D175="Yes",Tobacco!H41,0) -> 0 | L175: =IF($D175="Yes",Tobacco!I41,0) -> 0 | M175: =IF($D175="Yes",Tobacco!J41,0) -> 0 | N175: =IF($D175="Yes",Tobacco!K41,0) -> 0 | O175: =IF($D175="Yes",Tobacco!L41,0) -> 0 | P175: =IF($D175="Yes",Tobacco!M41,0) -> 0 | Q175: =IF($D175="Yes",Tobacco!N41,0) -> 0 | R175: =IF($D175="Yes",Tobacco!O41,0) -> 0 | S175: =IF($D175="Yes",Tobacco!P41,0) -> 0 | T175: =IF($D175="Yes",Tobacco!Q41,0) -> 0 | U175: =IF($D175="Yes",Tobacco!R41,0) -> 0 | V175: =IF($D175="Yes",Tobacco!S41,0) -> 0
A176: 1 | B176: 0 | C176: =INDEX(A176:B176,0,$A$3) -> 1 | D176: =C176*0.05 -> 0.05
E178: Uncollected Funds
A179: FALSE | B179: FALSE | C179: =INDEX(A179:B179,0,$A$3) -> FALSE | D179: =IF(C179=TRUE,"Yes","No") -> No | E179: Auditing and collecting additional revenue from current | H179: =IF($D179="Yes",'Uncollected Funds'!D2,0) -> 0 | I179: =IF($D179="Yes",'Uncollected Funds'!E2,0) -> 0 | J179: =IF($D179="Yes",'Uncollected Funds'!F2,0) -> 0 | K179: =IF($D179="Yes",'Uncollected Funds'!G2,0) -> 0 | L179: =IF($D179="Yes",'Uncollected Funds'!H2,0) -> 0 | M179: =IF($D179="Yes",'Uncollected Funds'!I2,0) -> 0 | N179: =IF($D179="Yes",'Uncollected Funds'!J2,0) -> 0 | O179: =IF($D179="Yes",'Uncollected Funds'!K2,0) -> 0 | P179: =IF($D179="Yes",'Uncollected Funds'!L2,0) -> 0 | Q179: =IF($D179="Yes",'Uncollected Funds'!M2,0) -> 0 | R179: =IF($D179="Yes",'Uncollected Funds'!N2,0) -> 0 | S179: =IF($D179="Yes",'Uncollected Funds'!O2,0) -> 0 | T179: =IF($D179="Yes",'Uncollected Funds'!P2,0) -> 0 | U179: =IF($D179="Yes",'Uncollected Funds'!Q2,0) -> 0 | V179: =IF($D179="Yes",'Uncollected Funds'!R2,0) -> 0
E180: taxes that are currently uncollected
E182: Large Project Revenues
E183: AKLNG Revenues | G183: =IF($D$198="Yes",IF($E$198="AKLNG - 25% equity, TC, no buyback",G254,0)+IF($E$198="AKLNG - 25% equity, TC, Dec 15 with buyback",G255,0)+IF($E$198="AKLNG - 25% equity, TC, Dec 15 TC removal",G256,0),0) -> 0 | H183: =IF($D$198="Yes",IF($E$198="AKLNG - 25% equity, TC, no buyback",H254,0)+IF($E$198="AKLNG - 25% equity, TC, Dec 15 with buyback",H255,0)+IF($E$198="AKLNG - 25% equity, TC, Dec 15 TC removal",H256,0),0) -> 0 | I183: 0 | J183: 0 | K183: 0 | L183: 0 | M183: 0 | N183: 0 | O183: 0 | P183: 0 | Q183: 0 | R183: 0 | S183: 0 | T183: 0 | U183: 0 | V183: 0
E184: Susitna (or other) Hydroelectric Project Revenues | Q184: =IF(D198="No",0,IF(D199="No",0,IF(AND(D199="Yes",E199="AKLNG - 25% equity, TC, no buyback"),1000,1000))) -> 0 | R184: =MROUND(Q184*1.0225,10) -> 0 | S184: =MROUND(R184*1.0225,10) -> 0 | T184: =MROUND(S184*1.0225,10) -> 0 | U184: =MROUND(T184*1.0225,10) -> 0 | V184: =MROUND(U184*1.0225,10) -> 0
E185: Ambler Road | J185: =IF($D$204="Yes",'Ambler and Juneau Road'!F3,0) -> 0 | K185: =IF($D$204="Yes",'Ambler and Juneau Road'!G3,0) -> 0 | L185: =IF($D$204="Yes",'Ambler and Juneau Road'!H3,0) -> 0 | M185: =IF($D$204="Yes",'Ambler and Juneau Road'!I3,0) -> 0 | N185: =IF($D$204="Yes",'Ambler and Juneau Road'!J3,0) -> 0 | O185: =IF($D$204="Yes",'Ambler and Juneau Road'!K3,0) -> 0 | P185: =IF($D$204="Yes",'Ambler and Juneau Road'!L3,0) -> 0 | Q185: =IF($D$204="Yes",'Ambler and Juneau Road'!M3,0) -> 0 | R185: =IF($D$204="Yes",'Ambler and Juneau Road'!N3,0) -> 0 | S185: =IF($D$204="Yes",'Ambler and Juneau Road'!O3,0) -> 0 | T185: =IF($D$204="Yes",'Ambler and Juneau Road'!P3,0) -> 0 | U185: =IF($D$204="Yes",'Ambler and Juneau Road'!Q3,0) -> 0 | V185: =IF($D$204="Yes",'Ambler and Juneau Road'!R3,0) -> 0
E186: Juneau Road | P186: =IF($D$205="Yes",'Ambler and Juneau Road'!L10,0) -> 0 | Q186: =IF($D$205="Yes",'Ambler and Juneau Road'!M10,0) -> 0 | R186: =IF($D$205="Yes",'Ambler and Juneau Road'!N10,0) -> 0 | S186: =IF($D$205="Yes",'Ambler and Juneau Road'!O10,0) -> 0 | T186: =IF($D$205="Yes",'Ambler and Juneau Road'!P10,0) -> 0 | U186: =IF($D$205="Yes",'Ambler and Juneau Road'!Q10,0) -> 0 | V186: =IF($D$205="Yes",'Ambler and Juneau Road'!R10,0) -> 0
E188: Total Revenue | F188: 5394 | G188: 2354 | H188: =SUM(H8,H16,H18,H20,H22,H26,H29,H33,H45,H48,-H85,H86,H96,H99,H103,H107,H111,H115,H117,H121,H124,H127,H131,H132,H133,H135,H138,H142,H147,H150,H162,H154,H158,H166,H168,H170,H172,H173,H175,H179,H183,H184,H185,H186) -> 2198.2 | I188: =SUM(I8,I16,I18,I20,I22,I26,I29,I33,I45,I48,-I85,I86,I96,I99,I103,I107,I111,I115,I117,I121,I124,I127,I131,I132,I133,I135,I138,I142,I147,I150,I162,I154,I158,I166,I168,I170,I172,I173,I175,I179,I183,I184,I185,I186) -> 3174.9 | J188: 3240.6 | K188: 3788.3 | L188: 4535.2 | M188: 4435.1 | N188: 4260.7 | O188: 4265.9 | P188: 4218 | Q188: 4054.5 | R188: 3828.2 | S188: 3636.5 | T188: 3484.6 | U188: 3319.9 | V188: 3184.8
A190: FALSE | E190: Debt Payments
D191: Yes | E191: Debt Servicing - With Growth | F191: 231.418 | G191: 220.778561 | H191: =IF($D$191="Yes",(1+$D$192)*G191,0) -> 225.1941322 | I191: =IF($D$191="Yes",(1+$D$192)*H191,0) -> 229.6980149 | J191: 234.2919752 | K191: 238.9778147 | L191: 243.757371 | M191: 248.6325184 | N191: 253.6051687 | O191: 258.6772721 | P191: 263.8508176 | Q191: 269.1278339 | R191: 274.5103906 | S191: 280.0005984 | T191: 285.6006104 | U191: 291.3126226 | V191: 297.138875
D192: 0.02 | E192: Debt Growth - (current projection is to right) | H192: 203.076 | I192: 209.321 | J192: 201.215 | K192: 208.58 | L192: 190.076 | M192: 186.877 | N192: 164.876 | O192: 161.032 | P192: 152.552 | Q192: 136.427 | R192: 105.619 | S192: 117.331 | T192: 111.059 | U192: 105.684 | V192: 99.519
E194: GF Appropriations ($ in Millions) | F194: 7050 | G194: ='Budget Sensitivity'!F36/1000+594 -> 5978.7234 | H194: ='Budget Sensitivity'!F35/1000-H162-H13-H66-H67-H95 -> 5384.7234 | I194: ='Budget Sensitivity'!G35/1000-I162-I13-I66-I67-I95 -> 5505.879676 | J194: ='Budget Sensitivity'!H35/1000-J162-J13-J66-J67-J95 -> 5629.761969 | K194: ='Budget Sensitivity'!I35/1000-K162-K13-K66-K67-K95 -> 5756.431614 | L194: ='Budget Sensitivity'!J35/1000-L162-L13-L66-L67-L95 -> 5885.951325 | M194: ='Budget Sensitivity'!K35/1000-M162-M13-M66-M67-M95 -> 6018.38523 | N194: ='Budget Sensitivity'!L35/1000-N162-N13-N66-N67-N95 -> 6153.798897 | O194: ='Budget Sensitivity'!M35/1000-O162-O13-O66-O67-O95 -> 6292.259372 | P194: ='Budget Sensitivity'!N35/1000-P162-P13-P66-P67-P95 -> 6433.835208 | Q194: ='Budget Sensitivity'!O35/1000-Q162-Q13-Q66-Q67-Q95 -> 6578.596501 | R194: ='Budget Sensitivity'!P35/1000-R162-R13-R66-R67-R95 -> 6726.614922 | S194: ='Budget Sensitivity'!Q35/1000-S162-S13-S66-S67-S95 -> 6877.963758 | T194: ='Budget Sensitivity'!R35/1000-T162-T13-T66-T67-T95 -> 7032.717942 | U194: ='Budget Sensitivity'!S35/1000-U162-U13-U66-U67-U95 -> 7190.954096 | V194: ='Budget Sensitivity'!T35/1000-V162-V13-V66-V67-V95 -> 7352.750563
E195: OMB Appropriations Forecast | H195: 5553.5699 | I195: 5341.375078 | J195: 5063.155759 | K195: 5049.574526 | L195: 5134.859017 | M195: 5213.353957 | N195: 5304.057816 | O195: 5397.376672 | P195: 5489.841226 | Q195: 5573.14181 | R195: =Q195 -> 5573.14181 | S195: =R195 -> 5573.14181 | T195: =S195 -> 5573.14181 | U195: =T195 -> 5573.14181 | V195: =U195 -> 5573.14181
E197: Large Project Cash Expenditures ($ in Billions)
A198: FALSE | B198: FALSE | C198: =INDEX(A198:B198,0,$A$3) -> FALSE | D198: =IF(C198=TRUE,"Yes","No") -> No | E198: ='Detailed Model'!B100 -> AKLNG - 25% equity, TC, no buyback | F198: =F232 -> 7 | G198: =G232 -> 34.25512682 | H198: =IF($D$198="no",0,IF($E$198=$E$232,H232,IF($E$198=$E$233,H233,H234))) -> 0 | I198: 0 | J198: 0 | K198: 0 | L198: 0 | M198: 0 | N198: 0 | O198: 0 | P198: 0 | Q198: 0 | R198: 0 | S198: 0 | T198: 0 | U198: 0 | V198: 0
A199: 1 | B199: FALSE | C199: =INDEX(A199:B199,0,$A$3) -> 1 | D199: =IF(C199=TRUE,"Yes","No") -> No | E199: Susitna (or other) Hydroelectric Project | F199: =F236 -> 60.2 | G199: =G236 -> 90 | H199: =IF($D$199="Yes",H236,0) -> 0 | I199: =IF($D$199="Yes",I236,0) -> 0 | J199: =IF($D$199="Yes",J236*(1-$D$200),0) -> 0 | K199: 0 | L199: 0 | M199: 0 | N199: 0 | O199: 0 | P199: 0 | Q199: 0 | R199: 0 | S199: 0 | T199: 0 | U199: 0 | V199: 0
A200: FALSE | B200: 1 | C200: 1 | D200: =C200*0.05+0.45 -> 0.5 | E200: Debt Funding %
A201: FALSE | B201: FALSE | C201: =INDEX(A201:B201,0,$A$3) -> FALSE | D201: =IF(C201=TRUE,"Yes","No") -> No | E201: Knik Arm Bridge | H201: =H202+H203 -> 0 | I201: =I202+I203 -> 0 | J201: 0 | K201: 0 | L201: 0 | M201: 0 | N201: 0 | O201: 0 | P201: 0 | Q201: =Q202+Q203 -> 0 | R201: 0 | S201: 0 | T201: 0 | U201: 0 | V201: 0
E202: Knik Arm Bridge (reimbursable from NHS) | H202: =IF($D$201="Yes",7*14.73,0) -> 0 | I202: =IF($D$201="Yes",50,0) -> 0 | J202: =IF($D$201="Yes",50,0) -> 0 | K202: =IF($D$201="Yes",50,0) -> 0 | L202: =IF($D$201="Yes",45,0) -> 0
C203: FALSE | E203: Knik Arm Bridge - Appropriation Bonds | H203: =IF(D201="Yes",18.8,0) -> 0 | I203: =H203 -> 0 | J203: =I203 -> 0 | K203: 0 | L203: 0 | M203: 0 | N203: 0 | O203: 0 | P203: 0 | Q203: =P203 -> 0 | R203: 0 | S203: 0 | T203: 0 | U203: 0 | V203: 0
A204: FALSE | B204: FALSE | C204: =INDEX(A204:B204,0,$A$3) -> FALSE | D204: =IF(C204=TRUE,"Yes","No") -> No | E204: Ambler Road | H204: =IF($D$204="yes",'Ambler and Juneau Road'!D4,0) -> 0 | I204: =IF($D$204="yes",'Ambler and Juneau Road'!E4,0) -> 0 | J204: =IF($D$204="yes",'Ambler and Juneau Road'!F4,0) -> 0 | K204: =IF($D$204="yes",'Ambler and Juneau Road'!G4,0) -> 0 | L204: =IF($D$204="yes",'Ambler and Juneau Road'!H4,0) -> 0 | M204: =IF($D$204="yes",'Ambler and Juneau Road'!I4,0) -> 0 | N204: =IF($D$204="yes",'Ambler and Juneau Road'!J4,0) -> 0 | O204: =IF($D$204="yes",'Ambler and Juneau Road'!K4,0) -> 0 | P204: =IF($D$204="yes",'Ambler and Juneau Road'!L4,0) -> 0 | Q204: =IF($D$204="yes",'Ambler and Juneau Road'!M4,0) -> 0 | R204: =IF($D$204="yes",'Ambler and Juneau Road'!N4,0) -> 0 | S204: =IF($D$204="yes",'Ambler and Juneau Road'!O4,0) -> 0 | T204: =IF($D$204="yes",'Ambler and Juneau Road'!P4,0) -> 0 | U204: =IF($D$204="yes",'Ambler and Juneau Road'!Q4,0) -> 0 | V204: =IF($D$204="yes",'Ambler and Juneau Road'!R4,0) -> 0
A205: FALSE | B205: FALSE | C205: =INDEX(A205:B205,0,$A$3) -> FALSE | D205: =IF(C205=TRUE,"Yes","No") -> No | E205: Juneau Road | H205: =IF($D$205="yes",'Ambler and Juneau Road'!D11,0) -> 0 | I205: =IF($D$205="yes",'Ambler and Juneau Road'!E11,0) -> 0 | J205: =IF($D$205="yes",'Ambler and Juneau Road'!F11,0) -> 0 | K205: =IF($D$205="yes",'Ambler and Juneau Road'!G11,0) -> 0 | L205: =IF($D$205="yes",'Ambler and Juneau Road'!H11,0) -> 0 | M205: =IF($D$205="yes",'Ambler and Juneau Road'!I11,0) -> 0 | N205: =IF($D$205="yes",'Ambler and Juneau Road'!J11,0) -> 0 | O205: =IF($D$205="yes",'Ambler and Juneau Road'!K11,0) -> 0 | P205: =IF($D$205="yes",'Ambler and Juneau Road'!L11,0) -> 0 | Q205: =IF($D$205="yes",'Ambler and Juneau Road'!M11,0) -> 0 | R205: =IF($D$205="yes",'Ambler and Juneau Road'!N11,0) -> 0 | S205: =IF($D$205="yes",'Ambler and Juneau Road'!O11,0) -> 0 | T205: =IF($D$205="yes",'Ambler and Juneau Road'!P11,0) -> 0 | U205: =IF($D$205="yes",'Ambler and Juneau Road'!Q11,0) -> 0 | V205: =IF($D$205="yes",'Ambler and Juneau Road'!R11,0) -> 0
E206: Total Large Project Cash Flows | F206: =SUM(F198:F203)+SUM(F204:F205) -> 67.2 | G206: =SUM(G198:G203)+SUM(G204:G205) -> 124.2551268 | H206: 0 | I206: 0 | J206: 0 | K206: 0 | L206: 0 | M206: 0 | N206: 0 | O206: 0 | P206: 0 | Q206: 0 | R206: 0 | S206: 0 | T206: 0 | U206: 0 | V206: 0
E207: GF Appropriations and Large Projects | F207: =F194+F206 -> 7117.2 | G207: 6102.978527 | H207: 5384.7234 | I207: 5505.879676 | J207: 5629.761969 | K207: 5756.431614 | L207: 5885.951325 | M207: 6018.38523 | N207: 6153.798897 | O207: 6292.259372 | P207: 6433.835208 | Q207: 6578.596501 | R207: 6726.614922 | S207: 6877.963758 | T207: 7032.717942 | U207: 7190.954096 | V207: 7352.750563
E209: Revenue - Surplus / (Shortfall) | F209: =F188-F194-F206 -> -1723.2 | G209: =G188-G194-G206 -> -3748.978527 | H209: =H188-H207 -> -3186.5234 | I209: -2330.979676 | J209: -2389.161969 | K209: -1968.131614 | L209: -1350.751325 | M209: -1583.28523 | N209: -1893.098897 | O209: -2026.359372 | P209: -2215.835208 | Q209: -2524.096501 | R209: -2898.414922 | S209: -3241.463758 | T209: -3548.117942 | U209: -3871.054096 | V209: -4167.950563
F211: FY 2014 | G211: FY 2015 | H211: FY 2016 | I211: FY 2017 | J211: FY 2018 | K211: FY 2019 | L211: FY 2020 | M211: FY 2021 | N211: FY 2022 | O211: FY 2023 | P211: FY 2024 | Q211: FY 2025 | R211: FY 2026 | S211: FY 2027 | T211: FY 2028 | U211: FY 2029 | V211: FY 2030
E212: Reserve Balances ($ in Billions)
E213: Statutory Budget Reserve | G213: 0
E214: Constitutional Budget Reserve Fund | G214: 9010.4
E215: CBRF & SBRF Total After Withdrawal/Contributions | G215: =SUM(G213:G214) -> 9010.4 | H215: =IF(G215+H209<0,0,((G215*($F$227+$F$228)/2)+(((G215+H209)*($F$227+$F$228)/2)+G215+H209))) -> 6167.290103 | I215: =IF(H215+I209<0,0,((H215*($F$227+$F$228)/2)+(((H215+I209)*($F$227+$F$228)/2)+H215+I209))) -> 4067.893779 | J215: 1811.766192 | K215: 0 | L215: 0 | M215: 0 | N215: 0 | O215: 0 | P215: 0 | Q215: 0 | R215: 0 | S215: 0 | T215: 0 | U215: 0 | V215: 0
E216: Permanent Fund Projected Balance | G216: =G220 -> 53664.05426 | H216: =IF($C$15=1,H220,IF($C$15=2,Endowment!N63,Endowment!N45)) -> 56388.41137 | I216: =IF($C$15=1,I220,IF($C$15=2,Endowment!O63,Endowment!O45)) -> 59177.3703 | J216: =IF($C$15=1,J220,IF($C$15=2,Endowment!P63,Endowment!P45)) -> 62112.24628 | K216: =IF($C$15=1,K220,IF($C$15=2,Endowment!Q63,Endowment!Q45)) -> 65284.7716 | L216: =IF($C$15=1,L220,IF($C$15=2,Endowment!R63,Endowment!R45)) -> 68595.98866 | M216: =IF($C$15=1,M220,IF($C$15=2,Endowment!S63,Endowment!S45)) -> 72002.4871 | N216: =IF($C$15=1,N220,IF($C$15=2,Endowment!T63,Endowment!T45)) -> 75502.32286 | O216: =IF($C$15=1,O220,IF($C$15=2,Endowment!U63,Endowment!U45)) -> 79124.52332 | P216: =IF($C$15=1,P220,IF($C$15=2,Endowment!V63,Endowment!V45)) -> 82873.1188 | Q216: =IF($C$15=1,Q220,IF($C$15=2,Endowment!W63,Endowment!W45)) -> 86721.40058 | R216: =IF($C$15=1,R220,IF($C$15=2,Endowment!X63,Endowment!X45)) -> 90696.59264 | S216: =IF($C$15=1,S220,IF($C$15=2,Endowment!Y63,Endowment!Y45)) -> 94780.1494 | T216: =IF($C$15=1,T220,IF($C$15=2,Endowment!Z63,Endowment!Z45)) -> 99003.99779 | U216: =IF($C$15=1,U220,IF($C$15=2,Endowment!AA63,Endowment!AA45)) -> 103376.8275 | V216: =IF($C$15=1,V220,IF($C$15=2,Endowment!AB63,Endowment!AB45)) -> 107905.819
E217: Permanent Fund Spendable Balance | G217: =IF($D$15="No",0,G221) -> 6846.206849 | H217: =IF($D$15="No",0,H221) -> 7353.857883 | I217: 7815.133502 | J217: 8356.302554 | K217: 9056.246876 | L217: 9821.786233 | M217: 10632.5593 | N217: 11401.84915 | O217: 12043.52875 | P217: 13379.54402 | Q217: 14401.29844 | R217: 14761.3309 | S217: 15130.36417 | T217: 15508.62327 | U217: 15896.33886 | V217: 16293.74733
E218: Remaining Permanent Fund Spendable Balance | G218: =IF(C15=1,G221,0) -> 6846.206849 | H218: =IF($C$15=1,MAX(IF(H215>0,H221-G221+G218,H221-G221+G218+IF(H209<0,H209,0)),0),0) -> 7353.857883 | I218: =IF('Summary data'!M339>0,0,IF($C$15=1,MAX(IF(I215>0,I221-H221+H218,I221-H221+H218+IF(I209<0,I209,0)),0),0)) -> 7815.133502 | J218: =IF('Summary data'!N339>0,0,IF($C$15=1,MAX(IF(J215>0,J221-I221+I218,J221-I221+I218+IF(J209<0,J209,0)),0),0)) -> 8356.302554 | K218: =IF('Summary data'!O339>0,0,IF($C$15=1,MAX(IF(K215>0,K221-J221+J218,K221-J221+J218+IF(K209<0,K209,0)),0),0)) -> 7088.115263 | L218: =IF('Summary data'!P339>0,0,IF($C$15=1,MAX(IF(L215>0,L221-K221+K218,L221-K221+K218+IF(L209<0,L209,0)),0),0)) -> 6502.903295 | M218: =IF('Summary data'!Q339>0,0,IF($C$15=1,MAX(IF(M215>0,M221-L221+L218,M221-L221+L218+IF(M209<0,M209,0)),0),0)) -> 5730.391131 | N218: =IF('Summary data'!R339>0,0,IF($C$15=1,MAX(IF(N215>0,N221-M221+M218,N221-M221+M218+IF(N209<0,N209,0)),0),0)) -> 4606.582082 | O218: =IF('Summary data'!S339>0,0,IF($C$15=1,MAX(IF(O215>0,O221-N221+N218,O221-N221+N218+IF(O209<0,O209,0)),0),0)) -> 3221.90231 | P218: =IF('Summary data'!T339>0,0,IF($C$15=1,MAX(IF(P215>0,P221-O221+O218,P221-O221+O218+IF(P209<0,P209,0)),0),0)) -> 2342.082369 | Q218: =IF('Summary data'!U339>0,0,IF($C$15=1,MAX(IF(Q215>0,Q221-P221+P218,Q221-P221+P218+IF(Q209<0,Q209,0)),0),0)) -> 839.740289 | R218: =IF('Summary data'!V339>0,0,IF($C$15=1,MAX(IF(R215>0,R221-Q221+Q218,R221-Q221+Q218+IF(R209<0,R209,0)),0),0)) -> 0 | S218: =IF('Summary data'!W339>0,0,IF($C$15=1,MAX(IF(S215>0,S221-R221+R218,S221-R221+R218+IF(S209<0,S209,0)),0),0)) -> 0 | T218: =IF('Summary data'!X339>0,0,IF($C$15=1,MAX(IF(T215>0,T221-S221+S218,T221-S221+S218+IF(T209<0,T209,0)),0),0)) -> 0 | U218: =IF('Summary data'!Y339>0,0,IF($C$15=1,MAX(IF(U215>0,U221-T221+T218,U221-T221+T218+IF(U209<0,U209,0)),0),0)) -> 0 | V218: =IF('Summary data'!Z339>0,0,IF($C$15=1,MAX(IF(V215>0,V221-U221+U218,V221-U221+U218+IF(V209<0,V209,0)),0),0)) -> 0
E219: Remaining Permanent Fund Balance | G219: =G216-G217+G218-IF(G217=0,G218,0) -> 53664.05426 | H219: =H216-H217+H218-IF(H217=0,H218,0) -> 56388.41137 | I219: =I216-I217+I218-IF(I217=0,I218,0) -> 59177.3703 | J219: 62112.24628 | K219: 63316.63999 | L219: 65277.10572 | M219: 67100.31893 | N219: 68707.05579 | O219: 70302.89688 | P219: 71835.65715 | Q219: 73159.84243 | R219: 75935.26174 | S219: 79649.78524 | T219: 83495.37452 | U219: 87480.48864 | V219: =V216-V217+V218-IF(V217=0,V218,0) -> 91612.07167
G220: ='Extended Forecast'!AQ21 -> 53664.05426 | H220: ='Extended Forecast'!AQ22 -> 56388.41137 | I220: ='Extended Forecast'!AQ23 -> 59177.3703 | J220: ='Extended Forecast'!AQ24 -> 62112.24628 | K220: ='Extended Forecast'!AQ25 -> 65284.7716 | L220: ='Extended Forecast'!AQ26 -> 68595.98866 | M220: ='Extended Forecast'!AQ27 -> 72002.4871 | N220: ='Extended Forecast'!AQ28 -> 75502.32286 | O220: ='Extended Forecast'!AQ29 -> 79124.52332 | P220: ='Extended Forecast'!AQ30 -> 82873.1188 | Q220: ='Extended Forecast'!AQ31 -> 86721.40058 | R220: ='Extended Forecast'!AQ32 -> 90696.59264 | S220: ='Extended Forecast'!AQ33 -> 94780.1494 | T220: ='Extended Forecast'!AQ34 -> 99003.99779 | U220: ='Extended Forecast'!AQ35 -> 103376.8275 | V220: ='Extended Forecast'!AQ36 -> 107905.819
G221: 6846.206849 | H221: 7353.857883 | I221: 7815.133502 | J221: 8356.302554 | K221: 9056.246876 | L221: 9821.786233 | M221: 10632.5593 | N221: 11401.84915 | O221: 12043.52875 | P221: 13379.54402 | Q221: 14401.29844 | R221: =Q221*1.025 -> 14761.3309 | S221: =R221*1.025 -> 15130.36417 | T221: =S221*1.025 -> 15508.62327 | U221: =T221*1.025 -> 15896.33886 | V221: =U221*1.025 -> 16293.74733
E223: Demand on Permanent Fund / New Taxes | H223: =IF(H215=0,G215+H209,0) -> 0 | I223: 0 | J223: 0 | K223: -156.3654213 | L223: -1350.751325 | M223: -1583.28523 | N223: -1893.098897 | O223: -2026.359372 | P223: -2215.835208 | Q223: =IF(Q215=0,P215+Q209,0) -> -2524.096501 | R223: -2898.414922 | S223: -3241.463758 | T223: -3548.117942 | U223: -3871.054096 | V223: -4167.950563
E224: Deficit Debt Issuance After PF Spendable Balance = 0
E227: Inflation | F227: ='All Rev & Projects'!C239 -> 0.0225 | G227: =G215*(1+F227+F228) -> 9427.58152 | H227: =G227+$H$209 -> 6241.05812
E228: Growth(real) | F228: 0.0238 | H228: =(G215+H209)*(1+F228+F227) -> 6093.522087
E231: AK LNG Project Cost
E232: AKLNG - 25% equity, TC, no buyback | F232: 7 | G232: 34.25512682 | H232: 55.80304172 | I232: 70.61318558 | J232: 74.30597316 | K232: 58.27355602 | L232: 316.1923312 | M232: 527.4602117 | N232: 626.5804953 | O232: 623.6233069 | P232: 824.9234497 | Q232: 815.3472942 | R232: 201.5923728 | S232: 77.15938211 | T232: 36.37167994 | U232: 0 | V232: 0
E233: AKLNG - 25% equity, TC, Dec 15 with buyback | F233: 7 | G233: 71.69446353 | H233: 62.59198841 | I233: 80.43340483 | J233: 84.19593197 | K233: 65.15721038 | L233: 401.0824794 | M233: 665.4132223 | N233: 825.2722713 | O233: 821.5738052 | P233: 955.9276906 | Q233: 873.3643617 | R233: 201.5923728 | S233: 77.15938211 | T233: 36.37167994 | U233: 0 | V233: 0
E234: AKLNG - 25% equity, TC, Dec 15 TC removal | F234: 7 | G234: 147.916266 | H234: 112.3775975 | I234: 152.448346 | J234: 156.7222966 | K234: 115.6373423 | L234: 528.4177018 | M234: 872.3427383 | N234: 1123.309935 | O234: 1118.499553 | P234: 1152.434052 | Q234: 960.3899629 | R234: 201.5923728 | S234: 77.15938211 | T234: 36.37167994 | U234: 0 | V234: 0
E235: AKLNG - 25% equity, TC, Dec 15 TC removal
E236: AKLNG - 25% equity, TC, Dec 15 TC removal | F236: 60.2 | G236: 90 | H236: 80 | I236: 80 | J236: 90.4 | K236: 241.7 | L236: 329.6 | M236: 742.6 | N236: 649.6 | O236: 508.4 | P236: 702.8
A238: 1 | B238: 1 | C238: =INDEX(A238:B238,0,$A$3) -> 1 | D238: Oil Forecast
A239: 10 | B239: 10 | C239: =INDEX(A239:B239,0,$A$3)*0.0025-0.0025 -> 0.0225 | D239: Inflation
G241: =IF(G218 = 0,NA(),G218) -> 6846.206849 | H241: =IF(H218 = 0,NA(),H218) -> 7353.857883 | I241: 7815.133502 | J241: 8356.302554 | K241: 7088.115263 | L241: 6502.903295 | M241: 5730.391131 | N241: 4606.582082 | O241: 3221.90231 | P241: =IF(P218 = 0,NA(),P218) -> 2342.082369 | Q241: 839.740289 | T241: =IF(T218 = 0,NA(),T218) -> 
F245: Revenue | G245: =ROUND((SUM(H245:V245))/1000,2) -> 0 | H245: =ROUND(H188-(H8),0) -> 0 | I245: 0 | J245: 0 | K245: 0 | L245: 0 | M245: 0 | N245: 0 | O245: 0 | P245: 0 | Q245: 0 | R245: 0 | S245: 0 | T245: 0 | U245: 0 | V245: 0
F248: Budget | G248: =5978.7234+124.3 -> 6103.0234 | H248: ='Budget Sensitivity'!F35/1000 -> 5384.7234 | I248: =H248*(1+$F$227) -> 5505.879677 | J248: =I248*(1+$F$227) -> 5629.761969 | K248: 5756.431614 | L248: 5885.951325 | M248: 6018.38523 | N248: 6153.798897 | O248: 6292.259372 | P248: 6433.835208 | Q248: 6578.596501 | R248: 6726.614922 | S248: 6877.963758 | T248: 7032.717942 | U248: 7190.954096 | V248: 7352.750563
G249: =ROUND((SUM(H249:V249))/1000,2) -> 0 | H249: =ROUND(H248-H194-H206,0) -> 0 | I249: 0 | J249: 0 | K249: 0 | L249: 0 | M249: 0 | N249: 0 | O249: 0 | P249: 0 | Q249: 0 | R249: 0 | S249: 0 | T249: 0 | U249: 0 | V249: 0
G250: =SUM(H249:V249) -> 0
E253: AKLNG Project Rev
E254: =E232 -> AKLNG - 25% equity, TC, no buyback | G254: 0.1963237745 | H254: 0.4535771164 | I254: 0.5900728054 | J254: 0.8985168775 | K254: 1.108079864 | L254: 103.9495727 | M254: 169.4879502 | N254: 234.2026059 | O254: 247.8745917 | P254: 233.9882502 | Q254: 213.9568126 | R254: 2663.256864 | S254: 3014.209535 | T254: 2981.842194 | U254: 2949.134865 | V254: 3004.01901
E255: =E233 -> AKLNG - 25% equity, TC, Dec 15 with buyback | G255: 0.1963237745 | H255: 0.4535771164 | I255: 0.5900728054 | J255: 0.8985168775 | K255: 1.108079864 | L255: 103.9495727 | M255: 169.4879502 | N255: 234.2026059 | O255: 247.8745917 | P255: 233.9882502 | Q255: 213.9568126 | R255: 2830.999772 | S255: 3189.541632 | T255: 3160.075146 | U255: 3130.827138 | V255: 3188.336816
E256: =E234 -> AKLNG - 25% equity, TC, Dec 15 TC removal | G256: 0.1963237745 | H256: 0.4535771164 | I256: 0.5900728054 | J256: 0.8985168775 | K256: 1.108079864 | L256: 103.9495727 | M256: 169.4879502 | N256: 234.2026059 | O256: 247.8745917 | P256: 233.9882502 | Q256: 213.9568126 | R256: 3272.274617 | S256: 3619.302555 | T256: 3593.404063 | U256: 3568.513959 | V256: 3629.153934
E274: Securitization Revenues | G274: 1 | H274: 2 | I274: 3 | J274: 4 | K274: 5 | L274: 6 | M274: 7 | N274: 8 | O274: 9 | P274: 10 | Q274: 11 | R274: 12 | S274: 13 | T274: 14 | U274: 15 | V274: 16
... 13 more rows

Sheet Summary
C28: TYPE | D28: SOURCE | E28: REVENUE ADDED | F28: ECONOMIC IMPACTS
A29: =IFERROR(MATCH(ROW(A29)-ROW($A$29)+1,'Summary data'!A:A,0),"") ->  | C29: =IFERROR(INDEX('Summary data'!G:G,Summary!A29),"") ->  | D29: =IFERROR(INDEX('Summary data'!H:H,Summary!A29),"") ->  | E29: =IFERROR(INDEX('Summary data'!I:I,Summary!A29)*1000000,"") ->  | F29: =IFERROR(INDEX('Summary data'!J:J,Summary!A29),"") -> 
A30: =IFERROR(MATCH(ROW(A30)-ROW($A$29)+1,'Summary data'!A:A,0),"") ->  | C30: =IFERROR(INDEX('Summary data'!G:G,Summary!A30),"") ->  | D30: =IFERROR(INDEX('Summary data'!H:H,Summary!A30),"") ->  | E30: =IFERROR(INDEX('Summary data'!I:I,Summary!A30)*1000000,"") ->  | F30: =IFERROR(INDEX('Summary data'!J:J,Summary!A30),"") -> 
A31: =IFERROR(MATCH(ROW(A31)-ROW($A$29)+1,'Summary data'!A:A,0),"") ->  | C31: =IFERROR(INDEX('Summary data'!G:G,Summary!A31),"") ->  | D31: =IFERROR(INDEX('Summary data'!H:H,Summary!A31),"") ->  | E31: =IFERROR(INDEX('Summary data'!I:I,Summary!A31)*1000000,"") ->  | F31: =IFERROR(INDEX('Summary data'!J:J,Summary!A31),"") -> 
A32: =IFERROR(MATCH(ROW(A32)-ROW($A$29)+1,'Summary data'!A:A,0),"") ->  | C32: =IFERROR(INDEX('Summary data'!G:G,Summary!A32),"") ->  | D32: =IFERROR(INDEX('Summary data'!H:H,Summary!A32),"") ->  | E32: =IFERROR(INDEX('Summary data'!I:I,Summary!A32)*1000000,"") ->  | F32: =IFERROR(INDEX('Summary data'!J:J,Summary!A32),"") -> 
A33: =IFERROR(MATCH(ROW(A33)-ROW($A$29)+1,'Summary data'!A:A,0),"") ->  | C33: =IFERROR(INDEX('Summary data'!G:G,Summary!A33),"") ->  | D33: =IFERROR(INDEX('Summary data'!H:H,Summary!A33),"") ->  | E33: =IFERROR(INDEX('Summary data'!I:I,Summary!A33)*1000000,"") ->  | F33: =IFERROR(INDEX('Summary data'!J:J,Summary!A33),"") -> 
A34: =IFERROR(MATCH(ROW(A34)-ROW($A$29)+1,'Summary data'!A:A,0),"") ->  | C34: =IFERROR(INDEX('Summary data'!G:G,Summary!A34),"") ->  | D34: =IFERROR(INDEX('Summary data'!H:H,Summary!A34),"") ->  | E34: =IFERROR(INDEX('Summary data'!I:I,Summary!A34)*1000000,"") ->  | F34: =IFERROR(INDEX('Summary data'!J:J,Summary!A34),"") -> 
A35: =IFERROR(MATCH(ROW(A35)-ROW($A$29)+1,'Summary data'!A:A,0),"") ->  | C35: =IFERROR(INDEX('Summary data'!G:G,Summary!A35),"") ->  | D35: =IFERROR(INDEX('Summary data'!H:H,Summary!A35),"") ->  | E35: =IFERROR(INDEX('Summary data'!I:I,Summary!A35)*1000000,"") ->  | F35: =IFERROR(INDEX('Summary data'!J:J,Summary!A35),"") -> 
A36: =IFERROR(MATCH(ROW(A36)-ROW($A$29)+1,'Summary data'!A:A,0),"") ->  | C36: =IFERROR(INDEX('Summary data'!G:G,Summary!A36),"") ->  | D36: =IFERROR(INDEX('Summary data'!H:H,Summary!A36),"") ->  | E36: =IFERROR(INDEX('Summary data'!I:I,Summary!A36)*1000000,"") ->  | F36: =IFERROR(INDEX('Summary data'!J:J,Summary!A36),"") -> 
A37: =IFERROR(MATCH(ROW(A37)-ROW($A$29)+1,'Summary data'!A:A,0),"") ->  | C37: =IFERROR(INDEX('Summary data'!G:G,Summary!A37),"") ->  | D37: =IFERROR(INDEX('Summary data'!H:H,Summary!A37),"") ->  | E37: =IFERROR(INDEX('Summary data'!I:I,Summary!A37)*1000000,"") ->  | F37: =IFERROR(INDEX('Summary data'!J:J,Summary!A37),"") -> 
A38: =IFERROR(MATCH(ROW(A38)-ROW($A$29)+1,'Summary data'!A:A,0),"") ->  | C38: =IFERROR(INDEX('Summary data'!G:G,Summary!A38),"") ->  | D38: =IFERROR(INDEX('Summary data'!H:H,Summary!A38),"") ->  | E38: =IFERROR(INDEX('Summary data'!I:I,Summary!A38)*1000000,"") ->  | F38: =IFERROR(INDEX('Summary data'!J:J,Summary!A38),"") -> 
A39: =IFERROR(MATCH(ROW(A39)-ROW($A$29)+1,'Summary data'!A:A,0),"") ->  | C39: =IFERROR(INDEX('Summary data'!G:G,Summary!A39),"") ->  | D39: =IFERROR(INDEX('Summary data'!H:H,Summary!A39),"") ->  | E39: =IFERROR(INDEX('Summary data'!I:I,Summary!A39)*1000000,"") ->  | F39: =IFERROR(INDEX('Summary data'!J:J,Summary!A39),"") -> 
A40: =IFERROR(MATCH(ROW(A40)-ROW($A$29)+1,'Summary data'!A:A,0),"") ->  | C40: =IFERROR(INDEX('Summary data'!G:G,Summary!A40),"") ->  | D40: =IFERROR(INDEX('Summary data'!H:H,Summary!A40),"") ->  | E40: =IFERROR(INDEX('Summary data'!I:I,Summary!A40)*1000000,"") ->  | F40: =IFERROR(INDEX('Summary data'!J:J,Summary!A40),"") -> 
A41: =IFERROR(MATCH(ROW(A41)-ROW($A$29)+1,'Summary data'!A:A,0),"") ->  | C41: =IFERROR(INDEX('Summary data'!G:G,Summary!A41),"") ->  | D41: =IFERROR(INDEX('Summary data'!H:H,Summary!A41),"") ->  | E41: =IFERROR(INDEX('Summary data'!I:I,Summary!A41)*1000000,"") ->  | F41: =IFERROR(INDEX('Summary data'!J:J,Summary!A41),"") -> 
A42: =IFERROR(MATCH(ROW(A42)-ROW($A$29)+1,'Summary data'!A:A,0),"") ->  | C42: =IFERROR(INDEX('Summary data'!G:G,Summary!A42),"") ->  | D42: =IFERROR(INDEX('Summary data'!H:H,Summary!A42),"") ->  | E42: =IFERROR(INDEX('Summary data'!I:I,Summary!A42)*1000000,"") ->  | F42: =IFERROR(INDEX('Summary data'!J:J,Summary!A42),"") -> 
A43: =IFERROR(MATCH(ROW(A43)-ROW($A$29)+1,'Summary data'!A:A,0),"") ->  | C43: =IFERROR(INDEX('Summary data'!G:G,Summary!A43),"") ->  | D43: =IFERROR(INDEX('Summary data'!H:H,Summary!A43),"") ->  | E43: =IFERROR(INDEX('Summary data'!I:I,Summary!A43)*1000000,"") ->  | F43: =IFERROR(INDEX('Summary data'!J:J,Summary!A43),"") -> 
A44: =IFERROR(MATCH(ROW(A44)-ROW($A$29)+1,'Summary data'!A:A,0),"") ->  | C44: =IFERROR(INDEX('Summary data'!G:G,Summary!A44),"") ->  | D44: =IFERROR(INDEX('Summary data'!H:H,Summary!A44),"") ->  | E44: =IFERROR(INDEX('Summary data'!I:I,Summary!A44)*1000000,"") ->  | F44: =IFERROR(INDEX('Summary data'!J:J,Summary!A44),"") -> 
A45: =IFERROR(MATCH(ROW(A45)-ROW($A$29)+1,'Summary data'!A:A,0),"") ->  | C45: =IFERROR(INDEX('Summary data'!G:G,Summary!A45),"") ->  | D45: =IFERROR(INDEX('Summary data'!H:H,Summary!A45),"") ->  | E45: =IFERROR(INDEX('Summary data'!I:I,Summary!A45)*1000000,"") ->  | F45: =IFERROR(INDEX('Summary data'!J:J,Summary!A45),"") -> 
A46: =IFERROR(MATCH(ROW(A46)-ROW($A$29)+1,'Summary data'!A:A,0),"") ->  | C46: =IFERROR(INDEX('Summary data'!G:G,Summary!A46),"") ->  | D46: =IFERROR(INDEX('Summary data'!H:H,Summary!A46),"") ->  | E46: =IFERROR(INDEX('Summary data'!I:I,Summary!A46)*1000000,"") ->  | F46: =IFERROR(INDEX('Summary data'!J:J,Summary!A46),"") -> 
A47: =IFERROR(MATCH(ROW(A47)-ROW($A$29)+1,'Summary data'!A:A,0),"") ->  | C47: =IFERROR(INDEX('Summary data'!G:G,Summary!A47),"") ->  | D47: =IFERROR(INDEX('Summary data'!H:H,Summary!A47),"") ->  | E47: =IFERROR(INDEX('Summary data'!I:I,Summary!A47)*1000000,"") ->  | F47: =IFERROR(INDEX('Summary data'!J:J,Summary!A47),"") -> 
A48: =IFERROR(MATCH(ROW(A48)-ROW($A$29)+1,'Summary data'!A:A,0),"") ->  | C48: =IFERROR(INDEX('Summary data'!G:G,Summary!A48),"") ->  | D48: =IFERROR(INDEX('Summary data'!H:H,Summary!A48),"") ->  | E48: =IFERROR(INDEX('Summary data'!I:I,Summary!A48)*1000000,"") ->  | F48: =IFERROR(INDEX('Summary data'!J:J,Summary!A48),"") -> 
A49: =IFERROR(MATCH(ROW(A49)-ROW($A$29)+1,'Summary data'!A:A,0),"") ->  | C49: =IFERROR(INDEX('Summary data'!G:G,Summary!A49),"") ->  | D49: =IFERROR(INDEX('Summary data'!H:H,Summary!A49),"") ->  | E49: =IFERROR(INDEX('Summary data'!I:I,Summary!A49)*1000000,"") ->  | F49: =IFERROR(INDEX('Summary data'!J:J,Summary!A49),"") -> 
A50: =IFERROR(MATCH(ROW(A50)-ROW($A$29)+1,'Summary data'!A:A,0),"") ->  | C50: =IFERROR(INDEX('Summary data'!G:G,Summary!A50),"") ->  | D50: =IFERROR(INDEX('Summary data'!H:H,Summary!A50),"") ->  | E50: =IFERROR(INDEX('Summary data'!I:I,Summary!A50)*1000000,"") ->  | F50: =IFERROR(INDEX('Summary data'!J:J,Summary!A50),"") -> 
A51: =IFERROR(MATCH(ROW(A51)-ROW($A$29)+1,'Summary data'!A:A,0),"") ->  | C51: =IFERROR(INDEX('Summary data'!G:G,Summary!A51),"") ->  | D51: =IFERROR(INDEX('Summary data'!H:H,Summary!A51),"") ->  | E51: =IFERROR(INDEX('Summary data'!I:I,Summary!A51)*1000000,"") ->  | F51: =IFERROR(INDEX('Summary data'!J:J,Summary!A51),"") -> 
A52: =IFERROR(MATCH(ROW(A52)-ROW($A$29)+1,'Summary data'!A:A,0),"") ->  | C52: =IFERROR(INDEX('Summary data'!G:G,Summary!A52),"") ->  | D52: =IFERROR(INDEX('Summary data'!H:H,Summary!A52),"") ->  | E52: =IFERROR(INDEX('Summary data'!I:I,Summary!A52)*1000000,"") ->  | F52: =IFERROR(INDEX('Summary data'!J:J,Summary!A52),"") -> 
A53: =IFERROR(MATCH(ROW(A53)-ROW($A$29)+1,'Summary data'!A:A,0),"") ->  | C53: =IFERROR(INDEX('Summary data'!G:G,Summary!A53),"") ->  | D53: =IFERROR(INDEX('Summary data'!H:H,Summary!A53),"") ->  | E53: =IFERROR(INDEX('Summary data'!I:I,Summary!A53)*1000000,"") ->  | F53: =IFERROR(INDEX('Summary data'!J:J,Summary!A53),"") -> 
A54: =IFERROR(MATCH(ROW(A54)-ROW($A$29)+1,'Summary data'!A:A,0),"") ->  | C54: =IFERROR(INDEX('Summary data'!G:G,Summary!A54),"") ->  | D54: =IFERROR(INDEX('Summary data'!H:H,Summary!A54),"") ->  | E54: =IFERROR(INDEX('Summary data'!I:I,Summary!A54)*1000000,"") ->  | F54: =IFERROR(INDEX('Summary data'!J:J,Summary!A54),"") -> 
A55: =IFERROR(MATCH(ROW(A55)-ROW($A$29)+1,'Summary data'!A:A,0),"") ->  | C55: =IFERROR(INDEX('Summary data'!G:G,Summary!A55),"") ->  | D55: =IFERROR(INDEX('Summary data'!H:H,Summary!A55),"") ->  | E55: =IFERROR(INDEX('Summary data'!I:I,Summary!A55)*1000000,"") ->  | F55: =IFERROR(INDEX('Summary data'!J:J,Summary!A55),"") -> 
A56: =IFERROR(MATCH(ROW(A56)-ROW($A$29)+1,'Summary data'!A:A,0),"") ->  | C56: =IFERROR(INDEX('Summary data'!G:G,Summary!A56),"") ->  | D56: =IFERROR(INDEX('Summary data'!H:H,Summary!A56),"") ->  | E56: =IFERROR(INDEX('Summary data'!I:I,Summary!A56)*1000000,"") ->  | F56: =IFERROR(INDEX('Summary data'!J:J,Summary!A56),"") -> 
A57: =IFERROR(MATCH(ROW(A57)-ROW($A$29)+1,'Summary data'!A:A,0),"") ->  | C57: =IFERROR(INDEX('Summary data'!G:G,Summary!A57),"") ->  | D57: =IFERROR(INDEX('Summary data'!H:H,Summary!A57),"") ->  | E57: =IFERROR(INDEX('Summary data'!I:I,Summary!A57)*1000000,"") ->  | F57: =IFERROR(INDEX('Summary data'!J:J,Summary!A57),"") -> 
A58: =IFERROR(MATCH(ROW(A58)-ROW($A$29)+1,'Summary data'!A:A,0),"") ->  | C58: =IFERROR(INDEX('Summary data'!G:G,Summary!A58),"") ->  | D58: =IFERROR(INDEX('Summary data'!H:H,Summary!A58),"") ->  | E58: =IFERROR(INDEX('Summary data'!I:I,Summary!A58)*1000000,"") ->  | F58: =IFERROR(INDEX('Summary data'!J:J,Summary!A58),"") -> 
A59: =IFERROR(MATCH(ROW(A59)-ROW($A$29)+1,'Summary data'!A:A,0),"") ->  | C59: =IFERROR(INDEX('Summary data'!G:G,Summary!A59),"") ->  | D59: =IFERROR(INDEX('Summary data'!H:H,Summary!A59),"") ->  | E59: =IFERROR(INDEX('Summary data'!I:I,Summary!A59)*1000000,"") ->  | F59: =IFERROR(INDEX('Summary data'!J:J,Summary!A59),"") -> 
A60: =IFERROR(MATCH(ROW(A60)-ROW($A$29)+1,'Summary data'!A:A,0),"") ->  | C60: =IFERROR(INDEX('Summary data'!G:G,Summary!A60),"") ->  | D60: =IFERROR(INDEX('Summary data'!H:H,Summary!A60),"") ->  | E60: =IFERROR(INDEX('Summary data'!I:I,Summary!A60)*1000000,"") ->  | F60: =IFERROR(INDEX('Summary data'!J:J,Summary!A60),"") -> 
A61: =IFERROR(MATCH(ROW(A61)-ROW($A$29)+1,'Summary data'!A:A,0),"") ->  | C61: =IFERROR(INDEX('Summary data'!G:G,Summary!A61),"") ->  | D61: =IFERROR(INDEX('Summary data'!H:H,Summary!A61),"") ->  | E61: =IFERROR(INDEX('Summary data'!I:I,Summary!A61)*1000000,"") ->  | F61: =IFERROR(INDEX('Summary data'!J:J,Summary!A61),"") -> 
A62: =IFERROR(MATCH(ROW(A62)-ROW($A$29)+1,'Summary data'!A:A,0),"") ->  | C62: =IFERROR(INDEX('Summary data'!G:G,Summary!A62),"") ->  | D62: =IFERROR(INDEX('Summary data'!H:H,Summary!A62),"") ->  | E62: =IFERROR(INDEX('Summary data'!I:I,Summary!A62)*1000000,"") ->  | F62: =IFERROR(INDEX('Summary data'!J:J,Summary!A62),"") -> 
A63: =IFERROR(MATCH(ROW(A63)-ROW($A$29)+1,'Summary data'!A:A,0),"") ->  | C63: =IFERROR(INDEX('Summary data'!G:G,Summary!A63),"") ->  | D63: =IFERROR(INDEX('Summary data'!H:H,Summary!A63),"") ->  | E63: =IFERROR(INDEX('Summary data'!I:I,Summary!A63)*1000000,"") ->  | F63: =IFERROR(INDEX('Summary data'!J:J,Summary!A63),"") -> 
A64: =IFERROR(MATCH(ROW(A64)-ROW($A$29)+1,'Summary data'!A:A,0),"") ->  | C64: =IFERROR(INDEX('Summary data'!G:G,Summary!A64),"") ->  | D64: =IFERROR(INDEX('Summary data'!H:H,Summary!A64),"") ->  | E64: =IFERROR(INDEX('Summary data'!I:I,Summary!A64)*1000000,"") ->  | F64: =IFERROR(INDEX('Summary data'!J:J,Summary!A64),"") -> 
A65: =IFERROR(MATCH(ROW(A65)-ROW($A$29)+1,'Summary data'!A:A,0),"") ->  | C65: =IFERROR(INDEX('Summary data'!G:G,Summary!A65),"") ->  | D65: =IFERROR(INDEX('Summary data'!H:H,Summary!A65),"") ->  | E65: =IFERROR(INDEX('Summary data'!I:I,Summary!A65)*1000000,"") ->  | F65: =IFERROR(INDEX('Summary data'!J:J,Summary!A65),"") -> 
A66: =IFERROR(MATCH(ROW(A66)-ROW($A$29)+1,'Summary data'!A:A,0),"") ->  | C66: =IFERROR(INDEX('Summary data'!G:G,Summary!A66),"") ->  | D66: =IFERROR(INDEX('Summary data'!H:H,Summary!A66),"") ->  | E66: =IFERROR(INDEX('Summary data'!I:I,Summary!A66)*1000000,"") ->  | F66: =IFERROR(INDEX('Summary data'!J:J,Summary!A66),"") -> 
A67: =IFERROR(MATCH(ROW(A67)-ROW($A$29)+1,'Summary data'!A:A,0),"") ->  | C67: =IFERROR(INDEX('Summary data'!G:G,Summary!A67),"") ->  | D67: =IFERROR(INDEX('Summary data'!H:H,Summary!A67),"") ->  | E67: =IFERROR(INDEX('Summary data'!I:I,Summary!A67)*1000000,"") ->  | F67: =IFERROR(INDEX('Summary data'!J:J,Summary!A67),"") -> 
A68: =IFERROR(MATCH(ROW(A68)-ROW($A$29)+1,'Summary data'!A:A,0),"") ->  | C68: =IFERROR(INDEX('Summary data'!G:G,Summary!A68),"") ->  | D68: =IFERROR(INDEX('Summary data'!H:H,Summary!A68),"") ->  | E68: =IFERROR(INDEX('Summary data'!I:I,Summary!A68)*1000000,"") ->  | F68: =IFERROR(INDEX('Summary data'!J:J,Summary!A68),"") -> 
A69: =IFERROR(MATCH(ROW(A69)-ROW($A$29)+1,'Summary data'!A:A,0),"") ->  | C69: =IFERROR(INDEX('Summary data'!G:G,Summary!A69),"") ->  | D69: =IFERROR(INDEX('Summary data'!H:H,Summary!A69),"") ->  | E69: =IFERROR(INDEX('Summary data'!I:I,Summary!A69)*1000000,"") ->  | F69: =IFERROR(INDEX('Summary data'!J:J,Summary!A69),"") -> 
A70: =IFERROR(MATCH(ROW(A70)-ROW($A$29)+1,'Summary data'!A:A,0),"") ->  | C70: =IFERROR(INDEX('Summary data'!G:G,Summary!A70),"") ->  | D70: =IFERROR(INDEX('Summary data'!H:H,Summary!A70),"") ->  | E70: =IFERROR(INDEX('Summary data'!I:I,Summary!A70)*1000000,"") ->  | F70: =IFERROR(INDEX('Summary data'!J:J,Summary!A70),"") -> 
A71: =IFERROR(MATCH(ROW(A71)-ROW($A$29)+1,'Summary data'!A:A,0),"") ->  | C71: =IFERROR(INDEX('Summary data'!G:G,Summary!A71),"") ->  | D71: =IFERROR(INDEX('Summary data'!H:H,Summary!A71),"") ->  | E71: =IFERROR(INDEX('Summary data'!I:I,Summary!A71)*1000000,"") ->  | F71: =IFERROR(INDEX('Summary data'!J:J,Summary!A71),"") -> 
A72: =IFERROR(MATCH(ROW(A72)-ROW($A$29)+1,'Summary data'!A:A,0),"") ->  | C72: =IFERROR(INDEX('Summary data'!G:G,Summary!A72),"") ->  | D72: =IFERROR(INDEX('Summary data'!H:H,Summary!A72),"") ->  | E72: =IFERROR(INDEX('Summary data'!I:I,Summary!A72)*1000000,"") ->  | F72: =IFERROR(INDEX('Summary data'!J:J,Summary!A72),"") -> 
A73: =IFERROR(MATCH(ROW(A73)-ROW($A$29)+1,'Summary data'!A:A,0),"") ->  | C73: =IFERROR(INDEX('Summary data'!G:G,Summary!A73),"") ->  | D73: =IFERROR(INDEX('Summary data'!H:H,Summary!A73),"") ->  | E73: =IFERROR(INDEX('Summary data'!I:I,Summary!A73)*1000000,"") ->  | F73: =IFERROR(INDEX('Summary data'!J:J,Summary!A73),"") -> 
A74: =IFERROR(MATCH(ROW(A74)-ROW($A$29)+1,'Summary data'!A:A,0),"") ->  | C74: =IFERROR(INDEX('Summary data'!G:G,Summary!A74),"") ->  | D74: =IFERROR(INDEX('Summary data'!H:H,Summary!A74),"") ->  | E74: =IFERROR(INDEX('Summary data'!I:I,Summary!A74)*1000000,"") ->  | F74: =IFERROR(INDEX('Summary data'!J:J,Summary!A74),"") -> 
A75: =IFERROR(MATCH(ROW(A75)-ROW($A$29)+1,'Summary data'!A:A,0),"") ->  | C75: =IFERROR(INDEX('Summary data'!G:G,Summary!A75),"") ->  | D75: =IFERROR(INDEX('Summary data'!H:H,Summary!A75),"") ->  | E75: =IFERROR(INDEX('Summary data'!I:I,Summary!A75)*1000000,"") ->  | F75: =IFERROR(INDEX('Summary data'!J:J,Summary!A75),"") -> 
A76: =IFERROR(MATCH(ROW(A76)-ROW($A$29)+1,'Summary data'!A:A,0),"") ->  | C76: =IFERROR(INDEX('Summary data'!G:G,Summary!A76),"") ->  | D76: =IFERROR(INDEX('Summary data'!H:H,Summary!A76),"") ->  | E76: =IFERROR(INDEX('Summary data'!I:I,Summary!A76)*1000000,"") ->  | F76: =IFERROR(INDEX('Summary data'!J:J,Summary!A76),"") -> 
A77: =IFERROR(MATCH(ROW(A77)-ROW($A$29)+1,'Summary data'!A:A,0),"") ->  | C77: =IFERROR(INDEX('Summary data'!G:G,Summary!A77),"") ->  | D77: =IFERROR(INDEX('Summary data'!H:H,Summary!A77),"") ->  | E77: =IFERROR(INDEX('Summary data'!I:I,Summary!A77)*1000000,"") ->  | F77: =IFERROR(INDEX('Summary data'!J:J,Summary!A77),"") -> 
A78: =IFERROR(MATCH(ROW(A78)-ROW($A$29)+1,'Summary data'!A:A,0),"") ->  | C78: =IFERROR(INDEX('Summary data'!G:G,Summary!A78),"") ->  | D78: =IFERROR(INDEX('Summary data'!H:H,Summary!A78),"") ->  | E78: =IFERROR(INDEX('Summary data'!I:I,Summary!A78)*1000000,"") ->  | F78: =IFERROR(INDEX('Summary data'!J:J,Summary!A78),"") -> 
A79: =IFERROR(MATCH(ROW(A79)-ROW($A$29)+1,'Summary data'!A:A,0),"") ->  | C79: =IFERROR(INDEX('Summary data'!G:G,Summary!A79),"") ->  | D79: =IFERROR(INDEX('Summary data'!H:H,Summary!A79),"") ->  | E79: =IFERROR(INDEX('Summary data'!I:I,Summary!A79)*1000000,"") ->  | F79: =IFERROR(INDEX('Summary data'!J:J,Summary!A79),"") -> 
A80: =IFERROR(MATCH(ROW(A80)-ROW($A$29)+1,'Summary data'!A:A,0),"") ->  | C80: =IFERROR(INDEX('Summary data'!G:G,Summary!A80),"") ->  | D80: =IFERROR(INDEX('Summary data'!H:H,Summary!A80),"") ->  | E80: =IFERROR(INDEX('Summary data'!I:I,Summary!A80)*1000000,"") ->  | F80: =IFERROR(INDEX('Summary data'!J:J,Summary!A80),"") -> 
A81: =IFERROR(MATCH(ROW(A81)-ROW($A$29)+1,'Summary data'!A:A,0),"") ->  | C81: =IFERROR(INDEX('Summary data'!G:G,Summary!A81),"") ->  | D81: =IFERROR(INDEX('Summary data'!H:H,Summary!A81),"") ->  | E81: =IFERROR(INDEX('Summary data'!I:I,Summary!A81)*1000000,"") ->  | F81: =IFERROR(INDEX('Summary data'!J:J,Summary!A81),"") -> 
A82: =IFERROR(MATCH(ROW(A82)-ROW($A$29)+1,'Summary data'!A:A,0),"") ->  | C82: =IFERROR(INDEX('Summary data'!G:G,Summary!A82),"") ->  | D82: =IFERROR(INDEX('Summary data'!H:H,Summary!A82),"") ->  | E82: =IFERROR(INDEX('Summary data'!I:I,Summary!A82)*1000000,"") ->  | F82: =IFERROR(INDEX('Summary data'!J:J,Summary!A82),"") -> 
A83: =IFERROR(MATCH(ROW(A83)-ROW($A$29)+1,'Summary data'!A:A,0),"") ->  | C83: =IFERROR(INDEX('Summary data'!G:G,Summary!A83),"") ->  | D83: =IFERROR(INDEX('Summary data'!H:H,Summary!A83),"") ->  | E83: =IFERROR(INDEX('Summary data'!I:I,Summary!A83)*1000000,"") ->  | F83: =IFERROR(INDEX('Summary data'!J:J,Summary!A83),"") -> 
A84: =IFERROR(MATCH(ROW(A84)-ROW($A$29)+1,'Summary data'!A:A,0),"") ->  | C84: =IFERROR(INDEX('Summary data'!G:G,Summary!A84),"") ->  | D84: =IFERROR(INDEX('Summary data'!H:H,Summary!A84),"") ->  | E84: =IFERROR(INDEX('Summary data'!I:I,Summary!A84)*1000000,"") ->  | F84: =IFERROR(INDEX('Summary data'!J:J,Summary!A84),"") -> 
A85: =IFERROR(MATCH(ROW(A85)-ROW($A$29)+1,'Summary data'!A:A,0),"") ->  | C85: =IFERROR(INDEX('Summary data'!G:G,Summary!A85),"") ->  | D85: =IFERROR(INDEX('Summary data'!H:H,Summary!A85),"") ->  | E85: =IFERROR(INDEX('Summary data'!I:I,Summary!A85)*1000000,"") ->  | F85: =IFERROR(INDEX('Summary data'!J:J,Summary!A85),"") -> 

Sheet Revenue and Budget Descriptions
B1: Revenue Options Descriptions | F1: Budget Descriptions
B2: Financial | F2: State Agency Functions
B3: PERS/TRS "Net" Arbitrage Bonds | C3: A debt mechanism in which the state would acquire debt and reinvest it alongside the current permanent fund portfolio. The difference between the cost of debt and return on equity would be used to finance the states PERS/TRS obligations that currently are paid from budget appropriations. | F3: Department of Administration | G3: The Department of Administration provides centralized administrative services to state agencies in matters of finance, personnel, labor relations, leasing of space, central mail distribution, property management, risk management, procurement, retirement and benefits programs, information and telecommunication systems, and operation and maintenance of 18 state-owned buildings in Juneau, Anchorage, Nome, Palmer and Fairbanks. The Department of Administration also provides indigent defense and children’s advocacy through the Public Defender Agency and the Office of Public Advocacy, and vehicle registration and driver licensing through the Division of Motor Vehicles, as well as a host of other services. The department has administrative responsibilities for the Alaska Public Offices Commission, Alaska Public Broadcasting, the Alaska Oil and Gas Conservation Commission and the Office of Administrative Hearings.
B4: Current PF Revenue Payout Methodology through earnings reserve | C4: Currently the state engages in a classic portfolio approach to investing its assets. The returns from these investments are placed into three “buckets,” inflation proofing, permanent fund dividends and the earnings reserve. | F4: Department of Commerce Community and Economic Development | G4: The department works to strengthen Alaska's economy and communities by providing grants and support, and to protect consumers through licensing and regulation of various business and banking activities. The Department also houses the Alaska Energy Authority, the Alaska Industrial Development and Export Authority, the Alaska Gasline Development Corporation, the Alaska Railroad Corporation, the Alaska Seafood Marketing Institute, the Alcoholic Beverage Control Board, and the Regulatory Commission of Alaska.
B5: Endowment | C5: This is a methodology which would alter the current PF payout methodology. Currently, the earnings of the fund determine the amount available for appropriation. Under the current system the earnings are used for inflation proofing the PF, paying permanent fund dividends or they are retained indefinitely. The Endowment methodology uses the earnings for the General Fund. The size of the payout is based on the balance of the fund. The primary difference between the Current and the Endowment methodologies is that under the endowment methodology, payouts become more certain and the underlying fund balance absorbs the risk of asset performance. Current payout methodology is the exact opposite, with the payout containing the risk of asset performance and the balance of the fund being stable. | F5: Department of Corrections | G5: The Department of Corrections provides secure confinement, reformative programs, and a process of supervised community reintegration to enhance the safety of communities. The department operates 13 prisons throughout the state in addition to Community Based Programs and Substance Abuse Programs and Services.
B6: Endowment @ X% | C6: The percent of the Permanent Fund balance under the Endowment method which legislatures have the option of allocating. | F6: Department of Education and Early Development | G6: The Department of Education houses the Alaska Libraries and Museums, Mt. Edgecumbe Boarding School, the State Board of Education, the Alaska State Council on the Arts, the Alaska Postsecondary Education Commission, Teaching and Learning Support, and K-12 Support. The department passes funds through to school districts and Regional Educational Attendance areas statewide.
B7: State Share of PF Revenues | C7: The amount of yearly earnings from the Permanent Fund the legislature has the ability to appropriate to the General Fund. Currently, this revenue is being reinvested within the earnings reserve. | F7: Department of Environmental Conservation | G7: The Deparment of Environmental Conservation regulates air and water quality, provides oil and hazardous spill prevention and response, and protects environmental health by regulating drinking water, solid waste, pesticides, and food safety and sanitation. The department also operates a food safety laboratory in Anchorage.
B8: PFD Cap | C8: A limit on the yearly payout of the current Permanent Fund Dividend Program. This is not the dividend amount, but the threshold the payout cannot exceed. | F8: Department of Fish and Game | G8: The Alaska Department of Fish and Game manages approximately 750 active fisheries, 26 game management units, and 32 "special areas." The department works to implement science-based sustainable fish and wildlife management programs to optimize public uses and economic benefits. The department also provides education and outreach such as hunter education programs.
B9: SB 114 | C9: A Senate bill that proposes to allocate all of the non-restricted royalties (74.5%) to a dividend program, replacing the current dividend program. This will pay a $1,000 per person minimum. The earnings reserve of the Permanent Fund becomes available for General Fund expenditure. | F9: Department of Health and Social Services | G9: The Department of Health & Social Services promotes and protects the health and well-being of Alaskans. The department provides Medicaid & Medicare services as well as services for Juvenile Justice, Alaska Pioneer Homes, Behavioral Health, Children Services (including foster care), Public Assistance, Public Health (including the Office of the State Medical Examiner, the Public Health Laboratory, and Vital Records), and Senior and Disabilities Services.
B10: Collateralization Revenues | C10: The state would acquire debt using a portion of its assets as collateral. This collateral would be the only asset at risk (i.e. it would not be recourse to the Permanent Fund or to the SOA). The capital raised would be reinvested alongside the current permanent fund portfolio. After annual interest payments, the difference between the cost of debt and return on equity would be allocated to the state or the principle of the Permanent Fund. The model assumes all the earnings net of interest payments are placed into general fund. | F10: Department of Labor and Workforce Development | G10: The department promotes safe and legal working conditions and opportunities for employment in Alaska. The department houses Labor Relations, Workers Compensation Appeals Commission, Employment Security, Vocational Rehabilitation, Workers Compensation, and the AVTEC - Alaska Institue of Technology.
B11: Loan to Value Ratio | C11: The percentage of the Permanent Fund used as collateral for debt. This is capped at 20%. | F11: Department of Law | G11: The Department of Law serves as the legal advisor for the governor and other state officers, prosecutes all violations of state criminal law, and enforces consumer protection and unfair trade practices laws. The Attorney General's Office supports the attorney general in his performance as legal advisor to the governor and chief administrator of the three divisions of the Department of Law.
B12: Securitization Revenue (Only When Collateralization Enabled) | C12: When the state collateralizes the Permanent Fund it will have a distribution of potential future cash flows. The process of securitization would sell a discounted value of these cash flows and cash flow uncertainty for a lump sum. This instrument would remove the collateralized debt from the SOA balance sheet. | F12: Department of Military and Veterans Affairs | G12: The Department of Military and Veterans Affairs is dedicated to the mission of securing the state and defending the nation. More than 4,300 professionals within the Army National Guard, the Air National Guard, Homeland Security & Emergency Management, the Alaska Military Youth Academy, Veterans Affairs, the Alaska Aerospace Corporation, the Alaska State Defense Force, and the Alaska Naval Militia work to ensure the safety, security and future success of Alaska and its people.
F13: Department of Natural Resources | G13: The Department of Natural Resources manages all state-owned land, water and natural resources, except for fish and game, on behalf of the people of Alaska. The department houses the divisions of Agriculture; Forestry; Geological and Geophysical Surveys; Mining, Land and Water; Oil and Gas; and Parks and Outdoor Recreation.
B14: Petroleum | F14: Department of Public Safety | G14: The Department of Public Safety's mission is to preserve the peace, enforce the law, prevent and detect crime, and protect life and property. Department responsibilities include Wildlife Troopers, Police Standards Council, Alaska Fire Standards Council, and the Council on Domestic Violence and Sexual Assault.
B15: Flat Tax for Non-CIT Petroleum Companies | F15: Department of Revenue | G15: The Department of Revenue collects and manages most of the state's revenues and houses the Alaska Retirement Management Board, the Alaska Municipal Bond Bank Authority, the Alaska Permanent Fund Corporation, Child Support Services (which collects and remits child support payments), Criminal Investigation Unit (Fraud), Alaska Housing Finance Corporation, and the Alaska Mental Health Trust Authority.
B16: Net Severance Tax | C16: Currently, the net tax rate for North Slope oil production is 35% of production tax value. This revenue option would increase the tax rate. Assumes production and lease expenditures as forecast in the spring 2015 revenue forecast. Also assumes no change to other tax provisions such as minimum tax and credits. | F16: Department of Transportation and Public Facilities | G16: The Department of Transportation and Public Facilities is responsible for all transportation infrastructure in the state including the Alaska Marine Highway System, airports, harbors, roads and highways, transit, and public facilities construction. The Department receives significant funding through the Federal Highway Administration (FHWA).
B17: Gross Value Reduction | C17: A component of SB 21 incentivizing the development of new production areas, the Gross Value Reduction (GVR) excludes 20% of the gross value at the point of production (GVPP) from the tax calculation. Areas surrounding a currently producing area that may be otherwise uneconomic to produce as well as new oil pools that have not yet been discovered or developed qualify for the reduction. | F17: University of Alaska | G17: The University of Alaska provides higher education through its three main campuses and other campuses statewide.
B18: Minimum Tax - Additional Revenue | C18: SB 21 implemented a gross minimum tax of 4% of GVPP. The per-taxable barrel credits cannot be used to reduce a taxpayer’s production tax liability below the minimum tax. However, the application of other credits may reduce a taxpayer’s tax liability to zero. | F18: Office of the Governor | G18: The Office of the Governor includes the Office of Management and Budget, which is responsible for preparing the Governor's budget every year. The Office also include Boards and Commissions and the Lt. Governor's Office, which includes the Division of Elections.
B19: Cook Inlet Production Tax Cap | C19: Even though under statute there is a tax of 35% of production tax value on Cook Inlet oil and gas, the tax rates for oil and gas production in Cook Inlet are capped at the amount of the tax rate imposed on each lease or property during the period of April 1, 2005 through March 31, 2006 under ELF, or the Economic Limit Factor. This tax cap will be in place until Calendar Year 2022. | F19: Payments & Obligations (or "Statewide Operations") | G19: Payments & Obligations include oil tax credits (credits for capital investment, exploration, and production), Retirement contributions (PERS and TERS), and Debt Service for servicing the debt resulting from the sale of bonds for capital projects. This category is traditionally called "Statewide Operations."
B20: Hazardous Release/Conservation surcharge | C20: Currently, a surcharge is levied in the amount of 5 cents per barrel of taxable oil, with the revenue supporting prevention and response programs for oil and other hazardous substance spills. This revenue option would increase the surcharge by up to 25 cents per taxable barrel, with revenue to the General Fund. Assumes production as forecast in the spring 2015 revenue forecast.
B21: Natural Gas Reserves Tax | C21: This tax is based on the 2006 “Alaska Gas Line Now! Initiative.” It assumes AK LNG production begins in 2026. This tax would be implemented on major North Slope gas fields. Until a gas line is developed the state will levy a tax of 3 cents per 1000 cubic feet of natural gas reserves. Once the pipeline is operational the tax will become a credit valued at 50% of non-royalty production. This credit will sunset once all tax losses have been recouped by producers.
B23: Petroleum Credits
B24: Refunded Credits goes against GF appropriations | C24: Credits that are not taken against tax liability and must be appropriated in the operating budget. Removal of any refunded credits is a reduction in the budget in the model.
B25: North Slope
B26: Qualified capital expenditure, AS 43.55.023(a); Carry-forward annual loss, AS 43.55.023(b) | C26: The QCE credit is for 20% of qualified capital expenditures. This credit sunset for the North Slope only on 12/31/2013. The Carry-forward credit changed in 2014 from 25% of a carried-forward annual loss statewide, to 25% everywhere besides the North Slope, where the credit is 45% until it decreases in 2016 to 35%. Both credits began in 2006.
B27: Credits under AS 43.55.025 | C27: This includes the Alternative Credit for Exploration, which is 30% or 40% for different seismic or drilling costs. It began in 2003 and sunsets 6/30/2016 for North Slope.
B28: Non-North Slope
B29: Qualified capital expenditure, AS 43.55.023(a); Carry-forward annual loss, AS 43.55.023(b); Well lease expenditure, AS 43.55.023(l) | C29: The QCE credit is for 20% of qualified capital expenditures. This credit sunset for the North Slope only on 12/31/2013. The Carry-forward credit changed in 2014 from 25% of a carried-forward annual loss statewide, to 25% everywhere besides the North Slope, where the credit is 45% until it decreases in 2016 to 35%. Both credits began in 2006. Beginning in 2010, The WLE credit is for 20% of qualified well lease expenditures and can be taken in conjunction with QCE credits.
B30: Credits under AS 43.55.025 | C30: These include the Alternative Credit for Exploration (see above), which sunsets 6/30/2016 for Cook Inlet and 12/31/2021 for Middle Earth; the Cook-Inlet Jack-Up Rig Credit, which is a credit for exploration expenses in to Cook Inlet that began in 2010 and sunsets in 6/30/2016; and the Frontier Basin credit, which is a credit for expenses for exploration in the "Frontier Basins." This credit began in 2010 and sunsets on 6/30/2016.
B31: Credits under AS 43.20 | C31: These include the Oil and Gas Service Industry Expenditures Credit (2013), the Gas Exploration and Development Credit (2003), the In-State Refinery Tax Credit (2014), the Gas Storage Facility Credit (2010), and the LNG Storage Facility Credit (2012).
B32: Credits Used Against Tax Liability goes against revenue | C32: Credits that are taken against tax liability. Removing any credits used against tax liability increases revenue in the model.
B33: North Slope
B34: Per taxable barrel credit, AS 43.55.024(i)-(j) | C34: Beginning in 2014, for areas of the North Slope that are not eligible for a gross value reduction (GVR), the credit is a dollar-per-taxable-barrel credit ranging from $0 to $8 based on the gross value of the point of production. For areas of the North Slope that do qualify for the GVR, the credit is $5 per taxable barrel.
B35: Small producer credit, AS 43.55.024(a)(c) | C35: Beginning in 2006, producers with no more than 50,000 BTU equivalent barrels per day receive a credit capped at a maximum of $12 million per year. As production exceeds that amount, the credit phases to zero for producers approaching 100,000 or more BTU equivalent barrels per day. As long as they qualify, producers can take this credit for up to nine years of production. In 2016 the credit program will stop accepting new producers.
B36: Non-North Slope
B37: Qualified capital expenditure, AS 43.55.023(a); Carry-forward annual loss, AS 43.55.023(b); Well lease expenditure, AS 43.55.023(l) | C37: The QCE credit is for 20% of qualified capital expenditures. This credit sunset for the North Slope only on 12/31/2013. The Carry-forward credit changed in 2014 from 25% of a carried-forward annual loss statewide, to 25% everywhere besides the North Slope, where the credit is 45% until it decreases in 2016 to 35%. Both credits began in 2006. Beginning in 2010, The WLE credit is for 20% of qualified well lease expenditures and can be taken in conjunction with QCE credits.
B38: Small producer credit, AS 43.55.024(a)(c) | C38: Beginning in 2006, producers with no more than 50,000 BTU equivalent barrels per day receive a credit capped at a maximum of $12 million per year. As production exceeds that amount, the credit phases to zero for producers approaching 100,000 or more BTU equivalent barrels per day. As long as they qualify, producers can take this credit for up to nine years of production. In 2016 the credit program will stop accepting new producers.
B40: Gross Receipts/Sales Tax
B41: Gross Receipts Tax | C41: A statute, originally adopted by the Territorial Legislature as SLA 1949, Ch. 43 and eventually codified as AS 43.70.020 contained a provision for a gross receipts tax that was repealed in 1980. In addition to a fee for a business license, there was a provision requiring a sum equal to ½ of 1% of the gross receipts of a business in excess of $20,000 but less then $100,000 and a sum equal to 1/4 of 1% of gross receipts over $100,000 during each income year.
B42: Sales Tax | C42: The model uses data on sales by industry from the 2007 economic census, which is likely an underestimate of today's economic activity. Assumes food, fuel, repair labor, arts and culture, fitness centers, hunting and fishing guide services, and security services would be exempt from the tax; these assumptions are adjustable in the model. Does not currently include elasticity estimates, and therefore does not account for potential deadweight loss to the economy from a sales tax.
B44: Fishing Tax
B45: Fishing Tax Rate Increase | C45: A uniform rate increase in both the Fishery Resource Landing Tax and the Fisheries Business Tax. The model calculates the FRLT and FBT tax bases from current and forecasted collections, then applies the desired rate increase to the tax base. For instance, the current average FBT rate (weighted by payer) is 3.2%; with a rate increase of 1%, this would rise to 4.2%. Assumes the additional revenue from the rate increase would all go to the state, rather than being shared with municipalities.
B47: Fuel Tax
B48: Increase in tax per Gallon | C48: A uniform increase in the motor fuel tax across all types of fuel. For instance, if the increase is 1 cent per gallon, then the tax on highway fuel would rise from 8 to 9 cents per gallon and the tax on jet fuel would rise from 3.2 to 4.2 cents per gallon. Analysis assumes an average fuel price of $3.50 per gallon and a price elasticity of demand equal to -0.2, and maintains all current motor fuel exemptions.
B51: Income Tax
B52: Increase in the max rate of corporate income tax | C52: Alaska's current corporate income tax has ten brackets, ranging from 0% to 9.4%. This model deals with an increase in only the maximum rate, with the other nine brackets unchanged. However, a change in the maximum rate would affect the great majority of corporate income taxed in Alaska. This is because the 9.4% maximum rate is charged on all income above $222,000, and over 90% of Alaska corporate income tax comes from corporations whose Alaska-specific income is more than $222,000.
B53: Personal Income Tax as % of Fed income tax liability | C53: A personal income tax assessed as a flat percentage of the taxpayer's federal income tax liability. This method would preserve the federal structure with respect to progressivity and deductions, as well as minimizing paperwork. The model is based on 2012 Alaska-specific IRS data and 2013 federal IRS data. The model assumes baseline Alaska economic growth of 2.35%, which is the average US-wide economic growth in 2014 and the first quarter of 2015. It also assumes that marginal income tax rates have a coefficient of -0.3 on economic growth rates. These assumptions are adjustable in the model.
B54: Capital Gains Tax | C54: A flat-rate tax on capital gains as reported on federal income tax returns. The current model is based on 2012 IRS data for Alaska and is somewhat speculative because it does not account for possible market changes (i.e. capital losses), or potential for changes in behavior to reduce or avoid capital gains taxes.
B56: Lottery / Gaming
B57: State Lottery | C57: Implement a statewide lottery similar to those in other states. Conservatively assumes initial-year lottery proceeds of $8 million, which is based on the lowest lottery proceeds per capita among all states with a lottery. Assumes 4% annual growth in lottery proceeds (the US average over the past three years is closer to 5%). Does not account for potential impacts on existing charitable gaming.
B58: PF Lottery | C58: Each person would have the option to put half of his or her Permanent Fund Dividend in a lottery. Of the total amount entered in the lottery, the state would keep half and the other half would be paid out to the lottery winner(s). The model currently assumes 10% of PFD recipients would choose the lottery option. Does not account for potential impacts on existing charitable gaming.
B59: Increase Current Gaming Rates | C59: Implement an across-the-board increase to existing charitable gaming taxes and fees (currently, 3% pull-tab tax; 1% net proceeds fee; licensing and permitting fees). Assumes no changes in activity.
B60: Legalize Card Rooms | C60: Legalize independent gaming establishments which offer only card games. The current model is based on a 2005 proposal which would have allowed one card room per 30,000 residents in a borough (i.e., a borough with fewer than 30,000 residents is not allowed a card room). It assumes 10 card rooms would open with an average of 15 tables each. The annual fee would be $10,000 per card room and an additional $10,000 per table. Does not account for potential impacts on existing charitable gaming.
B61: Legalize Casino | C61: Legalize a single Vegas-style casino, with limitations on size. The model assumes 735,000 casino visits per year. This works out to roughly one visit per Alaska resident per year, though many of the visitors would likely be tourists; or, roughly 2,000 visits per day which would be a modest size casino by Lower-48 standards where casinos can draw in excess of 10,000 visits per day. Also, assumes that the casino revenue per visit would be $40, and the state would take 33% of casino revenue; both of these amounts are in the range of observations in other states. Does not account for potential impacts on existing charitable gaming. Actual revenue could be higher with larger casinos or more than one casino.
B63: Mining Tax
B64: Mining Tax Rate Increase | C64: A uniform rate increase in the Mining License Tax. The model calculates the MLT base from current and forecasted collections, then applies the desired rate increase to the tax base. For instance, the current average MLT rate is 6.99% (weighted by payer); if the rate increase was 1%, this would rise to 7.99%.
B65: Remove Depletion Allowance | C65: This option would entirely remove the depletion allowance from the calculation of Mining License Tax liability. Currently, mines are allowed to deduct a percentage of gross value each year for depletion of the resource in calculating their net income subject to taxation. The statutory limit on depletion is 50% of net income. This estimate assumes that all mines are taking depletion to the 50% maximum, and that MLT revenue would therefore double; actual impacts may be somewhat less depending on depletion taken in future years.
B67: School Tax
B68: Flat Rate per Working Person | C68: A lump-sum tax on every working Alaskan, for example, $100 per person.
B69: Progressive Tax as described in SB 97 | C69: The tax would be $100 per person making $10,000 to $49,999, $200 per person making $50,000 to $99,999, $300 per person making $100,000 to $499,999, and $500 per person making $500,000 or more. The model is based on IRS data about the number of returns in each income category in Alaska in 2012.
B71: State Property Tax
B72: State Property Tax | C72: A state tax on real property similar to those used to fund many municipal governments. The model is based on a 2014 Department of Commerce report that the taxable value of property in Alaska was $108.6 billion and increased an average of 2.1% in the past 5 years. This tax would be applied in addition to any existing municipal tax. The option to include AS 43.56 refers to oil and gas property, which already has a separate tax.
B74: Health Care Provider Tax
B75: Health Care Provider Tax | C75: A tax modeled after the one in Vermont, which taxes revenue of hospitals, nursing homes, intermediate care facilities for the mentally disabled, home health care, and outpatient pharmacies. It would be a flat rate tax (e.g., 1%) on taxable provider revenue. The model calculates initial revenue in FY 2016 by multiplying the values in Vermont by the Alaska-to-Vermont ratio of population and health care costs. It then assumes state revenue will increase at the rate of inflation, which may be an underestimate given that health care spending tends to outpace inflation.
B77: Child Support Fee
B78: Child Support Fee that State Currently Pays | C78: This option causes the $25 annual user fee required by the Deficit Reduction Act of 2005 to be paid by the parties paying/receiving child support and not be covered by state funds.
B80: Sin Tax
B81: Rise in Alcohol Tax | C81: A uniform percentage increase in the alcohol tax. The current taxes per gallon are $1.07 for regular beer, $0.35 for small-brewery beer, $2.50 for wine, and $12.80 for hard liquor. With a 10% increase in the alcohol tax, each of those per-gallon amounts would be multiplied by 1.1. The model does not account for demand impact of tax changes, and assumes the number of gallons of alcohol purchased will increase over time in proportion to population.
B82: Tobacco Tax Increase Per Cigarette | C82: A per-unit increase in the cigarette tax. The current tax is $2 per pack or $0.10 per cigarette; a 4-cent increase would raise the tax to $0.14 per cigarette, or $2.80 per pack. The model does not account for demand impact of tax changes, and assumes cigarette sales will decline roughly 4% per year, consistent with the recent average in Alaska, although cigarette sale decline rates fluctuate from year to year.
B83: Tobacco Tax Increase Other Tobacco Products | C83: A percentage-point increase in the tax on other tobacco products. The current tax is 75% of wholesale value, so an increase of 25 percentage points would raise the tax to 100%. The model assumes the value of other tobacco products will grow at 3 to 4% per year, consistent with the recent average in Alaska, though OTP growth rates fluctuate from year to year. It does not account for the demand impact of the tax increase.
B84: Include E-Cigs in the Other Tobacco Products Tax | C84: Extends state taxation to e-cigarettes under the "Other Tobacco Products" tax; currently they are untaxed. The model assumes a current wholesale value of e-cigarettes of $3.5 million per year, with e-cigarette sales growth of 24% per year until 2018 and a 25% decline in the growth rate thereafter. Current value and growth are based on national estimates and assume that Alaska's share of the national e-cigarette market will be proportional to its population.
B85: Marijuana Tax Per Oz | C85: Increase in the current $50 per ounce tax rate on marijuana. Current projections are speculative and assume revenue will commence at $5.7 million per year and increase in proportion to population. The model is based on survey data about the number of marijuana users by age group and Census data about the age distribution in Alaska. (Marijuana sales are only legal to people over 21.) No adjustments are made for demand impacts of higher taxes.
B87: Uncollected Funds
B88: Auditing and collecting additional revenue from current Taxes | C88: Assumptions made from internal analysis on uncollected funds.
B90: Large Projects
B91: AKLNG Project | C91: A liquefied natural gas export project which aims to market North Slope gas to non-domestic buyers. The project has four non state partners, BP, Conoco Phillips, Exxon Mobil and TransCanada. Clicking on tab assumes project is approved and completed. Assumptions based on economic models from project consultants. Only net impact on General Fund reflected in model. State is assumed to finance its portion of the project using a 70/30 debt to equity ratio.
B92: Susitna Size Hydroelectric Project | C92: As a companion to AK LNG, a hydroelectric project that electrifies the AK LNG transportation and liquefaction process, thereby, freeing 13% additional natural gas sales.
B93: Knik Arm Bridge | C93: Clicking on tab assumes project is approved. Assumptions based on project manager’s interview. Only net impact on General Fund reflected in model.
B94: Ambler Road | C94: Clicking on tab assumes project is approved. Assumptions based on project manager’s interview. Only net impact on General Fund reflected in model.
B95: Juneau Road | C95: Clicking on tab assumes project is approved. Assumptions based on project managers interview. Only net impact on General Fund reflected in model. Interview. Only net impact on General Fund reflected in model.

Sheet Summary data (hidden)
K1: ='All Rev & Projects'!F1 -> 2014 | L1: ='All Rev & Projects'!G1 -> 2015 | M1: ='All Rev & Projects'!H1 -> 2016 | N1: ='All Rev & Projects'!I1 -> 2017 | O1: ='All Rev & Projects'!J1 -> 2018 | P1: ='All Rev & Projects'!K1 -> 2019 | Q1: ='All Rev & Projects'!L1 -> 2020 | R1: ='All Rev & Projects'!M1 -> 2021 | S1: ='All Rev & Projects'!N1 -> 2022 | T1: ='All Rev & Projects'!O1 -> 2023 | U1: ='All Rev & Projects'!P1 -> 2024 | V1: ='All Rev & Projects'!Q1 -> 2025 | W1: ='All Rev & Projects'!R1 -> 2026 | X1: ='All Rev & Projects'!S1 -> 2027 | Y1: ='All Rev & Projects'!T1 -> 2028 | Z1: ='All Rev & Projects'!U1 -> 2029 | AA1: ='All Rev & Projects'!V1 -> 2030
A2: =IF(B2=0,A1,RANK(B2,B:B,0)) -> 0 | B2: =C2*I2 -> 0 | C2: =(D1<>D2) -> FALSE | D2: =IF(AND(TEXT(E2,"0")="TRUE",I2<>0),D1+1,D1) -> 0 | E2: =IF(I2=0,FALSE,TRUE) -> FALSE | G2: Budget Cuts | H2: Cuts to Government Agency | I2: =SUM(L2:AA2) -> 0 | J2: The Alaskan economy depends heavily on state spending and removing liquidity could hurt long term economic growth. | M2: =('All Rev & Projects'!H248)-('Budget Sensitivity'!F35/1000) -> 0 | N2: =('All Rev & Projects'!I248)-('Budget Sensitivity'!G35/1000) -> 0 | O2: =('All Rev & Projects'!J248)-('Budget Sensitivity'!H35/1000) -> 0 | P2: =('All Rev & Projects'!K248)-('Budget Sensitivity'!I35/1000) -> 0 | Q2: =('All Rev & Projects'!L248)-('Budget Sensitivity'!J35/1000) -> 0 | R2: =('All Rev & Projects'!M248)-('Budget Sensitivity'!K35/1000) -> 0 | S2: =('All Rev & Projects'!N248)-('Budget Sensitivity'!L35/1000) -> 0 | T2: =('All Rev & Projects'!O248)-('Budget Sensitivity'!M35/1000) -> 0 | U2: =('All Rev & Projects'!P248)-('Budget Sensitivity'!N35/1000) -> 0 | V2: =('All Rev & Projects'!Q248)-('Budget Sensitivity'!O35/1000) -> 0 | W2: =('All Rev & Projects'!R248)-('Budget Sensitivity'!P35/1000) -> 0 | X2: =('All Rev & Projects'!S248)-('Budget Sensitivity'!Q35/1000) -> 0 | Y2: =('All Rev & Projects'!T248)-('Budget Sensitivity'!R35/1000) -> 0 | Z2: =('All Rev & Projects'!U248)-('Budget Sensitivity'!S35/1000) -> 0 | AA2: =('All Rev & Projects'!V248)-('Budget Sensitivity'!T35/1000) -> 0
A3: =IF(B3=0,A2,RANK(B3,B:B,0)) -> 0 | B3: 0 | C3: =(D2<>D3) -> FALSE | D3: =IF(AND(TEXT(E3,"0")="TRUE",I3<>0),D2+1,D2) -> 0 | E3: ='All Rev & Projects'!C13 -> FALSE | F3: ='All Rev & Projects'!D13 -> No | G3: Financial Adjustments | H3: ='All Rev & Projects'!E13 -> PERS/TRS Arbitrage Bonds | I3: =SUM(K3:AA3) -> 0 | J3: May expose funds to additional risks. Actual risks and earnings generated are dependent on market factors. | K3: =IFERROR('All Rev & Projects'!F13,0) -> 0 | L3: =IFERROR('All Rev & Projects'!G13,0) -> 0 | M3: =IFERROR('All Rev & Projects'!H13,0) -> 0 | N3: =IFERROR('All Rev & Projects'!I13,0) -> 0 | O3: =IFERROR('All Rev & Projects'!J13,0) -> 0 | P3: =IFERROR('All Rev & Projects'!K13,0) -> 0 | Q3: =IFERROR('All Rev & Projects'!L13,0) -> 0 | R3: =IFERROR('All Rev & Projects'!M13,0) -> 0 | S3: =IFERROR('All Rev & Projects'!N13,0) -> 0 | T3: =IFERROR('All Rev & Projects'!O13,0) -> 0 | U3: =IFERROR('All Rev & Projects'!P13,0) -> 0 | V3: =IFERROR('All Rev & Projects'!Q13,0) -> 0 | W3: =IFERROR('All Rev & Projects'!R13,0) -> 0 | X3: =IFERROR('All Rev & Projects'!S13,0) -> 0 | Y3: =IFERROR('All Rev & Projects'!T13,0) -> 0 | Z3: =IFERROR('All Rev & Projects'!U13,0) -> 0 | AA3: =IFERROR('All Rev & Projects'!V13,0) -> 0
A4: =IF(B4=0,A3,RANK(B4,B:B,0)) -> 0 | B4: =C4*I4 -> 0 | C4: =(D3<>D4) -> FALSE | D4: =IF(AND(TEXT(E4,"0")="TRUE",I4<>0),D3+1,D3) -> 0 | E4: ='All Rev & Projects'!C14 -> 0 | F4: ='All Rev & Projects'!D14 -> 0 | H4: ='All Rev & Projects'!E14 -> Permanent Fund | I4: =SUM(K4:AA4) -> 0 | K4: =IFERROR('All Rev & Projects'!F14,0) -> 0 | L4: =IFERROR('All Rev & Projects'!G14,0) -> 0 | M4: =IFERROR('All Rev & Projects'!H14,0) -> 0 | N4: =IFERROR('All Rev & Projects'!I14,0) -> 0 | O4: =IFERROR('All Rev & Projects'!J14,0) -> 0 | P4: =IFERROR('All Rev & Projects'!K14,0) -> 0 | Q4: =IFERROR('All Rev & Projects'!L14,0) -> 0 | R4: =IFERROR('All Rev & Projects'!M14,0) -> 0 | S4: =IFERROR('All Rev & Projects'!N14,0) -> 0 | T4: =IFERROR('All Rev & Projects'!O14,0) -> 0 | U4: =IFERROR('All Rev & Projects'!P14,0) -> 0 | V4: =IFERROR('All Rev & Projects'!Q14,0) -> 0 | W4: =IFERROR('All Rev & Projects'!R14,0) -> 0 | X4: =IFERROR('All Rev & Projects'!S14,0) -> 0 | Y4: =IFERROR('All Rev & Projects'!T14,0) -> 0 | Z4: =IFERROR('All Rev & Projects'!U14,0) -> 0 | AA4: =IFERROR('All Rev & Projects'!V14,0) -> 0
A5: 0 | B5: 0 | C5: FALSE | D5: 0 | E5: ='All Rev & Projects'!C15 -> 1 | F5: ='All Rev & Projects'!D15 -> Yes | H5: ='All Rev & Projects'!E15 -> Current PF Revenue Methodology | I5: 63407.34888 | K5: =IFERROR('All Rev & Projects'!F15,0) -> 0 | L5: =IFERROR('All Rev & Projects'!G15,0) -> 0 | M5: =IFERROR('All Rev & Projects'!H15,0) -> 2960.403355 | N5: =IFERROR('All Rev & Projects'!I15,0) -> 3110.497004 | O5: =IFERROR('All Rev & Projects'!J15,0) -> 3273.918873 | P5: =IFERROR('All Rev & Projects'!K15,0) -> 3442.4776 | Q5: =IFERROR('All Rev & Projects'!L15,0) -> 3615.754194 | R5: =IFERROR('All Rev & Projects'!M15,0) -> 3794.509035 | S5: =IFERROR('All Rev & Projects'!N15,0) -> 3979.527139 | T5: =IFERROR('All Rev & Projects'!O15,0) -> 4170.228559 | U5: =IFERROR('All Rev & Projects'!P15,0) -> 4366.622327 | V5: =IFERROR('All Rev & Projects'!Q15,0) -> 4568.924692 | W5: =IFERROR('All Rev & Projects'!R15,0) -> 4777.496624 | X5: =IFERROR('All Rev & Projects'!S15,0) -> 4993.314523 | Y5: =IFERROR('All Rev & Projects'!T15,0) -> 5216.827711 | Z5: =IFERROR('All Rev & Projects'!U15,0) -> 5448.406268 | AA5: =IFERROR('All Rev & Projects'!V15,0) -> 5688.440975
A6: 0 | B6: 0 | C6: FALSE | D6: 0 | E6: =F6>0 -> FALSE | F6: ='All Rev & Projects'!D16 -> 0 | G6: Permanent Fund | H6: ='All Rev & Projects'!E16 -> State/Public Split (State Share) | I6: 0 | J6: Disproportionately impacts low income Alaskans and businesses that depend on the influx of spendable funds that the Permanent Fund Dividend brings. | K6: =IFERROR('All Rev & Projects'!F16,0) -> 0 | L6: =IFERROR('All Rev & Projects'!G16,0) -> 0 | M6: =IFERROR('All Rev & Projects'!H16,0) -> 0 | N6: =IFERROR('All Rev & Projects'!I16,0) -> 0 | O6: =IFERROR('All Rev & Projects'!J16,0) -> 0 | P6: =IFERROR('All Rev & Projects'!K16,0) -> 0 | Q6: =IFERROR('All Rev & Projects'!L16,0) -> 0 | R6: =IFERROR('All Rev & Projects'!M16,0) -> 0 | S6: =IFERROR('All Rev & Projects'!N16,0) -> 0 | T6: =IFERROR('All Rev & Projects'!O16,0) -> 0 | U6: =IFERROR('All Rev & Projects'!P16,0) -> 0 | V6: =IFERROR('All Rev & Projects'!Q16,0) -> 0 | W6: =IFERROR('All Rev & Projects'!R16,0) -> 0 | X6: =IFERROR('All Rev & Projects'!S16,0) -> 0 | Y6: =IFERROR('All Rev & Projects'!T16,0) -> 0 | Z6: =IFERROR('All Rev & Projects'!U16,0) -> 0 | AA6: =IFERROR('All Rev & Projects'!V16,0) -> 0
A7: 0 | B7: 0 | C7: FALSE | D7: 0 | E7: ='All Rev & Projects'!C17 -> 0 | F7: ='All Rev & Projects'!D17 -> 0 | H7: ='All Rev & Projects'!E17 -> 0 | I7: 63407.34888 | K7: =IFERROR('All Rev & Projects'!F17,0) -> 0 | L7: =IFERROR('All Rev & Projects'!G17,0) -> 0 | M7: =IFERROR('All Rev & Projects'!H17,0) -> 2960.403355 | N7: =IFERROR('All Rev & Projects'!I17,0) -> 3110.497004 | O7: =IFERROR('All Rev & Projects'!J17,0) -> 3273.918873 | P7: =IFERROR('All Rev & Projects'!K17,0) -> 3442.4776 | Q7: =IFERROR('All Rev & Projects'!L17,0) -> 3615.754194 | R7: =IFERROR('All Rev & Projects'!M17,0) -> 3794.509035 | S7: =IFERROR('All Rev & Projects'!N17,0) -> 3979.527139 | T7: =IFERROR('All Rev & Projects'!O17,0) -> 4170.228559 | U7: =IFERROR('All Rev & Projects'!P17,0) -> 4366.622327 | V7: =IFERROR('All Rev & Projects'!Q17,0) -> 4568.924692 | W7: =IFERROR('All Rev & Projects'!R17,0) -> 4777.496624 | X7: =IFERROR('All Rev & Projects'!S17,0) -> 4993.314523 | Y7: =IFERROR('All Rev & Projects'!T17,0) -> 5216.827711 | Z7: =IFERROR('All Rev & Projects'!U17,0) -> 5448.406268 | AA7: =IFERROR('All Rev & Projects'!V17,0) -> 5688.440975
A8: 0 | B8: 0 | C8: FALSE | D8: 0 | E8: =IF(F8=99999999,FALSE,TRUE) -> FALSE | F8: ='All Rev & Projects'!D18 -> 99999999 | G8: Permanent Fund | H8: ='All Rev & Projects'!E18 -> Cap on Permanent Fund Dividend | I8: 0 | J8: Disproportionately impacts low income Alaskans and businesses that depend on the influx of spendable funds that the Permanent Fund Dividend brings. | K8: =IFERROR('All Rev & Projects'!F18,0) -> 0 | L8: =IFERROR('All Rev & Projects'!G18,0) -> 0 | M8: =IFERROR('All Rev & Projects'!H18,0) -> 0 | N8: =IFERROR('All Rev & Projects'!I18,0) -> 0 | O8: =IFERROR('All Rev & Projects'!J18,0) -> 0 | P8: =IFERROR('All Rev & Projects'!K18,0) -> 0 | Q8: =IFERROR('All Rev & Projects'!L18,0) -> 0 | R8: =IFERROR('All Rev & Projects'!M18,0) -> 0 | S8: =IFERROR('All Rev & Projects'!N18,0) -> 0 | T8: =IFERROR('All Rev & Projects'!O18,0) -> 0 | U8: =IFERROR('All Rev & Projects'!P18,0) -> 0 | V8: =IFERROR('All Rev & Projects'!Q18,0) -> 0 | W8: =IFERROR('All Rev & Projects'!R18,0) -> 0 | X8: =IFERROR('All Rev & Projects'!S18,0) -> 0 | Y8: =IFERROR('All Rev & Projects'!T18,0) -> 0 | Z8: =IFERROR('All Rev & Projects'!U18,0) -> 0 | AA8: =IFERROR('All Rev & Projects'!V18,0) -> 0
A9: 0 | B9: 0 | C9: FALSE | D9: 0 | E9: ='All Rev & Projects'!C19 -> 0 | F9: ='All Rev & Projects'!D19 -> 0 | H9: ='All Rev & Projects'!E19 -> 0 | I9: 0 | K9: =IFERROR('All Rev & Projects'!F19,0) -> 0 | L9: =IFERROR('All Rev & Projects'!G19,0) -> 0 | M9: =IFERROR('All Rev & Projects'!H19,0) -> 0 | N9: =IFERROR('All Rev & Projects'!I19,0) -> 0 | O9: =IFERROR('All Rev & Projects'!J19,0) -> 0 | P9: =IFERROR('All Rev & Projects'!K19,0) -> 0 | Q9: =IFERROR('All Rev & Projects'!L19,0) -> 0 | R9: =IFERROR('All Rev & Projects'!M19,0) -> 0 | S9: =IFERROR('All Rev & Projects'!N19,0) -> 0 | T9: =IFERROR('All Rev & Projects'!O19,0) -> 0 | U9: =IFERROR('All Rev & Projects'!P19,0) -> 0 | V9: =IFERROR('All Rev & Projects'!Q19,0) -> 0 | W9: =IFERROR('All Rev & Projects'!R19,0) -> 0 | X9: =IFERROR('All Rev & Projects'!S19,0) -> 0 | Y9: =IFERROR('All Rev & Projects'!T19,0) -> 0 | Z9: =IFERROR('All Rev & Projects'!U19,0) -> 0 | AA9: =IFERROR('All Rev & Projects'!V19,0) -> 0
A10: 0 | B10: 0 | C10: FALSE | D10: 0 | E10: ='All Rev & Projects'!C20 -> FALSE | F10: ='All Rev & Projects'!D20 -> No | G10: Permanent Fund | H10: ='All Rev & Projects'!E20 -> Senate Bill 114 | I10: 0 | J10: Reduces the projected per person dividend, which could reduced liquidity in the Alaskan economy. Also by changing the dividend payout mechanism from Permanent Fund earnings to royalty revenues the incentive for Alaskans to maintain the Principle of the Permanent Fund could be reduced. | K10: =IFERROR('All Rev & Projects'!F20,0) -> 0 | L10: =IFERROR('All Rev & Projects'!G20,0) -> 0 | M10: =IFERROR('All Rev & Projects'!H20,0) -> 0 | N10: =IFERROR('All Rev & Projects'!I20,0) -> 0 | O10: =IFERROR('All Rev & Projects'!J20,0) -> 0 | P10: =IFERROR('All Rev & Projects'!K20,0) -> 0 | Q10: =IFERROR('All Rev & Projects'!L20,0) -> 0 | R10: =IFERROR('All Rev & Projects'!M20,0) -> 0 | S10: =IFERROR('All Rev & Projects'!N20,0) -> 0 | T10: =IFERROR('All Rev & Projects'!O20,0) -> 0 | U10: =IFERROR('All Rev & Projects'!P20,0) -> 0 | V10: =IFERROR('All Rev & Projects'!Q20,0) -> 0 | W10: =IFERROR('All Rev & Projects'!R20,0) -> 0 | X10: =IFERROR('All Rev & Projects'!S20,0) -> 0 | Y10: =IFERROR('All Rev & Projects'!T20,0) -> 0 | Z10: =IFERROR('All Rev & Projects'!U20,0) -> 0 | AA10: =IFERROR('All Rev & Projects'!V20,0) -> 0
A11: 0 | B11: 0 | C11: FALSE | D11: 0 | E11: ='All Rev & Projects'!C21 -> 0 | F11: ='All Rev & Projects'!D21 -> 0 | H11: ='All Rev & Projects'!E21 -> 0 | I11: 0 | K11: =IFERROR('All Rev & Projects'!F21,0) -> 0 | L11: =IFERROR('All Rev & Projects'!G21,0) -> 0 | M11: =IFERROR('All Rev & Projects'!H21,0) -> 0 | N11: =IFERROR('All Rev & Projects'!I21,0) -> 0 | O11: =IFERROR('All Rev & Projects'!J21,0) -> 0 | P11: =IFERROR('All Rev & Projects'!K21,0) -> 0 | Q11: =IFERROR('All Rev & Projects'!L21,0) -> 0 | R11: =IFERROR('All Rev & Projects'!M21,0) -> 0 | S11: =IFERROR('All Rev & Projects'!N21,0) -> 0 | T11: =IFERROR('All Rev & Projects'!O21,0) -> 0 | U11: =IFERROR('All Rev & Projects'!P21,0) -> 0 | V11: =IFERROR('All Rev & Projects'!Q21,0) -> 0 | W11: =IFERROR('All Rev & Projects'!R21,0) -> 0 | X11: =IFERROR('All Rev & Projects'!S21,0) -> 0 | Y11: =IFERROR('All Rev & Projects'!T21,0) -> 0 | Z11: =IFERROR('All Rev & Projects'!U21,0) -> 0 | AA11: =IFERROR('All Rev & Projects'!V21,0) -> 0
A12: 0 | B12: 0 | C12: FALSE | D12: 0 | E12: ='All Rev & Projects'!C22 -> FALSE | F12: ='All Rev & Projects'!D22 -> No | G12: Permanent Fund | H12: State/Public Split (State Share) | I12: 0 | J12: Disproportionately impacts low income Alaskans and businesses that depend on the influx of spendable funds that the Permanent Fund Dividend brings. | K12: =IFERROR('All Rev & Projects'!F22,0) -> 0 | L12: =IFERROR('All Rev & Projects'!G22,0) -> 0 | M12: =IFERROR('All Rev & Projects'!H22,0) -> 0 | N12: =IFERROR('All Rev & Projects'!I22,0) -> 0 | O12: =IFERROR('All Rev & Projects'!J22,0) -> 0 | P12: =IFERROR('All Rev & Projects'!K22,0) -> 0 | Q12: =IFERROR('All Rev & Projects'!L22,0) -> 0 | R12: =IFERROR('All Rev & Projects'!M22,0) -> 0 | S12: =IFERROR('All Rev & Projects'!N22,0) -> 0 | T12: =IFERROR('All Rev & Projects'!O22,0) -> 0 | U12: =IFERROR('All Rev & Projects'!P22,0) -> 0 | V12: =IFERROR('All Rev & Projects'!Q22,0) -> 0 | W12: =IFERROR('All Rev & Projects'!R22,0) -> 0 | X12: =IFERROR('All Rev & Projects'!S22,0) -> 0 | Y12: =IFERROR('All Rev & Projects'!T22,0) -> 0 | Z12: =IFERROR('All Rev & Projects'!U22,0) -> 0 | AA12: =IFERROR('All Rev & Projects'!V22,0) -> 0
A13: 0 | B13: 0 | C13: FALSE | D13: 0 | E13: ='All Rev & Projects'!C23 -> 1 | F13: ='All Rev & Projects'!D23 -> 0.04 | H13: ='All Rev & Projects'!E23 -> Endowment @ X% | I13: 0 | K13: =IFERROR('All Rev & Projects'!F23,0) -> 0 | L13: =IFERROR('All Rev & Projects'!G23,0) -> 0 | M13: =IFERROR('All Rev & Projects'!H23,0) -> 0 | N13: =IFERROR('All Rev & Projects'!I23,0) -> 0 | O13: =IFERROR('All Rev & Projects'!J23,0) -> 0 | P13: =IFERROR('All Rev & Projects'!K23,0) -> 0 | Q13: =IFERROR('All Rev & Projects'!L23,0) -> 0 | R13: =IFERROR('All Rev & Projects'!M23,0) -> 0 | S13: =IFERROR('All Rev & Projects'!N23,0) -> 0 | T13: =IFERROR('All Rev & Projects'!O23,0) -> 0 | U13: =IFERROR('All Rev & Projects'!P23,0) -> 0 | V13: =IFERROR('All Rev & Projects'!Q23,0) -> 0 | W13: =IFERROR('All Rev & Projects'!R23,0) -> 0 | X13: =IFERROR('All Rev & Projects'!S23,0) -> 0 | Y13: =IFERROR('All Rev & Projects'!T23,0) -> 0 | Z13: =IFERROR('All Rev & Projects'!U23,0) -> 0 | AA13: =IFERROR('All Rev & Projects'!V23,0) -> 0
A14: 0 | B14: 0 | C14: FALSE | D14: 0 | E14: ='All Rev & Projects'!C24 -> 0 | F14: ='All Rev & Projects'!D24 -> 0 | H14: ='All Rev & Projects'!E24 -> State/Public Split (State Share) | I14: 0 | K14: =IFERROR('All Rev & Projects'!F24,0) -> 0 | L14: =IFERROR('All Rev & Projects'!G24,0) -> 0 | M14: =IFERROR('All Rev & Projects'!H24,0) -> 0 | N14: =IFERROR('All Rev & Projects'!I24,0) -> 0 | O14: =IFERROR('All Rev & Projects'!J24,0) -> 0 | P14: =IFERROR('All Rev & Projects'!K24,0) -> 0 | Q14: =IFERROR('All Rev & Projects'!L24,0) -> 0 | R14: =IFERROR('All Rev & Projects'!M24,0) -> 0 | S14: =IFERROR('All Rev & Projects'!N24,0) -> 0 | T14: =IFERROR('All Rev & Projects'!O24,0) -> 0 | U14: =IFERROR('All Rev & Projects'!P24,0) -> 0 | V14: =IFERROR('All Rev & Projects'!Q24,0) -> 0 | W14: =IFERROR('All Rev & Projects'!R24,0) -> 0 | X14: =IFERROR('All Rev & Projects'!S24,0) -> 0 | Y14: =IFERROR('All Rev & Projects'!T24,0) -> 0 | Z14: =IFERROR('All Rev & Projects'!U24,0) -> 0 | AA14: =IFERROR('All Rev & Projects'!V24,0) -> 0
A15: 0 | B15: 0 | C15: FALSE | D15: 0 | E15: ='All Rev & Projects'!C25 -> 0 | F15: ='All Rev & Projects'!D25 -> 0 | H15: ='All Rev & Projects'!E25 -> Collateralize and Securitize - Endowment & Status Quo | I15: 0 | K15: =IFERROR('All Rev & Projects'!F25,0) -> 0 | L15: =IFERROR('All Rev & Projects'!G25,0) -> 0 | M15: =IFERROR('All Rev & Projects'!H25,0) -> 0 | N15: =IFERROR('All Rev & Projects'!I25,0) -> 0 | O15: =IFERROR('All Rev & Projects'!J25,0) -> 0 | P15: =IFERROR('All Rev & Projects'!K25,0) -> 0 | Q15: =IFERROR('All Rev & Projects'!L25,0) -> 0 | R15: =IFERROR('All Rev & Projects'!M25,0) -> 0 | S15: =IFERROR('All Rev & Projects'!N25,0) -> 0 | T15: =IFERROR('All Rev & Projects'!O25,0) -> 0 | U15: =IFERROR('All Rev & Projects'!P25,0) -> 0 | V15: =IFERROR('All Rev & Projects'!Q25,0) -> 0 | W15: =IFERROR('All Rev & Projects'!R25,0) -> 0 | X15: =IFERROR('All Rev & Projects'!S25,0) -> 0 | Y15: =IFERROR('All Rev & Projects'!T25,0) -> 0 | Z15: =IFERROR('All Rev & Projects'!U25,0) -> 0 | AA15: =IFERROR('All Rev & Projects'!V25,0) -> 0
A16: 0 | B16: 0 | C16: FALSE | D16: 0 | E16: ='All Rev & Projects'!C26 -> FALSE | F16: ='All Rev & Projects'!D26 -> No | G16: Financial Adjustments | H16: ='All Rev & Projects'!E26 -> Collateralization Revenues | I16: 0 | J16: Increases volatility of states investment income. The optics of leveraging states assets also pose a political problem. | K16: =IFERROR('All Rev & Projects'!F26,0) -> 0 | L16: =IFERROR('All Rev & Projects'!G26,0) -> 0 | M16: =IFERROR('All Rev & Projects'!H26,0) -> 0 | N16: =IFERROR('All Rev & Projects'!I26,0) -> 0 | O16: =IFERROR('All Rev & Projects'!J26,0) -> 0 | P16: =IFERROR('All Rev & Projects'!K26,0) -> 0 | Q16: =IFERROR('All Rev & Projects'!L26,0) -> 0 | R16: =IFERROR('All Rev & Projects'!M26,0) -> 0 | S16: =IFERROR('All Rev & Projects'!N26,0) -> 0 | T16: =IFERROR('All Rev & Projects'!O26,0) -> 0 | U16: =IFERROR('All Rev & Projects'!P26,0) -> 0 | V16: =IFERROR('All Rev & Projects'!Q26,0) -> 0 | W16: =IFERROR('All Rev & Projects'!R26,0) -> 0 | X16: =IFERROR('All Rev & Projects'!S26,0) -> 0 | Y16: =IFERROR('All Rev & Projects'!T26,0) -> 0 | Z16: =IFERROR('All Rev & Projects'!U26,0) -> 0 | AA16: =IFERROR('All Rev & Projects'!V26,0) -> 0
A17: 0 | B17: 0 | C17: FALSE | D17: 0 | E17: ='All Rev & Projects'!C27 -> 4 | F17: ='All Rev & Projects'!D27 -> 0.2 | H17: ='All Rev & Projects'!E27 -> Loan to Value Ratio | I17: 0 | K17: =IFERROR('All Rev & Projects'!F27,0) -> 0 | L17: =IFERROR('All Rev & Projects'!G27,0) -> 0 | M17: =IFERROR('All Rev & Projects'!H27,0) -> 0 | N17: =IFERROR('All Rev & Projects'!I27,0) -> 0 | O17: =IFERROR('All Rev & Projects'!J27,0) -> 0 | P17: =IFERROR('All Rev & Projects'!K27,0) -> 0 | Q17: =IFERROR('All Rev & Projects'!L27,0) -> 0 | R17: =IFERROR('All Rev & Projects'!M27,0) -> 0 | S17: =IFERROR('All Rev & Projects'!N27,0) -> 0 | T17: =IFERROR('All Rev & Projects'!O27,0) -> 0 | U17: =IFERROR('All Rev & Projects'!P27,0) -> 0 | V17: =IFERROR('All Rev & Projects'!Q27,0) -> 0 | W17: =IFERROR('All Rev & Projects'!R27,0) -> 0 | X17: =IFERROR('All Rev & Projects'!S27,0) -> 0 | Y17: =IFERROR('All Rev & Projects'!T27,0) -> 0 | Z17: =IFERROR('All Rev & Projects'!U27,0) -> 0 | AA17: =IFERROR('All Rev & Projects'!V27,0) -> 0
A18: 0 | B18: 0 | C18: FALSE | D18: 0 | E18: ='All Rev & Projects'!C28 -> 0 | F18: ='All Rev & Projects'!D28 -> 0.03391304348 | H18: ='All Rev & Projects'!E28 -> Earning Rate | I18: 0 | K18: =IFERROR('All Rev & Projects'!F28,0) -> 0 | L18: =IFERROR('All Rev & Projects'!G28,0) -> 0 | M18: =IFERROR('All Rev & Projects'!H28,0) -> 0 | N18: =IFERROR('All Rev & Projects'!I28,0) -> 0 | O18: =IFERROR('All Rev & Projects'!J28,0) -> 0 | P18: =IFERROR('All Rev & Projects'!K28,0) -> 0 | Q18: =IFERROR('All Rev & Projects'!L28,0) -> 0 | R18: =IFERROR('All Rev & Projects'!M28,0) -> 0 | S18: =IFERROR('All Rev & Projects'!N28,0) -> 0 | T18: =IFERROR('All Rev & Projects'!O28,0) -> 0 | U18: =IFERROR('All Rev & Projects'!P28,0) -> 0 | V18: =IFERROR('All Rev & Projects'!Q28,0) -> 0 | W18: =IFERROR('All Rev & Projects'!R28,0) -> 0 | X18: =IFERROR('All Rev & Projects'!S28,0) -> 0 | Y18: =IFERROR('All Rev & Projects'!T28,0) -> 0 | Z18: =IFERROR('All Rev & Projects'!U28,0) -> 0 | AA18: =IFERROR('All Rev & Projects'!V28,0) -> 0
A19: 0 | B19: 0 | C19: FALSE | D19: 0 | E19: ='All Rev & Projects'!C29 -> FALSE | F19: ='All Rev & Projects'!D29 -> No | G19: Financial Adjustments | H19: ='All Rev & Projects'!E29 -> Securitization Revenue | I19: 0 | J19: Market might not contain liquidity for this financial action. The optics of leveraging states assets also pose a political problem. | K19: =IFERROR('All Rev & Projects'!F29,0) -> 0 | L19: =IFERROR('All Rev & Projects'!G29,0) -> 0 | M19: =IFERROR('All Rev & Projects'!H29,0) -> 0 | N19: =IFERROR('All Rev & Projects'!I29,0) -> 0 | O19: =IFERROR('All Rev & Projects'!J29,0) -> 0 | P19: =IFERROR('All Rev & Projects'!K29,0) -> 0 | Q19: =IFERROR('All Rev & Projects'!L29,0) -> 0 | R19: =IFERROR('All Rev & Projects'!M29,0) -> 0 | S19: =IFERROR('All Rev & Projects'!N29,0) -> 0 | T19: =IFERROR('All Rev & Projects'!O29,0) -> 0 | U19: =IFERROR('All Rev & Projects'!P29,0) -> 0 | V19: =IFERROR('All Rev & Projects'!Q29,0) -> 0 | W19: =IFERROR('All Rev & Projects'!R29,0) -> 0 | X19: =IFERROR('All Rev & Projects'!S29,0) -> 0 | Y19: =IFERROR('All Rev & Projects'!T29,0) -> 0 | Z19: =IFERROR('All Rev & Projects'!U29,0) -> 0 | AA19: =IFERROR('All Rev & Projects'!V29,0) -> 0
A20: 0 | B20: 0 | C20: FALSE | D20: 0 | E20: ='All Rev & Projects'!C30 -> 0 | F20: ='All Rev & Projects'!D30 -> 0.06 | H20: ='All Rev & Projects'!E30 -> Securitization Bond Interest | I20: 0 | K20: =IFERROR('All Rev & Projects'!F30,0) -> 0 | L20: =IFERROR('All Rev & Projects'!G30,0) -> 0 | M20: =IFERROR('All Rev & Projects'!H30,0) -> 0 | N20: =IFERROR('All Rev & Projects'!I30,0) -> 0 | O20: =IFERROR('All Rev & Projects'!J30,0) -> 0 | P20: =IFERROR('All Rev & Projects'!K30,0) -> 0 | Q20: =IFERROR('All Rev & Projects'!L30,0) -> 0 | R20: =IFERROR('All Rev & Projects'!M30,0) -> 0 | S20: =IFERROR('All Rev & Projects'!N30,0) -> 0 | T20: =IFERROR('All Rev & Projects'!O30,0) -> 0 | U20: =IFERROR('All Rev & Projects'!P30,0) -> 0 | V20: =IFERROR('All Rev & Projects'!Q30,0) -> 0 | W20: =IFERROR('All Rev & Projects'!R30,0) -> 0 | X20: =IFERROR('All Rev & Projects'!S30,0) -> 0 | Y20: =IFERROR('All Rev & Projects'!T30,0) -> 0 | Z20: =IFERROR('All Rev & Projects'!U30,0) -> 0 | AA20: =IFERROR('All Rev & Projects'!V30,0) -> 0
A21: 0 | B21: 0 | C21: FALSE | D21: 0 | E21: ='All Rev & Projects'!C31 -> 0 | F21: ='All Rev & Projects'!D31 -> 0 | H21: ='All Rev & Projects'!E31 -> 0 | I21: 0 | K21: =IFERROR('All Rev & Projects'!F31,0) -> 0 | L21: =IFERROR('All Rev & Projects'!G31,0) -> 0 | M21: =IFERROR('All Rev & Projects'!H31,0) -> 0 | N21: =IFERROR('All Rev & Projects'!I31,0) -> 0 | O21: =IFERROR('All Rev & Projects'!J31,0) -> 0 | P21: =IFERROR('All Rev & Projects'!K31,0) -> 0 | Q21: =IFERROR('All Rev & Projects'!L31,0) -> 0 | R21: =IFERROR('All Rev & Projects'!M31,0) -> 0 | S21: =IFERROR('All Rev & Projects'!N31,0) -> 0 | T21: =IFERROR('All Rev & Projects'!O31,0) -> 0 | U21: =IFERROR('All Rev & Projects'!P31,0) -> 0 | V21: =IFERROR('All Rev & Projects'!Q31,0) -> 0 | W21: =IFERROR('All Rev & Projects'!R31,0) -> 0 | X21: =IFERROR('All Rev & Projects'!S31,0) -> 0 | Y21: =IFERROR('All Rev & Projects'!T31,0) -> 0 | Z21: =IFERROR('All Rev & Projects'!U31,0) -> 0 | AA21: =IFERROR('All Rev & Projects'!V31,0) -> 0
A22: 0 | B22: 0 | C22: FALSE | D22: 0 | E22: ='All Rev & Projects'!C32 -> 0 | F22: ='All Rev & Projects'!D32 -> 0 | H22: ='All Rev & Projects'!E32 -> Petroleum | I22: 0 | K22: =IFERROR('All Rev & Projects'!F32,0) -> 0 | L22: =IFERROR('All Rev & Projects'!G32,0) -> 0 | M22: =IFERROR('All Rev & Projects'!H32,0) -> 0 | N22: =IFERROR('All Rev & Projects'!I32,0) -> 0 | O22: =IFERROR('All Rev & Projects'!J32,0) -> 0 | P22: =IFERROR('All Rev & Projects'!K32,0) -> 0 | Q22: =IFERROR('All Rev & Projects'!L32,0) -> 0 | R22: =IFERROR('All Rev & Projects'!M32,0) -> 0 | S22: =IFERROR('All Rev & Projects'!N32,0) -> 0 | T22: =IFERROR('All Rev & Projects'!O32,0) -> 0 | U22: =IFERROR('All Rev & Projects'!P32,0) -> 0 | V22: =IFERROR('All Rev & Projects'!Q32,0) -> 0 | W22: =IFERROR('All Rev & Projects'!R32,0) -> 0 | X22: =IFERROR('All Rev & Projects'!S32,0) -> 0 | Y22: =IFERROR('All Rev & Projects'!T32,0) -> 0 | Z22: =IFERROR('All Rev & Projects'!U32,0) -> 0 | AA22: =IFERROR('All Rev & Projects'!V32,0) -> 0
A23: 0 | B23: 0 | C23: FALSE | D23: 0 | E23: ='All Rev & Projects'!C33 -> FALSE | F23: ='All Rev & Projects'!D33 -> No | G23: Additional Tax Revenue | H23: ='All Rev & Projects'!E33 -> Flat Tax for Non-CIT Petroleum Companies | I23: 0 | J23: May cause additional entry requirements and reporting expenses to these companies . Changes in the Oil and Gas tax structure may negatively impact investment in oil and gas infrastructure in the state. | K23: =IFERROR('All Rev & Projects'!F33,0) -> 0 | L23: =IFERROR('All Rev & Projects'!G33,0) -> 0 | M23: =IFERROR('All Rev & Projects'!H33,0) -> 0 | N23: =IFERROR('All Rev & Projects'!I33,0) -> 0 | O23: =IFERROR('All Rev & Projects'!J33,0) -> 0 | P23: =IFERROR('All Rev & Projects'!K33,0) -> 0 | Q23: =IFERROR('All Rev & Projects'!L33,0) -> 0 | R23: =IFERROR('All Rev & Projects'!M33,0) -> 0 | S23: =IFERROR('All Rev & Projects'!N33,0) -> 0 | T23: =IFERROR('All Rev & Projects'!O33,0) -> 0 | U23: =IFERROR('All Rev & Projects'!P33,0) -> 0 | V23: =IFERROR('All Rev & Projects'!Q33,0) -> 0 | W23: =IFERROR('All Rev & Projects'!R33,0) -> 0 | X23: =IFERROR('All Rev & Projects'!S33,0) -> 0 | Y23: =IFERROR('All Rev & Projects'!T33,0) -> 0 | Z23: =IFERROR('All Rev & Projects'!U33,0) -> 0 | AA23: =IFERROR('All Rev & Projects'!V33,0) -> 0
A24: 0 | B24: 0 | C24: FALSE | D24: 0 | E24: ='All Rev & Projects'!C34 -> 0 | F24: ='All Rev & Projects'!D34 -> 0 | H24: ='All Rev & Projects'!E34 -> Flat Tax Based on 12.5% GVPP | I24: 0 | K24: =IFERROR('All Rev & Projects'!F34,0) -> 0 | L24: =IFERROR('All Rev & Projects'!G34,0) -> 0 | M24: =IFERROR('All Rev & Projects'!H34,0) -> 0 | N24: =IFERROR('All Rev & Projects'!I34,0) -> 0 | O24: =IFERROR('All Rev & Projects'!J34,0) -> 0 | P24: =IFERROR('All Rev & Projects'!K34,0) -> 0 | Q24: =IFERROR('All Rev & Projects'!L34,0) -> 0 | R24: =IFERROR('All Rev & Projects'!M34,0) -> 0 | S24: =IFERROR('All Rev & Projects'!N34,0) -> 0 | T24: =IFERROR('All Rev & Projects'!O34,0) -> 0 | U24: =IFERROR('All Rev & Projects'!P34,0) -> 0 | V24: =IFERROR('All Rev & Projects'!Q34,0) -> 0 | W24: =IFERROR('All Rev & Projects'!R34,0) -> 0 | X24: =IFERROR('All Rev & Projects'!S34,0) -> 0 | Y24: =IFERROR('All Rev & Projects'!T34,0) -> 0 | Z24: =IFERROR('All Rev & Projects'!U34,0) -> 0 | AA24: =IFERROR('All Rev & Projects'!V34,0) -> 0
A25: 0 | B25: 0 | C25: FALSE | D25: 0 | E25: ='All Rev & Projects'!C35 -> 0 | F25: ='All Rev & Projects'!D35 -> 0 | H25: ='All Rev & Projects'!E35 -> 0 | I25: 0 | K25: =IFERROR('All Rev & Projects'!F35,0) -> 0 | L25: =IFERROR('All Rev & Projects'!G35,0) -> 0 | M25: =IFERROR('All Rev & Projects'!H35,0) -> 0 | N25: =IFERROR('All Rev & Projects'!I35,0) -> 0 | O25: =IFERROR('All Rev & Projects'!J35,0) -> 0 | P25: =IFERROR('All Rev & Projects'!K35,0) -> 0 | Q25: =IFERROR('All Rev & Projects'!L35,0) -> 0 | R25: =IFERROR('All Rev & Projects'!M35,0) -> 0 | S25: =IFERROR('All Rev & Projects'!N35,0) -> 0 | T25: =IFERROR('All Rev & Projects'!O35,0) -> 0 | U25: =IFERROR('All Rev & Projects'!P35,0) -> 0 | V25: =IFERROR('All Rev & Projects'!Q35,0) -> 0 | W25: =IFERROR('All Rev & Projects'!R35,0) -> 0 | X25: =IFERROR('All Rev & Projects'!S35,0) -> 0 | Y25: =IFERROR('All Rev & Projects'!T35,0) -> 0 | Z25: =IFERROR('All Rev & Projects'!U35,0) -> 0 | AA25: =IFERROR('All Rev & Projects'!V35,0) -> 0
A26: 0 | B26: 0 | C26: FALSE | D26: 0 | E26: ='All Rev & Projects'!C36 -> FALSE | F26: ='All Rev & Projects'!D36 -> No | H26: ='All Rev & Projects'!E36 -> Net Severance Tax - Additional Revenue | I26: 0 | J26: 0 | K26: =IFERROR('All Rev & Projects'!F36,0) -> 0 | L26: =IFERROR('All Rev & Projects'!G36,0) -> 0 | M26: =IFERROR('All Rev & Projects'!H36,0) -> 0 | N26: =IFERROR('All Rev & Projects'!I36,0) -> 0 | O26: =IFERROR('All Rev & Projects'!J36,0) -> 0 | P26: =IFERROR('All Rev & Projects'!K36,0) -> 0 | Q26: =IFERROR('All Rev & Projects'!L36,0) -> 0 | R26: =IFERROR('All Rev & Projects'!M36,0) -> 0 | S26: =IFERROR('All Rev & Projects'!N36,0) -> 0 | T26: =IFERROR('All Rev & Projects'!O36,0) -> 0 | U26: =IFERROR('All Rev & Projects'!P36,0) -> 0 | V26: =IFERROR('All Rev & Projects'!Q36,0) -> 0 | W26: =IFERROR('All Rev & Projects'!R36,0) -> 0 | X26: =IFERROR('All Rev & Projects'!S36,0) -> 0 | Y26: =IFERROR('All Rev & Projects'!T36,0) -> 0 | Z26: =IFERROR('All Rev & Projects'!U36,0) -> 0 | AA26: =IFERROR('All Rev & Projects'!V36,0) -> 0
A27: 0 | B27: 0 | C27: FALSE | D27: 0 | E27: ='All Rev & Projects'!C37 -> 8 | F27: ='All Rev & Projects'!D37 -> 0.35 | H27: ='All Rev & Projects'!E37 -> Net Severance Base Tax Rate | I27: 29779.61538 | K27: =IFERROR('All Rev & Projects'!F37,0) -> 0 | L27: =IFERROR('All Rev & Projects'!G37,0) -> 0 | M27: =IFERROR('All Rev & Projects'!H37,0) -> 877.6923077 | N27: =IFERROR('All Rev & Projects'!I37,0) -> 2110.769231 | O27: =IFERROR('All Rev & Projects'!J37,0) -> 2105.384615 | P27: =IFERROR('All Rev & Projects'!K37,0) -> 2363.846154 | Q27: =IFERROR('All Rev & Projects'!L37,0) -> 2791.923077 | R27: =IFERROR('All Rev & Projects'!M37,0) -> 2560.384615 | S27: =IFERROR('All Rev & Projects'!N37,0) -> 2388.076923 | T27: =IFERROR('All Rev & Projects'!O37,0) -> 2355.769231 | U27: =IFERROR('All Rev & Projects'!P37,0) -> 2272.307692 | V27: =IFERROR('All Rev & Projects'!Q37,0) -> 2067.692308 | W27: =IFERROR('All Rev & Projects'!R37,0) -> 1868.461538 | X27: =IFERROR('All Rev & Projects'!S37,0) -> 1704.230769 | Y27: =IFERROR('All Rev & Projects'!T37,0) -> 1572.307692 | Z27: =IFERROR('All Rev & Projects'!U37,0) -> 1429.615385 | AA27: =IFERROR('All Rev & Projects'!V37,0) -> 1311.153846
A28: 0 | B28: 0 | C28: FALSE | D28: 0 | E28: ='All Rev & Projects'!C38 -> FALSE | F28: ='All Rev & Projects'!D38 -> No | H28: ='All Rev & Projects'!E38 -> Remove Gross Value Reduction | I28: 2507.534922 | J28: Reduces oil companies incentives to explore and produce new oil. | K28: =IFERROR('All Rev & Projects'!F38,0) -> 0 | L28: =IFERROR('All Rev & Projects'!G38,0) -> 0 | M28: =IFERROR('All Rev & Projects'!H38,0) -> 25.64875363 | N28: =IFERROR('All Rev & Projects'!I38,0) -> 169.4340866 | O28: =IFERROR('All Rev & Projects'!J38,0) -> 217.0170098 | P28: =IFERROR('All Rev & Projects'!K38,0) -> 206.4695433 | Q28: =IFERROR('All Rev & Projects'!L38,0) -> 258.5028635 | R28: =IFERROR('All Rev & Projects'!M38,0) -> 239.9683439 | S28: =IFERROR('All Rev & Projects'!N38,0) -> 206.2965931 | T28: =IFERROR('All Rev & Projects'!O38,0) -> 203.7091843 | U28: =IFERROR('All Rev & Projects'!P38,0) -> 203.7059015 | V28: =IFERROR('All Rev & Projects'!Q38,0) -> 178.1337183 | W28: =IFERROR('All Rev & Projects'!R38,0) -> 154.4246852 | X28: =IFERROR('All Rev & Projects'!S38,0) -> 134.7309603 | Y28: =IFERROR('All Rev & Projects'!T38,0) -> 118.151978 | Z28: =IFERROR('All Rev & Projects'!U38,0) -> 101.7698141 | AA28: =IFERROR('All Rev & Projects'!V38,0) -> 89.57148628
A29: 0 | B29: 0 | C29: FALSE | D29: 0 | E29: ='All Rev & Projects'!C39 -> 0 | F29: ='All Rev & Projects'!D39 -> 0 | H29: ='All Rev & Projects'!E39 -> 0 | I29: 0 | K29: =IFERROR('All Rev & Projects'!F39,0) -> 0 | L29: =IFERROR('All Rev & Projects'!G39,0) -> 0 | M29: =IFERROR('All Rev & Projects'!H39,0) -> 0 | N29: =IFERROR('All Rev & Projects'!I39,0) -> 0 | O29: =IFERROR('All Rev & Projects'!J39,0) -> 0 | P29: =IFERROR('All Rev & Projects'!K39,0) -> 0 | Q29: =IFERROR('All Rev & Projects'!L39,0) -> 0 | R29: =IFERROR('All Rev & Projects'!M39,0) -> 0 | S29: =IFERROR('All Rev & Projects'!N39,0) -> 0 | T29: =IFERROR('All Rev & Projects'!O39,0) -> 0 | U29: =IFERROR('All Rev & Projects'!P39,0) -> 0 | V29: =IFERROR('All Rev & Projects'!Q39,0) -> 0 | W29: =IFERROR('All Rev & Projects'!R39,0) -> 0 | X29: =IFERROR('All Rev & Projects'!S39,0) -> 0 | Y29: =IFERROR('All Rev & Projects'!T39,0) -> 0 | Z29: =IFERROR('All Rev & Projects'!U39,0) -> 0 | AA29: =IFERROR('All Rev & Projects'!V39,0) -> 0
A30: 0 | B30: 0 | C30: FALSE | D30: 0 | E30: ='All Rev & Projects'!C40 -> FALSE | F30: ='All Rev & Projects'!D40 -> No | H30: ='All Rev & Projects'!E40 -> Minimum Tax - Additional Revenue | I30: 0 | J30: Changes in the Oil and Gas tax structure may negatively impact investment in oil and gas infrastructure in the state. | K30: =IFERROR('All Rev & Projects'!F40,0) -> 0 | L30: =IFERROR('All Rev & Projects'!G40,0) -> 0 | M30: =IFERROR('All Rev & Projects'!H40,0) -> 0 | N30: =IFERROR('All Rev & Projects'!I40,0) -> 0 | O30: =IFERROR('All Rev & Projects'!J40,0) -> 0 | P30: =IFERROR('All Rev & Projects'!K40,0) -> 0 | Q30: =IFERROR('All Rev & Projects'!L40,0) -> 0 | R30: =IFERROR('All Rev & Projects'!M40,0) -> 0 | S30: =IFERROR('All Rev & Projects'!N40,0) -> 0 | T30: =IFERROR('All Rev & Projects'!O40,0) -> 0 | U30: =IFERROR('All Rev & Projects'!P40,0) -> 0 | V30: =IFERROR('All Rev & Projects'!Q40,0) -> 0 | W30: =IFERROR('All Rev & Projects'!R40,0) -> 0 | X30: =IFERROR('All Rev & Projects'!S40,0) -> 0 | Y30: =IFERROR('All Rev & Projects'!T40,0) -> 0 | Z30: =IFERROR('All Rev & Projects'!U40,0) -> 0 | AA30: =IFERROR('All Rev & Projects'!V40,0) -> 0
A31: 0 | B31: 0 | C31: FALSE | D31: 0 | E31: ='All Rev & Projects'!C41 -> 1 | F31: ='All Rev & Projects'!D41 -> 0.05 | H31: ='All Rev & Projects'!E41 -> Base Tax Rate (4% is current rate) | I31: 6383.135732 | K31: =IFERROR('All Rev & Projects'!F41,0) -> 0 | L31: =IFERROR('All Rev & Projects'!G41,0) -> 0 | M31: =IFERROR('All Rev & Projects'!H41,0) -> 373.6008801 | N31: =IFERROR('All Rev & Projects'!I41,0) -> 522.7923156 | O31: =IFERROR('All Rev & Projects'!J41,0) -> 508.8942781 | P31: =IFERROR('All Rev & Projects'!K41,0) -> 519.2521975 | Q31: =IFERROR('All Rev & Projects'!L41,0) -> 551.5660058 | R31: =IFERROR('All Rev & Projects'!M41,0) -> 520.2893275 | S31: =IFERROR('All Rev & Projects'!N41,0) -> 485.833373 | T31: =IFERROR('All Rev & Projects'!O41,0) -> 469.8835596 | U31: =IFERROR('All Rev & Projects'!P41,0) -> 447.9634752 | V31: =IFERROR('All Rev & Projects'!Q41,0) -> 404.3458544 | W31: =IFERROR('All Rev & Projects'!R41,0) -> 369.0495233 | X31: =IFERROR('All Rev & Projects'!S41,0) -> 339.0814726 | Y31: =IFERROR('All Rev & Projects'!T41,0) -> 313.9359641 | Z31: =IFERROR('All Rev & Projects'!U41,0) -> 289.1167106 | AA31: =IFERROR('All Rev & Projects'!V41,0) -> 267.5307943
A32: 0 | B32: 0 | C32: FALSE | D32: 0 | E32: ='All Rev & Projects'!C42 -> 0 | F32: ='All Rev & Projects'!D42 -> 0 | H32: ='All Rev & Projects'!E42 -> Taxable Value | I32: 87859.85316 | K32: =IFERROR('All Rev & Projects'!F42,0) -> 0 | L32: =IFERROR('All Rev & Projects'!G42,0) -> 0 | M32: =IFERROR('All Rev & Projects'!H42,0) -> 2553.900222 | N32: =IFERROR('All Rev & Projects'!I42,0) -> 6224.939725 | O32: =IFERROR('All Rev & Projects'!J42,0) -> 6252.982421 | P32: =IFERROR('All Rev & Projects'!K42,0) -> 6974.583664 | Q32: =IFERROR('All Rev & Projects'!L42,0) -> 8248.552852 | R32: =IFERROR('All Rev & Projects'!M42,0) -> 7571.220477 | S32: =IFERROR('All Rev & Projects'!N42,0) -> 7043.954316 | T32: =IFERROR('All Rev & Projects'!O42,0) -> 6947.722519 | U32: =IFERROR('All Rev & Projects'!P42,0) -> 6709.120879 | V32: =IFERROR('All Rev & Projects'!Q42,0) -> 6098.326802 | W32: =IFERROR('All Rev & Projects'!R42,0) -> 5520.331837 | X32: =IFERROR('All Rev & Projects'!S42,0) -> 5028.048927 | Y32: =IFERROR('All Rev & Projects'!T42,0) -> 4635.591757 | Z32: =IFERROR('All Rev & Projects'!U42,0) -> 4203.534735 | AA32: =IFERROR('All Rev & Projects'!V42,0) -> 3847.042032
A33: 0 | B33: 0 | C33: FALSE | D33: 0 | E33: ='All Rev & Projects'!C43 -> 0 | F33: ='All Rev & Projects'!D43 -> 0 | H33: ='All Rev & Projects'!E43 -> Remaining Company Profit | I33: 81476.71743 | K33: =IFERROR('All Rev & Projects'!F43,0) -> 0 | L33: =IFERROR('All Rev & Projects'!G43,0) -> 0 | M33: =IFERROR('All Rev & Projects'!H43,0) -> 2180.299342 | N33: =IFERROR('All Rev & Projects'!I43,0) -> 5702.14741 | O33: =IFERROR('All Rev & Projects'!J43,0) -> 5744.088143 | P33: =IFERROR('All Rev & Projects'!K43,0) -> 6455.331466 | Q33: =IFERROR('All Rev & Projects'!L43,0) -> 7696.986846 | R33: =IFERROR('All Rev & Projects'!M43,0) -> 7050.93115 | S33: =IFERROR('All Rev & Projects'!N43,0) -> 6558.120943 | T33: =IFERROR('All Rev & Projects'!O43,0) -> 6477.838959 | U33: =IFERROR('All Rev & Projects'!P43,0) -> 6261.157404 | V33: =IFERROR('All Rev & Projects'!Q43,0) -> 5693.980948 | W33: =IFERROR('All Rev & Projects'!R43,0) -> 5151.282314 | X33: =IFERROR('All Rev & Projects'!S43,0) -> 4688.967454 | Y33: =IFERROR('All Rev & Projects'!T43,0) -> 4321.655793 | Z33: =IFERROR('All Rev & Projects'!U43,0) -> 3914.418024 | AA33: =IFERROR('All Rev & Projects'!V43,0) -> 3579.511238
A34: 0 | B34: 0 | C34: FALSE | D34: 0 | E34: ='All Rev & Projects'!C44 -> 0 | F34: ='All Rev & Projects'!D44 -> 0 | H34: ='All Rev & Projects'!E44 -> 0 | I34: 0 | K34: =IFERROR('All Rev & Projects'!F44,0) -> 0 | L34: =IFERROR('All Rev & Projects'!G44,0) -> 0 | M34: =IFERROR('All Rev & Projects'!H44,0) -> 0 | N34: =IFERROR('All Rev & Projects'!I44,0) -> 0 | O34: =IFERROR('All Rev & Projects'!J44,0) -> 0 | P34: =IFERROR('All Rev & Projects'!K44,0) -> 0 | Q34: =IFERROR('All Rev & Projects'!L44,0) -> 0 | R34: =IFERROR('All Rev & Projects'!M44,0) -> 0 | S34: =IFERROR('All Rev & Projects'!N44,0) -> 0 | T34: =IFERROR('All Rev & Projects'!O44,0) -> 0 | U34: =IFERROR('All Rev & Projects'!P44,0) -> 0 | V34: =IFERROR('All Rev & Projects'!Q44,0) -> 0 | W34: =IFERROR('All Rev & Projects'!R44,0) -> 0 | X34: =IFERROR('All Rev & Projects'!S44,0) -> 0 | Y34: =IFERROR('All Rev & Projects'!T44,0) -> 0 | Z34: =IFERROR('All Rev & Projects'!U44,0) -> 0 | AA34: =IFERROR('All Rev & Projects'!V44,0) -> 0
A35: 0 | B35: 0 | C35: FALSE | D35: 0 | E35: =OR(E26,E28,E30) -> FALSE | F35: ='All Rev & Projects'!D45 -> 0 | G35: Additional Tax Revenue | H35: ='All Rev & Projects'!E45 -> Severance Tax or Minimum Tax | I35: 0 | J35: Would increase the cost of producing oil which could diminish future oil production. | K35: =IFERROR('All Rev & Projects'!F45,0) -> 0 | L35: =IFERROR('All Rev & Projects'!G45,0) -> 0 | M35: =IFERROR('All Rev & Projects'!H45,0) -> 0 | N35: =IFERROR('All Rev & Projects'!I45,0) -> 0 | O35: =IFERROR('All Rev & Projects'!J45,0) -> 0 | P35: =IFERROR('All Rev & Projects'!K45,0) -> 0 | Q35: =IFERROR('All Rev & Projects'!L45,0) -> 0 | R35: =IFERROR('All Rev & Projects'!M45,0) -> 0 | S35: =IFERROR('All Rev & Projects'!N45,0) -> 0 | T35: =IFERROR('All Rev & Projects'!O45,0) -> 0 | U35: =IFERROR('All Rev & Projects'!P45,0) -> 0 | V35: =IFERROR('All Rev & Projects'!Q45,0) -> 0 | W35: =IFERROR('All Rev & Projects'!R45,0) -> 0 | X35: =IFERROR('All Rev & Projects'!S45,0) -> 0 | Y35: =IFERROR('All Rev & Projects'!T45,0) -> 0 | Z35: =IFERROR('All Rev & Projects'!U45,0) -> 0 | AA35: =IFERROR('All Rev & Projects'!V45,0) -> 0
A36: 0 | B36: 0 | C36: FALSE | D36: 0 | E36: ='All Rev & Projects'!C46 -> 0 | F36: ='All Rev & Projects'!D46 -> 0 | H36: ='All Rev & Projects'!E46 -> 0 | I36: 0 | K36: =IFERROR('All Rev & Projects'!F46,0) -> 0 | L36: =IFERROR('All Rev & Projects'!G46,0) -> 0 | M36: =IFERROR('All Rev & Projects'!H46,0) -> 0 | N36: =IFERROR('All Rev & Projects'!I46,0) -> 0 | O36: =IFERROR('All Rev & Projects'!J46,0) -> 0 | P36: =IFERROR('All Rev & Projects'!K46,0) -> 0 | Q36: =IFERROR('All Rev & Projects'!L46,0) -> 0 | R36: =IFERROR('All Rev & Projects'!M46,0) -> 0 | S36: =IFERROR('All Rev & Projects'!N46,0) -> 0 | T36: =IFERROR('All Rev & Projects'!O46,0) -> 0 | U36: =IFERROR('All Rev & Projects'!P46,0) -> 0 | V36: =IFERROR('All Rev & Projects'!Q46,0) -> 0 | W36: =IFERROR('All Rev & Projects'!R46,0) -> 0 | X36: =IFERROR('All Rev & Projects'!S46,0) -> 0 | Y36: =IFERROR('All Rev & Projects'!T46,0) -> 0 | Z36: =IFERROR('All Rev & Projects'!U46,0) -> 0 | AA36: =IFERROR('All Rev & Projects'!V46,0) -> 0
A37: 0 | B37: 0 | C37: FALSE | D37: 0 | E37: ='All Rev & Projects'!C47 -> 0 | F37: ='All Rev & Projects'!D47 -> 0 | H37: ='All Rev & Projects'!E47 -> 0 | I37: 0 | K37: =IFERROR('All Rev & Projects'!F47,0) -> 0 | L37: =IFERROR('All Rev & Projects'!G47,0) -> 0 | M37: =IFERROR('All Rev & Projects'!H47,0) -> 0 | N37: =IFERROR('All Rev & Projects'!I47,0) -> 0 | O37: =IFERROR('All Rev & Projects'!J47,0) -> 0 | P37: =IFERROR('All Rev & Projects'!K47,0) -> 0 | Q37: =IFERROR('All Rev & Projects'!L47,0) -> 0 | R37: =IFERROR('All Rev & Projects'!M47,0) -> 0 | S37: =IFERROR('All Rev & Projects'!N47,0) -> 0 | T37: =IFERROR('All Rev & Projects'!O47,0) -> 0 | U37: =IFERROR('All Rev & Projects'!P47,0) -> 0 | V37: =IFERROR('All Rev & Projects'!Q47,0) -> 0 | W37: =IFERROR('All Rev & Projects'!R47,0) -> 0 | X37: =IFERROR('All Rev & Projects'!S47,0) -> 0 | Y37: =IFERROR('All Rev & Projects'!T47,0) -> 0 | Z37: =IFERROR('All Rev & Projects'!U47,0) -> 0 | AA37: =IFERROR('All Rev & Projects'!V47,0) -> 0
A38: 0 | B38: 0 | C38: FALSE | D38: 0 | E38: ='All Rev & Projects'!C48 -> FALSE | F38: ='All Rev & Projects'!D48 -> No | G38: Additional Tax Revenue | H38: ='All Rev & Projects'!E48 -> Reserves Tax with Credit Component | I38: 0 | J38: Implementing this law would be seen as an aggressive move by the Alaskan legislature. While the aim of the reserves tax is to hasten development of a natural gas pipeline it could derail the current AKLNG project and result in oil companies giving up leases. This law also could also hurt relationships between Alaska and oil companies. | K38: =IFERROR('All Rev & Projects'!F48,0) -> 0 | L38: =IFERROR('All Rev & Projects'!G48,0) -> 0 | M38: =IFERROR('All Rev & Projects'!H48,0) -> 0 | N38: =IFERROR('All Rev & Projects'!I48,0) -> 0 | O38: =IFERROR('All Rev & Projects'!J48,0) -> 0 | P38: =IFERROR('All Rev & Projects'!K48,0) -> 0 | Q38: =IFERROR('All Rev & Projects'!L48,0) -> 0 | R38: =IFERROR('All Rev & Projects'!M48,0) -> 0 | S38: =IFERROR('All Rev & Projects'!N48,0) -> 0 | T38: =IFERROR('All Rev & Projects'!O48,0) -> 0 | U38: =IFERROR('All Rev & Projects'!P48,0) -> 0 | V38: =IFERROR('All Rev & Projects'!Q48,0) -> 0 | W38: =IFERROR('All Rev & Projects'!R48,0) -> 0 | X38: =IFERROR('All Rev & Projects'!S48,0) -> 0 | Y38: =IFERROR('All Rev & Projects'!T48,0) -> 0 | Z38: =IFERROR('All Rev & Projects'!U48,0) -> 0 | AA38: =IFERROR('All Rev & Projects'!V48,0) -> 0
A39: 0 | B39: 0 | C39: FALSE | D39: 0 | E39: ='All Rev & Projects'!C49 -> 0 | F39: ='All Rev & Projects'!D49 -> 0 | H39: ='All Rev & Projects'!E49 -> 0 | I39: 0 | K39: =IFERROR('All Rev & Projects'!F49,0) -> 0 | L39: =IFERROR('All Rev & Projects'!G49,0) -> 0 | M39: =IFERROR('All Rev & Projects'!H49,0) -> 0 | N39: =IFERROR('All Rev & Projects'!I49,0) -> 0 | O39: =IFERROR('All Rev & Projects'!J49,0) -> 0 | P39: =IFERROR('All Rev & Projects'!K49,0) -> 0 | Q39: =IFERROR('All Rev & Projects'!L49,0) -> 0 | R39: =IFERROR('All Rev & Projects'!M49,0) -> 0 | S39: =IFERROR('All Rev & Projects'!N49,0) -> 0 | T39: =IFERROR('All Rev & Projects'!O49,0) -> 0 | U39: =IFERROR('All Rev & Projects'!P49,0) -> 0 | V39: =IFERROR('All Rev & Projects'!Q49,0) -> 0 | W39: =IFERROR('All Rev & Projects'!R49,0) -> 0 | X39: =IFERROR('All Rev & Projects'!S49,0) -> 0 | Y39: =IFERROR('All Rev & Projects'!T49,0) -> 0 | Z39: =IFERROR('All Rev & Projects'!U49,0) -> 0 | AA39: =IFERROR('All Rev & Projects'!V49,0) -> 0
A40: 0 | B40: 0 | C40: FALSE | D40: 0 | E40: ='All Rev & Projects'!C50 -> 0 | F40: ='All Rev & Projects'!D50 -> 0 | H40: ='All Rev & Projects'!E50 -> 0 | I40: 0 | K40: =IFERROR('All Rev & Projects'!F50,0) -> 0 | L40: =IFERROR('All Rev & Projects'!G50,0) -> 0 | M40: =IFERROR('All Rev & Projects'!H50,0) -> 0 | N40: =IFERROR('All Rev & Projects'!I50,0) -> 0 | O40: =IFERROR('All Rev & Projects'!J50,0) -> 0 | P40: =IFERROR('All Rev & Projects'!K50,0) -> 0 | Q40: =IFERROR('All Rev & Projects'!L50,0) -> 0 | R40: =IFERROR('All Rev & Projects'!M50,0) -> 0 | S40: =IFERROR('All Rev & Projects'!N50,0) -> 0 | T40: =IFERROR('All Rev & Projects'!O50,0) -> 0 | U40: =IFERROR('All Rev & Projects'!P50,0) -> 0 | V40: =IFERROR('All Rev & Projects'!Q50,0) -> 0 | W40: =IFERROR('All Rev & Projects'!R50,0) -> 0 | X40: =IFERROR('All Rev & Projects'!S50,0) -> 0 | Y40: =IFERROR('All Rev & Projects'!T50,0) -> 0 | Z40: =IFERROR('All Rev & Projects'!U50,0) -> 0 | AA40: =IFERROR('All Rev & Projects'!V50,0) -> 0
A41: 0 | B41: 0 | C41: FALSE | D41: 0 | E41: ='All Rev & Projects'!C51 -> 0 | F41: ='All Rev & Projects'!D51 -> 0 | H41: ='All Rev & Projects'!E51 -> 0 | I41: 0 | K41: =IFERROR('All Rev & Projects'!F51,0) -> 0 | L41: =IFERROR('All Rev & Projects'!G51,0) -> 0 | M41: =IFERROR('All Rev & Projects'!H51,0) -> 0 | N41: =IFERROR('All Rev & Projects'!I51,0) -> 0 | O41: =IFERROR('All Rev & Projects'!J51,0) -> 0 | P41: =IFERROR('All Rev & Projects'!K51,0) -> 0 | Q41: =IFERROR('All Rev & Projects'!L51,0) -> 0 | R41: =IFERROR('All Rev & Projects'!M51,0) -> 0 | S41: =IFERROR('All Rev & Projects'!N51,0) -> 0 | T41: =IFERROR('All Rev & Projects'!O51,0) -> 0 | U41: =IFERROR('All Rev & Projects'!P51,0) -> 0 | V41: =IFERROR('All Rev & Projects'!Q51,0) -> 0 | W41: =IFERROR('All Rev & Projects'!R51,0) -> 0 | X41: =IFERROR('All Rev & Projects'!S51,0) -> 0 | Y41: =IFERROR('All Rev & Projects'!T51,0) -> 0 | Z41: =IFERROR('All Rev & Projects'!U51,0) -> 0 | AA41: =IFERROR('All Rev & Projects'!V51,0) -> 0
A42: 0 | B42: 0 | C42: FALSE | D42: 0 | E42: ='All Rev & Projects'!C52 -> 0 | F42: ='All Rev & Projects'!D52 -> 0 | H42: ='All Rev & Projects'!E52 -> Petroleum Credits | I42: 0 | K42: =IFERROR('All Rev & Projects'!F52,0) -> 0 | L42: =IFERROR('All Rev & Projects'!G52,0) -> 0 | M42: =IFERROR('All Rev & Projects'!H52,0) -> 0 | N42: =IFERROR('All Rev & Projects'!I52,0) -> 0 | O42: =IFERROR('All Rev & Projects'!J52,0) -> 0 | P42: =IFERROR('All Rev & Projects'!K52,0) -> 0 | Q42: =IFERROR('All Rev & Projects'!L52,0) -> 0 | R42: =IFERROR('All Rev & Projects'!M52,0) -> 0 | S42: =IFERROR('All Rev & Projects'!N52,0) -> 0 | T42: =IFERROR('All Rev & Projects'!O52,0) -> 0 | U42: =IFERROR('All Rev & Projects'!P52,0) -> 0 | V42: =IFERROR('All Rev & Projects'!Q52,0) -> 0 | W42: =IFERROR('All Rev & Projects'!R52,0) -> 0 | X42: =IFERROR('All Rev & Projects'!S52,0) -> 0 | Y42: =IFERROR('All Rev & Projects'!T52,0) -> 0 | Z42: =IFERROR('All Rev & Projects'!U52,0) -> 0 | AA42: =IFERROR('All Rev & Projects'!V52,0) -> 0
A43: 0 | B43: 0 | C43: FALSE | D43: 0 | E43: ='All Rev & Projects'!C53 -> 0 | F43: ='All Rev & Projects'!D53 -> 0 | H43: ='All Rev & Projects'!E53 -> Refunded Credits | I43: 0 | K43: =IFERROR('All Rev & Projects'!F53,0) -> 0 | L43: =IFERROR('All Rev & Projects'!G53,0) -> 0 | M43: =IFERROR('All Rev & Projects'!H53,0) -> 0 | N43: =IFERROR('All Rev & Projects'!I53,0) -> 0 | O43: =IFERROR('All Rev & Projects'!J53,0) -> 0 | P43: =IFERROR('All Rev & Projects'!K53,0) -> 0 | Q43: =IFERROR('All Rev & Projects'!L53,0) -> 0 | R43: =IFERROR('All Rev & Projects'!M53,0) -> 0 | S43: =IFERROR('All Rev & Projects'!N53,0) -> 0 | T43: =IFERROR('All Rev & Projects'!O53,0) -> 0 | U43: =IFERROR('All Rev & Projects'!P53,0) -> 0 | V43: =IFERROR('All Rev & Projects'!Q53,0) -> 0 | W43: =IFERROR('All Rev & Projects'!R53,0) -> 0 | X43: =IFERROR('All Rev & Projects'!S53,0) -> 0 | Y43: =IFERROR('All Rev & Projects'!T53,0) -> 0 | Z43: =IFERROR('All Rev & Projects'!U53,0) -> 0 | AA43: =IFERROR('All Rev & Projects'!V53,0) -> 0
A44: 0 | B44: 0 | C44: FALSE | D44: 0 | E44: ='All Rev & Projects'!C54 -> 0 | F44: ='All Rev & Projects'!D54 -> 0 | H44: ='All Rev & Projects'!E54 -> North Slope | I44: 0 | K44: =IFERROR('All Rev & Projects'!F54,0) -> 0 | L44: =IFERROR('All Rev & Projects'!G54,0) -> 0 | M44: =IFERROR('All Rev & Projects'!H54,0) -> 0 | N44: =IFERROR('All Rev & Projects'!I54,0) -> 0 | O44: =IFERROR('All Rev & Projects'!J54,0) -> 0 | P44: =IFERROR('All Rev & Projects'!K54,0) -> 0 | Q44: =IFERROR('All Rev & Projects'!L54,0) -> 0 | R44: =IFERROR('All Rev & Projects'!M54,0) -> 0 | S44: =IFERROR('All Rev & Projects'!N54,0) -> 0 | T44: =IFERROR('All Rev & Projects'!O54,0) -> 0 | U44: =IFERROR('All Rev & Projects'!P54,0) -> 0 | V44: =IFERROR('All Rev & Projects'!Q54,0) -> 0 | W44: =IFERROR('All Rev & Projects'!R54,0) -> 0 | X44: =IFERROR('All Rev & Projects'!S54,0) -> 0 | Y44: =IFERROR('All Rev & Projects'!T54,0) -> 0 | Z44: =IFERROR('All Rev & Projects'!U54,0) -> 0 | AA44: =IFERROR('All Rev & Projects'!V54,0) -> 0
A45: 0 | B45: 0 | C45: FALSE | D45: 0 | E45: ='All Rev & Projects'!C55 -> FALSE | F45: ='All Rev & Projects'!D55 -> No | G45: Credit Adjustments | H45: ='All Rev & Projects'!E55 -> Removal of Qualified capital expenditure, AS 43.55.023(a); Carry-forward annual loss, AS 43.55.023(b) | I45: 593.9 | J45: Could hamper investment by companies in Alaska, since these credits are determined by a company’s lease expenditures. Could potentially lead to lower investment and employment. Given that these credits are available for non-North Slope only, could directly impact gas exploration near Fairbanks, as well as gas exploration and production near Anchorage / Mat-Su. | K45: =IFERROR('All Rev & Projects'!F55,0) -> 254 | L45: =IFERROR('All Rev & Projects'!G55,0) -> 339.9 | M45: =IFERROR('All Rev & Projects'!H55,0) -> 0 | N45: =IFERROR('All Rev & Projects'!I55,0) -> 0 | O45: =IFERROR('All Rev & Projects'!J55,0) -> 0 | P45: =IFERROR('All Rev & Projects'!K55,0) -> 0 | Q45: =IFERROR('All Rev & Projects'!L55,0) -> 0 | R45: =IFERROR('All Rev & Projects'!M55,0) -> 0 | S45: =IFERROR('All Rev & Projects'!N55,0) -> 0 | T45: =IFERROR('All Rev & Projects'!O55,0) -> 0 | U45: =IFERROR('All Rev & Projects'!P55,0) -> 0 | V45: =IFERROR('All Rev & Projects'!Q55,0) -> 0 | W45: =IFERROR('All Rev & Projects'!R55,0) -> 0 | X45: =IFERROR('All Rev & Projects'!S55,0) -> 0 | Y45: =IFERROR('All Rev & Projects'!T55,0) -> 0 | Z45: =IFERROR('All Rev & Projects'!U55,0) -> 0 | AA45: =IFERROR('All Rev & Projects'!V55,0) -> 0
A46: 0 | B46: 0 | C46: FALSE | D46: 0 | E46: ='All Rev & Projects'!C56 -> FALSE | F46: ='All Rev & Projects'!D56 -> No | G46: Credit Adjustments | H46: ='All Rev & Projects'!E56 -> Removal of Credits under AS 43.55.025 | I46: 27.286803 | J46: These credits provide incentive for exploratory activity outside of established oil fields, so new exploration activities may be impacted.Pipeline of long-term development opportunities could be reduced. | K46: =IFERROR('All Rev & Projects'!F56,0) -> 27.286803 | L46: =IFERROR('All Rev & Projects'!G56,0) -> 0 | M46: =IFERROR('All Rev & Projects'!H56,0) -> 0 | N46: =IFERROR('All Rev & Projects'!I56,0) -> 0 | O46: =IFERROR('All Rev & Projects'!J56,0) -> 0 | P46: =IFERROR('All Rev & Projects'!K56,0) -> 0 | Q46: =IFERROR('All Rev & Projects'!L56,0) -> 0 | R46: =IFERROR('All Rev & Projects'!M56,0) -> 0 | S46: =IFERROR('All Rev & Projects'!N56,0) -> 0 | T46: =IFERROR('All Rev & Projects'!O56,0) -> 0 | U46: =IFERROR('All Rev & Projects'!P56,0) -> 0 | V46: =IFERROR('All Rev & Projects'!Q56,0) -> 0 | W46: =IFERROR('All Rev & Projects'!R56,0) -> 0 | X46: =IFERROR('All Rev & Projects'!S56,0) -> 0 | Y46: =IFERROR('All Rev & Projects'!T56,0) -> 0 | Z46: =IFERROR('All Rev & Projects'!U56,0) -> 0 | AA46: =IFERROR('All Rev & Projects'!V56,0) -> 0
A47: 0 | B47: 0 | C47: FALSE | D47: 0 | E47: ='All Rev & Projects'!C57 -> 0 | F47: ='All Rev & Projects'!D57 -> 0 | H47: ='All Rev & Projects'!E57 -> Total North Slope | I47: 578.0857652 | K47: =IFERROR('All Rev & Projects'!F57,0) -> 281.286803 | L47: =IFERROR('All Rev & Projects'!G57,0) -> 296.7989622 | M47: =IFERROR('All Rev & Projects'!H57,0) -> 0 | N47: =IFERROR('All Rev & Projects'!I57,0) -> 0 | O47: =IFERROR('All Rev & Projects'!J57,0) -> 0 | P47: =IFERROR('All Rev & Projects'!K57,0) -> 0 | Q47: =IFERROR('All Rev & Projects'!L57,0) -> 0 | R47: =IFERROR('All Rev & Projects'!M57,0) -> 0 | S47: =IFERROR('All Rev & Projects'!N57,0) -> 0 | T47: =IFERROR('All Rev & Projects'!O57,0) -> 0 | U47: =IFERROR('All Rev & Projects'!P57,0) -> 0 | V47: =IFERROR('All Rev & Projects'!Q57,0) -> 0 | W47: =IFERROR('All Rev & Projects'!R57,0) -> 0 | X47: =IFERROR('All Rev & Projects'!S57,0) -> 0 | Y47: =IFERROR('All Rev & Projects'!T57,0) -> 0 | Z47: =IFERROR('All Rev & Projects'!U57,0) -> 0 | AA47: =IFERROR('All Rev & Projects'!V57,0) -> 0
A48: 0 | B48: 0 | C48: FALSE | D48: 0 | E48: ='All Rev & Projects'!C58 -> 0 | F48: ='All Rev & Projects'!D58 -> 0 | H48: ='All Rev & Projects'!E58 -> 0 | I48: 0 | K48: =IFERROR('All Rev & Projects'!F58,0) -> 0 | L48: =IFERROR('All Rev & Projects'!G58,0) -> 0 | M48: =IFERROR('All Rev & Projects'!H58,0) -> 0 | N48: =IFERROR('All Rev & Projects'!I58,0) -> 0 | O48: =IFERROR('All Rev & Projects'!J58,0) -> 0 | P48: =IFERROR('All Rev & Projects'!K58,0) -> 0 | Q48: =IFERROR('All Rev & Projects'!L58,0) -> 0 | R48: =IFERROR('All Rev & Projects'!M58,0) -> 0 | S48: =IFERROR('All Rev & Projects'!N58,0) -> 0 | T48: =IFERROR('All Rev & Projects'!O58,0) -> 0 | U48: =IFERROR('All Rev & Projects'!P58,0) -> 0 | V48: =IFERROR('All Rev & Projects'!Q58,0) -> 0 | W48: =IFERROR('All Rev & Projects'!R58,0) -> 0 | X48: =IFERROR('All Rev & Projects'!S58,0) -> 0 | Y48: =IFERROR('All Rev & Projects'!T58,0) -> 0 | Z48: =IFERROR('All Rev & Projects'!U58,0) -> 0 | AA48: =IFERROR('All Rev & Projects'!V58,0) -> 0
A49: 0 | B49: 0 | C49: FALSE | D49: 0 | E49: ='All Rev & Projects'!C59 -> 0 | F49: ='All Rev & Projects'!D59 -> 0 | H49: ='All Rev & Projects'!E59 -> Non-North Slope | I49: 0 | K49: =IFERROR('All Rev & Projects'!F59,0) -> 0 | L49: =IFERROR('All Rev & Projects'!G59,0) -> 0 | M49: =IFERROR('All Rev & Projects'!H59,0) -> 0 | N49: =IFERROR('All Rev & Projects'!I59,0) -> 0 | O49: =IFERROR('All Rev & Projects'!J59,0) -> 0 | P49: =IFERROR('All Rev & Projects'!K59,0) -> 0 | Q49: =IFERROR('All Rev & Projects'!L59,0) -> 0 | R49: =IFERROR('All Rev & Projects'!M59,0) -> 0 | S49: =IFERROR('All Rev & Projects'!N59,0) -> 0 | T49: =IFERROR('All Rev & Projects'!O59,0) -> 0 | U49: =IFERROR('All Rev & Projects'!P59,0) -> 0 | V49: =IFERROR('All Rev & Projects'!Q59,0) -> 0 | W49: =IFERROR('All Rev & Projects'!R59,0) -> 0 | X49: =IFERROR('All Rev & Projects'!S59,0) -> 0 | Y49: =IFERROR('All Rev & Projects'!T59,0) -> 0 | Z49: =IFERROR('All Rev & Projects'!U59,0) -> 0 | AA49: =IFERROR('All Rev & Projects'!V59,0) -> 0
A50: 0 | B50: 0 | C50: FALSE | D50: 0 | E50: ='All Rev & Projects'!C60 -> FALSE | F50: ='All Rev & Projects'!D60 -> No | G50: Credit Adjustments | H50: ='All Rev & Projects'!E60 -> Removal of Carry-forward annual loss, AS 43.55.023(b) | I50: 279.5348 | J50: Could hamper investment by companies in Alaska, since these credits are determined by a company’s lease expenditures. Could potentially lead to lower investment and employment. Given that these credits are available for non-North Slope only, could directly impact gas exploration near Fairbanks, as well as gas exploration and production near Anchorage / Mat-Su. | K50: =IFERROR('All Rev & Projects'!F60,0) -> * | L50: =IFERROR('All Rev & Projects'!G60,0) -> 279.5348 | M50: =IFERROR('All Rev & Projects'!H60,0) -> 0 | N50: =IFERROR('All Rev & Projects'!I60,0) -> 0 | O50: =IFERROR('All Rev & Projects'!J60,0) -> 0 | P50: =IFERROR('All Rev & Projects'!K60,0) -> 0 | Q50: =IFERROR('All Rev & Projects'!L60,0) -> 0 | R50: =IFERROR('All Rev & Projects'!M60,0) -> 0 | S50: =IFERROR('All Rev & Projects'!N60,0) -> 0 | T50: =IFERROR('All Rev & Projects'!O60,0) -> 0 | U50: =IFERROR('All Rev & Projects'!P60,0) -> 0 | V50: =IFERROR('All Rev & Projects'!Q60,0) -> 0 | W50: =IFERROR('All Rev & Projects'!R60,0) -> 0 | X50: =IFERROR('All Rev & Projects'!S60,0) -> 0 | Y50: =IFERROR('All Rev & Projects'!T60,0) -> 0 | Z50: =IFERROR('All Rev & Projects'!U60,0) -> 0 | AA50: =IFERROR('All Rev & Projects'!V60,0) -> 0
A51: 0 | B51: 0 | C51: FALSE | D51: 0 | E51: ='All Rev & Projects'!C61 -> FALSE | F51: ='All Rev & Projects'!D61 -> No | G51: Credit Adjustments | H51: ='All Rev & Projects'!E61 -> Removal of Qualified capital expenditure, AS 43.55.023(a)& Well lease expenditure, AS 43.55.023(l) | I51: 0 | J51: Could hamper investment by companies in Alaska, since these credits are determined by a company’s lease expenditures. Could potentially lead to lower investment and employment. Given that these credits are available for non-North Slope only, could directly impact gas exploration near Fairbanks, as well as gas exploration and production near Anchorage / Mat-Su. | K51: =IFERROR('All Rev & Projects'!F61,0) -> * | L51: =IFERROR('All Rev & Projects'!G61,0) -> 0 | M51: =IFERROR('All Rev & Projects'!H61,0) -> 0 | N51: =IFERROR('All Rev & Projects'!I61,0) -> 0 | O51: =IFERROR('All Rev & Projects'!J61,0) -> 0 | P51: =IFERROR('All Rev & Projects'!K61,0) -> 0 | Q51: =IFERROR('All Rev & Projects'!L61,0) -> 0 | R51: =IFERROR('All Rev & Projects'!M61,0) -> 0 | S51: =IFERROR('All Rev & Projects'!N61,0) -> 0 | T51: =IFERROR('All Rev & Projects'!O61,0) -> 0 | U51: =IFERROR('All Rev & Projects'!P61,0) -> 0 | V51: =IFERROR('All Rev & Projects'!Q61,0) -> 0 | W51: =IFERROR('All Rev & Projects'!R61,0) -> 0 | X51: =IFERROR('All Rev & Projects'!S61,0) -> 0 | Y51: =IFERROR('All Rev & Projects'!T61,0) -> 0 | Z51: =IFERROR('All Rev & Projects'!U61,0) -> 0 | AA51: =IFERROR('All Rev & Projects'!V61,0) -> 0
A52: 0 | B52: 0 | C52: FALSE | D52: 0 | E52: ='All Rev & Projects'!C62 -> FALSE | F52: ='All Rev & Projects'!D62 -> No | G52: Credit Adjustments | H52: ='All Rev & Projects'!E62 -> Removal of Credits under AS 43.55.025 | I52: 31 | J52: These credits provide incentive for exploratory activity outside of established oil fields, so new exploration activities may be impacted.Pipeline of long-term development opportunities could be reduced. | K52: =IFERROR('All Rev & Projects'!F62,0) -> * | L52: =IFERROR('All Rev & Projects'!G62,0) -> 31 | M52: =IFERROR('All Rev & Projects'!H62,0) -> 0 | N52: =IFERROR('All Rev & Projects'!I62,0) -> 0 | O52: =IFERROR('All Rev & Projects'!J62,0) -> 0 | P52: =IFERROR('All Rev & Projects'!K62,0) -> 0 | Q52: =IFERROR('All Rev & Projects'!L62,0) -> 0 | R52: =IFERROR('All Rev & Projects'!M62,0) -> 0 | S52: =IFERROR('All Rev & Projects'!N62,0) -> 0 | T52: =IFERROR('All Rev & Projects'!O62,0) -> 0 | U52: =IFERROR('All Rev & Projects'!P62,0) -> 0 | V52: =IFERROR('All Rev & Projects'!Q62,0) -> 0 | W52: =IFERROR('All Rev & Projects'!R62,0) -> 0 | X52: =IFERROR('All Rev & Projects'!S62,0) -> 0 | Y52: =IFERROR('All Rev & Projects'!T62,0) -> 0 | Z52: =IFERROR('All Rev & Projects'!U62,0) -> 0 | AA52: =IFERROR('All Rev & Projects'!V62,0) -> 0
A53: 0 | B53: 0 | C53: FALSE | D53: 0 | E53: ='All Rev & Projects'!C63 -> FALSE | F53: ='All Rev & Projects'!D63 -> No | G53: Credit Adjustments | H53: ='All Rev & Projects'!E63 -> Removal of Credits under AS 43.20 | I53: 0 | K53: =IFERROR('All Rev & Projects'!F63,0) -> * | L53: =IFERROR('All Rev & Projects'!G63,0) -> 0 | M53: =IFERROR('All Rev & Projects'!H63,0) -> 0 | N53: =IFERROR('All Rev & Projects'!I63,0) -> 0 | O53: =IFERROR('All Rev & Projects'!J63,0) -> 0 | P53: =IFERROR('All Rev & Projects'!K63,0) -> 0 | Q53: =IFERROR('All Rev & Projects'!L63,0) -> 0 | R53: =IFERROR('All Rev & Projects'!M63,0) -> 0 | S53: =IFERROR('All Rev & Projects'!N63,0) -> 0 | T53: =IFERROR('All Rev & Projects'!O63,0) -> 0 | U53: =IFERROR('All Rev & Projects'!P63,0) -> 0 | V53: =IFERROR('All Rev & Projects'!Q63,0) -> 0 | W53: =IFERROR('All Rev & Projects'!R63,0) -> 0 | X53: =IFERROR('All Rev & Projects'!S63,0) -> 0 | Y53: =IFERROR('All Rev & Projects'!T63,0) -> 0 | Z53: =IFERROR('All Rev & Projects'!U63,0) -> 0 | AA53: =IFERROR('All Rev & Projects'!V63,0) -> 0
A54: 0 | B54: 0 | C54: FALSE | D54: 0 | E54: ='All Rev & Projects'!C64 -> 0 | F54: ='All Rev & Projects'!D64 -> 0 | H54: ='All Rev & Projects'!E64 -> Total Non-North Slope | I54: 622.5348 | K54: =IFERROR('All Rev & Projects'!F64,0) -> 312 | L54: =IFERROR('All Rev & Projects'!G64,0) -> 310.5348 | M54: =IFERROR('All Rev & Projects'!H64,0) -> 0 | N54: =IFERROR('All Rev & Projects'!I64,0) -> 0 | O54: =IFERROR('All Rev & Projects'!J64,0) -> 0 | P54: =IFERROR('All Rev & Projects'!K64,0) -> 0 | Q54: =IFERROR('All Rev & Projects'!L64,0) -> 0 | R54: =IFERROR('All Rev & Projects'!M64,0) -> 0 | S54: =IFERROR('All Rev & Projects'!N64,0) -> 0 | T54: =IFERROR('All Rev & Projects'!O64,0) -> 0 | U54: =IFERROR('All Rev & Projects'!P64,0) -> 0 | V54: =IFERROR('All Rev & Projects'!Q64,0) -> 0 | W54: =IFERROR('All Rev & Projects'!R64,0) -> 0 | X54: =IFERROR('All Rev & Projects'!S64,0) -> 0 | Y54: =IFERROR('All Rev & Projects'!T64,0) -> 0 | Z54: =IFERROR('All Rev & Projects'!U64,0) -> 0 | AA54: =IFERROR('All Rev & Projects'!V64,0) -> 0
A55: 0 | B55: 0 | C55: FALSE | D55: 0 | E55: ='All Rev & Projects'!C65 -> 0 | F55: ='All Rev & Projects'!D65 -> 0 | H55: ='All Rev & Projects'!E65 -> 0 | I55: 0 | K55: =IFERROR('All Rev & Projects'!F65,0) -> 0 | L55: =IFERROR('All Rev & Projects'!G65,0) -> 0 | M55: =IFERROR('All Rev & Projects'!H65,0) -> 0 | N55: =IFERROR('All Rev & Projects'!I65,0) -> 0 | O55: =IFERROR('All Rev & Projects'!J65,0) -> 0 | P55: =IFERROR('All Rev & Projects'!K65,0) -> 0 | Q55: =IFERROR('All Rev & Projects'!L65,0) -> 0 | R55: =IFERROR('All Rev & Projects'!M65,0) -> 0 | S55: =IFERROR('All Rev & Projects'!N65,0) -> 0 | T55: =IFERROR('All Rev & Projects'!O65,0) -> 0 | U55: =IFERROR('All Rev & Projects'!P65,0) -> 0 | V55: =IFERROR('All Rev & Projects'!Q65,0) -> 0 | W55: =IFERROR('All Rev & Projects'!R65,0) -> 0 | X55: =IFERROR('All Rev & Projects'!S65,0) -> 0 | Y55: =IFERROR('All Rev & Projects'!T65,0) -> 0 | Z55: =IFERROR('All Rev & Projects'!U65,0) -> 0 | AA55: =IFERROR('All Rev & Projects'!V65,0) -> 0
A56: 0 | B56: 0 | C56: FALSE | D56: 0 | E56: ='All Rev & Projects'!C67 -> 0 | F56: ='All Rev & Projects'!D67 -> 0 | H56: ='All Rev & Projects'!E66 -> Total Refunded Credits | I56: 1218.286803 | K56: =IFERROR('All Rev & Projects'!F66,0) -> 593.286803 | L56: =IFERROR('All Rev & Projects'!G66,0) -> 625 | M56: =IFERROR('All Rev & Projects'!H66,0) -> 0 | N56: =IFERROR('All Rev & Projects'!I66,0) -> 0 | O56: =IFERROR('All Rev & Projects'!J66,0) -> 0 | P56: =IFERROR('All Rev & Projects'!K66,0) -> 0 | Q56: =IFERROR('All Rev & Projects'!L66,0) -> 0 | R56: =IFERROR('All Rev & Projects'!M66,0) -> 0 | S56: =IFERROR('All Rev & Projects'!N66,0) -> 0 | T56: =IFERROR('All Rev & Projects'!O66,0) -> 0 | U56: =IFERROR('All Rev & Projects'!P66,0) -> 0 | V56: =IFERROR('All Rev & Projects'!Q66,0) -> 0 | W56: =IFERROR('All Rev & Projects'!R66,0) -> 0 | X56: =IFERROR('All Rev & Projects'!S66,0) -> 0 | Y56: =IFERROR('All Rev & Projects'!T66,0) -> 0 | Z56: =IFERROR('All Rev & Projects'!U66,0) -> 0 | AA56: =IFERROR('All Rev & Projects'!V66,0) -> 0
A57: 0 | B57: 0 | C57: FALSE | D57: 0 | E57: ='All Rev & Projects'!C68 -> 0 | F57: ='All Rev & Projects'!D68 -> 0 | G57: Credit Adjustments | H57: ='All Rev & Projects'!E67 -> 0 | I57: =SUM(K57:AA57) -> 0 | K57: =IFERROR('All Rev & Projects'!F67,0) -> 0 | L57: =IFERROR('All Rev & Projects'!G67,0) -> 0 | M57: =IFERROR('All Rev & Projects'!H67,0) -> 0 | N57: =IFERROR('All Rev & Projects'!I67,0) -> 0 | O57: =IFERROR('All Rev & Projects'!J67,0) -> 0 | P57: =IFERROR('All Rev & Projects'!K67,0) -> 0 | Q57: =IFERROR('All Rev & Projects'!L67,0) -> 0 | R57: =IFERROR('All Rev & Projects'!M67,0) -> 0 | S57: =IFERROR('All Rev & Projects'!N67,0) -> 0 | T57: =IFERROR('All Rev & Projects'!O67,0) -> 0 | U57: =IFERROR('All Rev & Projects'!P67,0) -> 0 | V57: =IFERROR('All Rev & Projects'!Q67,0) -> 0 | W57: =IFERROR('All Rev & Projects'!R67,0) -> 0 | X57: =IFERROR('All Rev & Projects'!S67,0) -> 0 | Y57: =IFERROR('All Rev & Projects'!T67,0) -> 0 | Z57: =IFERROR('All Rev & Projects'!U67,0) -> 0 | AA57: =IFERROR('All Rev & Projects'!V67,0) -> 0
A58: 0 | B58: 0 | C58: FALSE | D58: 0 | E58: ='All Rev & Projects'!C69 -> 0 | F58: ='All Rev & Projects'!D69 -> 0 | H58: ='All Rev & Projects'!E68 -> Default Total Refunded Credits | I58: =SUM(K58:AA58) -> 5918.169374 | K58: =IFERROR('All Rev & Projects'!F68,0) -> 0 | L58: =IFERROR('All Rev & Projects'!G68,0) -> 0 | M58: =IFERROR('All Rev & Projects'!H68,0) -> 688.9691 | N58: =IFERROR('All Rev & Projects'!I68,0) -> 433.9224 | O58: =IFERROR('All Rev & Projects'!J68,0) -> 312.48504 | P58: =IFERROR('All Rev & Projects'!K68,0) -> 250.1515695 | Q58: =IFERROR('All Rev & Projects'!L68,0) -> 281.9655695 | R58: =IFERROR('All Rev & Projects'!M68,0) -> 282.1023695 | S58: =IFERROR('All Rev & Projects'!N68,0) -> 307.1023695 | T58: =IFERROR('All Rev & Projects'!O68,0) -> 332.1023695 | U58: =IFERROR('All Rev & Projects'!P68,0) -> 381.1031695 | V58: =IFERROR('All Rev & Projects'!Q68,0) -> 381.1031695 | W58: =IFERROR('All Rev & Projects'!R68,0) -> 454.8012695 | X58: =IFERROR('All Rev & Projects'!S68,0) -> 454.1066695 | Y58: =IFERROR('All Rev & Projects'!T68,0) -> 453.3552695 | Z58: =IFERROR('All Rev & Projects'!U68,0) -> 452.7720695 | AA58: =IFERROR('All Rev & Projects'!V68,0) -> 452.1269695
A59: 0 | B59: 0 | C59: FALSE | D59: 0 | E59: ='All Rev & Projects'!C69 -> 0 | F59: ='All Rev & Projects'!D69 -> 0 | H59: ='All Rev & Projects'!E69 -> 0 | I59: 0 | K59: =IFERROR('All Rev & Projects'!F69,0) -> 0 | L59: =IFERROR('All Rev & Projects'!G69,0) -> 0 | M59: =IFERROR('All Rev & Projects'!H69,0) -> 0 | N59: =IFERROR('All Rev & Projects'!I69,0) -> 0 | O59: =IFERROR('All Rev & Projects'!J69,0) -> 0 | P59: =IFERROR('All Rev & Projects'!K69,0) -> 0 | Q59: =IFERROR('All Rev & Projects'!L69,0) -> 0 | R59: =IFERROR('All Rev & Projects'!M69,0) -> 0 | S59: =IFERROR('All Rev & Projects'!N69,0) -> 0 | T59: =IFERROR('All Rev & Projects'!O69,0) -> 0 | U59: =IFERROR('All Rev & Projects'!P69,0) -> 0 | V59: =IFERROR('All Rev & Projects'!Q69,0) -> 0 | W59: =IFERROR('All Rev & Projects'!R69,0) -> 0 | X59: =IFERROR('All Rev & Projects'!S69,0) -> 0 | Y59: =IFERROR('All Rev & Projects'!T69,0) -> 0 | Z59: =IFERROR('All Rev & Projects'!U69,0) -> 0 | AA59: =IFERROR('All Rev & Projects'!V69,0) -> 0
A60: 0 | B60: 0 | C60: FALSE | D60: 0 | E60: ='All Rev & Projects'!C70 -> 0 | F60: ='All Rev & Projects'!D70 -> 0 | H60: ='All Rev & Projects'!E70 -> Credits Used Against Tax Liability | I60: 0 | K60: =IFERROR('All Rev & Projects'!F70,0) -> 0 | L60: =IFERROR('All Rev & Projects'!G70,0) -> 0 | M60: =IFERROR('All Rev & Projects'!H70,0) -> 0 | N60: =IFERROR('All Rev & Projects'!I70,0) -> 0 | O60: =IFERROR('All Rev & Projects'!J70,0) -> 0 | P60: =IFERROR('All Rev & Projects'!K70,0) -> 0 | Q60: =IFERROR('All Rev & Projects'!L70,0) -> 0 | R60: =IFERROR('All Rev & Projects'!M70,0) -> 0 | S60: =IFERROR('All Rev & Projects'!N70,0) -> 0 | T60: =IFERROR('All Rev & Projects'!O70,0) -> 0 | U60: =IFERROR('All Rev & Projects'!P70,0) -> 0 | V60: =IFERROR('All Rev & Projects'!Q70,0) -> 0 | W60: =IFERROR('All Rev & Projects'!R70,0) -> 0 | X60: =IFERROR('All Rev & Projects'!S70,0) -> 0 | Y60: =IFERROR('All Rev & Projects'!T70,0) -> 0 | Z60: =IFERROR('All Rev & Projects'!U70,0) -> 0 | AA60: =IFERROR('All Rev & Projects'!V70,0) -> 0
A61: 0 | B61: 0 | C61: FALSE | D61: 0 | E61: ='All Rev & Projects'!C71 -> 0 | F61: ='All Rev & Projects'!D71 -> 0 | H61: ='All Rev & Projects'!E71 -> North Slope | I61: 0 | K61: =IFERROR('All Rev & Projects'!F71,0) -> 0 | L61: =IFERROR('All Rev & Projects'!G71,0) -> 0 | M61: =IFERROR('All Rev & Projects'!H71,0) -> 0 | N61: =IFERROR('All Rev & Projects'!I71,0) -> 0 | O61: =IFERROR('All Rev & Projects'!J71,0) -> 0 | P61: =IFERROR('All Rev & Projects'!K71,0) -> 0 | Q61: =IFERROR('All Rev & Projects'!L71,0) -> 0 | R61: =IFERROR('All Rev & Projects'!M71,0) -> 0 | S61: =IFERROR('All Rev & Projects'!N71,0) -> 0 | T61: =IFERROR('All Rev & Projects'!O71,0) -> 0 | U61: =IFERROR('All Rev & Projects'!P71,0) -> 0 | V61: =IFERROR('All Rev & Projects'!Q71,0) -> 0 | W61: =IFERROR('All Rev & Projects'!R71,0) -> 0 | X61: =IFERROR('All Rev & Projects'!S71,0) -> 0 | Y61: =IFERROR('All Rev & Projects'!T71,0) -> 0 | Z61: =IFERROR('All Rev & Projects'!U71,0) -> 0 | AA61: =IFERROR('All Rev & Projects'!V71,0) -> 0
A62: 0 | B62: 0 | C62: FALSE | D62: 0 | E62: ='All Rev & Projects'!C72 -> 0 | F62: ='All Rev & Projects'!D72 -> 0 | H62: ='All Rev & Projects'!E72 -> Carry-forward annual loss, AS 43.55.023(b) | I62: 331.9 | K62: =IFERROR('All Rev & Projects'!F72,0) -> 331.9 | L62: =IFERROR('All Rev & Projects'!G72,0) -> 0 | M62: =IFERROR('All Rev & Projects'!H72,0) -> 0 | N62: =IFERROR('All Rev & Projects'!I72,0) -> 0 | O62: =IFERROR('All Rev & Projects'!J72,0) -> 0 | P62: =IFERROR('All Rev & Projects'!K72,0) -> 0 | Q62: =IFERROR('All Rev & Projects'!L72,0) -> 0 | R62: =IFERROR('All Rev & Projects'!M72,0) -> 0 | S62: =IFERROR('All Rev & Projects'!N72,0) -> 0 | T62: =IFERROR('All Rev & Projects'!O72,0) -> 0 | U62: =IFERROR('All Rev & Projects'!P72,0) -> 0 | V62: =IFERROR('All Rev & Projects'!Q72,0) -> 0 | W62: =IFERROR('All Rev & Projects'!R72,0) -> 0 | X62: =IFERROR('All Rev & Projects'!S72,0) -> 0 | Y62: =IFERROR('All Rev & Projects'!T72,0) -> 0 | Z62: =IFERROR('All Rev & Projects'!U72,0) -> 0 | AA62: =IFERROR('All Rev & Projects'!V72,0) -> 0
A63: 0 | B63: 0 | C63: FALSE | D63: 0 | E63: ='All Rev & Projects'!C73 -> 0 | F63: ='All Rev & Projects'!D73 -> 0 | H63: ='All Rev & Projects'!E73 -> Transitional investment expenditure: AS 43.55.023(i) | I63: 0 | K63: =IFERROR('All Rev & Projects'!F73,0) -> 0 | L63: =IFERROR('All Rev & Projects'!G73,0) -> 0 | M63: =IFERROR('All Rev & Projects'!H73,0) -> 0 | N63: =IFERROR('All Rev & Projects'!I73,0) -> 0 | O63: =IFERROR('All Rev & Projects'!J73,0) -> 0 | P63: =IFERROR('All Rev & Projects'!K73,0) -> 0 | Q63: =IFERROR('All Rev & Projects'!L73,0) -> 0 | R63: =IFERROR('All Rev & Projects'!M73,0) -> 0 | S63: =IFERROR('All Rev & Projects'!N73,0) -> 0 | T63: =IFERROR('All Rev & Projects'!O73,0) -> 0 | U63: =IFERROR('All Rev & Projects'!P73,0) -> 0 | V63: =IFERROR('All Rev & Projects'!Q73,0) -> 0 | W63: =IFERROR('All Rev & Projects'!R73,0) -> 0 | X63: =IFERROR('All Rev & Projects'!S73,0) -> 0 | Y63: =IFERROR('All Rev & Projects'!T73,0) -> 0 | Z63: =IFERROR('All Rev & Projects'!U73,0) -> 0 | AA63: =IFERROR('All Rev & Projects'!V73,0) -> 0
A64: 0 | B64: 0 | C64: FALSE | D64: 0 | E64: ='All Rev & Projects'!C74 -> FALSE | F64: ='All Rev & Projects'!D74 -> Yes | G64: Credit Adjustments | H64: ='All Rev & Projects'!E74 -> Removal Per taxable barrel credit, AS 43.55.024(i)-(j) | I64: 10020.94165 | J64: Potentially impact plans for production of new oil and oil in existing fields incentivized by this credit in the North Slope. Changes in production plans could lead to lower investment and employment. Would essentially increase the taxable income in the tax calculation under SB 21, since the credits are used to lower the gross value at the point of production. Potentially impact producer’s decision framework for proceeding with AKLNG project. | K64: =IFERROR('All Rev & Projects'!F74,0) -> 492 | L64: =IFERROR('All Rev & Projects'!G74,0) -> 668.4416488 | M64: =IFERROR('All Rev & Projects'!H74,0) -> 513.2 | N64: =IFERROR('All Rev & Projects'!I74,0) -> 1257.6 | O64: =IFERROR('All Rev & Projects'!J74,0) -> 1210.8 | P64: =IFERROR('All Rev & Projects'!K74,0) -> 999.2 | Q64: =IFERROR('All Rev & Projects'!L74,0) -> 821.1 | R64: =IFERROR('All Rev & Projects'!M74,0) -> 646.6 | S64: =IFERROR('All Rev & Projects'!N74,0) -> 590.8 | T64: =IFERROR('All Rev & Projects'!O74,0) -> 545.2 | U64: =IFERROR('All Rev & Projects'!P74,0) -> 483.3 | V64: =IFERROR('All Rev & Projects'!Q74,0) -> 377 | W64: =IFERROR('All Rev & Projects'!R74,0) -> 338.2 | X64: =IFERROR('All Rev & Projects'!S74,0) -> 307 | Y64: =IFERROR('All Rev & Projects'!T74,0) -> 280.8 | Z64: =IFERROR('All Rev & Projects'!U74,0) -> 255.5 | AA64: =IFERROR('All Rev & Projects'!V74,0) -> 234.2
A65: 0 | B65: 0 | C65: FALSE | D65: 0 | E65: ='All Rev & Projects'!C75 -> FALSE | F65: ='All Rev & Projects'!D75 -> 1 | G65: Credit Adjustments | H65: ='All Rev & Projects'!E75 -> Half Per Barrel Credit | I65: 0 | J65: Potentially impact plans for production of new oil and oil in existing fields incentivized by this credit in the North Slope. Changes in production plans could lead to lower investment and employment. Would essentially increase the taxable income in the tax calculation under SB 21, since the credits are used to lower the gross value at the point of production. Potentially impact producer’s decision framework for proceeding with AKLNG project. | K65: =IFERROR('All Rev & Projects'!F75,0) -> 0 | L65: =IFERROR('All Rev & Projects'!G75,0) -> 0 | M65: =IFERROR('All Rev & Projects'!H75,0) -> 0 | N65: =IFERROR('All Rev & Projects'!I75,0) -> 0 | O65: =IFERROR('All Rev & Projects'!J75,0) -> 0 | P65: =IFERROR('All Rev & Projects'!K75,0) -> 0 | Q65: =IFERROR('All Rev & Projects'!L75,0) -> 0 | R65: =IFERROR('All Rev & Projects'!M75,0) -> 0 | S65: =IFERROR('All Rev & Projects'!N75,0) -> 0 | T65: =IFERROR('All Rev & Projects'!O75,0) -> 0 | U65: =IFERROR('All Rev & Projects'!P75,0) -> 0 | V65: =IFERROR('All Rev & Projects'!Q75,0) -> 0 | W65: =IFERROR('All Rev & Projects'!R75,0) -> 0 | X65: =IFERROR('All Rev & Projects'!S75,0) -> 0 | Y65: =IFERROR('All Rev & Projects'!T75,0) -> 0 | Z65: =IFERROR('All Rev & Projects'!U75,0) -> 0 | AA65: =IFERROR('All Rev & Projects'!V75,0) -> 0
A66: 0 | B66: 0 | C66: FALSE | D66: 0 | E66: ='All Rev & Projects'!C76 -> FALSE | F66: ='All Rev & Projects'!D76 -> Yes | G66: Credit Adjustments | H66: ='All Rev & Projects'!E76 -> Removal Small producer credit, AS 43.55.024(a)(c) | I66: 461.5246262 | J66: Could impact the project economics for “small producers” in Alaska, potentially leading to lower investment and employment. Could affect the number of new companies coming to Alaska; this potential impact contrasts with a goal of the small producer credit to attract more small- and mid-sized producers. | K66: =IFERROR('All Rev & Projects'!F76,0) -> 44 | L66: =IFERROR('All Rev & Projects'!G76,0) -> 55.32462618 | M66: =IFERROR('All Rev & Projects'!H76,0) -> 59.9 | N66: =IFERROR('All Rev & Projects'!I76,0) -> 58.5 | O66: =IFERROR('All Rev & Projects'!J76,0) -> 48 | P66: =IFERROR('All Rev & Projects'!K76,0) -> 46.6 | Q66: =IFERROR('All Rev & Projects'!L76,0) -> 43.4 | R66: =IFERROR('All Rev & Projects'!M76,0) -> 37.3 | S66: =IFERROR('All Rev & Projects'!N76,0) -> 30.9 | T66: =IFERROR('All Rev & Projects'!O76,0) -> 24.6 | U66: =IFERROR('All Rev & Projects'!P76,0) -> 13 | V66: =IFERROR('All Rev & Projects'!Q76,0) -> 0 | W66: =IFERROR('All Rev & Projects'!R76,0) -> 0 | X66: =IFERROR('All Rev & Projects'!S76,0) -> 0 | Y66: =IFERROR('All Rev & Projects'!T76,0) -> 0 | Z66: =IFERROR('All Rev & Projects'!U76,0) -> 0 | AA66: =IFERROR('All Rev & Projects'!V76,0) -> 0
A67: 0 | B67: 0 | C67: FALSE | D67: 0 | E67: ='All Rev & Projects'!C77 -> 0 | F67: ='All Rev & Projects'!D77 -> 0 | H67: ='All Rev & Projects'!E77 -> Credits under AS 43.55.025 | I67: 3.2 | K67: =IFERROR('All Rev & Projects'!F77,0) -> 3.2 | L67: =IFERROR('All Rev & Projects'!G77,0) -> 0 | M67: =IFERROR('All Rev & Projects'!H77,0) -> 0 | N67: =IFERROR('All Rev & Projects'!I77,0) -> 0 | O67: =IFERROR('All Rev & Projects'!J77,0) -> 0 | P67: =IFERROR('All Rev & Projects'!K77,0) -> 0 | Q67: =IFERROR('All Rev & Projects'!L77,0) -> 0 | R67: =IFERROR('All Rev & Projects'!M77,0) -> 0 | S67: =IFERROR('All Rev & Projects'!N77,0) -> 0 | T67: =IFERROR('All Rev & Projects'!O77,0) -> 0 | U67: =IFERROR('All Rev & Projects'!P77,0) -> 0 | V67: =IFERROR('All Rev & Projects'!Q77,0) -> 0 | W67: =IFERROR('All Rev & Projects'!R77,0) -> 0 | X67: =IFERROR('All Rev & Projects'!S77,0) -> 0 | Y67: =IFERROR('All Rev & Projects'!T77,0) -> 0 | Z67: =IFERROR('All Rev & Projects'!U77,0) -> 0 | AA67: =IFERROR('All Rev & Projects'!V77,0) -> 0
A68: =IF(B68=0,A67,RANK(B68,B:B,0)) -> 0 | B68: =C68*I68 -> 0 | C68: =(D67<>D68) -> FALSE | D68: =IF(AND(TEXT(E68,"0")="TRUE",I68<>0),D67+1,D67) -> 0 | E68: ='All Rev & Projects'!C78 -> 0 | F68: ='All Rev & Projects'!D78 -> 0 | H68: ='All Rev & Projects'!E78 -> Total North Slope | I68: 10816.46627 | K68: =IFERROR('All Rev & Projects'!F78,0) -> 870 | L68: =IFERROR('All Rev & Projects'!G78,0) -> 723.766275 | M68: =IFERROR('All Rev & Projects'!H78,0) -> 573.1 | N68: =IFERROR('All Rev & Projects'!I78,0) -> 1316.1 | O68: =IFERROR('All Rev & Projects'!J78,0) -> 1258.8 | P68: =IFERROR('All Rev & Projects'!K78,0) -> 1045.8 | Q68: =IFERROR('All Rev & Projects'!L78,0) -> 864.5 | R68: =IFERROR('All Rev & Projects'!M78,0) -> 683.9 | S68: =IFERROR('All Rev & Projects'!N78,0) -> 621.7 | T68: =IFERROR('All Rev & Projects'!O78,0) -> 569.8 | U68: =IFERROR('All Rev & Projects'!P78,0) -> 496.3 | V68: =IFERROR('All Rev & Projects'!Q78,0) -> 377 | W68: =IFERROR('All Rev & Projects'!R78,0) -> 338.2 | X68: =IFERROR('All Rev & Projects'!S78,0) -> 307 | Y68: =IFERROR('All Rev & Projects'!T78,0) -> 280.8 | Z68: =IFERROR('All Rev & Projects'!U78,0) -> 255.5 | AA68: =IFERROR('All Rev & Projects'!V78,0) -> 234.2
A69: 0 | B69: 0 | C69: FALSE | D69: 0 | E69: ='All Rev & Projects'!C79 -> 0 | F69: ='All Rev & Projects'!D79 -> 0 | H69: ='All Rev & Projects'!E79 -> 0 | I69: 0 | K69: =IFERROR('All Rev & Projects'!F79,0) -> 0 | L69: =IFERROR('All Rev & Projects'!G79,0) -> 0 | M69: =IFERROR('All Rev & Projects'!H79,0) -> 0 | N69: =IFERROR('All Rev & Projects'!I79,0) -> 0 | O69: =IFERROR('All Rev & Projects'!J79,0) -> 0 | P69: =IFERROR('All Rev & Projects'!K79,0) -> 0 | Q69: =IFERROR('All Rev & Projects'!L79,0) -> 0 | R69: =IFERROR('All Rev & Projects'!M79,0) -> 0 | S69: =IFERROR('All Rev & Projects'!N79,0) -> 0 | T69: =IFERROR('All Rev & Projects'!O79,0) -> 0 | U69: =IFERROR('All Rev & Projects'!P79,0) -> 0 | V69: =IFERROR('All Rev & Projects'!Q79,0) -> 0 | W69: =IFERROR('All Rev & Projects'!R79,0) -> 0 | X69: =IFERROR('All Rev & Projects'!S79,0) -> 0 | Y69: =IFERROR('All Rev & Projects'!T79,0) -> 0 | Z69: =IFERROR('All Rev & Projects'!U79,0) -> 0 | AA69: =IFERROR('All Rev & Projects'!V79,0) -> 0
A70: 0 | B70: 0 | C70: FALSE | D70: 0 | E70: ='All Rev & Projects'!C80 -> 0 | F70: ='All Rev & Projects'!D80 -> 0 | H70: ='All Rev & Projects'!E80 -> Non-North Slope | I70: =SUM(K70:AA70) -> 0 | K70: =IFERROR('All Rev & Projects'!F80,0) -> 0 | L70: =IFERROR('All Rev & Projects'!G80,0) -> 0 | M70: =IFERROR('All Rev & Projects'!H80,0) -> 0 | N70: =IFERROR('All Rev & Projects'!I80,0) -> 0 | O70: =IFERROR('All Rev & Projects'!J80,0) -> 0 | P70: =IFERROR('All Rev & Projects'!K80,0) -> 0 | Q70: =IFERROR('All Rev & Projects'!L80,0) -> 0 | R70: =IFERROR('All Rev & Projects'!M80,0) -> 0 | S70: =IFERROR('All Rev & Projects'!N80,0) -> 0 | T70: =IFERROR('All Rev & Projects'!O80,0) -> 0 | U70: =IFERROR('All Rev & Projects'!P80,0) -> 0 | V70: =IFERROR('All Rev & Projects'!Q80,0) -> 0 | W70: =IFERROR('All Rev & Projects'!R80,0) -> 0 | X70: =IFERROR('All Rev & Projects'!S80,0) -> 0 | Y70: =IFERROR('All Rev & Projects'!T80,0) -> 0 | Z70: =IFERROR('All Rev & Projects'!U80,0) -> 0 | AA70: =IFERROR('All Rev & Projects'!V80,0) -> 0
A71: 0 | B71: 0 | C71: FALSE | D71: 0 | E71: ='All Rev & Projects'!C81 -> FALSE | F71: ='All Rev & Projects'!D81 -> Yes | G71: Credit Adjustments | H71: ='All Rev & Projects'!E81 -> Removal Qualified capital expenditure, AS 43.55.023(a); Carry-forward annual loss, AS 43.55.023(b); Well lease expenditure, AS 43.55.023(l) | I71: 179.7281128 | J71: Could negatively impact investment decisions of companies who may rely on this credit to generate economic returns, particularly in low-price environments. Could potentially lead to reduced investment in Alaska and reduced employment. | K71: =IFERROR('All Rev & Projects'!F81,0) -> 0 | L71: =IFERROR('All Rev & Projects'!G81,0) -> 8.789612766 | M71: =IFERROR('All Rev & Projects'!H81,0) -> 10 | N71: =IFERROR('All Rev & Projects'!I81,0) -> 10 | O71: =IFERROR('All Rev & Projects'!J81,0) -> 10 | P71: =IFERROR('All Rev & Projects'!K81,0) -> 10 | Q71: =IFERROR('All Rev & Projects'!L81,0) -> 10 | R71: =IFERROR('All Rev & Projects'!M81,0) -> 10 | S71: =IFERROR('All Rev & Projects'!N81,0) -> 10 | T71: =IFERROR('All Rev & Projects'!O81,0) -> 10 | U71: =IFERROR('All Rev & Projects'!P81,0) -> 10.9992 | V71: =IFERROR('All Rev & Projects'!Q81,0) -> 11.5897 | W71: =IFERROR('All Rev & Projects'!R81,0) -> 12.3011 | X71: =IFERROR('All Rev & Projects'!S81,0) -> 12.9957 | Y71: =IFERROR('All Rev & Projects'!T81,0) -> 13.7471 | Z71: =IFERROR('All Rev & Projects'!U81,0) -> 14.3303 | AA71: =IFERROR('All Rev & Projects'!V81,0) -> 14.9754
A72: 0 | B72: 0 | C72: FALSE | D72: 0 | E72: ='All Rev & Projects'!C82 -> FALSE | F72: ='All Rev & Projects'!D82 -> Yes | G72: Credit Adjustments | H72: ='All Rev & Projects'!E82 -> Removal Small producer credit, AS 43.55.024(a)(c) | I72: 43.25 | J72: Could impact the project economics for “small producers” in Alaska, potentially leading to lower investment and employment. Could affect the number of new companies coming to Alaska; this potential impact contrasts with a goal of the small producer credit to attract more small- and mid-sized producers. | K72: =IFERROR('All Rev & Projects'!F82,0) -> 0 | L72: =IFERROR('All Rev & Projects'!G82,0) -> 8.25 | M72: =IFERROR('All Rev & Projects'!H82,0) -> 5 | N72: =IFERROR('All Rev & Projects'!I82,0) -> 5 | O72: =IFERROR('All Rev & Projects'!J82,0) -> 5 | P72: =IFERROR('All Rev & Projects'!K82,0) -> 5 | Q72: =IFERROR('All Rev & Projects'!L82,0) -> 5 | R72: =IFERROR('All Rev & Projects'!M82,0) -> 5 | S72: =IFERROR('All Rev & Projects'!N82,0) -> 5 | T72: =IFERROR('All Rev & Projects'!O82,0) -> 0 | U72: =IFERROR('All Rev & Projects'!P82,0) -> 0 | V72: =IFERROR('All Rev & Projects'!Q82,0) -> 0 | W72: =IFERROR('All Rev & Projects'!R82,0) -> 0 | X72: =IFERROR('All Rev & Projects'!S82,0) -> 0 | Y72: =IFERROR('All Rev & Projects'!T82,0) -> 0 | Z72: =IFERROR('All Rev & Projects'!U82,0) -> 0 | AA72: =IFERROR('All Rev & Projects'!V82,0) -> 0
A73: 0 | B73: 0 | C73: FALSE | D73: 0 | E73: ='All Rev & Projects'!C83 -> 0 | F73: ='All Rev & Projects'!D83 -> 0 | H73: ='All Rev & Projects'!E83 -> Total Non-North Slope | I73: 239.9781128 | K73: =IFERROR('All Rev & Projects'!F83,0) -> 17 | L73: =IFERROR('All Rev & Projects'!G83,0) -> 17.03961277 | M73: =IFERROR('All Rev & Projects'!H83,0) -> 15 | N73: =IFERROR('All Rev & Projects'!I83,0) -> 15 | O73: =IFERROR('All Rev & Projects'!J83,0) -> 15 | P73: =IFERROR('All Rev & Projects'!K83,0) -> 15 | Q73: =IFERROR('All Rev & Projects'!L83,0) -> 15 | R73: =IFERROR('All Rev & Projects'!M83,0) -> 15 | S73: =IFERROR('All Rev & Projects'!N83,0) -> 15 | T73: =IFERROR('All Rev & Projects'!O83,0) -> 10 | U73: =IFERROR('All Rev & Projects'!P83,0) -> 10.9992 | V73: =IFERROR('All Rev & Projects'!Q83,0) -> 11.5897 | W73: =IFERROR('All Rev & Projects'!R83,0) -> 12.3011 | X73: =IFERROR('All Rev & Projects'!S83,0) -> 12.9957 | Y73: =IFERROR('All Rev & Projects'!T83,0) -> 13.7471 | Z73: =IFERROR('All Rev & Projects'!U83,0) -> 14.3303 | AA73: =IFERROR('All Rev & Projects'!V83,0) -> 14.9754
A74: 0 | B74: 0 | C74: FALSE | D74: 0 | E74: ='All Rev & Projects'!C84 -> 0 | F74: ='All Rev & Projects'!D84 -> 0 | H74: ='All Rev & Projects'!E84 -> 0 | I74: 0 | K74: =IFERROR('All Rev & Projects'!F84,0) -> 0 | L74: =IFERROR('All Rev & Projects'!G84,0) -> 0 | M74: =IFERROR('All Rev & Projects'!H84,0) -> 0 | N74: =IFERROR('All Rev & Projects'!I84,0) -> 0 | O74: =IFERROR('All Rev & Projects'!J84,0) -> 0 | P74: =IFERROR('All Rev & Projects'!K84,0) -> 0 | Q74: =IFERROR('All Rev & Projects'!L84,0) -> 0 | R74: =IFERROR('All Rev & Projects'!M84,0) -> 0 | S74: =IFERROR('All Rev & Projects'!N84,0) -> 0 | T74: =IFERROR('All Rev & Projects'!O84,0) -> 0 | U74: =IFERROR('All Rev & Projects'!P84,0) -> 0 | V74: =IFERROR('All Rev & Projects'!Q84,0) -> 0 | W74: =IFERROR('All Rev & Projects'!R84,0) -> 0 | X74: =IFERROR('All Rev & Projects'!S84,0) -> 0 | Y74: =IFERROR('All Rev & Projects'!T84,0) -> 0 | Z74: =IFERROR('All Rev & Projects'!U84,0) -> 0 | AA74: =IFERROR('All Rev & Projects'!V84,0) -> 0
A75: 0 | B75: 0 | C75: FALSE | D75: 0 | E75: ='All Rev & Projects'!C85 -> 0 | F75: ='All Rev & Projects'!D85 -> 0 | H75: ='All Rev & Projects'!E85 -> Total Credits Used Against Tax Liability | I75: 11056.44439 | K75: =IFERROR('All Rev & Projects'!F85,0) -> 887 | L75: =IFERROR('All Rev & Projects'!G85,0) -> 740.8058877 | M75: =IFERROR('All Rev & Projects'!H85,0) -> 588.1 | N75: =IFERROR('All Rev & Projects'!I85,0) -> 1331.1 | O75: =IFERROR('All Rev & Projects'!J85,0) -> 1273.8 | P75: =IFERROR('All Rev & Projects'!K85,0) -> 1060.8 | Q75: =IFERROR('All Rev & Projects'!L85,0) -> 879.5 | R75: =IFERROR('All Rev & Projects'!M85,0) -> 698.9 | S75: =IFERROR('All Rev & Projects'!N85,0) -> 636.7 | T75: =IFERROR('All Rev & Projects'!O85,0) -> 579.8 | U75: =IFERROR('All Rev & Projects'!P85,0) -> 507.2992 | V75: =IFERROR('All Rev & Projects'!Q85,0) -> 388.5897 | W75: =IFERROR('All Rev & Projects'!R85,0) -> 350.5011 | X75: =IFERROR('All Rev & Projects'!S85,0) -> 319.9957 | Y75: =IFERROR('All Rev & Projects'!T85,0) -> 294.5471 | Z75: =IFERROR('All Rev & Projects'!U85,0) -> 269.8303 | AA75: =IFERROR('All Rev & Projects'!V85,0) -> 249.1754
A76: 0 | B76: 0 | C76: FALSE | D76: 0 | E76: ='All Rev & Projects'!C86 -> 0 | F76: ='All Rev & Projects'!D86 -> 0 | H76: ='All Rev & Projects'!E86 -> Default value | I76: 9428.6385 | K76: =IFERROR('All Rev & Projects'!F86,0) -> 0 | L76: =IFERROR('All Rev & Projects'!G86,0) -> 0 | M76: =IFERROR('All Rev & Projects'!H86,0) -> 588.1 | N76: =IFERROR('All Rev & Projects'!I86,0) -> 1331.1 | O76: =IFERROR('All Rev & Projects'!J86,0) -> 1273.8 | P76: =IFERROR('All Rev & Projects'!K86,0) -> 1060.8 | Q76: =IFERROR('All Rev & Projects'!L86,0) -> 879.5 | R76: =IFERROR('All Rev & Projects'!M86,0) -> 698.9 | S76: =IFERROR('All Rev & Projects'!N86,0) -> 636.7 | T76: =IFERROR('All Rev & Projects'!O86,0) -> 579.8 | U76: =IFERROR('All Rev & Projects'!P86,0) -> 507.2992 | V76: =IFERROR('All Rev & Projects'!Q86,0) -> 388.5897 | W76: =IFERROR('All Rev & Projects'!R86,0) -> 350.5011 | X76: =IFERROR('All Rev & Projects'!S86,0) -> 319.9957 | Y76: =IFERROR('All Rev & Projects'!T86,0) -> 294.5471 | Z76: =IFERROR('All Rev & Projects'!U86,0) -> 269.8303 | AA76: =IFERROR('All Rev & Projects'!V86,0) -> 249.1754
A77: 0 | B77: 0 | C77: FALSE | D77: 0 | E77: ='All Rev & Projects'!C87 -> 0 | F77: ='All Rev & Projects'!D87 -> 0 | H77: ='All Rev & Projects'!E87 -> Credits by Region | I77: 0 | K77: =IFERROR('All Rev & Projects'!F87,0) -> 0 | L77: =IFERROR('All Rev & Projects'!G87,0) -> 0 | M77: =IFERROR('All Rev & Projects'!H87,0) -> 0 | N77: =IFERROR('All Rev & Projects'!I87,0) -> 0 | O77: =IFERROR('All Rev & Projects'!J87,0) -> 0 | P77: =IFERROR('All Rev & Projects'!K87,0) -> 0 | Q77: =IFERROR('All Rev & Projects'!L87,0) -> 0 | R77: =IFERROR('All Rev & Projects'!M87,0) -> 0 | S77: =IFERROR('All Rev & Projects'!N87,0) -> 0 | T77: =IFERROR('All Rev & Projects'!O87,0) -> 0 | U77: =IFERROR('All Rev & Projects'!P87,0) -> 0 | V77: =IFERROR('All Rev & Projects'!Q87,0) -> 0 | W77: =IFERROR('All Rev & Projects'!R87,0) -> 0 | X77: =IFERROR('All Rev & Projects'!S87,0) -> 0 | Y77: =IFERROR('All Rev & Projects'!T87,0) -> 0 | Z77: =IFERROR('All Rev & Projects'!U87,0) -> 0 | AA77: =IFERROR('All Rev & Projects'!V87,0) -> 0
A78: 0 | B78: 0 | C78: FALSE | D78: 0 | E78: ='All Rev & Projects'!C88 -> 0 | F78: ='All Rev & Projects'!D88 -> 0 | H78: ='All Rev & Projects'!E88 -> Total Credits North Slope | I78: 2171.85204 | K78: =IFERROR('All Rev & Projects'!F88,0) -> 1151.286803 | L78: =IFERROR('All Rev & Projects'!G88,0) -> 1020.565237 | M78: =IFERROR('All Rev & Projects'!H88,0) -> 0 | N78: =IFERROR('All Rev & Projects'!I88,0) -> 0 | O78: =IFERROR('All Rev & Projects'!J88,0) -> 0 | P78: =IFERROR('All Rev & Projects'!K88,0) -> 0 | Q78: =IFERROR('All Rev & Projects'!L88,0) -> 0 | R78: =IFERROR('All Rev & Projects'!M88,0) -> 0 | S78: =IFERROR('All Rev & Projects'!N88,0) -> 0 | T78: =IFERROR('All Rev & Projects'!O88,0) -> 0 | U78: =IFERROR('All Rev & Projects'!P88,0) -> 0 | V78: =IFERROR('All Rev & Projects'!Q88,0) -> 0 | W78: =IFERROR('All Rev & Projects'!R88,0) -> 0 | X78: =IFERROR('All Rev & Projects'!S88,0) -> 0 | Y78: =IFERROR('All Rev & Projects'!T88,0) -> 0 | Z78: =IFERROR('All Rev & Projects'!U88,0) -> 0 | AA78: =IFERROR('All Rev & Projects'!V88,0) -> 0
A79: 0 | B79: 0 | C79: FALSE | D79: 0 | E79: ='All Rev & Projects'!C89 -> 0 | F79: ='All Rev & Projects'!D89 -> 0 | H79: ='All Rev & Projects'!E89 -> Total Credits Non-North Slope | I79: 862.5129128 | K79: =IFERROR('All Rev & Projects'!F89,0) -> 329 | L79: =IFERROR('All Rev & Projects'!G89,0) -> 327.5744128 | M79: =IFERROR('All Rev & Projects'!H89,0) -> 15 | N79: =IFERROR('All Rev & Projects'!I89,0) -> 15 | O79: =IFERROR('All Rev & Projects'!J89,0) -> 15 | P79: =IFERROR('All Rev & Projects'!K89,0) -> 15 | Q79: =IFERROR('All Rev & Projects'!L89,0) -> 15 | R79: =IFERROR('All Rev & Projects'!M89,0) -> 15 | S79: =IFERROR('All Rev & Projects'!N89,0) -> 15 | T79: =IFERROR('All Rev & Projects'!O89,0) -> 10 | U79: =IFERROR('All Rev & Projects'!P89,0) -> 10.9992 | V79: =IFERROR('All Rev & Projects'!Q89,0) -> 11.5897 | W79: =IFERROR('All Rev & Projects'!R89,0) -> 12.3011 | X79: =IFERROR('All Rev & Projects'!S89,0) -> 12.9957 | Y79: =IFERROR('All Rev & Projects'!T89,0) -> 13.7471 | Z79: =IFERROR('All Rev & Projects'!U89,0) -> 14.3303 | AA79: =IFERROR('All Rev & Projects'!V89,0) -> 14.9754
A80: 0 | B80: 0 | C80: FALSE | D80: 0 | E80: ='All Rev & Projects'!C90 -> 0 | F80: ='All Rev & Projects'!D90 -> 0 | H80: ='All Rev & Projects'!E90 -> Total Statewide Production Tax Credits | I80: 3034.364953 | K80: =IFERROR('All Rev & Projects'!F90,0) -> 1480.286803 | L80: =IFERROR('All Rev & Projects'!G90,0) -> 1348.13965 | M80: =IFERROR('All Rev & Projects'!H90,0) -> 15 | N80: =IFERROR('All Rev & Projects'!I90,0) -> 15 | O80: =IFERROR('All Rev & Projects'!J90,0) -> 15 | P80: =IFERROR('All Rev & Projects'!K90,0) -> 15 | Q80: =IFERROR('All Rev & Projects'!L90,0) -> 15 | R80: =IFERROR('All Rev & Projects'!M90,0) -> 15 | S80: =IFERROR('All Rev & Projects'!N90,0) -> 15 | T80: =IFERROR('All Rev & Projects'!O90,0) -> 10 | U80: =IFERROR('All Rev & Projects'!P90,0) -> 10.9992 | V80: =IFERROR('All Rev & Projects'!Q90,0) -> 11.5897 | W80: =IFERROR('All Rev & Projects'!R90,0) -> 12.3011 | X80: =IFERROR('All Rev & Projects'!S90,0) -> 12.9957 | Y80: =IFERROR('All Rev & Projects'!T90,0) -> 13.7471 | Z80: =IFERROR('All Rev & Projects'!U90,0) -> 14.3303 | AA80: =IFERROR('All Rev & Projects'!V90,0) -> 14.9754
A81: 0 | B81: 0 | C81: FALSE | D81: 0 | E81: ='All Rev & Projects'!C91 -> 0 | F81: ='All Rev & Projects'!D91 -> 0 | H81: ='All Rev & Projects'!E91 -> 0 | I81: 0 | K81: =IFERROR('All Rev & Projects'!F91,0) -> 0 | L81: =IFERROR('All Rev & Projects'!G91,0) -> 0 | M81: =IFERROR('All Rev & Projects'!H91,0) -> 0 | N81: =IFERROR('All Rev & Projects'!I91,0) -> 0 | O81: =IFERROR('All Rev & Projects'!J91,0) -> 0 | P81: =IFERROR('All Rev & Projects'!K91,0) -> 0 | Q81: =IFERROR('All Rev & Projects'!L91,0) -> 0 | R81: =IFERROR('All Rev & Projects'!M91,0) -> 0 | S81: =IFERROR('All Rev & Projects'!N91,0) -> 0 | T81: =IFERROR('All Rev & Projects'!O91,0) -> 0 | U81: =IFERROR('All Rev & Projects'!P91,0) -> 0 | V81: =IFERROR('All Rev & Projects'!Q91,0) -> 0 | W81: =IFERROR('All Rev & Projects'!R91,0) -> 0 | X81: =IFERROR('All Rev & Projects'!S91,0) -> 0 | Y81: =IFERROR('All Rev & Projects'!T91,0) -> 0 | Z81: =IFERROR('All Rev & Projects'!U91,0) -> 0 | AA81: =IFERROR('All Rev & Projects'!V91,0) -> 0
A82: 0 | B82: 0 | C82: FALSE | D82: 0 | E82: =FALSE -> FALSE | F82: ='All Rev & Projects'!D92 -> No | H82: ='All Rev & Projects'!E92 -> Cap Refunded Credits | I82: =SUM(K82:AA82) -> 0 | K82: =IFERROR('All Rev & Projects'!F92,0) -> 0 | L82: =IFERROR('All Rev & Projects'!G92,0) -> 0 | M82: =IFERROR('All Rev & Projects'!H92,0) -> 0 | N82: =IFERROR('All Rev & Projects'!I92,0) -> 0 | O82: =IFERROR('All Rev & Projects'!J92,0) -> 0 | P82: =IFERROR('All Rev & Projects'!K92,0) -> 0 | Q82: =IFERROR('All Rev & Projects'!L92,0) -> 0 | R82: =IFERROR('All Rev & Projects'!M92,0) -> 0 | S82: =IFERROR('All Rev & Projects'!N92,0) -> 0 | T82: =IFERROR('All Rev & Projects'!O92,0) -> 0 | U82: =IFERROR('All Rev & Projects'!P92,0) -> 0 | V82: =IFERROR('All Rev & Projects'!Q92,0) -> 0 | W82: =IFERROR('All Rev & Projects'!R92,0) -> 0 | X82: =IFERROR('All Rev & Projects'!S92,0) -> 0 | Y82: =IFERROR('All Rev & Projects'!T92,0) -> 0 | Z82: =IFERROR('All Rev & Projects'!U92,0) -> 0 | AA82: =IFERROR('All Rev & Projects'!V92,0) -> 0
A83: 0 | B83: 0 | C83: FALSE | D83: 0 | E83: ='All Rev & Projects'!C93 -> 1 | F83: ='All Rev & Projects'!D93 -> 9999 | H83: ='All Rev & Projects'!E93 -> Cap Amount | I83: 15346.80787 | K83: =IFERROR('All Rev & Projects'!F93,0) -> 0 | L83: =IFERROR('All Rev & Projects'!G93,0) -> 0 | M83: =IFERROR('All Rev & Projects'!H93,0) -> 1277.0691 | N83: =IFERROR('All Rev & Projects'!I93,0) -> 1765.0224 | O83: =IFERROR('All Rev & Projects'!J93,0) -> 1586.28504 | P83: =IFERROR('All Rev & Projects'!K93,0) -> 1310.95157 | Q83: =IFERROR('All Rev & Projects'!L93,0) -> 1161.46557 | R83: =IFERROR('All Rev & Projects'!M93,0) -> 981.0023695 | S83: =IFERROR('All Rev & Projects'!N93,0) -> 943.8023695 | T83: =IFERROR('All Rev & Projects'!O93,0) -> 911.9023695 | U83: =IFERROR('All Rev & Projects'!P93,0) -> 888.4023695 | V83: =IFERROR('All Rev & Projects'!Q93,0) -> 769.6928695 | W83: =IFERROR('All Rev & Projects'!R93,0) -> 805.3023695 | X83: =IFERROR('All Rev & Projects'!S93,0) -> 774.1023695 | Y83: =IFERROR('All Rev & Projects'!T93,0) -> 747.9023695 | Z83: =IFERROR('All Rev & Projects'!U93,0) -> 722.6023695 | AA83: =IFERROR('All Rev & Projects'!V93,0) -> 701.3023695
A84: 0 | B84: 0 | C84: FALSE | D84: 0 | E84: ='All Rev & Projects'!C94 -> 0 | F84: ='All Rev & Projects'!D94 -> 0 | H84: ='All Rev & Projects'!E94 -> 0 | I84: 0 | K84: =IFERROR('All Rev & Projects'!F94,0) -> 0 | L84: =IFERROR('All Rev & Projects'!G94,0) -> 0 | M84: =IFERROR('All Rev & Projects'!H94,0) -> 0 | N84: =IFERROR('All Rev & Projects'!I94,0) -> 0 | O84: =IFERROR('All Rev & Projects'!J94,0) -> 0 | P84: =IFERROR('All Rev & Projects'!K94,0) -> 0 | Q84: =IFERROR('All Rev & Projects'!L94,0) -> 0 | R84: =IFERROR('All Rev & Projects'!M94,0) -> 0 | S84: =IFERROR('All Rev & Projects'!N94,0) -> 0 | T84: =IFERROR('All Rev & Projects'!O94,0) -> 0 | U84: =IFERROR('All Rev & Projects'!P94,0) -> 0 | V84: =IFERROR('All Rev & Projects'!Q94,0) -> 0 | W84: =IFERROR('All Rev & Projects'!R94,0) -> 0 | X84: =IFERROR('All Rev & Projects'!S94,0) -> 0 | Y84: =IFERROR('All Rev & Projects'!T94,0) -> 0 | Z84: =IFERROR('All Rev & Projects'!U94,0) -> 0 | AA84: =IFERROR('All Rev & Projects'!V94,0) -> 0
A85: 0 | B85: 0 | C85: FALSE | D85: 0 | E85: ='All Rev & Projects'!C95 -> FALSE | F85: ='All Rev & Projects'!D95 -> 0 | G85: Credit Adjustments | H85: ='All Rev & Projects'!E95 -> Refunded Credits Portion of Credit Cap | I85: 0 | K85: =IFERROR('All Rev & Projects'!F95,0) -> 0 | L85: =IFERROR('All Rev & Projects'!G95,0) -> 0 | M85: =IFERROR('All Rev & Projects'!H95,0) -> 0 | N85: =IFERROR('All Rev & Projects'!I95,0) -> 0 | O85: =IFERROR('All Rev & Projects'!J95,0) -> 0 | P85: =IFERROR('All Rev & Projects'!K95,0) -> 0 | Q85: =IFERROR('All Rev & Projects'!L95,0) -> 0 | R85: =IFERROR('All Rev & Projects'!M95,0) -> 0 | S85: =IFERROR('All Rev & Projects'!N95,0) -> 0 | T85: =IFERROR('All Rev & Projects'!O95,0) -> 0 | U85: =IFERROR('All Rev & Projects'!P95,0) -> 0 | V85: =IFERROR('All Rev & Projects'!Q95,0) -> 0 | W85: =IFERROR('All Rev & Projects'!R95,0) -> 0 | X85: =IFERROR('All Rev & Projects'!S95,0) -> 0 | Y85: =IFERROR('All Rev & Projects'!T95,0) -> 0 | Z85: =IFERROR('All Rev & Projects'!U95,0) -> 0 | AA85: =IFERROR('All Rev & Projects'!V95,0) -> 0
A86: 0 | B86: 0 | C86: FALSE | D86: 0 | E86: ='All Rev & Projects'!C96 -> FALSE | F86: ='All Rev & Projects'!D96 -> 0 | G86: Credit Adjustments | H86: ='All Rev & Projects'!E96 -> Liablity Credits Portion of Credit Cap | I86: 0 | K86: =IFERROR('All Rev & Projects'!F96,0) -> 0 | L86: =IFERROR('All Rev & Projects'!G96,0) -> 0 | M86: =IFERROR('All Rev & Projects'!H96,0) -> 0 | N86: =IFERROR('All Rev & Projects'!I96,0) -> 0 | O86: =IFERROR('All Rev & Projects'!J96,0) -> 0 | P86: =IFERROR('All Rev & Projects'!K96,0) -> 0 | Q86: =IFERROR('All Rev & Projects'!L96,0) -> 0 | R86: =IFERROR('All Rev & Projects'!M96,0) -> 0 | S86: =IFERROR('All Rev & Projects'!N96,0) -> 0 | T86: =IFERROR('All Rev & Projects'!O96,0) -> 0 | U86: =IFERROR('All Rev & Projects'!P96,0) -> 0 | V86: =IFERROR('All Rev & Projects'!Q96,0) -> 0 | W86: =IFERROR('All Rev & Projects'!R96,0) -> 0 | X86: =IFERROR('All Rev & Projects'!S96,0) -> 0 | Y86: =IFERROR('All Rev & Projects'!T96,0) -> 0 | Z86: =IFERROR('All Rev & Projects'!U96,0) -> 0 | AA86: =IFERROR('All Rev & Projects'!V96,0) -> 0
A87: 0 | B87: 0 | C87: FALSE | D87: 0 | E87: ='All Rev & Projects'!C97 -> 0 | F87: ='All Rev & Projects'!D97 -> 0 | H87: ='All Rev & Projects'!E97 -> 0 | I87: 0 | K87: =IFERROR('All Rev & Projects'!F97,0) -> 0 | L87: =IFERROR('All Rev & Projects'!G97,0) -> 0 | M87: =IFERROR('All Rev & Projects'!H97,0) -> 0 | N87: =IFERROR('All Rev & Projects'!I97,0) -> 0 | O87: =IFERROR('All Rev & Projects'!J97,0) -> 0 | P87: =IFERROR('All Rev & Projects'!K97,0) -> 0 | Q87: =IFERROR('All Rev & Projects'!L97,0) -> 0 | R87: =IFERROR('All Rev & Projects'!M97,0) -> 0 | S87: =IFERROR('All Rev & Projects'!N97,0) -> 0 | T87: =IFERROR('All Rev & Projects'!O97,0) -> 0 | U87: =IFERROR('All Rev & Projects'!P97,0) -> 0 | V87: =IFERROR('All Rev & Projects'!Q97,0) -> 0 | W87: =IFERROR('All Rev & Projects'!R97,0) -> 0 | X87: =IFERROR('All Rev & Projects'!S97,0) -> 0 | Y87: =IFERROR('All Rev & Projects'!T97,0) -> 0 | Z87: =IFERROR('All Rev & Projects'!U97,0) -> 0 | AA87: =IFERROR('All Rev & Projects'!V97,0) -> 0
A88: 0 | B88: 0 | C88: FALSE | D88: 0 | E88: ='All Rev & Projects'!C98 -> 0 | F88: ='All Rev & Projects'!D98 -> 0 | H88: ='All Rev & Projects'!E98 -> Cook Inlet | I88: 0 | K88: =IFERROR('All Rev & Projects'!F98,0) -> 0 | L88: =IFERROR('All Rev & Projects'!G98,0) -> 0 | M88: =IFERROR('All Rev & Projects'!H98,0) -> 0 | N88: =IFERROR('All Rev & Projects'!I98,0) -> 0 | O88: =IFERROR('All Rev & Projects'!J98,0) -> 0 | P88: =IFERROR('All Rev & Projects'!K98,0) -> 0 | Q88: =IFERROR('All Rev & Projects'!L98,0) -> 0 | R88: =IFERROR('All Rev & Projects'!M98,0) -> 0 | S88: =IFERROR('All Rev & Projects'!N98,0) -> 0 | T88: =IFERROR('All Rev & Projects'!O98,0) -> 0 | U88: =IFERROR('All Rev & Projects'!P98,0) -> 0 | V88: =IFERROR('All Rev & Projects'!Q98,0) -> 0 | W88: =IFERROR('All Rev & Projects'!R98,0) -> 0 | X88: =IFERROR('All Rev & Projects'!S98,0) -> 0 | Y88: =IFERROR('All Rev & Projects'!T98,0) -> 0 | Z88: =IFERROR('All Rev & Projects'!U98,0) -> 0 | AA88: =IFERROR('All Rev & Projects'!V98,0) -> 0
A89: 0 | B89: 0 | C89: FALSE | D89: 0 | E89: ='All Rev & Projects'!C99 -> FALSE | F89: ='All Rev & Projects'!D99 -> No | G89: Additional Tax Revenue | H89: ='All Rev & Projects'!E99 -> Production Tax with Cap Removed | I89: 0 | J89: Would increase the cost of producing oil and gas which could diminish future oil and gas production. | K89: =IFERROR('All Rev & Projects'!F99,0) -> 0 | L89: =IFERROR('All Rev & Projects'!G99,0) -> 0 | M89: =IFERROR('All Rev & Projects'!H99,0) -> 0 | N89: =IFERROR('All Rev & Projects'!I99,0) -> 0 | O89: =IFERROR('All Rev & Projects'!J99,0) -> 0 | P89: =IFERROR('All Rev & Projects'!K99,0) -> 0 | Q89: =IFERROR('All Rev & Projects'!L99,0) -> 0 | R89: =IFERROR('All Rev & Projects'!M99,0) -> 0 | S89: =IFERROR('All Rev & Projects'!N99,0) -> 0 | T89: =IFERROR('All Rev & Projects'!O99,0) -> 0 | U89: =IFERROR('All Rev & Projects'!P99,0) -> 0 | V89: =IFERROR('All Rev & Projects'!Q99,0) -> 0 | W89: =IFERROR('All Rev & Projects'!R99,0) -> 0 | X89: =IFERROR('All Rev & Projects'!S99,0) -> 0 | Y89: =IFERROR('All Rev & Projects'!T99,0) -> 0 | Z89: =IFERROR('All Rev & Projects'!U99,0) -> 0 | AA89: =IFERROR('All Rev & Projects'!V99,0) -> 0
A90: 0 | B90: 0 | C90: FALSE | D90: 0 | E90: ='All Rev & Projects'!C100 -> 0 | F90: ='All Rev & Projects'!D100 -> 0 | H90: ='All Rev & Projects'!E100 -> Based on Spring 2015 Forecast | I90: 107.3425464 | K90: =IFERROR('All Rev & Projects'!F100,0) -> 0 | L90: =IFERROR('All Rev & Projects'!G100,0) -> 0 | M90: =IFERROR('All Rev & Projects'!H100,0) -> -9.252085581 | N90: =IFERROR('All Rev & Projects'!I100,0) -> -2.218598296 | O90: =IFERROR('All Rev & Projects'!J100,0) -> -2.163240982 | P90: =IFERROR('All Rev & Projects'!K100,0) -> 0.5035536252 | Q90: =IFERROR('All Rev & Projects'!L100,0) -> 3.9923941 | R90: =IFERROR('All Rev & Projects'!M100,0) -> 7.580736541 | S90: =IFERROR('All Rev & Projects'!N100,0) -> 8.324597003 | T90: =IFERROR('All Rev & Projects'!O100,0) -> 9.636724223 | U90: =IFERROR('All Rev & Projects'!P100,0) -> 10.99924429 | V90: =IFERROR('All Rev & Projects'!Q100,0) -> 11.58969342 | W90: =IFERROR('All Rev & Projects'!R100,0) -> 12.301068 | X90: =IFERROR('All Rev & Projects'!S100,0) -> 12.99572726 | Y90: =IFERROR('All Rev & Projects'!T100,0) -> 13.74708655 | Z90: =IFERROR('All Rev & Projects'!U100,0) -> 14.33026656 | AA90: =IFERROR('All Rev & Projects'!V100,0) -> 14.97537966
A91: 0 | B91: 0 | C91: FALSE | D91: 0 | E91: ='All Rev & Projects'!C101 -> 0 | F91: ='All Rev & Projects'!D101 -> 0 | H91: ='All Rev & Projects'!E101 -> 0 | I91: 0 | K91: =IFERROR('All Rev & Projects'!F101,0) -> 0 | L91: =IFERROR('All Rev & Projects'!G101,0) -> 0 | M91: =IFERROR('All Rev & Projects'!H101,0) -> 0 | N91: =IFERROR('All Rev & Projects'!I101,0) -> 0 | O91: =IFERROR('All Rev & Projects'!J101,0) -> 0 | P91: =IFERROR('All Rev & Projects'!K101,0) -> 0 | Q91: =IFERROR('All Rev & Projects'!L101,0) -> 0 | R91: =IFERROR('All Rev & Projects'!M101,0) -> 0 | S91: =IFERROR('All Rev & Projects'!N101,0) -> 0 | T91: =IFERROR('All Rev & Projects'!O101,0) -> 0 | U91: =IFERROR('All Rev & Projects'!P101,0) -> 0 | V91: =IFERROR('All Rev & Projects'!Q101,0) -> 0 | W91: =IFERROR('All Rev & Projects'!R101,0) -> 0 | X91: =IFERROR('All Rev & Projects'!S101,0) -> 0 | Y91: =IFERROR('All Rev & Projects'!T101,0) -> 0 | Z91: =IFERROR('All Rev & Projects'!U101,0) -> 0 | AA91: =IFERROR('All Rev & Projects'!V101,0) -> 0
A92: 0 | B92: 0 | C92: FALSE | D92: 0 | E92: ='All Rev & Projects'!C102 -> 0 | F92: ='All Rev & Projects'!D102 -> 0 | H92: ='All Rev & Projects'!E102 -> ANS AVG Production Tax before surcharge | I92: 0 | K92: =IFERROR('All Rev & Projects'!F102,0) -> 0 | L92: =IFERROR('All Rev & Projects'!G102,0) -> 0 | M92: =IFERROR('All Rev & Projects'!H102,0) -> 0 | N92: =IFERROR('All Rev & Projects'!I102,0) -> 0 | O92: =IFERROR('All Rev & Projects'!J102,0) -> 0 | P92: =IFERROR('All Rev & Projects'!K102,0) -> 0 | Q92: =IFERROR('All Rev & Projects'!L102,0) -> 0 | R92: =IFERROR('All Rev & Projects'!M102,0) -> 0 | S92: =IFERROR('All Rev & Projects'!N102,0) -> 0 | T92: =IFERROR('All Rev & Projects'!O102,0) -> 0 | U92: =IFERROR('All Rev & Projects'!P102,0) -> 0 | V92: =IFERROR('All Rev & Projects'!Q102,0) -> 0 | W92: =IFERROR('All Rev & Projects'!R102,0) -> 0 | X92: =IFERROR('All Rev & Projects'!S102,0) -> 0 | Y92: =IFERROR('All Rev & Projects'!T102,0) -> 0 | Z92: =IFERROR('All Rev & Projects'!U102,0) -> 0 | AA92: =IFERROR('All Rev & Projects'!V102,0) -> 0
A93: 0 | B93: 0 | C93: FALSE | D93: 0 | E93: ='All Rev & Projects'!C103 -> FALSE | F93: ='All Rev & Projects'!D103 -> No | G93: Additional Tax Revenue | H93: ='All Rev & Projects'!E103 -> Increase Hazardous Release/Conservation surcharge | I93: 0 | J93: Would increase the cost of producing oil which could diminish future oil production. | K93: =IFERROR('All Rev & Projects'!F103,0) -> 0 | L93: =IFERROR('All Rev & Projects'!G103,0) -> 0 | M93: =IFERROR('All Rev & Projects'!H103,0) -> 0 | N93: =IFERROR('All Rev & Projects'!I103,0) -> 0 | O93: =IFERROR('All Rev & Projects'!J103,0) -> 0 | P93: =IFERROR('All Rev & Projects'!K103,0) -> 0 | Q93: =IFERROR('All Rev & Projects'!L103,0) -> 0 | R93: =IFERROR('All Rev & Projects'!M103,0) -> 0 | S93: =IFERROR('All Rev & Projects'!N103,0) -> 0 | T93: =IFERROR('All Rev & Projects'!O103,0) -> 0 | U93: =IFERROR('All Rev & Projects'!P103,0) -> 0 | V93: =IFERROR('All Rev & Projects'!Q103,0) -> 0 | W93: =IFERROR('All Rev & Projects'!R103,0) -> 0 | X93: =IFERROR('All Rev & Projects'!S103,0) -> 0 | Y93: =IFERROR('All Rev & Projects'!T103,0) -> 0 | Z93: =IFERROR('All Rev & Projects'!U103,0) -> 0 | AA93: =IFERROR('All Rev & Projects'!V103,0) -> 0
A94: 0 | B94: 0 | C94: FALSE | D94: 0 | E94: ='All Rev & Projects'!C104 -> 1 | F94: ='All Rev & Projects'!D104 -> 0.01 | H94: ='All Rev & Projects'!E104 -> Adjustable in $0.01 | I94: 84.34434027 | K94: =IFERROR('All Rev & Projects'!F104,0) -> 0 | L94: =IFERROR('All Rev & Projects'!G104,0) -> 0 | M94: =IFERROR('All Rev & Projects'!H104,0) -> 8.255391299 | N94: =IFERROR('All Rev & Projects'!I104,0) -> 8.509011341 | O94: =IFERROR('All Rev & Projects'!J104,0) -> 8.062572773 | P94: =IFERROR('All Rev & Projects'!K104,0) -> 7.48226436 | Q94: =IFERROR('All Rev & Projects'!L104,0) -> 7.028353307 | R94: =IFERROR('All Rev & Projects'!M104,0) -> 6.476964624 | S94: =IFERROR('All Rev & Projects'!N104,0) -> 5.961595923 | T94: =IFERROR('All Rev & Projects'!O104,0) -> 5.560919952 | U94: =IFERROR('All Rev & Projects'!P104,0) -> 5.123016608 | V94: =IFERROR('All Rev & Projects'!Q104,0) -> 4.574935181 | W94: =IFERROR('All Rev & Projects'!R104,0) -> 4.126218454 | X94: =IFERROR('All Rev & Projects'!S104,0) -> 3.748079168 | Y94: =IFERROR('All Rev & Projects'!T104,0) -> 3.432725953 | Z94: =IFERROR('All Rev & Projects'!U104,0) -> 3.130784144 | AA94: =IFERROR('All Rev & Projects'!V104,0) -> 2.871507188
A95: 0 | B95: 0 | C95: FALSE | D95: 0 | E95: ='All Rev & Projects'!C105 -> 0 | F95: ='All Rev & Projects'!D105 -> 0 | H95: ='All Rev & Projects'!E105 -> 0 | I95: 0 | K95: =IFERROR('All Rev & Projects'!F105,0) -> 0 | L95: =IFERROR('All Rev & Projects'!G105,0) -> 0 | M95: =IFERROR('All Rev & Projects'!H105,0) -> 0 | N95: =IFERROR('All Rev & Projects'!I105,0) -> 0 | O95: =IFERROR('All Rev & Projects'!J105,0) -> 0 | P95: =IFERROR('All Rev & Projects'!K105,0) -> 0 | Q95: =IFERROR('All Rev & Projects'!L105,0) -> 0 | R95: =IFERROR('All Rev & Projects'!M105,0) -> 0 | S95: =IFERROR('All Rev & Projects'!N105,0) -> 0 | T95: =IFERROR('All Rev & Projects'!O105,0) -> 0 | U95: =IFERROR('All Rev & Projects'!P105,0) -> 0 | V95: =IFERROR('All Rev & Projects'!Q105,0) -> 0 | W95: =IFERROR('All Rev & Projects'!R105,0) -> 0 | X95: =IFERROR('All Rev & Projects'!S105,0) -> 0 | Y95: =IFERROR('All Rev & Projects'!T105,0) -> 0 | Z95: =IFERROR('All Rev & Projects'!U105,0) -> 0 | AA95: =IFERROR('All Rev & Projects'!V105,0) -> 0
A96: 0 | B96: 0 | C96: FALSE | D96: 0 | E96: ='All Rev & Projects'!C106 -> 0 | F96: ='All Rev & Projects'!D106 -> 0 | H96: ='All Rev & Projects'!E106 -> Fishing Tax | I96: 0 | K96: =IFERROR('All Rev & Projects'!F106,0) -> 0 | L96: =IFERROR('All Rev & Projects'!G106,0) -> 0 | M96: =IFERROR('All Rev & Projects'!H106,0) -> 0 | N96: =IFERROR('All Rev & Projects'!I106,0) -> 0 | O96: =IFERROR('All Rev & Projects'!J106,0) -> 0 | P96: =IFERROR('All Rev & Projects'!K106,0) -> 0 | Q96: =IFERROR('All Rev & Projects'!L106,0) -> 0 | R96: =IFERROR('All Rev & Projects'!M106,0) -> 0 | S96: =IFERROR('All Rev & Projects'!N106,0) -> 0 | T96: =IFERROR('All Rev & Projects'!O106,0) -> 0 | U96: =IFERROR('All Rev & Projects'!P106,0) -> 0 | V96: =IFERROR('All Rev & Projects'!Q106,0) -> 0 | W96: =IFERROR('All Rev & Projects'!R106,0) -> 0 | X96: =IFERROR('All Rev & Projects'!S106,0) -> 0 | Y96: =IFERROR('All Rev & Projects'!T106,0) -> 0 | Z96: =IFERROR('All Rev & Projects'!U106,0) -> 0 | AA96: =IFERROR('All Rev & Projects'!V106,0) -> 0
A97: 0 | B97: 0 | C97: FALSE | D97: 0 | E97: ='All Rev & Projects'!C107 -> FALSE | F97: ='All Rev & Projects'!D107 -> No | G97: Additional Tax Revenue | H97: ='All Rev & Projects'!E107 -> Fishing Tax Rate Increase | I97: 0 | J97: Lowers earnings for fishermen and businesses supported by the fishing industry. | K97: =IFERROR('All Rev & Projects'!F107,0) -> 0 | L97: =IFERROR('All Rev & Projects'!G107,0) -> 0 | M97: =IFERROR('All Rev & Projects'!H107,0) -> 0 | N97: =IFERROR('All Rev & Projects'!I107,0) -> 0 | O97: =IFERROR('All Rev & Projects'!J107,0) -> 0 | P97: =IFERROR('All Rev & Projects'!K107,0) -> 0 | Q97: =IFERROR('All Rev & Projects'!L107,0) -> 0 | R97: =IFERROR('All Rev & Projects'!M107,0) -> 0 | S97: =IFERROR('All Rev & Projects'!N107,0) -> 0 | T97: =IFERROR('All Rev & Projects'!O107,0) -> 0 | U97: =IFERROR('All Rev & Projects'!P107,0) -> 0 | V97: =IFERROR('All Rev & Projects'!Q107,0) -> 0 | W97: =IFERROR('All Rev & Projects'!R107,0) -> 0 | X97: =IFERROR('All Rev & Projects'!S107,0) -> 0 | Y97: =IFERROR('All Rev & Projects'!T107,0) -> 0 | Z97: =IFERROR('All Rev & Projects'!U107,0) -> 0 | AA97: =IFERROR('All Rev & Projects'!V107,0) -> 0
A98: 0 | B98: 0 | C98: FALSE | D98: 0 | E98: ='All Rev & Projects'!C108 -> 1 | F98: ='All Rev & Projects'!D108 -> 0.01 | H98: ='All Rev & Projects'!E108 -> Rise in Fishing Tax Rate | I98: 0 | K98: =IFERROR('All Rev & Projects'!F108,0) -> 0 | L98: =IFERROR('All Rev & Projects'!G108,0) -> 0 | M98: =IFERROR('All Rev & Projects'!H108,0) -> 0 | N98: =IFERROR('All Rev & Projects'!I108,0) -> 0 | O98: =IFERROR('All Rev & Projects'!J108,0) -> 0 | P98: =IFERROR('All Rev & Projects'!K108,0) -> 0 | Q98: =IFERROR('All Rev & Projects'!L108,0) -> 0 | R98: =IFERROR('All Rev & Projects'!M108,0) -> 0 | S98: =IFERROR('All Rev & Projects'!N108,0) -> 0 | T98: =IFERROR('All Rev & Projects'!O108,0) -> 0 | U98: =IFERROR('All Rev & Projects'!P108,0) -> 0 | V98: =IFERROR('All Rev & Projects'!Q108,0) -> 0 | W98: =IFERROR('All Rev & Projects'!R108,0) -> 0 | X98: =IFERROR('All Rev & Projects'!S108,0) -> 0 | Y98: =IFERROR('All Rev & Projects'!T108,0) -> 0 | Z98: =IFERROR('All Rev & Projects'!U108,0) -> 0 | AA98: =IFERROR('All Rev & Projects'!V108,0) -> 0
A99: 0 | B99: 0 | C99: FALSE | D99: 0 | E99: ='All Rev & Projects'!C109 -> 0 | F99: ='All Rev & Projects'!D109 -> 0 | H99: ='All Rev & Projects'!E109 -> 0 | I99: 0 | K99: =IFERROR('All Rev & Projects'!F109,0) -> 0 | L99: =IFERROR('All Rev & Projects'!G109,0) -> 0 | M99: =IFERROR('All Rev & Projects'!H109,0) -> 0 | N99: =IFERROR('All Rev & Projects'!I109,0) -> 0 | O99: =IFERROR('All Rev & Projects'!J109,0) -> 0 | P99: =IFERROR('All Rev & Projects'!K109,0) -> 0 | Q99: =IFERROR('All Rev & Projects'!L109,0) -> 0 | R99: =IFERROR('All Rev & Projects'!M109,0) -> 0 | S99: =IFERROR('All Rev & Projects'!N109,0) -> 0 | T99: =IFERROR('All Rev & Projects'!O109,0) -> 0 | U99: =IFERROR('All Rev & Projects'!P109,0) -> 0 | V99: =IFERROR('All Rev & Projects'!Q109,0) -> 0 | W99: =IFERROR('All Rev & Projects'!R109,0) -> 0 | X99: =IFERROR('All Rev & Projects'!S109,0) -> 0 | Y99: =IFERROR('All Rev & Projects'!T109,0) -> 0 | Z99: =IFERROR('All Rev & Projects'!U109,0) -> 0 | AA99: =IFERROR('All Rev & Projects'!V109,0) -> 0
A100: 0 | B100: 0 | C100: FALSE | D100: 0 | E100: ='All Rev & Projects'!C110 -> 0 | F100: ='All Rev & Projects'!D110 -> 0 | H100: ='All Rev & Projects'!E110 -> Fuel Tax | I100: 0 | K100: =IFERROR('All Rev & Projects'!F110,0) -> 0 | L100: =IFERROR('All Rev & Projects'!G110,0) -> 0 | M100: =IFERROR('All Rev & Projects'!H110,0) -> 0 | N100: =IFERROR('All Rev & Projects'!I110,0) -> 0 | O100: =IFERROR('All Rev & Projects'!J110,0) -> 0 | P100: =IFERROR('All Rev & Projects'!K110,0) -> 0 | Q100: =IFERROR('All Rev & Projects'!L110,0) -> 0 | R100: =IFERROR('All Rev & Projects'!M110,0) -> 0 | S100: =IFERROR('All Rev & Projects'!N110,0) -> 0 | T100: =IFERROR('All Rev & Projects'!O110,0) -> 0 | U100: =IFERROR('All Rev & Projects'!P110,0) -> 0 | V100: =IFERROR('All Rev & Projects'!Q110,0) -> 0 | W100: =IFERROR('All Rev & Projects'!R110,0) -> 0 | X100: =IFERROR('All Rev & Projects'!S110,0) -> 0 | Y100: =IFERROR('All Rev & Projects'!T110,0) -> 0 | Z100: =IFERROR('All Rev & Projects'!U110,0) -> 0 | AA100: =IFERROR('All Rev & Projects'!V110,0) -> 0
A101: 0 | B101: 0 | C101: FALSE | D101: 0 | E101: ='All Rev & Projects'!C111 -> FALSE | F101: ='All Rev & Projects'!D111 -> No | G101: Additional Tax Revenue | H101: ='All Rev & Projects'!E111 -> Fuel Tax Rate Increase | I101: 0 | J101: Similar to a sales tax, may encourage Alaskans to move in search of lower costs of living, especially since fuel prices are already high in Alaska. | K101: =IFERROR('All Rev & Projects'!F111,0) -> 0 | L101: =IFERROR('All Rev & Projects'!G111,0) -> 0 | M101: =IFERROR('All Rev & Projects'!H111,0) -> 0 | N101: =IFERROR('All Rev & Projects'!I111,0) -> 0 | O101: =IFERROR('All Rev & Projects'!J111,0) -> 0 | P101: =IFERROR('All Rev & Projects'!K111,0) -> 0 | Q101: =IFERROR('All Rev & Projects'!L111,0) -> 0 | R101: =IFERROR('All Rev & Projects'!M111,0) -> 0 | S101: =IFERROR('All Rev & Projects'!N111,0) -> 0 | T101: =IFERROR('All Rev & Projects'!O111,0) -> 0 | U101: =IFERROR('All Rev & Projects'!P111,0) -> 0 | V101: =IFERROR('All Rev & Projects'!Q111,0) -> 0 | W101: =IFERROR('All Rev & Projects'!R111,0) -> 0 | X101: =IFERROR('All Rev & Projects'!S111,0) -> 0 | Y101: =IFERROR('All Rev & Projects'!T111,0) -> 0 | Z101: =IFERROR('All Rev & Projects'!U111,0) -> 0 | AA101: =IFERROR('All Rev & Projects'!V111,0) -> 0
A102: 0 | B102: 0 | C102: FALSE | D102: 0 | E102: ='All Rev & Projects'!C112 -> 1 | F102: ='All Rev & Projects'!D112 -> 0.05 | H102: ='All Rev & Projects'!E112 -> Increase in tax per Gallon | I102: 0 | K102: =IFERROR('All Rev & Projects'!F112,0) -> 0 | L102: =IFERROR('All Rev & Projects'!G112,0) -> 0 | M102: =IFERROR('All Rev & Projects'!H112,0) -> 0 | N102: =IFERROR('All Rev & Projects'!I112,0) -> 0 | O102: =IFERROR('All Rev & Projects'!J112,0) -> 0 | P102: =IFERROR('All Rev & Projects'!K112,0) -> 0 | Q102: =IFERROR('All Rev & Projects'!L112,0) -> 0 | R102: =IFERROR('All Rev & Projects'!M112,0) -> 0 | S102: =IFERROR('All Rev & Projects'!N112,0) -> 0 | T102: =IFERROR('All Rev & Projects'!O112,0) -> 0 | U102: =IFERROR('All Rev & Projects'!P112,0) -> 0 | V102: =IFERROR('All Rev & Projects'!Q112,0) -> 0 | W102: =IFERROR('All Rev & Projects'!R112,0) -> 0 | X102: =IFERROR('All Rev & Projects'!S112,0) -> 0 | Y102: =IFERROR('All Rev & Projects'!T112,0) -> 0 | Z102: =IFERROR('All Rev & Projects'!U112,0) -> 0 | AA102: =IFERROR('All Rev & Projects'!V112,0) -> 0
A103: 0 | B103: 0 | C103: FALSE | D103: 0 | E103: ='All Rev & Projects'!C113 -> 0 | F103: ='All Rev & Projects'!D113 -> 0 | H103: ='All Rev & Projects'!E113 -> 0 | I103: 0 | K103: =IFERROR('All Rev & Projects'!F113,0) -> 0 | L103: =IFERROR('All Rev & Projects'!G113,0) -> 0 | M103: =IFERROR('All Rev & Projects'!H113,0) -> 0 | N103: =IFERROR('All Rev & Projects'!I113,0) -> 0 | O103: =IFERROR('All Rev & Projects'!J113,0) -> 0 | P103: =IFERROR('All Rev & Projects'!K113,0) -> 0 | Q103: =IFERROR('All Rev & Projects'!L113,0) -> 0 | R103: =IFERROR('All Rev & Projects'!M113,0) -> 0 | S103: =IFERROR('All Rev & Projects'!N113,0) -> 0 | T103: =IFERROR('All Rev & Projects'!O113,0) -> 0 | U103: =IFERROR('All Rev & Projects'!P113,0) -> 0 | V103: =IFERROR('All Rev & Projects'!Q113,0) -> 0 | W103: =IFERROR('All Rev & Projects'!R113,0) -> 0 | X103: =IFERROR('All Rev & Projects'!S113,0) -> 0 | Y103: =IFERROR('All Rev & Projects'!T113,0) -> 0 | Z103: =IFERROR('All Rev & Projects'!U113,0) -> 0 | AA103: =IFERROR('All Rev & Projects'!V113,0) -> 0
A104: 0 | B104: 0 | C104: FALSE | D104: 0 | E104: ='All Rev & Projects'!C114 -> 0 | F104: ='All Rev & Projects'!D114 -> 0 | H104: ='All Rev & Projects'!E114 -> Sales Tax | I104: 0 | J104: Discourages retail business by lowering the revenue that businesses receive from each sale. Discourages consumption by increasing the price consumers pay. May encourage Alaskans to leave the state in search of lower costs of living. On the positive side, reduced consumption may encourage personal saving. | K104: =IFERROR('All Rev & Projects'!F114,0) -> 0 | L104: =IFERROR('All Rev & Projects'!G114,0) -> 0 | M104: =IFERROR('All Rev & Projects'!H114,0) -> 0 | N104: =IFERROR('All Rev & Projects'!I114,0) -> 0 | O104: =IFERROR('All Rev & Projects'!J114,0) -> 0 | P104: =IFERROR('All Rev & Projects'!K114,0) -> 0 | Q104: =IFERROR('All Rev & Projects'!L114,0) -> 0 | R104: =IFERROR('All Rev & Projects'!M114,0) -> 0 | S104: =IFERROR('All Rev & Projects'!N114,0) -> 0 | T104: =IFERROR('All Rev & Projects'!O114,0) -> 0 | U104: =IFERROR('All Rev & Projects'!P114,0) -> 0 | V104: =IFERROR('All Rev & Projects'!Q114,0) -> 0 | W104: =IFERROR('All Rev & Projects'!R114,0) -> 0 | X104: =IFERROR('All Rev & Projects'!S114,0) -> 0 | Y104: =IFERROR('All Rev & Projects'!T114,0) -> 0 | Z104: =IFERROR('All Rev & Projects'!U114,0) -> 0 | AA104: =IFERROR('All Rev & Projects'!V114,0) -> 0
A105: 0 | B105: 0 | C105: FALSE | D105: 0 | E105: ='All Rev & Projects'!C115 -> FALSE | F105: ='All Rev & Projects'!D115 -> No | G105: Additional Tax Revenue | H105: ='All Rev & Projects'!E115 -> Gross Receipts | I105: 0 | J105: Discourages production and consumption, similar to a sales tax. However, a gross receipts tax distorts production more than a sales tax, because it taxes the full value at every step of production rather than only the value added. Favors goods and industries with fewer companies in the production chain. | K105: =IFERROR('All Rev & Projects'!F115,0) -> 0 | L105: =IFERROR('All Rev & Projects'!G115,0) -> 0 | M105: =IFERROR('All Rev & Projects'!H115,0) -> 0 | N105: =IFERROR('All Rev & Projects'!I115,0) -> 0 | O105: =IFERROR('All Rev & Projects'!J115,0) -> 0 | P105: =IFERROR('All Rev & Projects'!K115,0) -> 0 | Q105: =IFERROR('All Rev & Projects'!L115,0) -> 0 | R105: =IFERROR('All Rev & Projects'!M115,0) -> 0 | S105: =IFERROR('All Rev & Projects'!N115,0) -> 0 | T105: =IFERROR('All Rev & Projects'!O115,0) -> 0 | U105: =IFERROR('All Rev & Projects'!P115,0) -> 0 | V105: =IFERROR('All Rev & Projects'!Q115,0) -> 0 | W105: =IFERROR('All Rev & Projects'!R115,0) -> 0 | X105: =IFERROR('All Rev & Projects'!S115,0) -> 0 | Y105: =IFERROR('All Rev & Projects'!T115,0) -> 0 | Z105: =IFERROR('All Rev & Projects'!U115,0) -> 0 | AA105: =IFERROR('All Rev & Projects'!V115,0) -> 0
A106: 0 | B106: 0 | C106: FALSE | D106: 0 | E106: ='All Rev & Projects'!C116 -> 0 | F106: ='All Rev & Projects'!D116 -> 0 | H106: ='All Rev & Projects'!E116 -> 0 | I106: 0 | K106: =IFERROR('All Rev & Projects'!F116,0) -> 0 | L106: =IFERROR('All Rev & Projects'!G116,0) -> 0 | M106: =IFERROR('All Rev & Projects'!H116,0) -> 0 | N106: =IFERROR('All Rev & Projects'!I116,0) -> 0 | O106: =IFERROR('All Rev & Projects'!J116,0) -> 0 | P106: =IFERROR('All Rev & Projects'!K116,0) -> 0 | Q106: =IFERROR('All Rev & Projects'!L116,0) -> 0 | R106: =IFERROR('All Rev & Projects'!M116,0) -> 0 | S106: =IFERROR('All Rev & Projects'!N116,0) -> 0 | T106: =IFERROR('All Rev & Projects'!O116,0) -> 0 | U106: =IFERROR('All Rev & Projects'!P116,0) -> 0 | V106: =IFERROR('All Rev & Projects'!Q116,0) -> 0 | W106: =IFERROR('All Rev & Projects'!R116,0) -> 0 | X106: =IFERROR('All Rev & Projects'!S116,0) -> 0 | Y106: =IFERROR('All Rev & Projects'!T116,0) -> 0 | Z106: =IFERROR('All Rev & Projects'!U116,0) -> 0 | AA106: =IFERROR('All Rev & Projects'!V116,0) -> 0
A107: 0 | B107: 0 | C107: FALSE | D107: 0 | E107: ='All Rev & Projects'!C117 -> FALSE | F107: ='All Rev & Projects'!D117 -> No | G107: Additional Tax Revenue | H107: ='All Rev & Projects'!E117 -> Sales Tax | I107: 0 | J107: Discourages retail business by lowering the revenue that businesses receive from each sale. Discourages consumption by increasing the price consumers pay. May encourage Alaskans to leave the state in search of lower costs of living. On the positive side, reduced consumption may encourage personal saving. | K107: =IFERROR('All Rev & Projects'!F117,0) -> 0 | L107: =IFERROR('All Rev & Projects'!G117,0) -> 0 | M107: =IFERROR('All Rev & Projects'!H117,0) -> 0 | N107: =IFERROR('All Rev & Projects'!I117,0) -> 0 | O107: =IFERROR('All Rev & Projects'!J117,0) -> 0 | P107: =IFERROR('All Rev & Projects'!K117,0) -> 0 | Q107: =IFERROR('All Rev & Projects'!L117,0) -> 0 | R107: =IFERROR('All Rev & Projects'!M117,0) -> 0 | S107: =IFERROR('All Rev & Projects'!N117,0) -> 0 | T107: =IFERROR('All Rev & Projects'!O117,0) -> 0 | U107: =IFERROR('All Rev & Projects'!P117,0) -> 0 | V107: =IFERROR('All Rev & Projects'!Q117,0) -> 0 | W107: =IFERROR('All Rev & Projects'!R117,0) -> 0 | X107: =IFERROR('All Rev & Projects'!S117,0) -> 0 | Y107: =IFERROR('All Rev & Projects'!T117,0) -> 0 | Z107: =IFERROR('All Rev & Projects'!U117,0) -> 0 | AA107: =IFERROR('All Rev & Projects'!V117,0) -> 0
A108: 0 | B108: 0 | C108: FALSE | D108: 0 | E108: ='All Rev & Projects'!C118 -> 1 | F108: ='All Rev & Projects'!D118 -> 0.01 | H108: ='All Rev & Projects'!E118 -> Sales Tax Rate | I108: 0 | K108: =IFERROR('All Rev & Projects'!F118,0) -> 0 | L108: =IFERROR('All Rev & Projects'!G118,0) -> 0 | M108: =IFERROR('All Rev & Projects'!H118,0) -> 0 | N108: =IFERROR('All Rev & Projects'!I118,0) -> 0 | O108: =IFERROR('All Rev & Projects'!J118,0) -> 0 | P108: =IFERROR('All Rev & Projects'!K118,0) -> 0 | Q108: =IFERROR('All Rev & Projects'!L118,0) -> 0 | R108: =IFERROR('All Rev & Projects'!M118,0) -> 0 | S108: =IFERROR('All Rev & Projects'!N118,0) -> 0 | T108: =IFERROR('All Rev & Projects'!O118,0) -> 0 | U108: =IFERROR('All Rev & Projects'!P118,0) -> 0 | V108: =IFERROR('All Rev & Projects'!Q118,0) -> 0 | W108: =IFERROR('All Rev & Projects'!R118,0) -> 0 | X108: =IFERROR('All Rev & Projects'!S118,0) -> 0 | Y108: =IFERROR('All Rev & Projects'!T118,0) -> 0 | Z108: =IFERROR('All Rev & Projects'!U118,0) -> 0 | AA108: =IFERROR('All Rev & Projects'!V118,0) -> 0
A109: 0 | B109: 0 | C109: FALSE | D109: 0 | E109: ='All Rev & Projects'!C119 -> 0 | F109: ='All Rev & Projects'!D119 -> 0 | H109: ='All Rev & Projects'!E119 -> 0 | I109: 0 | K109: =IFERROR('All Rev & Projects'!F119,0) -> 0 | L109: =IFERROR('All Rev & Projects'!G119,0) -> 0 | M109: =IFERROR('All Rev & Projects'!H119,0) -> 0 | N109: =IFERROR('All Rev & Projects'!I119,0) -> 0 | O109: =IFERROR('All Rev & Projects'!J119,0) -> 0 | P109: =IFERROR('All Rev & Projects'!K119,0) -> 0 | Q109: =IFERROR('All Rev & Projects'!L119,0) -> 0 | R109: =IFERROR('All Rev & Projects'!M119,0) -> 0 | S109: =IFERROR('All Rev & Projects'!N119,0) -> 0 | T109: =IFERROR('All Rev & Projects'!O119,0) -> 0 | U109: =IFERROR('All Rev & Projects'!P119,0) -> 0 | V109: =IFERROR('All Rev & Projects'!Q119,0) -> 0 | W109: =IFERROR('All Rev & Projects'!R119,0) -> 0 | X109: =IFERROR('All Rev & Projects'!S119,0) -> 0 | Y109: =IFERROR('All Rev & Projects'!T119,0) -> 0 | Z109: =IFERROR('All Rev & Projects'!U119,0) -> 0 | AA109: =IFERROR('All Rev & Projects'!V119,0) -> 0
A110: 0 | B110: 0 | C110: FALSE | D110: 0 | E110: ='All Rev & Projects'!C120 -> 0 | F110: ='All Rev & Projects'!D120 -> 0 | H110: ='All Rev & Projects'!E120 -> Income Tax | I110: 0 | J110: May reduce economic growth by lowering Alaskans' incentives to work. May encourage people to move their primary residence to other states, especially senior citizens who already split their time between Alaska and elsewhere. | K110: =IFERROR('All Rev & Projects'!F120,0) -> 0 | L110: =IFERROR('All Rev & Projects'!G120,0) -> 0 | M110: =IFERROR('All Rev & Projects'!H120,0) -> 0 | N110: =IFERROR('All Rev & Projects'!I120,0) -> 0 | O110: =IFERROR('All Rev & Projects'!J120,0) -> 0 | P110: =IFERROR('All Rev & Projects'!K120,0) -> 0 | Q110: =IFERROR('All Rev & Projects'!L120,0) -> 0 | R110: =IFERROR('All Rev & Projects'!M120,0) -> 0 | S110: =IFERROR('All Rev & Projects'!N120,0) -> 0 | T110: =IFERROR('All Rev & Projects'!O120,0) -> 0 | U110: =IFERROR('All Rev & Projects'!P120,0) -> 0 | V110: =IFERROR('All Rev & Projects'!Q120,0) -> 0 | W110: =IFERROR('All Rev & Projects'!R120,0) -> 0 | X110: =IFERROR('All Rev & Projects'!S120,0) -> 0 | Y110: =IFERROR('All Rev & Projects'!T120,0) -> 0 | Z110: =IFERROR('All Rev & Projects'!U120,0) -> 0 | AA110: =IFERROR('All Rev & Projects'!V120,0) -> 0
A111: 0 | B111: 0 | C111: FALSE | D111: 0 | E111: ='All Rev & Projects'!C121 -> FALSE | F111: ='All Rev & Projects'!D121 -> No | G111: Additional Tax Revenue | H111: ='All Rev & Projects'!E121 -> Income Tax | I111: 0 | J111: May reduce economic growth by lowering Alaskans' incentives to work. May encourage people to move their primary residence to other states, especially senior citizens who already split their time between Alaska and elsewhere. | K111: =IFERROR('All Rev & Projects'!F121,0) -> 0 | L111: =IFERROR('All Rev & Projects'!G121,0) -> 0 | M111: =IFERROR('All Rev & Projects'!H121,0) -> 0 | N111: =IFERROR('All Rev & Projects'!I121,0) -> 0 | O111: =IFERROR('All Rev & Projects'!J121,0) -> 0 | P111: =IFERROR('All Rev & Projects'!K121,0) -> 0 | Q111: =IFERROR('All Rev & Projects'!L121,0) -> 0 | R111: =IFERROR('All Rev & Projects'!M121,0) -> 0 | S111: =IFERROR('All Rev & Projects'!N121,0) -> 0 | T111: =IFERROR('All Rev & Projects'!O121,0) -> 0 | U111: =IFERROR('All Rev & Projects'!P121,0) -> 0 | V111: =IFERROR('All Rev & Projects'!Q121,0) -> 0 | W111: =IFERROR('All Rev & Projects'!R121,0) -> 0 | X111: =IFERROR('All Rev & Projects'!S121,0) -> 0 | Y111: =IFERROR('All Rev & Projects'!T121,0) -> 0 | Z111: =IFERROR('All Rev & Projects'!U121,0) -> 0 | AA111: =IFERROR('All Rev & Projects'!V121,0) -> 0
A112: 0 | B112: 0 | C112: FALSE | D112: 0 | E112: ='All Rev & Projects'!C122 -> 1 | F112: ='All Rev & Projects'!D122 -> 0.05 | H112: ='All Rev & Projects'!E122 -> Income Tax Rate | I112: 0 | K112: =IFERROR('All Rev & Projects'!F122,0) -> 0 | L112: =IFERROR('All Rev & Projects'!G122,0) -> 0 | M112: =IFERROR('All Rev & Projects'!H122,0) -> 0 | N112: =IFERROR('All Rev & Projects'!I122,0) -> 0 | O112: =IFERROR('All Rev & Projects'!J122,0) -> 0 | P112: =IFERROR('All Rev & Projects'!K122,0) -> 0 | Q112: =IFERROR('All Rev & Projects'!L122,0) -> 0 | R112: =IFERROR('All Rev & Projects'!M122,0) -> 0 | S112: =IFERROR('All Rev & Projects'!N122,0) -> 0 | T112: =IFERROR('All Rev & Projects'!O122,0) -> 0 | U112: =IFERROR('All Rev & Projects'!P122,0) -> 0 | V112: =IFERROR('All Rev & Projects'!Q122,0) -> 0 | W112: =IFERROR('All Rev & Projects'!R122,0) -> 0 | X112: =IFERROR('All Rev & Projects'!S122,0) -> 0 | Y112: =IFERROR('All Rev & Projects'!T122,0) -> 0 | Z112: =IFERROR('All Rev & Projects'!U122,0) -> 0 | AA112: =IFERROR('All Rev & Projects'!V122,0) -> 0
A113: 0 | B113: 0 | C113: FALSE | D113: 0 | E113: ='All Rev & Projects'!C123 -> 0 | F113: ='All Rev & Projects'!D123 -> 0 | H113: ='All Rev & Projects'!E123 -> 0 | I113: 0 | K113: =IFERROR('All Rev & Projects'!F123,0) -> 0 | L113: =IFERROR('All Rev & Projects'!G123,0) -> 0 | M113: =IFERROR('All Rev & Projects'!H123,0) -> 0 | N113: =IFERROR('All Rev & Projects'!I123,0) -> 0 | O113: =IFERROR('All Rev & Projects'!J123,0) -> 0 | P113: =IFERROR('All Rev & Projects'!K123,0) -> 0 | Q113: =IFERROR('All Rev & Projects'!L123,0) -> 0 | R113: =IFERROR('All Rev & Projects'!M123,0) -> 0 | S113: =IFERROR('All Rev & Projects'!N123,0) -> 0 | T113: =IFERROR('All Rev & Projects'!O123,0) -> 0 | U113: =IFERROR('All Rev & Projects'!P123,0) -> 0 | V113: =IFERROR('All Rev & Projects'!Q123,0) -> 0 | W113: =IFERROR('All Rev & Projects'!R123,0) -> 0 | X113: =IFERROR('All Rev & Projects'!S123,0) -> 0 | Y113: =IFERROR('All Rev & Projects'!T123,0) -> 0 | Z113: =IFERROR('All Rev & Projects'!U123,0) -> 0 | AA113: =IFERROR('All Rev & Projects'!V123,0) -> 0
A114: 0 | B114: 0 | C114: FALSE | D114: 0 | E114: ='All Rev & Projects'!C124 -> FALSE | F114: ='All Rev & Projects'!D124 -> No | G114: Additional Tax Revenue | H114: ='All Rev & Projects'!E124 -> Capital Gains | I114: 0 | J114: Encourages Alaskans, especially part-time Alaskans, to move out of state. Unlike an income tax, which would still apply to income earned within Alaska, people could avoid the entire capital gains tax simply by moving their primary residence. This is because capital gains cannot be attributed to one state or another. | K114: =IFERROR('All Rev & Projects'!F124,0) -> 0 | L114: =IFERROR('All Rev & Projects'!G124,0) -> 0 | M114: =IFERROR('All Rev & Projects'!H124,0) -> 0 | N114: =IFERROR('All Rev & Projects'!I124,0) -> 0 | O114: =IFERROR('All Rev & Projects'!J124,0) -> 0 | P114: =IFERROR('All Rev & Projects'!K124,0) -> 0 | Q114: =IFERROR('All Rev & Projects'!L124,0) -> 0 | R114: =IFERROR('All Rev & Projects'!M124,0) -> 0 | S114: =IFERROR('All Rev & Projects'!N124,0) -> 0 | T114: =IFERROR('All Rev & Projects'!O124,0) -> 0 | U114: =IFERROR('All Rev & Projects'!P124,0) -> 0 | V114: =IFERROR('All Rev & Projects'!Q124,0) -> 0 | W114: =IFERROR('All Rev & Projects'!R124,0) -> 0 | X114: =IFERROR('All Rev & Projects'!S124,0) -> 0 | Y114: =IFERROR('All Rev & Projects'!T124,0) -> 0 | Z114: =IFERROR('All Rev & Projects'!U124,0) -> 0 | AA114: =IFERROR('All Rev & Projects'!V124,0) -> 0
A115: 0 | B115: 0 | C115: FALSE | D115: 0 | E115: ='All Rev & Projects'!C125 -> 1 | F115: ='All Rev & Projects'!D125 -> 0.05 | H115: ='All Rev & Projects'!E125 -> Capital Gains Tax Rate | I115: 0 | K115: =IFERROR('All Rev & Projects'!F125,0) -> 0 | L115: =IFERROR('All Rev & Projects'!G125,0) -> 0 | M115: =IFERROR('All Rev & Projects'!H125,0) -> 0 | N115: =IFERROR('All Rev & Projects'!I125,0) -> 0 | O115: =IFERROR('All Rev & Projects'!J125,0) -> 0 | P115: =IFERROR('All Rev & Projects'!K125,0) -> 0 | Q115: =IFERROR('All Rev & Projects'!L125,0) -> 0 | R115: =IFERROR('All Rev & Projects'!M125,0) -> 0 | S115: =IFERROR('All Rev & Projects'!N125,0) -> 0 | T115: =IFERROR('All Rev & Projects'!O125,0) -> 0 | U115: =IFERROR('All Rev & Projects'!P125,0) -> 0 | V115: =IFERROR('All Rev & Projects'!Q125,0) -> 0 | W115: =IFERROR('All Rev & Projects'!R125,0) -> 0 | X115: =IFERROR('All Rev & Projects'!S125,0) -> 0 | Y115: =IFERROR('All Rev & Projects'!T125,0) -> 0 | Z115: =IFERROR('All Rev & Projects'!U125,0) -> 0 | AA115: =IFERROR('All Rev & Projects'!V125,0) -> 0
A116: 0 | B116: 0 | C116: FALSE | D116: 0 | E116: ='All Rev & Projects'!C126 -> 0 | F116: ='All Rev & Projects'!D126 -> 0 | H116: ='All Rev & Projects'!E126 -> 0 | I116: 0 | K116: =IFERROR('All Rev & Projects'!F126,0) -> 0 | L116: =IFERROR('All Rev & Projects'!G126,0) -> 0 | M116: =IFERROR('All Rev & Projects'!H126,0) -> 0 | N116: =IFERROR('All Rev & Projects'!I126,0) -> 0 | O116: =IFERROR('All Rev & Projects'!J126,0) -> 0 | P116: =IFERROR('All Rev & Projects'!K126,0) -> 0 | Q116: =IFERROR('All Rev & Projects'!L126,0) -> 0 | R116: =IFERROR('All Rev & Projects'!M126,0) -> 0 | S116: =IFERROR('All Rev & Projects'!N126,0) -> 0 | T116: =IFERROR('All Rev & Projects'!O126,0) -> 0 | U116: =IFERROR('All Rev & Projects'!P126,0) -> 0 | V116: =IFERROR('All Rev & Projects'!Q126,0) -> 0 | W116: =IFERROR('All Rev & Projects'!R126,0) -> 0 | X116: =IFERROR('All Rev & Projects'!S126,0) -> 0 | Y116: =IFERROR('All Rev & Projects'!T126,0) -> 0 | Z116: =IFERROR('All Rev & Projects'!U126,0) -> 0 | AA116: =IFERROR('All Rev & Projects'!V126,0) -> 0
A117: 0 | B117: 0 | C117: FALSE | D117: 0 | E117: ='All Rev & Projects'!C127 -> FALSE | F117: ='All Rev & Projects'!D127 -> No | G117: Additional Tax Revenue | H117: ='All Rev & Projects'!E127 -> Corporate Income Tax | I117: 0 | J117: May reduce economic growth by lowering Alaskans' incentives to work. May encourage people to move their primary residence to other states, especially senior citizens who already split their time between Alaska and elsewhere. | K117: =IFERROR('All Rev & Projects'!F127,0) -> 0 | L117: =IFERROR('All Rev & Projects'!G127,0) -> 0 | M117: =IFERROR('All Rev & Projects'!H127,0) -> 0 | N117: =IFERROR('All Rev & Projects'!I127,0) -> 0 | O117: =IFERROR('All Rev & Projects'!J127,0) -> 0 | P117: =IFERROR('All Rev & Projects'!K127,0) -> 0 | Q117: =IFERROR('All Rev & Projects'!L127,0) -> 0 | R117: =IFERROR('All Rev & Projects'!M127,0) -> 0 | S117: =IFERROR('All Rev & Projects'!N127,0) -> 0 | T117: =IFERROR('All Rev & Projects'!O127,0) -> 0 | U117: =IFERROR('All Rev & Projects'!P127,0) -> 0 | V117: =IFERROR('All Rev & Projects'!Q127,0) -> 0 | W117: =IFERROR('All Rev & Projects'!R127,0) -> 0 | X117: =IFERROR('All Rev & Projects'!S127,0) -> 0 | Y117: =IFERROR('All Rev & Projects'!T127,0) -> 0 | Z117: =IFERROR('All Rev & Projects'!U127,0) -> 0 | AA117: =IFERROR('All Rev & Projects'!V127,0) -> 0
A118: 0 | B118: 0 | C118: FALSE | D118: 0 | E118: ='All Rev & Projects'!C128 -> 1 | F118: ='All Rev & Projects'!D128 -> 0.01 | H118: ='All Rev & Projects'!E128 -> Increase in the max rate | I118: 0 | K118: =IFERROR('All Rev & Projects'!F128,0) -> 0 | L118: =IFERROR('All Rev & Projects'!G128,0) -> 0 | M118: =IFERROR('All Rev & Projects'!H128,0) -> 0 | N118: =IFERROR('All Rev & Projects'!I128,0) -> 0 | O118: =IFERROR('All Rev & Projects'!J128,0) -> 0 | P118: =IFERROR('All Rev & Projects'!K128,0) -> 0 | Q118: =IFERROR('All Rev & Projects'!L128,0) -> 0 | R118: =IFERROR('All Rev & Projects'!M128,0) -> 0 | S118: =IFERROR('All Rev & Projects'!N128,0) -> 0 | T118: =IFERROR('All Rev & Projects'!O128,0) -> 0 | U118: =IFERROR('All Rev & Projects'!P128,0) -> 0 | V118: =IFERROR('All Rev & Projects'!Q128,0) -> 0 | W118: =IFERROR('All Rev & Projects'!R128,0) -> 0 | X118: =IFERROR('All Rev & Projects'!S128,0) -> 0 | Y118: =IFERROR('All Rev & Projects'!T128,0) -> 0 | Z118: =IFERROR('All Rev & Projects'!U128,0) -> 0 | AA118: =IFERROR('All Rev & Projects'!V128,0) -> 0
A119: 0 | B119: 0 | C119: FALSE | D119: 0 | E119: ='All Rev & Projects'!C129 -> 0 | F119: ='All Rev & Projects'!D129 -> 0 | H119: ='All Rev & Projects'!E129 -> 0 | I119: 0 | K119: =IFERROR('All Rev & Projects'!F129,0) -> 0 | L119: =IFERROR('All Rev & Projects'!G129,0) -> 0 | M119: =IFERROR('All Rev & Projects'!H129,0) -> 0 | N119: =IFERROR('All Rev & Projects'!I129,0) -> 0 | O119: =IFERROR('All Rev & Projects'!J129,0) -> 0 | P119: =IFERROR('All Rev & Projects'!K129,0) -> 0 | Q119: =IFERROR('All Rev & Projects'!L129,0) -> 0 | R119: =IFERROR('All Rev & Projects'!M129,0) -> 0 | S119: =IFERROR('All Rev & Projects'!N129,0) -> 0 | T119: =IFERROR('All Rev & Projects'!O129,0) -> 0 | U119: =IFERROR('All Rev & Projects'!P129,0) -> 0 | V119: =IFERROR('All Rev & Projects'!Q129,0) -> 0 | W119: =IFERROR('All Rev & Projects'!R129,0) -> 0 | X119: =IFERROR('All Rev & Projects'!S129,0) -> 0 | Y119: =IFERROR('All Rev & Projects'!T129,0) -> 0 | Z119: =IFERROR('All Rev & Projects'!U129,0) -> 0 | AA119: =IFERROR('All Rev & Projects'!V129,0) -> 0
A120: 0 | B120: 0 | C120: FALSE | D120: 0 | E120: ='All Rev & Projects'!C130 -> 0 | F120: ='All Rev & Projects'!D130 -> 0 | H120: ='All Rev & Projects'!E130 -> Lottery / Gaming | I120: 0 | K120: =IFERROR('All Rev & Projects'!F130,0) -> 0 | L120: =IFERROR('All Rev & Projects'!G130,0) -> 0 | M120: =IFERROR('All Rev & Projects'!H130,0) -> 0 | N120: =IFERROR('All Rev & Projects'!I130,0) -> 0 | O120: =IFERROR('All Rev & Projects'!J130,0) -> 0 | P120: =IFERROR('All Rev & Projects'!K130,0) -> 0 | Q120: =IFERROR('All Rev & Projects'!L130,0) -> 0 | R120: =IFERROR('All Rev & Projects'!M130,0) -> 0 | S120: =IFERROR('All Rev & Projects'!N130,0) -> 0 | T120: =IFERROR('All Rev & Projects'!O130,0) -> 0 | U120: =IFERROR('All Rev & Projects'!P130,0) -> 0 | V120: =IFERROR('All Rev & Projects'!Q130,0) -> 0 | W120: =IFERROR('All Rev & Projects'!R130,0) -> 0 | X120: =IFERROR('All Rev & Projects'!S130,0) -> 0 | Y120: =IFERROR('All Rev & Projects'!T130,0) -> 0 | Z120: =IFERROR('All Rev & Projects'!U130,0) -> 0 | AA120: =IFERROR('All Rev & Projects'!V130,0) -> 0
A121: 0 | B121: 0 | C121: FALSE | D121: 0 | E121: ='All Rev & Projects'!C131 -> FALSE | F121: ='All Rev & Projects'!D131 -> No | G121: Other Revenue Sources | H121: ='All Rev & Projects'!E131 -> State Lottery | I121: 0 | J121: No clear economic distortion, as participation is voluntary. May be considered regressive because less wealthy people are more likely to participate in lotteries. | K121: =IFERROR('All Rev & Projects'!F131,0) -> 0 | L121: =IFERROR('All Rev & Projects'!G131,0) -> 0 | M121: =IFERROR('All Rev & Projects'!H131,0) -> 0 | N121: =IFERROR('All Rev & Projects'!I131,0) -> 0 | O121: =IFERROR('All Rev & Projects'!J131,0) -> 0 | P121: =IFERROR('All Rev & Projects'!K131,0) -> 0 | Q121: =IFERROR('All Rev & Projects'!L131,0) -> 0 | R121: =IFERROR('All Rev & Projects'!M131,0) -> 0 | S121: =IFERROR('All Rev & Projects'!N131,0) -> 0 | T121: =IFERROR('All Rev & Projects'!O131,0) -> 0 | U121: =IFERROR('All Rev & Projects'!P131,0) -> 0 | V121: =IFERROR('All Rev & Projects'!Q131,0) -> 0 | W121: =IFERROR('All Rev & Projects'!R131,0) -> 0 | X121: =IFERROR('All Rev & Projects'!S131,0) -> 0 | Y121: =IFERROR('All Rev & Projects'!T131,0) -> 0 | Z121: =IFERROR('All Rev & Projects'!U131,0) -> 0 | AA121: =IFERROR('All Rev & Projects'!V131,0) -> 0
A122: 0 | B122: 0 | C122: FALSE | D122: 0 | E122: ='All Rev & Projects'!C132 -> FALSE | F122: ='All Rev & Projects'!D132 -> No | G122: Other Revenue Sources | H122: ='All Rev & Projects'!E132 -> PF Lottery | I122: 0 | J122: No clear economic distortion, as participation is voluntary. May be considered regressive because less wealthy people are more likely to participate in lotteries. | K122: =IFERROR('All Rev & Projects'!F132,0) -> 0 | L122: =IFERROR('All Rev & Projects'!G132,0) -> 0 | M122: =IFERROR('All Rev & Projects'!H132,0) -> 0 | N122: =IFERROR('All Rev & Projects'!I132,0) -> 0 | O122: =IFERROR('All Rev & Projects'!J132,0) -> 0 | P122: =IFERROR('All Rev & Projects'!K132,0) -> 0 | Q122: =IFERROR('All Rev & Projects'!L132,0) -> 0 | R122: =IFERROR('All Rev & Projects'!M132,0) -> 0 | S122: =IFERROR('All Rev & Projects'!N132,0) -> 0 | T122: =IFERROR('All Rev & Projects'!O132,0) -> 0 | U122: =IFERROR('All Rev & Projects'!P132,0) -> 0 | V122: =IFERROR('All Rev & Projects'!Q132,0) -> 0 | W122: =IFERROR('All Rev & Projects'!R132,0) -> 0 | X122: =IFERROR('All Rev & Projects'!S132,0) -> 0 | Y122: =IFERROR('All Rev & Projects'!T132,0) -> 0 | Z122: =IFERROR('All Rev & Projects'!U132,0) -> 0 | AA122: =IFERROR('All Rev & Projects'!V132,0) -> 0
A123: 0 | B123: 0 | C123: FALSE | D123: 0 | E123: ='All Rev & Projects'!C133 -> FALSE | F123: ='All Rev & Projects'!D133 -> No | G123: Additional Tax Revenue | H123: ='All Rev & Projects'!E133 -> Increase Current Gaming Rates | I123: 0 | J123: Discourages economic activity in the gaming sector. | K123: =IFERROR('All Rev & Projects'!F133,0) -> 0 | L123: =IFERROR('All Rev & Projects'!G133,0) -> 0 | M123: =IFERROR('All Rev & Projects'!H133,0) -> 0 | N123: =IFERROR('All Rev & Projects'!I133,0) -> 0 | O123: =IFERROR('All Rev & Projects'!J133,0) -> 0 | P123: =IFERROR('All Rev & Projects'!K133,0) -> 0 | Q123: =IFERROR('All Rev & Projects'!L133,0) -> 0 | R123: =IFERROR('All Rev & Projects'!M133,0) -> 0 | S123: =IFERROR('All Rev & Projects'!N133,0) -> 0 | T123: =IFERROR('All Rev & Projects'!O133,0) -> 0 | U123: =IFERROR('All Rev & Projects'!P133,0) -> 0 | V123: =IFERROR('All Rev & Projects'!Q133,0) -> 0 | W123: =IFERROR('All Rev & Projects'!R133,0) -> 0 | X123: =IFERROR('All Rev & Projects'!S133,0) -> 0 | Y123: =IFERROR('All Rev & Projects'!T133,0) -> 0 | Z123: =IFERROR('All Rev & Projects'!U133,0) -> 0 | AA123: =IFERROR('All Rev & Projects'!V133,0) -> 0
A124: 0 | B124: 0 | C124: FALSE | D124: 0 | E124: ='All Rev & Projects'!C134 -> 1 | F124: ='All Rev & Projects'!D134 -> 0.01 | H124: ='All Rev & Projects'!E134 -> Rise in Charitable Gaming Rate | I124: 0 | K124: =IFERROR('All Rev & Projects'!F134,0) -> 0 | L124: =IFERROR('All Rev & Projects'!G134,0) -> 0 | M124: =IFERROR('All Rev & Projects'!H134,0) -> 0 | N124: =IFERROR('All Rev & Projects'!I134,0) -> 0 | O124: =IFERROR('All Rev & Projects'!J134,0) -> 0 | P124: =IFERROR('All Rev & Projects'!K134,0) -> 0 | Q124: =IFERROR('All Rev & Projects'!L134,0) -> 0 | R124: =IFERROR('All Rev & Projects'!M134,0) -> 0 | S124: =IFERROR('All Rev & Projects'!N134,0) -> 0 | T124: =IFERROR('All Rev & Projects'!O134,0) -> 0 | U124: =IFERROR('All Rev & Projects'!P134,0) -> 0 | V124: =IFERROR('All Rev & Projects'!Q134,0) -> 0 | W124: =IFERROR('All Rev & Projects'!R134,0) -> 0 | X124: =IFERROR('All Rev & Projects'!S134,0) -> 0 | Y124: =IFERROR('All Rev & Projects'!T134,0) -> 0 | Z124: =IFERROR('All Rev & Projects'!U134,0) -> 0 | AA124: =IFERROR('All Rev & Projects'!V134,0) -> 0
A125: 0 | B125: 0 | C125: FALSE | D125: 0 | E125: ='All Rev & Projects'!C135 -> FALSE | F125: ='All Rev & Projects'!D135 -> No | G125: Other Revenue Sources | H125: ='All Rev & Projects'!E135 -> Legalize Card Rooms | I125: 0 | J125: Increases economic activity among tourists and others who wish to gamble. | K125: =IFERROR('All Rev & Projects'!F135,0) -> 0 | L125: =IFERROR('All Rev & Projects'!G135,0) -> 0 | M125: =IFERROR('All Rev & Projects'!H135,0) -> 0 | N125: =IFERROR('All Rev & Projects'!I135,0) -> 0 | O125: =IFERROR('All Rev & Projects'!J135,0) -> 0 | P125: =IFERROR('All Rev & Projects'!K135,0) -> 0 | Q125: =IFERROR('All Rev & Projects'!L135,0) -> 0 | R125: =IFERROR('All Rev & Projects'!M135,0) -> 0 | S125: =IFERROR('All Rev & Projects'!N135,0) -> 0 | T125: =IFERROR('All Rev & Projects'!O135,0) -> 0 | U125: =IFERROR('All Rev & Projects'!P135,0) -> 0 | V125: =IFERROR('All Rev & Projects'!Q135,0) -> 0 | W125: =IFERROR('All Rev & Projects'!R135,0) -> 0 | X125: =IFERROR('All Rev & Projects'!S135,0) -> 0 | Y125: =IFERROR('All Rev & Projects'!T135,0) -> 0 | Z125: =IFERROR('All Rev & Projects'!U135,0) -> 0 | AA125: =IFERROR('All Rev & Projects'!V135,0) -> 0
A126: 0 | B126: 0 | C126: FALSE | D126: 0 | E126: ='All Rev & Projects'!C136 -> 0 | F126: ='All Rev & Projects'!D136 -> 10000 | H126: ='All Rev & Projects'!E136 -> Card room yearly fee | I126: 0 | K126: =IFERROR('All Rev & Projects'!F136,0) -> 0 | L126: =IFERROR('All Rev & Projects'!G136,0) -> 0 | M126: =IFERROR('All Rev & Projects'!H136,0) -> 0 | N126: =IFERROR('All Rev & Projects'!I136,0) -> 0 | O126: =IFERROR('All Rev & Projects'!J136,0) -> 0 | P126: =IFERROR('All Rev & Projects'!K136,0) -> 0 | Q126: =IFERROR('All Rev & Projects'!L136,0) -> 0 | R126: =IFERROR('All Rev & Projects'!M136,0) -> 0 | S126: =IFERROR('All Rev & Projects'!N136,0) -> 0 | T126: =IFERROR('All Rev & Projects'!O136,0) -> 0 | U126: =IFERROR('All Rev & Projects'!P136,0) -> 0 | V126: =IFERROR('All Rev & Projects'!Q136,0) -> 0 | W126: =IFERROR('All Rev & Projects'!R136,0) -> 0 | X126: =IFERROR('All Rev & Projects'!S136,0) -> 0 | Y126: =IFERROR('All Rev & Projects'!T136,0) -> 0 | Z126: =IFERROR('All Rev & Projects'!U136,0) -> 0 | AA126: =IFERROR('All Rev & Projects'!V136,0) -> 0
A127: 0 | B127: 0 | C127: FALSE | D127: 0 | E127: ='All Rev & Projects'!C137 -> 0 | F127: ='All Rev & Projects'!D137 -> 10000 | H127: ='All Rev & Projects'!E137 -> Per-table yearly fee | I127: 0 | K127: =IFERROR('All Rev & Projects'!F137,0) -> 0 | L127: =IFERROR('All Rev & Projects'!G137,0) -> 0 | M127: =IFERROR('All Rev & Projects'!H137,0) -> 0 | N127: =IFERROR('All Rev & Projects'!I137,0) -> 0 | O127: =IFERROR('All Rev & Projects'!J137,0) -> 0 | P127: =IFERROR('All Rev & Projects'!K137,0) -> 0 | Q127: =IFERROR('All Rev & Projects'!L137,0) -> 0 | R127: =IFERROR('All Rev & Projects'!M137,0) -> 0 | S127: =IFERROR('All Rev & Projects'!N137,0) -> 0 | T127: =IFERROR('All Rev & Projects'!O137,0) -> 0 | U127: =IFERROR('All Rev & Projects'!P137,0) -> 0 | V127: =IFERROR('All Rev & Projects'!Q137,0) -> 0 | W127: =IFERROR('All Rev & Projects'!R137,0) -> 0 | X127: =IFERROR('All Rev & Projects'!S137,0) -> 0 | Y127: =IFERROR('All Rev & Projects'!T137,0) -> 0 | Z127: =IFERROR('All Rev & Projects'!U137,0) -> 0 | AA127: =IFERROR('All Rev & Projects'!V137,0) -> 0
A128: 0 | B128: 0 | C128: FALSE | D128: 0 | E128: ='All Rev & Projects'!C138 -> FALSE | F128: ='All Rev & Projects'!D138 -> No | G128: Other Revenue Sources | H128: ='All Rev & Projects'!E138 -> Legalize Casino | I128: 0 | J128: Increases economic activity among tourists and others who wish to gamble. | K128: =IFERROR('All Rev & Projects'!F138,0) -> 0 | L128: =IFERROR('All Rev & Projects'!G138,0) -> 0 | M128: =IFERROR('All Rev & Projects'!H138,0) -> 0 | N128: =IFERROR('All Rev & Projects'!I138,0) -> 0 | O128: =IFERROR('All Rev & Projects'!J138,0) -> 0 | P128: =IFERROR('All Rev & Projects'!K138,0) -> 0 | Q128: =IFERROR('All Rev & Projects'!L138,0) -> 0 | R128: =IFERROR('All Rev & Projects'!M138,0) -> 0 | S128: =IFERROR('All Rev & Projects'!N138,0) -> 0 | T128: =IFERROR('All Rev & Projects'!O138,0) -> 0 | U128: =IFERROR('All Rev & Projects'!P138,0) -> 0 | V128: =IFERROR('All Rev & Projects'!Q138,0) -> 0 | W128: =IFERROR('All Rev & Projects'!R138,0) -> 0 | X128: =IFERROR('All Rev & Projects'!S138,0) -> 0 | Y128: =IFERROR('All Rev & Projects'!T138,0) -> 0 | Z128: =IFERROR('All Rev & Projects'!U138,0) -> 0 | AA128: =IFERROR('All Rev & Projects'!V138,0) -> 0
